Workbook

Sheet Welcome
A1: English | E1: Fiscal Risk Assessment Tool | F1: Provides a high-level portfolio perspective on a wide range of fiscal risks which governments are typically exposed to. It provides a starting point for fiscal risk analysis by helping countries identify the largest and most important sources of fiscal risks that can be the focus of more detailed quantification using specific tools in the IMF Fiscal Risk Toolkit | G1: Get Started | H1: User guide | I1: IMF Fiscal risk management portal
A2: Español | E2: Herramienta de evaluación del riesgo fiscal | F2: Proporciona una perspectiva de cartera de alto nivel sobre una amplia gama de riesgos fiscales a los que los gobiernos suelen estar expuestos. Proporciona un punto de partida para el análisis de riesgo fiscal al ayudar a los países a identificar las fuentes más grandes e importantes de riesgos fiscales que pueden ser el foco de una cuantificación más detallada utilizando herramientas específicas en el Conjunto de herramientas de riesgo fiscal del FMI. | G2: Comenzar | H2: Guía del usuario | I2: Portal de gestión de riesgos fiscales del FMI
A3: Français | E3: Modèle d’évaluation des risques budgetaires | F3: L’outil offre une approche de portefeuille sur les risques budgétaires à partir d’un large éventail de risques auxquels les gouvernements sont généralement exposés. Il fournit un point de départ pour l’analyse ces risques, permettant aux autorités des pays membres d’identifier leurs causes majeurs. Ceux-ci pourront éventuellement faire l'objet d'une quantification plus détaillée à l'aide d'autres outils plus spécialisés développés par le FMI. | G3: Commencer | H3: Guide de l'utilisateur | I3: Portail de gestion des risques budgétaires du FMI
A4: Русский | E4: Ferramenta de avaliação de risco fiscal | F4: Fornece uma perspectiva de portfólio de alto nível sobre uma ampla gama de riscos fiscais aos quais os governos estão normalmente expostos. Ela fornece um ponto de partida para a análise de risco fiscal ao ajudar os países a identificar as maiores e mais importantes fontes de riscos fiscais que podem ser o foco de uma quantificação mais detalhada usando ferramentas específicas no Kit de Ferramentas de Risco Fiscal do FMI. | G4: Começar | H4: Orientação do usuário | I4: Portal de gestão de risco fiscal do FMI
A5: Português

Sheet Main Menu
P1: TRUE | CA1: =COLUMN() -> 79 | CB1: =COLUMN() -> 80 | CC1: =COLUMN() -> 81 | CD1: =COLUMN() -> 82 | CE1: =COLUMN() -> 83 | CF1: =COLUMN() -> 84 | CG1: =COLUMN() -> 85 | CH1: =COLUMN() -> 86 | CI1: =COLUMN() -> 87 | CJ1: =COLUMN() -> 88 | CK1: =COLUMN() -> 89 | CL1: =COLUMN() -> 90 | CM1: =COLUMN() -> 91
CC5: =IF(COUNTIF(CC8:CC18,TRUE)=0, FALSE, TRUE) -> FALSE | CD5: =IF(COUNTIF(CD19:CD20,TRUE)=0, FALSE, TRUE) -> FALSE | CE5: =COUNTIF(CE7:CE21,TRUE) -> 0
BM6: =PROPER(IF(AND(AY38=PO_134,BK6=PO_175),PO_129,IF(OR(AND(AY38=PO_134,BK6=PO_165),AND(AY38=PO_138,BK6=PO_175)),PO_134,IF(OR(AND(AY38=PO_134,BK6=PO_169),AND(AY38=PO_138,BK6=PO_165),AND(AY38=PROPER(PO_119),BK6=PO_175)),PO_138,IF(OR(AND(AY38=PROPER(PO_119),BK6=PO_165),AND(AY38=PO_138,BK6=PO_169)),PROPER(PO_119),IF(AND(AY38=PROPER(PO_119),BK6=PO_169),PO_94,"")))))) ->  | BY6: =IF(BZ6>23,IF(BZ6>1,(BZ6+1)/2)-1,(BZ6+1)/2) -> 14 | BZ6: 29 | CA6: HOME_PAGE | CB6: MFR | CC6: SFR | CD6: IFR | CE6: Active Risk | CF6: Back
BY7: 1 | BZ7: 1 | CA7: =MM_30 -> Macroeconomic risks | CB7: FALSE | CE7: =Risk_MFR_1 -> FALSE | CF7: In | CG7: HOME_PAGE | CI7: 35 | CJ7: =CE7 -> FALSE
BY8: 2 | BZ8: 3 | CA8: =PO_198 -> Specific revenues | CC8: FALSE | CE8: =CC8 -> FALSE | CF8: Next | CG8: GI_MAIN | CI8: 36 | CJ8: =CE8 -> FALSE
BY9: 3 | BZ9: 5 | CA9: =PO_117 -> Government assets and liabilities | CC9: FALSE | CE9: FALSE | CF9: str | CG9: Note1;Note2;Note3;Note4 | CI9: 37 | CJ9: FALSE
BY10: 4 | BZ10: 7 | CA10: =PO_171 -> Public corporations | CC10: FALSE | CE10: FALSE | CI10: 38 | CJ10: FALSE
BY11: 5 | BZ11: 9 | CA11: =PO_118 -> Government guarantees | CC11: FALSE | CE11: FALSE | CI11: 39 | CJ11: FALSE
BY12: 6 | BZ12: 11 | CA12: =PO_172 -> Public investment | CC12: FALSE | CE12: FALSE | CI12: 40 | CJ12: FALSE
BY13: 7 | BZ13: 13 | CA13: =PO_173 -> Public private partnerships | CC13: FALSE | CE13: FALSE | CI13: 41 | CJ13: FALSE
G14: =MM_1667 -> Show risks selection | BY14: 8 | BZ14: 15 | CA14: =PO_104 -> Financial sector | CC14: FALSE | CE14: FALSE | CI14: 42 | CJ14: FALSE
BY15: 9 | BZ15: 17 | CA15: =PO_100 -> Environmental risks | CC15: FALSE | CE15: FALSE | CI15: 43 | CJ15: FALSE
BY16: 10 | BZ16: 19 | CA16: =PO_130 -> Legal claims against the state | CC16: FALSE | CE16: FALSE | CI16: 44 | CJ16: FALSE
BY17: 11 | BZ17: 21 | CA17: =PO_137 -> Lower-level governments | CC17: FALSE | CE17: FALSE | CI17: 45 | CJ17: FALSE
BY18: 12 | BZ18: 23 | CA18: =PO_147 -> Natural resources | CC18: FALSE | CE18: FALSE | CI18: 46 | CJ18: FALSE
BY19: 13 | BZ19: 27 | CA19: =PO_164 -> Policy implementation | CD19: FALSE | CE19: =Risk_IFR_1 -> FALSE | CI19: 48 | CJ19: FALSE
BY20: 14 | BZ20: 29 | CA20: =PO_115 -> Governance and capacity | CD20: FALSE | CE20: =Risk_IFR_2 -> FALSE | CI20: 49 | CJ20: FALSE
CA21: =RRO_443 -> Other material risk | CC21: FALSE | CD21: FALSE | CE21: FALSE
CB25: GI | CF25: Back | CG25: =CG7 -> HOME_PAGE | CM25: =IF(CA25="","",CA25&";") ->  | CN25: =IF(CD25="","",CD25&";") ->  | CO25: =IF(DC25="","",DC25&";") -> 
E26: =MM_61 -> This section of the main menu is divided into three headings, which can be accessed by clicking on each of the following: a) Basic Information, b) Macro-fiscal data and c) International comparisons The information required from the user within these three main parts that make up the "General Inputs" section will help to format and generate context for the analysis within the tool. It is recommended that as much information as possible be entered, if available. There is no mandatory sequence for entering the data required in this section. However, a good practice would be to fill in all the data that is available within any given section and then move on to the next section. | CF26: In | CG26: =CG8 -> GI_MAIN
CF27: Next | CG27: GI_BI_MAIN
CF28: str
CB44: GI_BI | CF44: Back | CG44: =CG26 -> GI_MAIN
I45: =MM_5 -> 1. Country | J45: Afghanistan | CA45: Country: | CB45: =Country_Input -> Afghanistan | CF45: In | CG45: =CG27 -> GI_BI_MAIN
CA46: Level of government: | CB46: =LoG_Input -> Central government | CF46: Next | CG46: GI_MF_MAIN
CA47: Institutional coverage: | CF47: Str
I48: =MM_6 -> 2. Level of government | J48: Central government | CA48: Fiscal year: | CB48: TRUE | CD48: =IF(LoG_Input=Data!M2,1,2) -> 1
CA49: Calendar year: | CB49: FALSE
I50: =MM_7 -> 2.a. Name of subnational government | CA50: Base currency: | CB50: =BC_Input -> AFG
CA51: Country code: | CB51: =VLOOKUP(CB45,countrylist[],2,FALSE) -> AFG
I53: =MM_8 -> 3. Year of analysis | J53: 2022 | K53: =MM_4 -> [yyyy]
I56: =MM_9 -> 4. Base currency | J56: =IFERROR(Data!P3,"") -> AFG
CM62: =IF(CA62="","",CA62&";") ->  | CN62: =IF(CD62="","",CD62&";") ->  | CO62: =IF(DC62="","",DC62&";") -> 
CB63: GI_MF | CF63: Back | CG63: =CG45 -> GI_BI_MAIN
CF64: In | CG64: =CG46 -> GI_MF_MAIN
E65: =MM_21 -> In this section, users input selected historical macroeconomic and fiscal data. These data will be used for analyses throughout the tool. Where possible, the tool automatically populates indicators from publicly available databases. Users should review such automatically populated data and replace them with the government's own data as appropriate. | CF65: Next | CG65: GI_MF_MACRO
CF66: Str | CG66: GI_MF_OPT1;GI_MF_OPT2;
CA75: =$CB$63&"_OPT1" -> GI_MF_OPT1 | CC75: Fiscal risk identification
CA76: =$CB$63&"_OPT2" -> GI_MF_OPT2 | CC76: Risk quantification
CM81: =IF(CA81="","",CA81&";") ->  | CN81: =IF(CD81="","",CD81&";") ->  | CO81: =IF(DC81="","",DC81&";") -> 
CF82: Back | CG82: =CG64 -> GI_MF_MAIN | CH82: GI_MF
D83: =MM_64 -> Automatically populate with public data | E83: =MM_33 -> Nominal gross domestic product [billions of national currency] | CF83: In | CG83: =CG65 -> GI_MF_MACRO
CF84: Next | CG84: GI_MF_FISCAL
E85: =IF(D83="","MM_1686",IF(CB87=TRUE,MM_48,MM_53)) -> Gross domestic product, current prices in billions national currency - Source: IMF, World Economic Outlook, October 2020 | CF85: Str | CG85: =_xlfn.CONCAT(CM82:CM99) -> GI_MF_Q1_A1;GI_MF_Q1_A2;GI_MF_Q1_A3;GI_MF_Q1_A4;GI_MF_Expand;GI_MF_Expand;
E86: 2001 | F86: =IF(E86>YearOfAnalysis-2," ",E86+1) -> 2002 | G86: 2003 | H86: 2004 | I86: 2005 | J86: 2006 | K86: 2007 | L86: 2008 | M86: 2009 | N86: 2010 | O86: 2011 | P86: 2012 | Q86: 2013 | R86: 2014 | S86: 2015 | T86: 2016 | U86: 2017 | V86: 2018 | W86: 2019 | X86: 2020 | Y86: 2021 | AL86: =IF(AK86>YearOfAnalysis-2," ",AK86+1) ->  | CB86: =CH82&"_Q1" -> GI_MF_Q1
E87: =IFERROR(VLOOKUP(CountryCodeSelected&E86,PanelData!$C$1:$AS$5001,MATCH($CC$87,PanelData!1:1,0)-2,0),"") -> ... | F87: =IFERROR(VLOOKUP(CountryCodeSelected&F86,PanelData!$C$1:$AS$5001,MATCH($CC$87,PanelData!1:1,0)-2,0),"") -> 178.7562856 | G87: =IFERROR(VLOOKUP(CountryCodeSelected&G86,PanelData!$C$1:$AS$5001,MATCH($CC$87,PanelData!1:1,0)-2,0),"") -> 220.0129286 | H87: =IFERROR(VLOOKUP(CountryCodeSelected&H86,PanelData!$C$1:$AS$5001,MATCH($CC$87,PanelData!1:1,0)-2,0),"") -> 246.2104134 | I87: =IFERROR(VLOOKUP(CountryCodeSelected&I86,PanelData!$C$1:$AS$5001,MATCH($CC$87,PanelData!1:1,0)-2,0),"") -> 304.9263555 | J87: =IFERROR(VLOOKUP(CountryCodeSelected&J86,PanelData!$C$1:$AS$5001,MATCH($CC$87,PanelData!1:1,0)-2,0),"") -> 345.8170254 | K87: =IFERROR(VLOOKUP(CountryCodeSelected&K86,PanelData!$C$1:$AS$5001,MATCH($CC$87,PanelData!1:1,0)-2,0),"") -> 427.4950799 | L87: =IFERROR(VLOOKUP(CountryCodeSelected&L86,PanelData!$C$1:$AS$5001,MATCH($CC$87,PanelData!1:1,0)-2,0),"") -> 517.5093194 | M87: =IFERROR(VLOOKUP(CountryCodeSelected&M86,PanelData!$C$1:$AS$5001,MATCH($CC$87,PanelData!1:1,0)-2,0),"") -> 607.2270341 | N87: =IFERROR(VLOOKUP(CountryCodeSelected&N86,PanelData!$C$1:$AS$5001,MATCH($CC$87,PanelData!1:1,0)-2,0),"") -> 711.7593077 | O87: =IFERROR(VLOOKUP(CountryCodeSelected&O86,PanelData!$C$1:$AS$5001,MATCH($CC$87,PanelData!1:1,0)-2,0),"") -> 836.2224734 | P87: =IFERROR(VLOOKUP(CountryCodeSelected&P86,PanelData!$C$1:$AS$5001,MATCH($CC$87,PanelData!1:1,0)-2,0),"") -> 1033.591406 | Q87: =IFERROR(VLOOKUP(CountryCodeSelected&Q86,PanelData!$C$1:$AS$5001,MATCH($CC$87,PanelData!1:1,0)-2,0),"") -> 1116.827082 | R87: =IFERROR(VLOOKUP(CountryCodeSelected&R86,PanelData!$C$1:$AS$5001,MATCH($CC$87,PanelData!1:1,0)-2,0),"") -> 1183.03911 | S87: =IFERROR(VLOOKUP(CountryCodeSelected&S86,PanelData!$C$1:$AS$5001,MATCH($CC$87,PanelData!1:1,0)-2,0),"") -> 1226.569799 | T87: =IFERROR(VLOOKUP(CountryCodeSelected&T86,PanelData!$C$1:$AS$5001,MATCH($CC$87,PanelData!1:1,0)-2,0),"") -> 1222.916881 | U87: =IFERROR(VLOOKUP(CountryCodeSelected&U86,PanelData!$C$1:$AS$5001,MATCH($CC$87,PanelData!1:1,0)-2,0),"") -> 1285.460326 | V87: =IFERROR(VLOOKUP(CountryCodeSelected&V86,PanelData!$C$1:$AS$5001,MATCH($CC$87,PanelData!1:1,0)-2,0),"") -> 1327.690395 | W87: =IFERROR(VLOOKUP(CountryCodeSelected&W86,PanelData!$C$1:$AS$5001,MATCH($CC$87,PanelData!1:1,0)-2,0),"") -> 1469.596303 | X87: =IFERROR(VLOOKUP(CountryCodeSelected&X86,PanelData!$C$1:$AS$5001,MATCH($CC$87,PanelData!1:1,0)-2,0),"") -> 1465.922313 | Y87: =IFERROR(VLOOKUP(CountryCodeSelected&Y86,PanelData!$C$1:$AS$5001,MATCH($CC$87,PanelData!1:1,0)-2,0),"") -> 1597.738047 | Z87: =IFERROR(VLOOKUP(CountryCodeSelected&Z86,PanelData!$C$1:$AS$5001,MATCH($CC$87,PanelData!1:1,0)-2,0),"") ->  | AA87: =IFERROR(VLOOKUP(CountryCodeSelected&AA86,PanelData!$C$1:$AS$5001,MATCH($CC$87,PanelData!1:1,0)-2,0),"") ->  | AB87: =IFERROR(VLOOKUP(CountryCodeSelected&AB86,PanelData!$C$1:$AS$5001,MATCH($CC$87,PanelData!1:1,0)-2,0),"") ->  | AC87: =IFERROR(VLOOKUP(CountryCodeSelected&AC86,PanelData!$C$1:$AS$5001,MATCH($CC$87,PanelData!1:1,0)-2,0),"") ->  | AD87: =IFERROR(VLOOKUP(CountryCodeSelected&AD86,PanelData!$C$1:$AS$5001,MATCH($CC$87,PanelData!1:1,0)-2,0),"") ->  | AE87: =IFERROR(VLOOKUP(CountryCodeSelected&AE86,PanelData!$C$1:$AS$5001,MATCH($CC$87,PanelData!1:1,0)-2,0),"") ->  | AF87: =IFERROR(VLOOKUP(CountryCodeSelected&AF86,PanelData!$C$1:$AS$5001,MATCH($CC$87,PanelData!1:1,0)-2,0),"") ->  | AG87: =IFERROR(VLOOKUP(CountryCodeSelected&AG86,PanelData!$C$1:$AS$5001,MATCH($CC$87,PanelData!1:1,0)-2,0),"") ->  | AH87: =IFERROR(VLOOKUP(CountryCodeSelected&AH86,PanelData!$C$1:$AS$5001,MATCH($CC$87,PanelData!1:1,0)-2,0),"") ->  | AI87: =IFERROR(VLOOKUP(CountryCodeSelected&AI86,PanelData!$C$1:$AS$5001,MATCH($CC$87,PanelData!1:1,0)-2,0),"") ->  | AJ87: =IFERROR(VLOOKUP(CountryCodeSelected&AJ86,PanelData!$C$1:$AS$5001,MATCH($CC$87,PanelData!1:1,0)-2,0),"") ->  | AK87: =IFERROR(VLOOKUP(CountryCodeSelected&AK86,PanelData!$C$1:$AS$5001,MATCH($CC$87,PanelData!1:1,0)-2,0),"") ->  | AL87: =IFERROR(VLOOKUP(CountryCodeSelected&AL86,PanelData!$C$1:$AS$5001,MATCH($CC$87,PanelData!1:1,0)-2,0),"") ->  | AM87: =IFERROR(VLOOKUP(CountryCodeSelected&AM86,PanelData!$C$1:$AS$5001,MATCH($CC$87,PanelData!1:1,0)-2,0),"") ->  | AN87: =IFERROR(VLOOKUP(CountryCodeSelected&AN86,PanelData!$C$1:$AS$5001,MATCH($CC$87,PanelData!1:1,0)-2,0),"") ->  | AO87: =IFERROR(VLOOKUP(CountryCodeSelected&AO86,PanelData!$C$1:$AS$5001,MATCH($CC$87,PanelData!1:1,0)-2,0),"") ->  | AP87: =IFERROR(VLOOKUP(CountryCodeSelected&AP86,PanelData!$C$1:$AS$5001,MATCH($CC$87,PanelData!1:1,0)-2,0),"") ->  | AQ87: =IFERROR(VLOOKUP(CountryCodeSelected&AQ86,PanelData!$C$1:$AS$5001,MATCH($CC$87,PanelData!1:1,0)-2,0),"") ->  | AR87: =IFERROR(VLOOKUP(CountryCodeSelected&AR86,PanelData!$C$1:$AS$5001,MATCH($CC$87,PanelData!1:1,0)-2,0),"") ->  | AS87: =IFERROR(VLOOKUP(CountryCodeSelected&AS86,PanelData!$C$1:$AS$5001,MATCH($CC$87,PanelData!1:1,0)-2,0),"") ->  | AT87: =IFERROR(VLOOKUP(CountryCodeSelected&AT86,PanelData!$C$1:$AS$5001,MATCH($CC$87,PanelData!1:1,0)-2,0),"") ->  | AU87: =IFERROR(VLOOKUP(CountryCodeSelected&AU86,PanelData!$C$1:$AS$5001,MATCH($CC$87,PanelData!1:1,0)-2,0),"") ->  | AV87: =IFERROR(VLOOKUP(CountryCodeSelected&AV86,PanelData!$C$1:$AS$5001,MATCH($CC$87,PanelData!1:1,0)-2,0),"") ->  | AW87: =IFERROR(VLOOKUP(CountryCodeSelected&AW86,PanelData!$C$1:$AS$5001,MATCH($CC$87,PanelData!1:1,0)-2,0),"") ->  | AX87: =IFERROR(VLOOKUP(CountryCodeSelected&AX86,PanelData!$C$1:$AS$5001,MATCH($CC$87,PanelData!1:1,0)-2,0),"") ->  | AY87: =IFERROR(VLOOKUP(CountryCodeSelected&AY86,PanelData!$C$1:$AS$5001,MATCH($CC$87,PanelData!1:1,0)-2,0),"") ->  | AZ87: =IFERROR(VLOOKUP(CountryCodeSelected&AZ86,PanelData!$C$1:$AS$5001,MATCH($CC$87,PanelData!1:1,0)-2,0),"") ->  | BA87: =IFERROR(VLOOKUP(CountryCodeSelected&BA86,PanelData!$C$1:$AS$5001,MATCH($CC$87,PanelData!1:1,0)-2,0),"") ->  | BB87: =IFERROR(VLOOKUP(CountryCodeSelected&BB86,PanelData!$C$1:$AS$5001,MATCH($CC$87,PanelData!1:1,0)-2,0),"") ->  | BC87: =IFERROR(VLOOKUP(CountryCodeSelected&BC86,PanelData!$C$1:$AS$5001,MATCH($CC$87,PanelData!1:1,0)-2,0),"") ->  | CA87: =CB86&"_A1" -> GI_MF_Q1_A1 | CB87: TRUE | CC87: NGDP | CD87: Nominal gross domestic product [billions national currency] | CM87: GI_MF_Q1_A1;
CA88: =$CB$86&"_A"&COUNTA($CA$87:CA87)+1 -> GI_MF_Q1_A2 | CB88: TRUE | CC88: NGDPR | CD88: Real gross domestic product [billions national currency] | CM88: GI_MF_Q1_A2;
D89: =MM_64 -> Automatically populate with public data | E89: =MM_41 -> Real gross domestic product [billions of national currency] | CA89: =$CB$86&"_A"&COUNTA($CA$87:CA88)+1 -> GI_MF_Q1_A3 | CB89: TRUE | CC89: PCPI_PCH | CD89: Inflation [Percent] | CM89: GI_MF_Q1_A3;
CA90: =$CB$86&"_A"&COUNTA($CA$87:CA89)+1 -> GI_MF_Q1_A4 | CB90: TRUE | CC90: USTB10Y | CD90: Interest rates | CM90: =IF(CA90="","",CA90&";") -> GI_MF_Q1_A4;
E91: =IF(D89="","MM_1686",IF(CB88=TRUE,MM_47,MM_53)) -> Gross domestic product, constant prices in billions national currency - Source: IMF, World Economic Outlook, October 2020
E92: =E86 -> 2001 | F92: =F86 -> 2002 | G92: 2003 | H92: 2004 | I92: 2005 | J92: 2006 | K92: 2007 | L92: 2008 | M92: 2009 | N92: 2010 | O92: 2011 | P92: 2012 | Q92: 2013 | R92: 2014 | S92: 2015 | T92: 2016 | U92: 2017 | V92: 2018 | W92: 2019 | X92: 2020 | Y92: 2021
E93: =IFERROR(VLOOKUP(CountryCodeSelected&E92,PanelData!$C$1:$AS$5001,MATCH($CC$88,PanelData!1:1,0)-2,0),"") -> ... | F93: =IFERROR(VLOOKUP(CountryCodeSelected&F92,PanelData!$C$1:$AS$5001,MATCH($CC$88,PanelData!1:1,0)-2,0),"") -> 453.4843648 | G93: =IFERROR(VLOOKUP(CountryCodeSelected&G92,PanelData!$C$1:$AS$5001,MATCH($CC$88,PanelData!1:1,0)-2,0),"") -> 492.9025165 | H93: =IFERROR(VLOOKUP(CountryCodeSelected&H92,PanelData!$C$1:$AS$5001,MATCH($CC$88,PanelData!1:1,0)-2,0),"") -> 496.2091827 | I93: =IFERROR(VLOOKUP(CountryCodeSelected&I92,PanelData!$C$1:$AS$5001,MATCH($CC$88,PanelData!1:1,0)-2,0),"") -> 554.9097883 | J93: =IFERROR(VLOOKUP(CountryCodeSelected&J92,PanelData!$C$1:$AS$5001,MATCH($CC$88,PanelData!1:1,0)-2,0),"") -> 584.6582159 | K93: =IFERROR(VLOOKUP(CountryCodeSelected&K92,PanelData!$C$1:$AS$5001,MATCH($CC$88,PanelData!1:1,0)-2,0),"") -> 662.6501328 | L93: =IFERROR(VLOOKUP(CountryCodeSelected&L92,PanelData!$C$1:$AS$5001,MATCH($CC$88,PanelData!1:1,0)-2,0),"") -> 688.2474811 | M93: =IFERROR(VLOOKUP(CountryCodeSelected&M92,PanelData!$C$1:$AS$5001,MATCH($CC$88,PanelData!1:1,0)-2,0),"") -> 829.9239571 | N93: =IFERROR(VLOOKUP(CountryCodeSelected&N92,PanelData!$C$1:$AS$5001,MATCH($CC$88,PanelData!1:1,0)-2,0),"") -> 899.9564542 | O93: =IFERROR(VLOOKUP(CountryCodeSelected&O92,PanelData!$C$1:$AS$5001,MATCH($CC$88,PanelData!1:1,0)-2,0),"") -> 958.2661832 | P93: =IFERROR(VLOOKUP(CountryCodeSelected&P92,PanelData!$C$1:$AS$5001,MATCH($CC$88,PanelData!1:1,0)-2,0),"") -> 1092.118118 | Q93: =IFERROR(VLOOKUP(CountryCodeSelected&Q92,PanelData!$C$1:$AS$5001,MATCH($CC$88,PanelData!1:1,0)-2,0),"") -> 1154.178002 | R93: =IFERROR(VLOOKUP(CountryCodeSelected&R92,PanelData!$C$1:$AS$5001,MATCH($CC$88,PanelData!1:1,0)-2,0),"") -> 1185.306442 | S93: =IFERROR(VLOOKUP(CountryCodeSelected&S92,PanelData!$C$1:$AS$5001,MATCH($CC$88,PanelData!1:1,0)-2,0),"") -> 1197.012388 | T93: =IFERROR(VLOOKUP(CountryCodeSelected&T92,PanelData!$C$1:$AS$5001,MATCH($CC$88,PanelData!1:1,0)-2,0),"") -> 1222.916881 | U93: =IFERROR(VLOOKUP(CountryCodeSelected&U92,PanelData!$C$1:$AS$5001,MATCH($CC$88,PanelData!1:1,0)-2,0),"") -> 1255.28753 | V93: =IFERROR(VLOOKUP(CountryCodeSelected&V92,PanelData!$C$1:$AS$5001,MATCH($CC$88,PanelData!1:1,0)-2,0),"") -> 1270.215763 | W93: =IFERROR(VLOOKUP(CountryCodeSelected&W92,PanelData!$C$1:$AS$5001,MATCH($CC$88,PanelData!1:1,0)-2,0),"") -> 1319.901566 | X93: =IFERROR(VLOOKUP(CountryCodeSelected&X92,PanelData!$C$1:$AS$5001,MATCH($CC$88,PanelData!1:1,0)-2,0),"") -> 1253.906487 | Y93: =IFERROR(VLOOKUP(CountryCodeSelected&Y92,PanelData!$C$1:$AS$5001,MATCH($CC$88,PanelData!1:1,0)-2,0),"") -> 1304.062747 | Z93: =IFERROR(VLOOKUP(CountryCodeSelected&Z92,PanelData!$C$1:$AS$5001,MATCH($CC$88,PanelData!1:1,0)-2,0),"") ->  | AA93: =IFERROR(VLOOKUP(CountryCodeSelected&AA92,PanelData!$C$1:$AS$5001,MATCH($CC$88,PanelData!1:1,0)-2,0),"") ->  | AB93: =IFERROR(VLOOKUP(CountryCodeSelected&AB92,PanelData!$C$1:$AS$5001,MATCH($CC$88,PanelData!1:1,0)-2,0),"") ->  | AC93: =IFERROR(VLOOKUP(CountryCodeSelected&AC92,PanelData!$C$1:$AS$5001,MATCH($CC$88,PanelData!1:1,0)-2,0),"") ->  | AD93: =IFERROR(VLOOKUP(CountryCodeSelected&AD92,PanelData!$C$1:$AS$5001,MATCH($CC$88,PanelData!1:1,0)-2,0),"") ->  | AE93: =IFERROR(VLOOKUP(CountryCodeSelected&AE92,PanelData!$C$1:$AS$5001,MATCH($CC$88,PanelData!1:1,0)-2,0),"") ->  | AF93: =IFERROR(VLOOKUP(CountryCodeSelected&AF92,PanelData!$C$1:$AS$5001,MATCH($CC$88,PanelData!1:1,0)-2,0),"") ->  | AG93: =IFERROR(VLOOKUP(CountryCodeSelected&AG92,PanelData!$C$1:$AS$5001,MATCH($CC$88,PanelData!1:1,0)-2,0),"") ->  | AH93: =IFERROR(VLOOKUP(CountryCodeSelected&AH92,PanelData!$C$1:$AS$5001,MATCH($CC$88,PanelData!1:1,0)-2,0),"") ->  | AI93: =IFERROR(VLOOKUP(CountryCodeSelected&AI92,PanelData!$C$1:$AS$5001,MATCH($CC$88,PanelData!1:1,0)-2,0),"") ->  | AJ93: =IFERROR(VLOOKUP(CountryCodeSelected&AJ92,PanelData!$C$1:$AS$5001,MATCH($CC$88,PanelData!1:1,0)-2,0),"") ->  | AK93: =IFERROR(VLOOKUP(CountryCodeSelected&AK92,PanelData!$C$1:$AS$5001,MATCH($CC$88,PanelData!1:1,0)-2,0),"") ->  | AL93: =IFERROR(VLOOKUP(CountryCodeSelected&AL92,PanelData!$C$1:$AS$5001,MATCH($CC$88,PanelData!1:1,0)-2,0),"") ->  | AM93: =IFERROR(VLOOKUP(CountryCodeSelected&AM92,PanelData!$C$1:$AS$5001,MATCH($CC$88,PanelData!1:1,0)-2,0),"") ->  | AN93: =IFERROR(VLOOKUP(CountryCodeSelected&AN92,PanelData!$C$1:$AS$5001,MATCH($CC$88,PanelData!1:1,0)-2,0),"") ->  | AO93: =IFERROR(VLOOKUP(CountryCodeSelected&AO92,PanelData!$C$1:$AS$5001,MATCH($CC$88,PanelData!1:1,0)-2,0),"") ->  | AP93: =IFERROR(VLOOKUP(CountryCodeSelected&AP92,PanelData!$C$1:$AS$5001,MATCH($CC$88,PanelData!1:1,0)-2,0),"") ->  | AQ93: =IFERROR(VLOOKUP(CountryCodeSelected&AQ92,PanelData!$C$1:$AS$5001,MATCH($CC$88,PanelData!1:1,0)-2,0),"") ->  | AR93: =IFERROR(VLOOKUP(CountryCodeSelected&AR92,PanelData!$C$1:$AS$5001,MATCH($CC$88,PanelData!1:1,0)-2,0),"") ->  | AS93: =IFERROR(VLOOKUP(CountryCodeSelected&AS92,PanelData!$C$1:$AS$5001,MATCH($CC$88,PanelData!1:1,0)-2,0),"") ->  | AT93: =IFERROR(VLOOKUP(CountryCodeSelected&AT92,PanelData!$C$1:$AS$5001,MATCH($CC$88,PanelData!1:1,0)-2,0),"") ->  | AU93: =IFERROR(VLOOKUP(CountryCodeSelected&AU92,PanelData!$C$1:$AS$5001,MATCH($CC$88,PanelData!1:1,0)-2,0),"") ->  | AV93: =IFERROR(VLOOKUP(CountryCodeSelected&AV92,PanelData!$C$1:$AS$5001,MATCH($CC$88,PanelData!1:1,0)-2,0),"") ->  | AW93: =IFERROR(VLOOKUP(CountryCodeSelected&AW92,PanelData!$C$1:$AS$5001,MATCH($CC$88,PanelData!1:1,0)-2,0),"") ->  | AX93: =IFERROR(VLOOKUP(CountryCodeSelected&AX92,PanelData!$C$1:$AS$5001,MATCH($CC$88,PanelData!1:1,0)-2,0),"") ->  | AY93: =IFERROR(VLOOKUP(CountryCodeSelected&AY92,PanelData!$C$1:$AS$5001,MATCH($CC$88,PanelData!1:1,0)-2,0),"") ->  | AZ93: =IFERROR(VLOOKUP(CountryCodeSelected&AZ92,PanelData!$C$1:$AS$5001,MATCH($CC$88,PanelData!1:1,0)-2,0),"") ->  | BA93: =IFERROR(VLOOKUP(CountryCodeSelected&BA92,PanelData!$C$1:$AS$5001,MATCH($CC$88,PanelData!1:1,0)-2,0),"") ->  | BB93: =IFERROR(VLOOKUP(CountryCodeSelected&BB92,PanelData!$C$1:$AS$5001,MATCH($CC$88,PanelData!1:1,0)-2,0),"") ->  | BC93: =IFERROR(VLOOKUP(CountryCodeSelected&BC92,PanelData!$C$1:$AS$5001,MATCH($CC$88,PanelData!1:1,0)-2,0),"") -> 
D95: =MM_64 -> Automatically populate with public data | E95: =MM_22 -> Inflation [Percent]
CA96: GI_MF_Expand | CM96: =IF(CA96="","",CA96&";") -> GI_MF_Expand;
E97: =IF(D95="","MM_1686",IF(CB89=TRUE,MM_42,MM_53)) -> Consumer Prices, period average, percent change - Source: IMF, World Economic Outlook, October 2020
E98: =E92 -> 2001 | F98: 2002 | G98: 2003 | H98: 2004 | I98: 2005 | J98: 2006 | K98: 2007 | L98: 2008 | M98: 2009 | N98: 2010 | O98: 2011 | P98: 2012 | Q98: 2013 | R98: 2014 | S98: 2015 | T98: 2016 | U98: 2017 | V98: 2018 | W98: 2019 | X98: 2020 | Y98: 2021 | AK98: =AK92 -> 
E99: =IFERROR(VLOOKUP(CountryCodeSelected&E98,PanelData!$C$1:$AS$5001,MATCH($CC$89,PanelData!1:1,0)-2,0),"") -> ... | F99: =IFERROR(VLOOKUP(CountryCodeSelected&F98,PanelData!$C$1:$AS$5001,MATCH($CC$89,PanelData!1:1,0)-2,0),"") -> 5.096342074 | G99: =IFERROR(VLOOKUP(CountryCodeSelected&G98,PanelData!$C$1:$AS$5001,MATCH($CC$89,PanelData!1:1,0)-2,0),"") -> 35.66310578 | H99: =IFERROR(VLOOKUP(CountryCodeSelected&H98,PanelData!$C$1:$AS$5001,MATCH($CC$89,PanelData!1:1,0)-2,0),"") -> 16.35826359 | I99: =IFERROR(VLOOKUP(CountryCodeSelected&I98,PanelData!$C$1:$AS$5001,MATCH($CC$89,PanelData!1:1,0)-2,0),"") -> 10.56893911 | J99: =IFERROR(VLOOKUP(CountryCodeSelected&J98,PanelData!$C$1:$AS$5001,MATCH($CC$89,PanelData!1:1,0)-2,0),"") -> 6.78459655 | K99: =IFERROR(VLOOKUP(CountryCodeSelected&K98,PanelData!$C$1:$AS$5001,MATCH($CC$89,PanelData!1:1,0)-2,0),"") -> 8.680570785 | L99: =IFERROR(VLOOKUP(CountryCodeSelected&L98,PanelData!$C$1:$AS$5001,MATCH($CC$89,PanelData!1:1,0)-2,0),"") -> 26.41866415 | M99: =IFERROR(VLOOKUP(CountryCodeSelected&M98,PanelData!$C$1:$AS$5001,MATCH($CC$89,PanelData!1:1,0)-2,0),"") -> -6.811161089 | N99: =IFERROR(VLOOKUP(CountryCodeSelected&N98,PanelData!$C$1:$AS$5001,MATCH($CC$89,PanelData!1:1,0)-2,0),"") -> 2.178537524 | O99: =IFERROR(VLOOKUP(CountryCodeSelected&O98,PanelData!$C$1:$AS$5001,MATCH($CC$89,PanelData!1:1,0)-2,0),"") -> 11.80418581 | P99: =IFERROR(VLOOKUP(CountryCodeSelected&P98,PanelData!$C$1:$AS$5001,MATCH($CC$89,PanelData!1:1,0)-2,0),"") -> 6.441212809 | Q99: =IFERROR(VLOOKUP(CountryCodeSelected&Q98,PanelData!$C$1:$AS$5001,MATCH($CC$89,PanelData!1:1,0)-2,0),"") -> 7.385771784 | R99: =IFERROR(VLOOKUP(CountryCodeSelected&R98,PanelData!$C$1:$AS$5001,MATCH($CC$89,PanelData!1:1,0)-2,0),"") -> 4.673996035 | S99: =IFERROR(VLOOKUP(CountryCodeSelected&S98,PanelData!$C$1:$AS$5001,MATCH($CC$89,PanelData!1:1,0)-2,0),"") -> -0.6617091647 | T99: =IFERROR(VLOOKUP(CountryCodeSelected&T98,PanelData!$C$1:$AS$5001,MATCH($CC$89,PanelData!1:1,0)-2,0),"") -> 4.383891955 | U99: =IFERROR(VLOOKUP(CountryCodeSelected&U98,PanelData!$C$1:$AS$5001,MATCH($CC$89,PanelData!1:1,0)-2,0),"") -> 4.975951506 | V99: =IFERROR(VLOOKUP(CountryCodeSelected&V98,PanelData!$C$1:$AS$5001,MATCH($CC$89,PanelData!1:1,0)-2,0),"") -> 0.6261491301 | W99: =IFERROR(VLOOKUP(CountryCodeSelected&W98,PanelData!$C$1:$AS$5001,MATCH($CC$89,PanelData!1:1,0)-2,0),"") -> 2.302372535 | X99: =IFERROR(VLOOKUP(CountryCodeSelected&X98,PanelData!$C$1:$AS$5001,MATCH($CC$89,PanelData!1:1,0)-2,0),"") -> 5.4427414 | Y99: =IFERROR(VLOOKUP(CountryCodeSelected&Y98,PanelData!$C$1:$AS$5001,MATCH($CC$89,PanelData!1:1,0)-2,0),"") -> 4.792538119 | Z99: =IFERROR(VLOOKUP(CountryCodeSelected&Z98,PanelData!$C$1:$AS$5001,MATCH($CC$89,PanelData!1:1,0)-2,0),"") ->  | AA99: =IFERROR(VLOOKUP(CountryCodeSelected&AA98,PanelData!$C$1:$AS$5001,MATCH($CC$89,PanelData!1:1,0)-2,0),"") ->  | AB99: =IFERROR(VLOOKUP(CountryCodeSelected&AB98,PanelData!$C$1:$AS$5001,MATCH($CC$89,PanelData!1:1,0)-2,0),"") ->  | AC99: =IFERROR(VLOOKUP(CountryCodeSelected&AC98,PanelData!$C$1:$AS$5001,MATCH($CC$89,PanelData!1:1,0)-2,0),"") ->  | AD99: =IFERROR(VLOOKUP(CountryCodeSelected&AD98,PanelData!$C$1:$AS$5001,MATCH($CC$89,PanelData!1:1,0)-2,0),"") ->  | AE99: =IFERROR(VLOOKUP(CountryCodeSelected&AE98,PanelData!$C$1:$AS$5001,MATCH($CC$89,PanelData!1:1,0)-2,0),"") ->  | AF99: =IFERROR(VLOOKUP(CountryCodeSelected&AF98,PanelData!$C$1:$AS$5001,MATCH($CC$89,PanelData!1:1,0)-2,0),"") ->  | AG99: =IFERROR(VLOOKUP(CountryCodeSelected&AG98,PanelData!$C$1:$AS$5001,MATCH($CC$89,PanelData!1:1,0)-2,0),"") ->  | AH99: =IFERROR(VLOOKUP(CountryCodeSelected&AH98,PanelData!$C$1:$AS$5001,MATCH($CC$89,PanelData!1:1,0)-2,0),"") ->  | AI99: =IFERROR(VLOOKUP(CountryCodeSelected&AI98,PanelData!$C$1:$AS$5001,MATCH($CC$89,PanelData!1:1,0)-2,0),"") ->  | AJ99: =IFERROR(VLOOKUP(CountryCodeSelected&AJ98,PanelData!$C$1:$AS$5001,MATCH($CC$89,PanelData!1:1,0)-2,0),"") ->  | AK99: =IFERROR(VLOOKUP(CountryCodeSelected&AK98,PanelData!$C$1:$AS$5001,MATCH($CC$89,PanelData!1:1,0)-2,0),"") ->  | AL99: =IFERROR(VLOOKUP(CountryCodeSelected&AL98,PanelData!$C$1:$AS$5001,MATCH($CC$89,PanelData!1:1,0)-2,0),"") ->  | AM99: =IFERROR(VLOOKUP(CountryCodeSelected&AM98,PanelData!$C$1:$AS$5001,MATCH($CC$89,PanelData!1:1,0)-2,0),"") ->  | AN99: =IFERROR(VLOOKUP(CountryCodeSelected&AN98,PanelData!$C$1:$AS$5001,MATCH($CC$89,PanelData!1:1,0)-2,0),"") ->  | AO99: =IFERROR(VLOOKUP(CountryCodeSelected&AO98,PanelData!$C$1:$AS$5001,MATCH($CC$89,PanelData!1:1,0)-2,0),"") ->  | AP99: =IFERROR(VLOOKUP(CountryCodeSelected&AP98,PanelData!$C$1:$AS$5001,MATCH($CC$89,PanelData!1:1,0)-2,0),"") ->  | AQ99: =IFERROR(VLOOKUP(CountryCodeSelected&AQ98,PanelData!$C$1:$AS$5001,MATCH($CC$89,PanelData!1:1,0)-2,0),"") ->  | AR99: =IFERROR(VLOOKUP(CountryCodeSelected&AR98,PanelData!$C$1:$AS$5001,MATCH($CC$89,PanelData!1:1,0)-2,0),"") ->  | AS99: =IFERROR(VLOOKUP(CountryCodeSelected&AS98,PanelData!$C$1:$AS$5001,MATCH($CC$89,PanelData!1:1,0)-2,0),"") ->  | AT99: =IFERROR(VLOOKUP(CountryCodeSelected&AT98,PanelData!$C$1:$AS$5001,MATCH($CC$89,PanelData!1:1,0)-2,0),"") ->  | AU99: =IFERROR(VLOOKUP(CountryCodeSelected&AU98,PanelData!$C$1:$AS$5001,MATCH($CC$89,PanelData!1:1,0)-2,0),"") ->  | AV99: =IFERROR(VLOOKUP(CountryCodeSelected&AV98,PanelData!$C$1:$AS$5001,MATCH($CC$89,PanelData!1:1,0)-2,0),"") ->  | AW99: =IFERROR(VLOOKUP(CountryCodeSelected&AW98,PanelData!$C$1:$AS$5001,MATCH($CC$89,PanelData!1:1,0)-2,0),"") ->  | AX99: =IFERROR(VLOOKUP(CountryCodeSelected&AX98,PanelData!$C$1:$AS$5001,MATCH($CC$89,PanelData!1:1,0)-2,0),"") ->  | AY99: =IFERROR(VLOOKUP(CountryCodeSelected&AY98,PanelData!$C$1:$AS$5001,MATCH($CC$89,PanelData!1:1,0)-2,0),"") ->  | AZ99: =IFERROR(VLOOKUP(CountryCodeSelected&AZ98,PanelData!$C$1:$AS$5001,MATCH($CC$89,PanelData!1:1,0)-2,0),"") ->  | BA99: =IFERROR(VLOOKUP(CountryCodeSelected&BA98,PanelData!$C$1:$AS$5001,MATCH($CC$89,PanelData!1:1,0)-2,0),"") ->  | BB99: =IFERROR(VLOOKUP(CountryCodeSelected&BB98,PanelData!$C$1:$AS$5001,MATCH($CC$89,PanelData!1:1,0)-2,0),"") ->  | BC99: =IFERROR(VLOOKUP(CountryCodeSelected&BC98,PanelData!$C$1:$AS$5001,MATCH($CC$89,PanelData!1:1,0)-2,0),"") ->  | CA99: =CH82&"_Expand" -> GI_MF_Expand | CB99: TRUE | CC99: Expand | CM99: GI_MF_Expand;
CG100: =IF(CA100="","",CA100& ";") ->  | CN100: =IF(CD100="","",CD100&";") ->  | CO100: =IF(DC100="","",DC100&";") -> 
D101: =MM_64 -> Automatically populate with public data | E101: =MM_24 -> Interest rates
E103: =IF(D83="","MM_1686",IF(CB90=TRUE,"Reference: "&HLOOKUP(CC90,PanelData!$1:$5,4,FALSE)&" - Source: "&HLOOKUP(CC90,PanelData!$1:$6,2,FALSE),MM_53)) -> Reference: Global Interest Rates: Zero coupon yield on on-the-run 10-year US Treasury bonds (in percent, annual average) - Source: US Federal Reserve, daily data as of Oct 1, 2020
E104: =E98 -> 2001 | F104: 2002 | G104: 2003 | H104: 2004 | I104: 2005 | J104: 2006 | K104: 2007 | L104: 2008 | M104: 2009 | N104: 2010 | O104: 2011 | P104: 2012 | Q104: 2013 | R104: 2014 | S104: 2015 | T104: 2016 | U104: 2017 | V104: 2018 | W104: 2019 | X104: 2020 | Y104: 2021 | AK104: =AK98 -> 
CB108: GI_MF | CF108: Back | CG108: =CG83 -> GI_MF_MACRO | CH108: GI_FD
D109: =MM_64 -> Automatically populate with public data | E109: =MM_49 -> Revenues [billions of national currency] | CF109: In | CG109: =CG84 -> GI_MF_FISCAL
CF110: Next | CG110: GI_IC_MAIN
E111: =IF(CB114=TRUE,MM_45,MM_53) -> General government revenue in billions national currency - Source: IMF, World Economic Outlook, October 2020 | CF111: Str | CG111: =_xlfn.CONCAT(CM108:CO125) -> GI_FD_Q1_A1;GI_FD_Q1_A2;GI_FD_Q1_A3;GI_FD_Q1_A4;GI_MF_Expand;
E112: 2001 | F112: =IF(E112>YearOfAnalysis-2," ",E112+1) -> 2002 | G112: 2003 | H112: 2004 | I112: 2005 | J112: 2006 | K112: 2007 | L112: 2008 | M112: 2009 | N112: 2010 | O112: 2011 | P112: 2012 | Q112: 2013 | R112: 2014 | S112: 2015 | T112: 2016 | U112: 2017 | V112: 2018 | W112: 2019 | X112: 2020 | Y112: 2021 | AL112: =IF(AK112>YearOfAnalysis-2," ",AK112+1) -> 
E113: =IFERROR(VLOOKUP(CountryCodeSelected&E112,PanelData!$C$1:$AS$5001,MATCH($CC$114,PanelData!1:1,0)-2,0),"") -> ... | F113: =IFERROR(VLOOKUP(CountryCodeSelected&F112,PanelData!$C$1:$AS$5001,MATCH($CC$114,PanelData!1:1,0)-2,0),"") -> 12.2352 | G113: =IFERROR(VLOOKUP(CountryCodeSelected&G112,PanelData!$C$1:$AS$5001,MATCH($CC$114,PanelData!1:1,0)-2,0),"") -> 21.61809437 | H113: =IFERROR(VLOOKUP(CountryCodeSelected&H112,PanelData!$C$1:$AS$5001,MATCH($CC$114,PanelData!1:1,0)-2,0),"") -> 31.20932434 | I113: =IFERROR(VLOOKUP(CountryCodeSelected&I112,PanelData!$C$1:$AS$5001,MATCH($CC$114,PanelData!1:1,0)-2,0),"") -> 44.92625416 | J113: =IFERROR(VLOOKUP(CountryCodeSelected&J112,PanelData!$C$1:$AS$5001,MATCH($CC$114,PanelData!1:1,0)-2,0),"") -> 65.51818812 | K113: =IFERROR(VLOOKUP(CountryCodeSelected&K112,PanelData!$C$1:$AS$5001,MATCH($CC$114,PanelData!1:1,0)-2,0),"") -> 81.16332294 | L113: =IFERROR(VLOOKUP(CountryCodeSelected&L112,PanelData!$C$1:$AS$5001,MATCH($CC$114,PanelData!1:1,0)-2,0),"") -> 88.16174367 | M113: =IFERROR(VLOOKUP(CountryCodeSelected&M112,PanelData!$C$1:$AS$5001,MATCH($CC$114,PanelData!1:1,0)-2,0),"") -> 117.7446275 | N113: =IFERROR(VLOOKUP(CountryCodeSelected&N112,PanelData!$C$1:$AS$5001,MATCH($CC$114,PanelData!1:1,0)-2,0),"") -> 154.6118332 | O113: =IFERROR(VLOOKUP(CountryCodeSelected&O112,PanelData!$C$1:$AS$5001,MATCH($CC$114,PanelData!1:1,0)-2,0),"") -> 177.8212362 | P113: =IFERROR(VLOOKUP(CountryCodeSelected&P112,PanelData!$C$1:$AS$5001,MATCH($CC$114,PanelData!1:1,0)-2,0),"") -> 260.5710979 | Q113: =IFERROR(VLOOKUP(CountryCodeSelected&Q112,PanelData!$C$1:$AS$5001,MATCH($CC$114,PanelData!1:1,0)-2,0),"") -> 271.9030553 | R113: =IFERROR(VLOOKUP(CountryCodeSelected&R112,PanelData!$C$1:$AS$5001,MATCH($CC$114,PanelData!1:1,0)-2,0),"") -> 280.1868715 | S113: =IFERROR(VLOOKUP(CountryCodeSelected&S112,PanelData!$C$1:$AS$5001,MATCH($CC$114,PanelData!1:1,0)-2,0),"") -> 301.3564426 | T113: =IFERROR(VLOOKUP(CountryCodeSelected&T112,PanelData!$C$1:$AS$5001,MATCH($CC$114,PanelData!1:1,0)-2,0),"") -> 344.3273277 | U113: =IFERROR(VLOOKUP(CountryCodeSelected&U112,PanelData!$C$1:$AS$5001,MATCH($CC$114,PanelData!1:1,0)-2,0),"") -> 347.8291691 | V113: =IFERROR(VLOOKUP(CountryCodeSelected&V112,PanelData!$C$1:$AS$5001,MATCH($CC$114,PanelData!1:1,0)-2,0),"") -> 405.872704 | W113: =IFERROR(VLOOKUP(CountryCodeSelected&W112,PanelData!$C$1:$AS$5001,MATCH($CC$114,PanelData!1:1,0)-2,0),"") -> 395.9230365 | X113: =IFERROR(VLOOKUP(CountryCodeSelected&X112,PanelData!$C$1:$AS$5001,MATCH($CC$114,PanelData!1:1,0)-2,0),"") -> 437.8484899 | Y113: =IFERROR(VLOOKUP(CountryCodeSelected&Y112,PanelData!$C$1:$AS$5001,MATCH($CC$114,PanelData!1:1,0)-2,0),"") -> 411.942678 | Z113: =IFERROR(VLOOKUP(CountryCodeSelected&Z112,PanelData!$C$1:$AS$5001,MATCH($CC$114,PanelData!1:1,0)-2,0),"") ->  | AA113: =IFERROR(VLOOKUP(CountryCodeSelected&AA112,PanelData!$C$1:$AS$5001,MATCH($CC$114,PanelData!1:1,0)-2,0),"") ->  | AB113: =IFERROR(VLOOKUP(CountryCodeSelected&AB112,PanelData!$C$1:$AS$5001,MATCH($CC$114,PanelData!1:1,0)-2,0),"") ->  | AC113: =IFERROR(VLOOKUP(CountryCodeSelected&AC112,PanelData!$C$1:$AS$5001,MATCH($CC$114,PanelData!1:1,0)-2,0),"") ->  | AD113: =IFERROR(VLOOKUP(CountryCodeSelected&AD112,PanelData!$C$1:$AS$5001,MATCH($CC$114,PanelData!1:1,0)-2,0),"") ->  | AE113: =IFERROR(VLOOKUP(CountryCodeSelected&AE112,PanelData!$C$1:$AS$5001,MATCH($CC$114,PanelData!1:1,0)-2,0),"") ->  | AF113: =IFERROR(VLOOKUP(CountryCodeSelected&AF112,PanelData!$C$1:$AS$5001,MATCH($CC$114,PanelData!1:1,0)-2,0),"") ->  | AG113: =IFERROR(VLOOKUP(CountryCodeSelected&AG112,PanelData!$C$1:$AS$5001,MATCH($CC$114,PanelData!1:1,0)-2,0),"") ->  | AH113: =IFERROR(VLOOKUP(CountryCodeSelected&AH112,PanelData!$C$1:$AS$5001,MATCH($CC$114,PanelData!1:1,0)-2,0),"") ->  | AI113: =IFERROR(VLOOKUP(CountryCodeSelected&AI112,PanelData!$C$1:$AS$5001,MATCH($CC$114,PanelData!1:1,0)-2,0),"") ->  | AJ113: =IFERROR(VLOOKUP(CountryCodeSelected&AJ112,PanelData!$C$1:$AS$5001,MATCH($CC$114,PanelData!1:1,0)-2,0),"") ->  | AK113: =IFERROR(VLOOKUP(CountryCodeSelected&AK112,PanelData!$C$1:$AS$5001,MATCH($CC$114,PanelData!1:1,0)-2,0),"") ->  | AL113: =IFERROR(VLOOKUP(CountryCodeSelected&AL112,PanelData!$C$1:$AS$5001,MATCH($CC$114,PanelData!1:1,0)-2,0),"") ->  | AM113: =IFERROR(VLOOKUP(CountryCodeSelected&AM112,PanelData!$C$1:$AS$5001,MATCH($CC$114,PanelData!1:1,0)-2,0),"") ->  | AN113: =IFERROR(VLOOKUP(CountryCodeSelected&AN112,PanelData!$C$1:$AS$5001,MATCH($CC$114,PanelData!1:1,0)-2,0),"") ->  | AO113: =IFERROR(VLOOKUP(CountryCodeSelected&AO112,PanelData!$C$1:$AS$5001,MATCH($CC$114,PanelData!1:1,0)-2,0),"") ->  | AP113: =IFERROR(VLOOKUP(CountryCodeSelected&AP112,PanelData!$C$1:$AS$5001,MATCH($CC$114,PanelData!1:1,0)-2,0),"") ->  | AQ113: =IFERROR(VLOOKUP(CountryCodeSelected&AQ112,PanelData!$C$1:$AS$5001,MATCH($CC$114,PanelData!1:1,0)-2,0),"") ->  | AR113: =IFERROR(VLOOKUP(CountryCodeSelected&AR112,PanelData!$C$1:$AS$5001,MATCH($CC$114,PanelData!1:1,0)-2,0),"") ->  | AS113: =IFERROR(VLOOKUP(CountryCodeSelected&AS112,PanelData!$C$1:$AS$5001,MATCH($CC$114,PanelData!1:1,0)-2,0),"") ->  | AT113: =IFERROR(VLOOKUP(CountryCodeSelected&AT112,PanelData!$C$1:$AS$5001,MATCH($CC$114,PanelData!1:1,0)-2,0),"") ->  | AU113: =IFERROR(VLOOKUP(CountryCodeSelected&AU112,PanelData!$C$1:$AS$5001,MATCH($CC$114,PanelData!1:1,0)-2,0),"") ->  | AV113: =IFERROR(VLOOKUP(CountryCodeSelected&AV112,PanelData!$C$1:$AS$5001,MATCH($CC$114,PanelData!1:1,0)-2,0),"") ->  | AW113: =IFERROR(VLOOKUP(CountryCodeSelected&AW112,PanelData!$C$1:$AS$5001,MATCH($CC$114,PanelData!1:1,0)-2,0),"") ->  | AX113: =IFERROR(VLOOKUP(CountryCodeSelected&AX112,PanelData!$C$1:$AS$5001,MATCH($CC$114,PanelData!1:1,0)-2,0),"") ->  | AY113: =IFERROR(VLOOKUP(CountryCodeSelected&AY112,PanelData!$C$1:$AS$5001,MATCH($CC$114,PanelData!1:1,0)-2,0),"") ->  | AZ113: =IFERROR(VLOOKUP(CountryCodeSelected&AZ112,PanelData!$C$1:$AS$5001,MATCH($CC$114,PanelData!1:1,0)-2,0),"") ->  | BA113: =IFERROR(VLOOKUP(CountryCodeSelected&BA112,PanelData!$C$1:$AS$5001,MATCH($CC$114,PanelData!1:1,0)-2,0),"") ->  | BB113: =IFERROR(VLOOKUP(CountryCodeSelected&BB112,PanelData!$C$1:$AS$5001,MATCH($CC$114,PanelData!1:1,0)-2,0),"") ->  | BC113: =IFERROR(VLOOKUP(CountryCodeSelected&BC112,PanelData!$C$1:$AS$5001,MATCH($CC$114,PanelData!1:1,0)-2,0),"") ->  | CB113: =CH108&"_Q1" -> GI_FD_Q1
CA114: =CB113&"_A1" -> GI_FD_Q1_A1 | CB114: TRUE | CC114: GGR | CM114: GI_FD_Q1_A1;
D115: =MM_64 -> Automatically populate with public data | E115: =MM_12 -> Expenditures [billions of national currency] | CA115: =$CB$113&"_A"&COUNTA($CA$114:CA114)+1 -> GI_FD_Q1_A2 | CB115: TRUE | CC115: GGX | CM115: GI_FD_Q1_A2;
CA116: =$CB$113&"_A"&COUNTA($CA$114:CA115)+1 -> GI_FD_Q1_A3 | CB116: TRUE | CC116: GGXCNL | CM116: GI_FD_Q1_A3;
E117: =IF(CB115=TRUE,MM_46,MM_53) -> General government total expenditure in billions national currency - Source: IMF, World Economic Outlook, October 2020 | CA117: =$CB$113&"_A"&COUNTA($CA$114:CA116)+1 -> GI_FD_Q1_A4 | CB117: TRUE | CC117: GGXWDG | CM117: GI_FD_Q1_A4;
E118: 2001 | F118: =IF(E118>YearOfAnalysis-2," ",E118+1) -> 2002 | G118: 2003 | H118: 2004 | I118: 2005 | J118: 2006 | K118: 2007 | L118: 2008 | M118: 2009 | N118: 2010 | O118: 2011 | P118: 2012 | Q118: 2013 | R118: 2014 | S118: 2015 | T118: 2016 | U118: 2017 | V118: 2018 | W118: 2019 | X118: 2020 | Y118: 2021 | AL118: =IF(AK118>YearOfAnalysis-2," ",AK118+1) -> 
E119: =IFERROR(VLOOKUP(CountryCodeSelected&E118,PanelData!$C$1:$AS$5001,MATCH($CC$115,PanelData!1:1,0)-2,0),"") -> ... | F119: =IFERROR(VLOOKUP(CountryCodeSelected&F118,PanelData!$C$1:$AS$5001,MATCH($CC$115,PanelData!1:1,0)-2,0),"") -> 12.4112 | G119: =IFERROR(VLOOKUP(CountryCodeSelected&G118,PanelData!$C$1:$AS$5001,MATCH($CC$115,PanelData!1:1,0)-2,0),"") -> 26.2420384 | H119: =IFERROR(VLOOKUP(CountryCodeSelected&H118,PanelData!$C$1:$AS$5001,MATCH($CC$115,PanelData!1:1,0)-2,0),"") -> 37.10074129 | I119: =IFERROR(VLOOKUP(CountryCodeSelected&I118,PanelData!$C$1:$AS$5001,MATCH($CC$115,PanelData!1:1,0)-2,0),"") -> 47.86758931 | J119: =IFERROR(VLOOKUP(CountryCodeSelected&J118,PanelData!$C$1:$AS$5001,MATCH($CC$115,PanelData!1:1,0)-2,0),"") -> 63.29354474 | K119: =IFERROR(VLOOKUP(CountryCodeSelected&K118,PanelData!$C$1:$AS$5001,MATCH($CC$115,PanelData!1:1,0)-2,0),"") -> 91.81735605 | L119: =IFERROR(VLOOKUP(CountryCodeSelected&L118,PanelData!$C$1:$AS$5001,MATCH($CC$115,PanelData!1:1,0)-2,0),"") -> 108.2513205 | M119: =IFERROR(VLOOKUP(CountryCodeSelected&M118,PanelData!$C$1:$AS$5001,MATCH($CC$115,PanelData!1:1,0)-2,0),"") -> 128.547792 | N119: =IFERROR(VLOOKUP(CountryCodeSelected&N118,PanelData!$C$1:$AS$5001,MATCH($CC$115,PanelData!1:1,0)-2,0),"") -> 148.0515831 | O119: =IFERROR(VLOOKUP(CountryCodeSelected&O118,PanelData!$C$1:$AS$5001,MATCH($CC$115,PanelData!1:1,0)-2,0),"") -> 183.4391602 | P119: =IFERROR(VLOOKUP(CountryCodeSelected&P118,PanelData!$C$1:$AS$5001,MATCH($CC$115,PanelData!1:1,0)-2,0),"") -> 258.6893719 | Q119: =IFERROR(VLOOKUP(CountryCodeSelected&Q118,PanelData!$C$1:$AS$5001,MATCH($CC$115,PanelData!1:1,0)-2,0),"") -> 278.9496263 | R119: =IFERROR(VLOOKUP(CountryCodeSelected&R118,PanelData!$C$1:$AS$5001,MATCH($CC$115,PanelData!1:1,0)-2,0),"") -> 300.52091 | S119: =IFERROR(VLOOKUP(CountryCodeSelected&S118,PanelData!$C$1:$AS$5001,MATCH($CC$115,PanelData!1:1,0)-2,0),"") -> 318.2548988 | T119: =IFERROR(VLOOKUP(CountryCodeSelected&T118,PanelData!$C$1:$AS$5001,MATCH($CC$115,PanelData!1:1,0)-2,0),"") -> 342.7710683 | U119: =IFERROR(VLOOKUP(CountryCodeSelected&U118,PanelData!$C$1:$AS$5001,MATCH($CC$115,PanelData!1:1,0)-2,0),"") -> 356.4816785 | V119: =IFERROR(VLOOKUP(CountryCodeSelected&V118,PanelData!$C$1:$AS$5001,MATCH($CC$115,PanelData!1:1,0)-2,0),"") -> 384.1756441 | W119: =IFERROR(VLOOKUP(CountryCodeSelected&W118,PanelData!$C$1:$AS$5001,MATCH($CC$115,PanelData!1:1,0)-2,0),"") -> 411.4725575 | X119: =IFERROR(VLOOKUP(CountryCodeSelected&X118,PanelData!$C$1:$AS$5001,MATCH($CC$115,PanelData!1:1,0)-2,0),"") -> 478.7845841 | Y119: =IFERROR(VLOOKUP(CountryCodeSelected&Y118,PanelData!$C$1:$AS$5001,MATCH($CC$115,PanelData!1:1,0)-2,0),"") -> 446.6534743 | Z119: =IFERROR(VLOOKUP(CountryCodeSelected&Z118,PanelData!$C$1:$AS$5001,MATCH($CC$115,PanelData!1:1,0)-2,0),"") ->  | AA119: =IFERROR(VLOOKUP(CountryCodeSelected&AA118,PanelData!$C$1:$AS$5001,MATCH($CC$115,PanelData!1:1,0)-2,0),"") ->  | AB119: =IFERROR(VLOOKUP(CountryCodeSelected&AB118,PanelData!$C$1:$AS$5001,MATCH($CC$115,PanelData!1:1,0)-2,0),"") ->  | AC119: =IFERROR(VLOOKUP(CountryCodeSelected&AC118,PanelData!$C$1:$AS$5001,MATCH($CC$115,PanelData!1:1,0)-2,0),"") ->  | AD119: =IFERROR(VLOOKUP(CountryCodeSelected&AD118,PanelData!$C$1:$AS$5001,MATCH($CC$115,PanelData!1:1,0)-2,0),"") ->  | AE119: =IFERROR(VLOOKUP(CountryCodeSelected&AE118,PanelData!$C$1:$AS$5001,MATCH($CC$115,PanelData!1:1,0)-2,0),"") ->  | AF119: =IFERROR(VLOOKUP(CountryCodeSelected&AF118,PanelData!$C$1:$AS$5001,MATCH($CC$115,PanelData!1:1,0)-2,0),"") ->  | AG119: =IFERROR(VLOOKUP(CountryCodeSelected&AG118,PanelData!$C$1:$AS$5001,MATCH($CC$115,PanelData!1:1,0)-2,0),"") ->  | AH119: =IFERROR(VLOOKUP(CountryCodeSelected&AH118,PanelData!$C$1:$AS$5001,MATCH($CC$115,PanelData!1:1,0)-2,0),"") ->  | AI119: =IFERROR(VLOOKUP(CountryCodeSelected&AI118,PanelData!$C$1:$AS$5001,MATCH($CC$115,PanelData!1:1,0)-2,0),"") ->  | AJ119: =IFERROR(VLOOKUP(CountryCodeSelected&AJ118,PanelData!$C$1:$AS$5001,MATCH($CC$115,PanelData!1:1,0)-2,0),"") ->  | AK119: =IFERROR(VLOOKUP(CountryCodeSelected&AK118,PanelData!$C$1:$AS$5001,MATCH($CC$115,PanelData!1:1,0)-2,0),"") ->  | AL119: =IFERROR(VLOOKUP(CountryCodeSelected&AL118,PanelData!$C$1:$AS$5001,MATCH($CC$115,PanelData!1:1,0)-2,0),"") ->  | AM119: =IFERROR(VLOOKUP(CountryCodeSelected&AM118,PanelData!$C$1:$AS$5001,MATCH($CC$115,PanelData!1:1,0)-2,0),"") ->  | AN119: =IFERROR(VLOOKUP(CountryCodeSelected&AN118,PanelData!$C$1:$AS$5001,MATCH($CC$115,PanelData!1:1,0)-2,0),"") ->  | AO119: =IFERROR(VLOOKUP(CountryCodeSelected&AO118,PanelData!$C$1:$AS$5001,MATCH($CC$115,PanelData!1:1,0)-2,0),"") ->  | AP119: =IFERROR(VLOOKUP(CountryCodeSelected&AP118,PanelData!$C$1:$AS$5001,MATCH($CC$115,PanelData!1:1,0)-2,0),"") ->  | AQ119: =IFERROR(VLOOKUP(CountryCodeSelected&AQ118,PanelData!$C$1:$AS$5001,MATCH($CC$115,PanelData!1:1,0)-2,0),"") ->  | AR119: =IFERROR(VLOOKUP(CountryCodeSelected&AR118,PanelData!$C$1:$AS$5001,MATCH($CC$115,PanelData!1:1,0)-2,0),"") ->  | AS119: =IFERROR(VLOOKUP(CountryCodeSelected&AS118,PanelData!$C$1:$AS$5001,MATCH($CC$115,PanelData!1:1,0)-2,0),"") ->  | AT119: =IFERROR(VLOOKUP(CountryCodeSelected&AT118,PanelData!$C$1:$AS$5001,MATCH($CC$115,PanelData!1:1,0)-2,0),"") ->  | AU119: =IFERROR(VLOOKUP(CountryCodeSelected&AU118,PanelData!$C$1:$AS$5001,MATCH($CC$115,PanelData!1:1,0)-2,0),"") ->  | AV119: =IFERROR(VLOOKUP(CountryCodeSelected&AV118,PanelData!$C$1:$AS$5001,MATCH($CC$115,PanelData!1:1,0)-2,0),"") ->  | AW119: =IFERROR(VLOOKUP(CountryCodeSelected&AW118,PanelData!$C$1:$AS$5001,MATCH($CC$115,PanelData!1:1,0)-2,0),"") ->  | AX119: =IFERROR(VLOOKUP(CountryCodeSelected&AX118,PanelData!$C$1:$AS$5001,MATCH($CC$115,PanelData!1:1,0)-2,0),"") ->  | AY119: =IFERROR(VLOOKUP(CountryCodeSelected&AY118,PanelData!$C$1:$AS$5001,MATCH($CC$115,PanelData!1:1,0)-2,0),"") ->  | AZ119: =IFERROR(VLOOKUP(CountryCodeSelected&AZ118,PanelData!$C$1:$AS$5001,MATCH($CC$115,PanelData!1:1,0)-2,0),"") ->  | BA119: =IFERROR(VLOOKUP(CountryCodeSelected&BA118,PanelData!$C$1:$AS$5001,MATCH($CC$115,PanelData!1:1,0)-2,0),"") ->  | BB119: =IFERROR(VLOOKUP(CountryCodeSelected&BB118,PanelData!$C$1:$AS$5001,MATCH($CC$115,PanelData!1:1,0)-2,0),"") ->  | BC119: =IFERROR(VLOOKUP(CountryCodeSelected&BC118,PanelData!$C$1:$AS$5001,MATCH($CC$115,PanelData!1:1,0)-2,0),"") -> 
D121: =MM_64 -> Automatically populate with public data | E121: =MM_14 -> Fiscal balance [billions of national currency] | CA121: GI_MF_Expand | CB121: TRUE | CC121: Expand | CM121: GI_MF_Expand;
E123: =IF(CB116=TRUE,MM_44,MM_53) -> General government net lending/borrowing in billions national currency - Source: IMF, World Economic Outlook, October 2020
E124: 2001 | F124: =F118 -> 2002 | G124: 2003 | H124: 2004 | I124: 2005 | J124: 2006 | K124: 2007 | L124: 2008 | M124: 2009 | N124: 2010 | O124: 2011 | P124: 2012 | Q124: 2013 | R124: 2014 | S124: 2015 | T124: 2016 | U124: 2017 | V124: 2018 | W124: 2019 | X124: 2020 | Y124: 2021
E125: =IFERROR(VLOOKUP(CountryCodeSelected&E124,PanelData!$C$1:$AS$5001,MATCH($CC$116,PanelData!1:1,0)-2,0),"") -> ... | F125: =IFERROR(VLOOKUP(CountryCodeSelected&F124,PanelData!$C$1:$AS$5001,MATCH($CC$116,PanelData!1:1,0)-2,0),"") -> -0.176 | G125: =IFERROR(VLOOKUP(CountryCodeSelected&G124,PanelData!$C$1:$AS$5001,MATCH($CC$116,PanelData!1:1,0)-2,0),"") -> -4.623944037 | H125: =IFERROR(VLOOKUP(CountryCodeSelected&H124,PanelData!$C$1:$AS$5001,MATCH($CC$116,PanelData!1:1,0)-2,0),"") -> -5.891416958 | I125: =IFERROR(VLOOKUP(CountryCodeSelected&I124,PanelData!$C$1:$AS$5001,MATCH($CC$116,PanelData!1:1,0)-2,0),"") -> -2.941335152 | J125: =IFERROR(VLOOKUP(CountryCodeSelected&J124,PanelData!$C$1:$AS$5001,MATCH($CC$116,PanelData!1:1,0)-2,0),"") -> 2.224643381 | K125: =IFERROR(VLOOKUP(CountryCodeSelected&K124,PanelData!$C$1:$AS$5001,MATCH($CC$116,PanelData!1:1,0)-2,0),"") -> -10.65403311 | L125: =IFERROR(VLOOKUP(CountryCodeSelected&L124,PanelData!$C$1:$AS$5001,MATCH($CC$116,PanelData!1:1,0)-2,0),"") -> -20.08957687 | M125: =IFERROR(VLOOKUP(CountryCodeSelected&M124,PanelData!$C$1:$AS$5001,MATCH($CC$116,PanelData!1:1,0)-2,0),"") -> -10.80316447 | N125: =IFERROR(VLOOKUP(CountryCodeSelected&N124,PanelData!$C$1:$AS$5001,MATCH($CC$116,PanelData!1:1,0)-2,0),"") -> 6.560250036 | O125: =IFERROR(VLOOKUP(CountryCodeSelected&O124,PanelData!$C$1:$AS$5001,MATCH($CC$116,PanelData!1:1,0)-2,0),"") -> -5.617924016 | P125: =IFERROR(VLOOKUP(CountryCodeSelected&P124,PanelData!$C$1:$AS$5001,MATCH($CC$116,PanelData!1:1,0)-2,0),"") -> 1.881726048 | Q125: =IFERROR(VLOOKUP(CountryCodeSelected&Q124,PanelData!$C$1:$AS$5001,MATCH($CC$116,PanelData!1:1,0)-2,0),"") -> -7.046570995 | R125: =IFERROR(VLOOKUP(CountryCodeSelected&R124,PanelData!$C$1:$AS$5001,MATCH($CC$116,PanelData!1:1,0)-2,0),"") -> -20.33403847 | S125: =IFERROR(VLOOKUP(CountryCodeSelected&S124,PanelData!$C$1:$AS$5001,MATCH($CC$116,PanelData!1:1,0)-2,0),"") -> -16.89845615 | T125: =IFERROR(VLOOKUP(CountryCodeSelected&T124,PanelData!$C$1:$AS$5001,MATCH($CC$116,PanelData!1:1,0)-2,0),"") -> 1.556259375 | U125: =IFERROR(VLOOKUP(CountryCodeSelected&U124,PanelData!$C$1:$AS$5001,MATCH($CC$116,PanelData!1:1,0)-2,0),"") -> -8.652509379 | V125: =IFERROR(VLOOKUP(CountryCodeSelected&V124,PanelData!$C$1:$AS$5001,MATCH($CC$116,PanelData!1:1,0)-2,0),"") -> 21.69705987 | W125: =IFERROR(VLOOKUP(CountryCodeSelected&W124,PanelData!$C$1:$AS$5001,MATCH($CC$116,PanelData!1:1,0)-2,0),"") -> -15.54952099 | X125: =IFERROR(VLOOKUP(CountryCodeSelected&X124,PanelData!$C$1:$AS$5001,MATCH($CC$116,PanelData!1:1,0)-2,0),"") -> -40.93609421 | Y125: =IFERROR(VLOOKUP(CountryCodeSelected&Y124,PanelData!$C$1:$AS$5001,MATCH($CC$116,PanelData!1:1,0)-2,0),"") -> -34.71079631 | Z125: =IFERROR(VLOOKUP(CountryCodeSelected&Z124,PanelData!$C$1:$AS$5001,MATCH($CC$116,PanelData!1:1,0)-2,0),"") ->  | AA125: =IFERROR(VLOOKUP(CountryCodeSelected&AA124,PanelData!$C$1:$AS$5001,MATCH($CC$116,PanelData!1:1,0)-2,0),"") ->  | AB125: =IFERROR(VLOOKUP(CountryCodeSelected&AB124,PanelData!$C$1:$AS$5001,MATCH($CC$116,PanelData!1:1,0)-2,0),"") ->  | AC125: =IFERROR(VLOOKUP(CountryCodeSelected&AC124,PanelData!$C$1:$AS$5001,MATCH($CC$116,PanelData!1:1,0)-2,0),"") ->  | AD125: =IFERROR(VLOOKUP(CountryCodeSelected&AD124,PanelData!$C$1:$AS$5001,MATCH($CC$116,PanelData!1:1,0)-2,0),"") ->  | AE125: =IFERROR(VLOOKUP(CountryCodeSelected&AE124,PanelData!$C$1:$AS$5001,MATCH($CC$116,PanelData!1:1,0)-2,0),"") ->  | AF125: =IFERROR(VLOOKUP(CountryCodeSelected&AF124,PanelData!$C$1:$AS$5001,MATCH($CC$116,PanelData!1:1,0)-2,0),"") ->  | AG125: =IFERROR(VLOOKUP(CountryCodeSelected&AG124,PanelData!$C$1:$AS$5001,MATCH($CC$116,PanelData!1:1,0)-2,0),"") ->  | AH125: =IFERROR(VLOOKUP(CountryCodeSelected&AH124,PanelData!$C$1:$AS$5001,MATCH($CC$116,PanelData!1:1,0)-2,0),"") ->  | AI125: =IFERROR(VLOOKUP(CountryCodeSelected&AI124,PanelData!$C$1:$AS$5001,MATCH($CC$116,PanelData!1:1,0)-2,0),"") ->  | AJ125: =IFERROR(VLOOKUP(CountryCodeSelected&AJ124,PanelData!$C$1:$AS$5001,MATCH($CC$116,PanelData!1:1,0)-2,0),"") ->  | AK125: =IFERROR(VLOOKUP(CountryCodeSelected&AK124,PanelData!$C$1:$AS$5001,MATCH($CC$116,PanelData!1:1,0)-2,0),"") ->  | AL125: =IFERROR(VLOOKUP(CountryCodeSelected&AL124,PanelData!$C$1:$AS$5001,MATCH($CC$116,PanelData!1:1,0)-2,0),"") ->  | AM125: =IFERROR(VLOOKUP(CountryCodeSelected&AM124,PanelData!$C$1:$AS$5001,MATCH($CC$116,PanelData!1:1,0)-2,0),"") ->  | AN125: =IFERROR(VLOOKUP(CountryCodeSelected&AN124,PanelData!$C$1:$AS$5001,MATCH($CC$116,PanelData!1:1,0)-2,0),"") ->  | AO125: =IFERROR(VLOOKUP(CountryCodeSelected&AO124,PanelData!$C$1:$AS$5001,MATCH($CC$116,PanelData!1:1,0)-2,0),"") ->  | AP125: =IFERROR(VLOOKUP(CountryCodeSelected&AP124,PanelData!$C$1:$AS$5001,MATCH($CC$116,PanelData!1:1,0)-2,0),"") ->  | AQ125: =IFERROR(VLOOKUP(CountryCodeSelected&AQ124,PanelData!$C$1:$AS$5001,MATCH($CC$116,PanelData!1:1,0)-2,0),"") ->  | AR125: =IFERROR(VLOOKUP(CountryCodeSelected&AR124,PanelData!$C$1:$AS$5001,MATCH($CC$116,PanelData!1:1,0)-2,0),"") ->  | AS125: =IFERROR(VLOOKUP(CountryCodeSelected&AS124,PanelData!$C$1:$AS$5001,MATCH($CC$116,PanelData!1:1,0)-2,0),"") ->  | AT125: =IFERROR(VLOOKUP(CountryCodeSelected&AT124,PanelData!$C$1:$AS$5001,MATCH($CC$116,PanelData!1:1,0)-2,0),"") ->  | AU125: =IFERROR(VLOOKUP(CountryCodeSelected&AU124,PanelData!$C$1:$AS$5001,MATCH($CC$116,PanelData!1:1,0)-2,0),"") ->  | AV125: =IFERROR(VLOOKUP(CountryCodeSelected&AV124,PanelData!$C$1:$AS$5001,MATCH($CC$116,PanelData!1:1,0)-2,0),"") ->  | AW125: =IFERROR(VLOOKUP(CountryCodeSelected&AW124,PanelData!$C$1:$AS$5001,MATCH($CC$116,PanelData!1:1,0)-2,0),"") ->  | AX125: =IFERROR(VLOOKUP(CountryCodeSelected&AX124,PanelData!$C$1:$AS$5001,MATCH($CC$116,PanelData!1:1,0)-2,0),"") ->  | AY125: =IFERROR(VLOOKUP(CountryCodeSelected&AY124,PanelData!$C$1:$AS$5001,MATCH($CC$116,PanelData!1:1,0)-2,0),"") ->  | AZ125: =IFERROR(VLOOKUP(CountryCodeSelected&AZ124,PanelData!$C$1:$AS$5001,MATCH($CC$116,PanelData!1:1,0)-2,0),"") ->  | BA125: =IFERROR(VLOOKUP(CountryCodeSelected&BA124,PanelData!$C$1:$AS$5001,MATCH($CC$116,PanelData!1:1,0)-2,0),"") ->  | BB125: =IFERROR(VLOOKUP(CountryCodeSelected&BB124,PanelData!$C$1:$AS$5001,MATCH($CC$116,PanelData!1:1,0)-2,0),"") ->  | BC125: =IFERROR(VLOOKUP(CountryCodeSelected&BC124,PanelData!$C$1:$AS$5001,MATCH($CC$116,PanelData!1:1,0)-2,0),"") -> 
CA126: =CH108&"_Expand" -> GI_FD_Expand | CB126: TRUE | CC126: Expand | CM126: GI_FD_Expand; | CN126: =IF(CD126="","",CD126&";") ->  | CO126: =IF(DC126="","",DC126&";") -> 
D127: =MM_64 -> Automatically populate with public data | E127: =MM_20 -> Gross debt [billions of national currency]
E129: =IF(CB117=TRUE,MM_43,MM_53) -> General government gross debt in billions national currency - Source: IMF, World Economic Outlook, October 2020
E130: =E124 -> 2001 | F130: 2002 | G130: 2003 | H130: 2004 | I130: 2005 | J130: 2006 | K130: 2007 | L130: 2008 | M130: 2009 | N130: 2010 | O130: 2011 | P130: 2012 | Q130: 2013 | R130: 2014 | S130: 2015 | T130: 2016 | U130: 2017 | V130: 2018 | W130: 2019 | X130: 2020 | Y130: 2021
E131: =IFERROR(VLOOKUP(CountryCodeSelected&E130,PanelData!$C$1:$AS$5001,MATCH($CC$117,PanelData!1:1,0)-2,0),"") -> ... | F131: =IFERROR(VLOOKUP(CountryCodeSelected&F130,PanelData!$C$1:$AS$5001,MATCH($CC$117,PanelData!1:1,0)-2,0),"") -> 618.4564903 | G131: =IFERROR(VLOOKUP(CountryCodeSelected&G130,PanelData!$C$1:$AS$5001,MATCH($CC$117,PanelData!1:1,0)-2,0),"") -> 595.3601853 | H131: =IFERROR(VLOOKUP(CountryCodeSelected&H130,PanelData!$C$1:$AS$5001,MATCH($CC$117,PanelData!1:1,0)-2,0),"") -> 603.1335017 | I131: =IFERROR(VLOOKUP(CountryCodeSelected&I130,PanelData!$C$1:$AS$5001,MATCH($CC$117,PanelData!1:1,0)-2,0),"") -> 629.23385 | J131: =IFERROR(VLOOKUP(CountryCodeSelected&J130,PanelData!$C$1:$AS$5001,MATCH($CC$117,PanelData!1:1,0)-2,0),"") -> 79.48481044 | K131: =IFERROR(VLOOKUP(CountryCodeSelected&K130,PanelData!$C$1:$AS$5001,MATCH($CC$117,PanelData!1:1,0)-2,0),"") -> 86.08310832 | L131: =IFERROR(VLOOKUP(CountryCodeSelected&L130,PanelData!$C$1:$AS$5001,MATCH($CC$117,PanelData!1:1,0)-2,0),"") -> 98.62214288 | M131: =IFERROR(VLOOKUP(CountryCodeSelected&M130,PanelData!$C$1:$AS$5001,MATCH($CC$117,PanelData!1:1,0)-2,0),"") -> 98.65776331 | N131: =IFERROR(VLOOKUP(CountryCodeSelected&N130,PanelData!$C$1:$AS$5001,MATCH($CC$117,PanelData!1:1,0)-2,0),"") -> 54.85445449 | O131: =IFERROR(VLOOKUP(CountryCodeSelected&O130,PanelData!$C$1:$AS$5001,MATCH($CC$117,PanelData!1:1,0)-2,0),"") -> 62.80252972 | P131: =IFERROR(VLOOKUP(CountryCodeSelected&P130,PanelData!$C$1:$AS$5001,MATCH($CC$117,PanelData!1:1,0)-2,0),"") -> 69.94671716 | Q131: =IFERROR(VLOOKUP(CountryCodeSelected&Q130,PanelData!$C$1:$AS$5001,MATCH($CC$117,PanelData!1:1,0)-2,0),"") -> 77.19955384 | R131: =IFERROR(VLOOKUP(CountryCodeSelected&R130,PanelData!$C$1:$AS$5001,MATCH($CC$117,PanelData!1:1,0)-2,0),"") -> 102.9278458 | S131: =IFERROR(VLOOKUP(CountryCodeSelected&S130,PanelData!$C$1:$AS$5001,MATCH($CC$117,PanelData!1:1,0)-2,0),"") -> 112.2812157 | T131: =IFERROR(VLOOKUP(CountryCodeSelected&T130,PanelData!$C$1:$AS$5001,MATCH($CC$117,PanelData!1:1,0)-2,0),"") -> 103.1807514 | U131: =IFERROR(VLOOKUP(CountryCodeSelected&U130,PanelData!$C$1:$AS$5001,MATCH($CC$117,PanelData!1:1,0)-2,0),"") -> 102.8067489 | V131: =IFERROR(VLOOKUP(CountryCodeSelected&V130,PanelData!$C$1:$AS$5001,MATCH($CC$117,PanelData!1:1,0)-2,0),"") -> 98.04214134 | W131: =IFERROR(VLOOKUP(CountryCodeSelected&W130,PanelData!$C$1:$AS$5001,MATCH($CC$117,PanelData!1:1,0)-2,0),"") -> 90.09227731 | X131: =IFERROR(VLOOKUP(CountryCodeSelected&X130,PanelData!$C$1:$AS$5001,MATCH($CC$117,PanelData!1:1,0)-2,0),"") -> 115.0487851 | Y131: =IFERROR(VLOOKUP(CountryCodeSelected&Y130,PanelData!$C$1:$AS$5001,MATCH($CC$117,PanelData!1:1,0)-2,0),"") -> 142.2948767 | Z131: =IFERROR(VLOOKUP(CountryCodeSelected&Z130,PanelData!$C$1:$AS$5001,MATCH($CC$117,PanelData!1:1,0)-2,0),"") ->  | AA131: =IFERROR(VLOOKUP(CountryCodeSelected&AA130,PanelData!$C$1:$AS$5001,MATCH($CC$117,PanelData!1:1,0)-2,0),"") ->  | AB131: =IFERROR(VLOOKUP(CountryCodeSelected&AB130,PanelData!$C$1:$AS$5001,MATCH($CC$117,PanelData!1:1,0)-2,0),"") ->  | AC131: =IFERROR(VLOOKUP(CountryCodeSelected&AC130,PanelData!$C$1:$AS$5001,MATCH($CC$117,PanelData!1:1,0)-2,0),"") ->  | AD131: =IFERROR(VLOOKUP(CountryCodeSelected&AD130,PanelData!$C$1:$AS$5001,MATCH($CC$117,PanelData!1:1,0)-2,0),"") ->  | AE131: =IFERROR(VLOOKUP(CountryCodeSelected&AE130,PanelData!$C$1:$AS$5001,MATCH($CC$117,PanelData!1:1,0)-2,0),"") ->  | AF131: =IFERROR(VLOOKUP(CountryCodeSelected&AF130,PanelData!$C$1:$AS$5001,MATCH($CC$117,PanelData!1:1,0)-2,0),"") ->  | AG131: =IFERROR(VLOOKUP(CountryCodeSelected&AG130,PanelData!$C$1:$AS$5001,MATCH($CC$117,PanelData!1:1,0)-2,0),"") ->  | AH131: =IFERROR(VLOOKUP(CountryCodeSelected&AH130,PanelData!$C$1:$AS$5001,MATCH($CC$117,PanelData!1:1,0)-2,0),"") ->  | AI131: =IFERROR(VLOOKUP(CountryCodeSelected&AI130,PanelData!$C$1:$AS$5001,MATCH($CC$117,PanelData!1:1,0)-2,0),"") ->  | AJ131: =IFERROR(VLOOKUP(CountryCodeSelected&AJ130,PanelData!$C$1:$AS$5001,MATCH($CC$117,PanelData!1:1,0)-2,0),"") ->  | AK131: =IFERROR(VLOOKUP(CountryCodeSelected&AK130,PanelData!$C$1:$AS$5001,MATCH($CC$117,PanelData!1:1,0)-2,0),"") ->  | AL131: =IFERROR(VLOOKUP(CountryCodeSelected&AL130,PanelData!$C$1:$AS$5001,MATCH($CC$117,PanelData!1:1,0)-2,0),"") ->  | AM131: =IFERROR(VLOOKUP(CountryCodeSelected&AM130,PanelData!$C$1:$AS$5001,MATCH($CC$117,PanelData!1:1,0)-2,0),"") ->  | AN131: =IFERROR(VLOOKUP(CountryCodeSelected&AN130,PanelData!$C$1:$AS$5001,MATCH($CC$117,PanelData!1:1,0)-2,0),"") ->  | AO131: =IFERROR(VLOOKUP(CountryCodeSelected&AO130,PanelData!$C$1:$AS$5001,MATCH($CC$117,PanelData!1:1,0)-2,0),"") ->  | AP131: =IFERROR(VLOOKUP(CountryCodeSelected&AP130,PanelData!$C$1:$AS$5001,MATCH($CC$117,PanelData!1:1,0)-2,0),"") ->  | AQ131: =IFERROR(VLOOKUP(CountryCodeSelected&AQ130,PanelData!$C$1:$AS$5001,MATCH($CC$117,PanelData!1:1,0)-2,0),"") ->  | AR131: =IFERROR(VLOOKUP(CountryCodeSelected&AR130,PanelData!$C$1:$AS$5001,MATCH($CC$117,PanelData!1:1,0)-2,0),"") ->  | AS131: =IFERROR(VLOOKUP(CountryCodeSelected&AS130,PanelData!$C$1:$AS$5001,MATCH($CC$117,PanelData!1:1,0)-2,0),"") ->  | AT131: =IFERROR(VLOOKUP(CountryCodeSelected&AT130,PanelData!$C$1:$AS$5001,MATCH($CC$117,PanelData!1:1,0)-2,0),"") ->  | AU131: =IFERROR(VLOOKUP(CountryCodeSelected&AU130,PanelData!$C$1:$AS$5001,MATCH($CC$117,PanelData!1:1,0)-2,0),"") ->  | AV131: =IFERROR(VLOOKUP(CountryCodeSelected&AV130,PanelData!$C$1:$AS$5001,MATCH($CC$117,PanelData!1:1,0)-2,0),"") ->  | AW131: =IFERROR(VLOOKUP(CountryCodeSelected&AW130,PanelData!$C$1:$AS$5001,MATCH($CC$117,PanelData!1:1,0)-2,0),"") ->  | AX131: =IFERROR(VLOOKUP(CountryCodeSelected&AX130,PanelData!$C$1:$AS$5001,MATCH($CC$117,PanelData!1:1,0)-2,0),"") ->  | AY131: =IFERROR(VLOOKUP(CountryCodeSelected&AY130,PanelData!$C$1:$AS$5001,MATCH($CC$117,PanelData!1:1,0)-2,0),"") ->  | AZ131: =IFERROR(VLOOKUP(CountryCodeSelected&AZ130,PanelData!$C$1:$AS$5001,MATCH($CC$117,PanelData!1:1,0)-2,0),"") ->  | BA131: =IFERROR(VLOOKUP(CountryCodeSelected&BA130,PanelData!$C$1:$AS$5001,MATCH($CC$117,PanelData!1:1,0)-2,0),"") ->  | BB131: =IFERROR(VLOOKUP(CountryCodeSelected&BB130,PanelData!$C$1:$AS$5001,MATCH($CC$117,PanelData!1:1,0)-2,0),"") ->  | BC131: =IFERROR(VLOOKUP(CountryCodeSelected&BC130,PanelData!$C$1:$AS$5001,MATCH($CC$117,PanelData!1:1,0)-2,0),"") -> 
CM132: =IF(CA132="","",CA132&";") -> 
CB134: GI_IC | CF134: Back | CG134: =CG109 -> GI_MF_FISCAL
CF135: In | CG135: =CG110 -> GI_IC_MAIN
E136: =MM_60 -> The tool facilitates the comparison of your country's position and performance with other countries and groups of countries along a range of indicators related to the various types of fiscal risks. In this section, the user chooses countries and groups of countries she wants her country to be compared with. | CF136: =VBAC_1333 -> Next | CG136: GI_IC_P1
CF137: Str | CG137: =CONCATENATEMULTIPLE(CA134:CA151,";")&";" -> GI_IC_NEXT;
CM146: =IF(BZ144="","",BZ144&";") -> 
CA150: =CB134&"_NEXT" -> GI_IC_NEXT | CC150: =VBAC_1333 -> Next | CM150: GI_IC_NEXT;
CB153: GI_IC | CF153: Back | CG153: =CG135 -> GI_IC_MAIN
CF154: In | CG154: =CG136 -> GI_IC_P1
CA155: =RRO_217 -> Advanced Economies | CB155: =IF(COUNTIF($I$156:$L$160,CA155)>=1, "",ROW()) -> 155 | CC155: =IF(ROW($CA$155:$CA$162)-ROW(CA155)+1>COUNT($CB$155:$CB$162),"",INDEX(CA:CA,SMALL($CB$155:$CB$162,ROW(INDIRECT("1:"&ROWS($CA$155:$CA$162)))))) -> Advanced Economies | CD155: =IF(CB155="",ROW(),"") ->  | CF155: =VBAC_1333 -> Next | CG155: FR_MAIN
H156: =MM_50 -> Select first comparator: | I156: Emerging Market and Middle-Income Economies | CA156: =ICO_1179 -> Emerging Market and Middle-Income Economies | CB156: =IF(COUNTIF($I$156:$L$160,CA156)>=1,"",ROW()) ->  | CC156: Low Income Developing Countries | CD156: =IF(CB156="",ROW(),"") -> 156 | CF156: Str
CA157: =MM_28 -> Low Income Developing Countries | CB157: =IF(COUNTIF($I$156:$L$160,CA157)>=1, "",ROW()) -> 157 | CC157: Asia and Pacific
CA158: =ICO_1163 -> Asia and Pacific | CB158: 158 | CC158: Europe
CA159: =ICO_1181 -> Europe | CB159: 159 | CC159: Middle East and Central Asia
H160: =MM_51 -> Select second comparator: | I160: Western Hemisphere | CA160: =ICO_1212 -> Middle East and Central Asia | CB160: 160 | CC160: Sub-Saharan Africa
CA161: =ICO_1247 -> Sub-Saharan Africa | CB161: 161
CA162: =ICO_1262 -> Western Hemisphere | CD162: 162
H164: =MM_52 -> Select third comparator:
H165: =MM_3 -> [Select up to five countries]
BZ166: =CC166 -> Make your own comparator group | CA166: =$CB$153&"_GC" -> GI_IC_GC | CC166: Make your own comparator group
CM171: =IF(CA171="","",CA171&";") ->  | CN171: =IF(CD171="","",CD171&";") ->  | CO171: =IF(DC171="","",DC171&";") -> 
CB172: FR | CF172: Back | CG172: =CG154 -> GI_IC_P1
E173: =MM_63 -> This section of the main menu is divided into three other main headings, which represent each category of risks that can be accessed by clicking on each of the following: a) Macroeconomic risks, b) Specific risks and c) Institutional risks. In each of the sections, the user will be able to navigate through the different risks identified within each category. Each risk is made up of three sections: a) Fiscal risk identification, b) Risk quantification and c) Risk assessment and prioritization. For each risk, the user is required to enter information through questionnaires or data fields required for the execution of different functions within the tool. | CF173: In | CG173: =CG155 -> FR_MAIN
CF174: =VBAC_1333 -> Next | CG174: MR_MR_MAIN
CF175: Str
CM190: =IF(CA190="","",CA190&";") ->  | CN190: =IF(CD190="","",CD190&";") ->  | CO190: =IF(DC190="","",DC190&";") -> 
CF191: Back | CG191: =CG173 -> FR_MAIN | CH191: MR_MR
E192: =UPPER(VBAC_1325) -> MACROECONOMIC RISKS | CF192: In | CG192: =CG174 -> MR_MR_MAIN
CF193: =VBAC_1333 -> Next | CG193: =CH191&"_P1" -> MR_MR_P1
E194: =MM_31 -> Macroeconomic risks: Unexpected changes in macroeconomic performance may negatively affect fiscal outcomes, particularly revenues but also expenditures and the valuation of government assets and liabilities. Relevant macroeconomic parameters include, for example, economic activity[1], prices, domestic and international interest rates, exchange rates, and commodity prices. Changes in macroeconomic performance may be cyclical (e.g., a typical recession) or structural (e.g., due to demographic[2] or technological change). [1] For example, domestic and international growth but also sectoral composition taxed at distinct marginal rates. [2] Including, for example, ageing and migration. | CF194: Str | CG194: MR_MR_OPT1;MR_MR_OPT2;MR_MR_OPT3;
CF195: Next QT
CM209: =IF(CA209="","",CA209&";") ->  | CN209: =IF(CD209="","",CD209&";") ->  | CO209: =IF(DC209="","",DC209&";") -> 
BZ210: =PO_198 -> Specific revenues | CA210: SR_OPT1 | CB210: =Risk_SFR_1 -> FALSE | CC210: SR_OPT1 | CF210: Back | CH210: SR
E211: =UPPER(MM_55) -> SOURCES OF SPECIFIC FISCAL RISK | BZ211: =PO_117 -> Government assets and liabilities | CA211: SR_OPT2 | CB211: =Risk_SFR_2 -> FALSE | CC211: SR_OPT2 | CF211: In
BZ212: =PO_171 -> Public corporations | CA212: SR_OPT3 | CB212: =Risk_SFR_3 -> FALSE | CC212: SR_OPT3 | CF212: =VBAC_1333 -> Next | CG212: =CH229&"_MAIN" -> SR_SR_MAIN
BZ213: =PO_118 -> Government guarantees | CA213: SR_OPT4 | CB213: =Risk_SFR_4 -> FALSE | CC213: SR_OPT4 | CF213: Str | CG213: SR_OPT1;SR_OPT2;SR_OPT3;SR_OPT4;SR_OPT5;SR_OPT6;SR_OPT7;SR_OPT8;SR_OPT9;SR_OPT10;SR_OPT11;
BZ214: =PO_172 -> Public investment | CA214: SR_OPT5 | CB214: =Risk_SFR_5 -> FALSE | CC214: SR_OPT5
BZ215: =PO_173 -> Public private partnerships | CA215: SR_OPT6 | CB215: =Risk_SFR_6 -> FALSE | CC215: SR_OPT6
BZ216: =PO_104 -> Financial sector | CA216: SR_OPT7 | CB216: =Risk_SFR_7 -> FALSE | CC216: SR_OPT7
BZ217: =PO_100 -> Environmental risks | CA217: SR_OPT8 | CB217: =Risk_SFR_8 -> FALSE | CC217: SR_OPT8
BZ218: =PO_130 -> Legal claims against the state | CA218: SR_OPT9 | CB218: =Risk_SFR_9 -> FALSE | CC218: SR_OPT9
BZ219: =PO_137 -> Lower-level governments | CA219: SR_OPT10 | CB219: =Risk_SFR_10 -> FALSE | CC219: SR_OPT10
BZ220: =PO_147 -> Natural resources | CA220: SR_OPT11 | CB220: =Risk_SFR_11 -> FALSE | CC220: SR_OPT11
BZ221: =PO_95 -> Customized fiscal risk | CB221: FALSE | CC221: SR_OPT12
CM228: =IF(CA228="","",CA228&";") ->  | CN228: =IF(CD228="","",CD228&";") ->  | CO228: =IF(DC228="","",DC228&";") -> 
CH229: SR_SR
E230: =MM_56 -> Specific revenues: The amount of some revenues is neither directly linked to macroeconomic performance nor policy implementation.[1] For example, grants from donors, regional transfers, or transfers from higher-level governments may be significantly impacted by idiosyncratic factors and often they are difficult to estimate and volatile. A reduction in revenues may lead to a deterioration of the fiscal balance and net worth, and an increase in (debt) liabilities in the absence of fiscal adjustment. [1] The direct impact of macroeconomic performance on revenues is covered under risk number 1 and the impact of policy implementation on revenues under risk number 13.
CF232: Str | CG232: SR_SR_OPT1;SR_SR_OPT2;SR_SR_OPT3;
CH248: SR_GAL
E249: =MM_18 -> Government assets and liabilities: Changes in market prices[1], the impairment of assets, economic flows, and other valuation changes[2] can affect the valuation of government assets and liabilities which may affect the government’s net (financial) worth as well as future revenue and expenditure streams. Relevant government assets include non-financial assets[3] and financial assets[4]; relevant government liabilities include debt liabilities[5] and other liabilities[6]. [1] Including interest rates, exchange rates, commodity prices, and equity real estate prices. [2] For example, the reclassification of assets and liabilities, and actuarial projections related to pension liabilities. [3] Including fixed assets, and land and natural resource assets. [4] As defined in Public Sector Debt Statistics: Guide for Compilers and Users, 2011; particularly including shareholdings in public corporations, loans, and extrabudgetary funds such as Sovereign Wealth Funds, stabilization funds, and various types of cash buffers. [5] Particularly debt securities and loans but also pension liabilities and others, as defined in Public Sector Debt Statistics: Guide for Compilers and Users, 2011. [6] Including expenditure arrears shown under accounts payable (see risk number 14).
CF251: Str | CG251: SR_GAL_OPT1;SR_GAL_OPT2;SR_GAL_OPT3;
CH267: SR_PC
E268: =MM_37 -> Public corporations: The under-performance of public corporations may lead to a periodic or persistent drain on government finances.[1] Public corporations’ (explicitly or implicitly) guaranteed or on-lent liabilities[2] are often a major source of risks. Furthermore, the volatility in flows to the government[3]; the valuation of equity; and uncertain transfers from government as on-going subsidies or for capital expenditure purposes pose risks. [1] For example, by requiring an increase in expenditures, reducing revenues or affecting the valuation of government assets or liabilities. [2] Public corporations’ contingent liabilities may also pose a fiscal risk to the government when realized. [3] For example, in the form of taxes, royalties, and dividends.
CF270: Str | CG270: SR_PC_OPT1;SR_PC_OPT2;SR_PC_OPT3;
CH286: SR_GG
E287: =MM_19 -> Government guarantees: Government guarantees constitute an explicit contingent liability to government. Their realization may increase government expenditures and liabilities. Government guarantees include one-off guarantees as well as standardized guarantees, including insurance schemes.
CF289: Str | CG289: SR_GG_OPT1;SR_GG_OPT2;SR_GG_OPT3;
CH305: SR_PI
E306: =MM_38 -> Public investment: Inefficient and ineffective public investment can fail to catalyze economic activity, increase government expenditure (and debt) through cost overruns, time delays and increases in operating expenses, and impair government assets.
CF308: Str | CG308: SR_PI_OPT1;SR_PI_OPT2;SR_PI_OPT3;
CH324: SR_PPP
E325: =MM_39 -> Public private partnerships: Public private partnerships can create long-term fiscal commitments and (implicit and explicit) contingent liabilities through the allocation of risks between public and private parties.
CF327: Str | CG327: SR_PPP_OPT1;SR_PPP_OPT2;SR_PPP_OPT3;
CH343: SR_FS
E344: =MM_13 -> Financial sector: Financial crises or the under-performance of financial institutions may lead to the realization of (explicit and implicit) contingent liabilities, increasing government expenditure or liabilities.[1] Explicit contingent liabilities include government-insured bank deposits. Other liabilities of financial institutions (including uninsured deposits) may constitute implicit contingent liabilities to the government. Relevant financial institutions include banks, insurance companies, other non-bank financial institutions, as well as the central bank. Furthermore, public financial institutions create similar fiscal risks to the government as for public corporations in general. [1] Additionally, financial crises may result in the realization of macroeconomic risks.
CF346: Str | CG346: SR_FS_OPT1;SR_FS_OPT2;SR_FS_OPT3;
CH362: SR_ER
E363: =MM_11 -> Environmental risks: The realization of environmental risks can result in temporary or persistent shocks to fiscal outcomes. Their realization primarily impacts government (recurrent and capital) expenditure, and the value of assets and liabilities but also revenue when impacting economic activity. Environmental risks include natural and technological disasters, environmental hazards, pandemics, and climate change. They can be man-made or their occurrence exogenous to human activity.
CF365: Str | CG365: SR_ER_OPT1;SR_ER_OPT2;SR_ER_OPT3;
CH381: SR_LCAS
E382: =MM_26 -> Legal claims against the state: Legal claims against the state expose governments to contingent liabilities.[1] Rulings against the state may increase government expenditures and liabilities. Legal claims may stem from various activities, including labor disputes, international investment disputes, human rights violations, environmental disputes, etc. [1] Legal claims by the state against others may constitute contingent assets for government.
CF384: Str | CG384: SR_LCAS_OPT1;SR_LCAS_OPT2;SR_LCAS_OPT3;
CH400: SR_LLG
E401: =MM_29 -> Lower-level governments: The under-performance of lower-level governments may lead to a periodic or persistent drain on government finances.[1] Lower-level governments’ (explicitly or implicitly) guaranteed or on-lent liabilities[2] are often a major source of risks. Furthermore, uncertainty around transfers from higher-level governments may pose risks. [1] For example, by requiring an increase in expenditures or affecting the valuation of government assets or liabilities. [2] Lower-level governments’ contingent liabilities may also pose a fiscal risk to higher-level governments when realized.
CF403: Str | CG403: SR_LLG_OPT1;SR_LLG_OPT2;SR_LLG_OPT3;
CH419: SR_NR
E420: =MM_32 -> Natural resources: For resource-rich countries, uncertainty concerning the volume and value of their resource endowments can be an important fiscal risk, potentially reducing government revenues and the value of assets. Risks may stem from the difficulty in estimating sales, valuing assets, the volatility of commodity prices, and governance arrangements[1]. [1] Encompassing the allocation of contracts and licenses, exploration and production, revenue collection, and investment.
CF422: Str | CG422: SR_NR_OPT1;SR_NR_OPT2;SR_NR_OPT3;
BZ438: =PO_164 -> Policy implementation | CA438: IR_OPT1 | CB438: =Risk_IFR_1 -> FALSE | CC438: IR_OPT1 | CH438: IR
E439: =UPPER(MM_54) -> SOURCES OF INSTITUTIONAL FISCAL RISK | BZ439: =PO_115 -> Governance and capacity | CA439: IR_OPT2 | CB439: =Risk_IFR_2 -> FALSE | CC439: IR_OPT2
BZ440: =PO_95 -> Customized fiscal risk | CB440: FALSE | CC440: IR_OPT3
CF441: Str | CG441: IR_OPT1;IR_OPT2;
CH457: IR_PI
E458: =MM_35 -> Policy implementation: Governments’ inability to execute fiscal plans may lead to an under-performance in revenues and excess expenditures. Potential sources of risk include the non-implementation of revenue-raising or expenditure-cutting policies; the implementation of policy measures outside the budget formulation process; unplanned tax expenditure and weaknesses in tax collection; as well as weak or lacking commitment controls.
CF460: Str | CG460: IR_PI_OPT1;IR_PI_OPT2;IR_PI_OPT3;
CH476: IR_GC
E477: =MM_17 -> Governance arrangements and capacity: Weak governance arrangements and limited capacity may exacerbate fiscal risks and create new ones. For example, weak capacity for macro-fiscal forecasting[1] could lead to forecast errors even in the absence of policy changes and exogenous shocks; fraud and corruption could lead to a deterioration of the fiscal balance and balance sheet by diverting funds from intended usage. Persistent[2] expenditure arrears may be a symptom of weak public financial management practices, including the formulation of unrealistic budgets, a lack of commitment controls, and others. [1] Including biases; technical capacity; and the availability and quality of statistical data used as inputs for forecasting. [2] Temporary expenditure arrears may stem from liquidity problems as a result of economic or financial shocks.
CF479: Str | CG479: IR_GC_OPT1;IR_GC_OPT2;IR_GC_OPT3;
CH495: CFR
E496: =MM_34 -> Other material fiscal risks : Residual item to capture risks that are not explicitly covered by the tool, for example, fiscal risks related to geopolitical and regional stability; domestic stability and security; the private sector, indemnities, warranties, uncalled capital in international financial institutions; etc. Residual also provides users the opportunity to recognize risks they may not be able to assign to existing categories and sources of risks.
CF498: Str | CG498: CFR_OPT1;CFR_OPT2;CFR_OPT3;
CH514: OUT_MAIN
E515: =MM_62 -> This section of the main menu is divided into three other main headings that can be accessed by clicking on each of the following: a) Risk-by-Risk, b) Portfolio of risks and c) International comparisons. Based on all the data entered and required in the "General Inputs" and "Fiscal Risk Identification and Quantification" sections, the tool will generate different outputs that can be accessed from this part of the main menu. An attempt is made to group the outputs at the individual risk level, at the portfolio risk level and everything related to the data entered for international comparison. This section is strictly related to the data entered in the other sections of the main menu. Keep in mind that for an optimal evaluation, it is necessary to provide the greatest amount of data available that the tool requires for the most complete analysis possible. | CH515: OUTPUT
CH533: OUT_MAIN
E534: =UPPER(VBAC_1351) -> RISK-BY-RISK | CA534: =$CH$533&"_OP"&ROW()-533 -> OUT_MAIN_OP1 | CB534: =Risk_MFR_1 -> FALSE | CC534: =$CH$533&"_OP"&ROW()-533 -> OUT_MAIN_OP1 | CH534: OUTPUT
CA535: =$CH$533&"_OP"&ROW()-533 -> OUT_MAIN_OP2 | CB535: =Risk_SFR_1 -> FALSE | CC535: OUT_MAIN_OP2
E536: =MM_30 -> Macroeconomic risks | CA536: OUT_MAIN_OP3 | CB536: =Risk_SFR_2 -> FALSE | CC536: OUT_MAIN_OP3 | CF536: Str | CG536: OUT_MAIN_OP1;OUT_MAIN_OP2;OUT_MAIN_OP3;OUT_MAIN_OP4;OUT_MAIN_OP5;OUT_MAIN_OP6;OUT_MAIN_OP7;OUT_MAIN_OP8;OUT_MAIN_OP9;OUT_MAIN_OP10;OUT_MAIN_OP11;OUT_MAIN_OP12;OUT_MAIN_OP14;OUT_MAIN_OP15;OUT_MAIN_OP15;
CA537: OUT_MAIN_OP4 | CB537: =Risk_SFR_3 -> FALSE | CC537: OUT_MAIN_OP4
CA538: OUT_MAIN_OP5 | CB538: =Risk_SFR_4 -> FALSE | CC538: OUT_MAIN_OP5
E539: =MM_57 -> Specifics risks | CA539: OUT_MAIN_OP6 | CB539: =Risk_SFR_5 -> FALSE | CC539: OUT_MAIN_OP6
CA540: OUT_MAIN_OP7 | CB540: =Risk_SFR_6 -> FALSE | CC540: OUT_MAIN_OP7
CA541: OUT_MAIN_OP8 | CB541: =Risk_SFR_7 -> FALSE | CC541: OUT_MAIN_OP8
CA542: OUT_MAIN_OP9 | CB542: =Risk_SFR_8 -> FALSE | CC542: OUT_MAIN_OP9
CA543: OUT_MAIN_OP10 | CB543: =Risk_SFR_9 -> FALSE | CC543: OUT_MAIN_OP10
CA544: OUT_MAIN_OP11 | CB544: =Risk_SFR_10 -> FALSE | CC544: OUT_MAIN_OP11
CA545: OUT_MAIN_OP12 | CB545: =Risk_SFR_11 -> FALSE | CC545: OUT_MAIN_OP12
E546: =MM_23 -> Institutional risks | CA546: OUT_MAIN_OP14 | CB546: =Risk_IFR_1 -> FALSE | CC546: OUT_MAIN_OP13
CA547: OUT_MAIN_OP15 | CB547: =Risk_IFR_2 -> FALSE | CC547: OUT_MAIN_OP14
CC548: OUT_MAIN_OP15
CC549: OUT_MAIN_OP16
CH552: OUT_IC_MAIN
E553: =MM_25 -> INTERNATIONAL COMPARISONS | CH553: OUTPUT
CF555: Str | CG555: OUT_IC_MAIN_OP1;OUT_IC_MAIN_OP2;OUT_IC_MAIN_OP3;OUT_IC_MAIN_OP4;
CH571: OUT_PORTFOLIO_MAIN
E572: =MM_36 -> PORTFOLIO OF RISKS | CH572: =_xlfn.CONCAT(CM571:CM588) -> 
CF574: Str | CG574: OUT_PORTFOLIO_MAIN_OP1;OUT_PORTFOLIO_MAIN_OP2;OUT_PORTFOLIO_MAIN_OP3;OUT_PORTFOLIO_MAIN_OP4;OUT_PORTFOLIO_MAIN_OP5;OUT_PORTFOLIO_MAIN_OP6;OUT_PORTFOLIO_MAIN_OP7;OUT_PORTFOLIO_MAIN_OP8;OUT_PORTFOLIO_MAIN_OP9;OUT_PORTFOLIO_MAIN_OP10;OUT_PORTFOLIO_MAIN_Help1;

Sheet Forecast Error Analysis
A3: DASHBOARD | F3: =COLUMN() -> 6 | G3: =COLUMN() -> 7 | H3: =COLUMN() -> 8 | I3: =COLUMN() -> 9 | J3: =COLUMN() -> 10 | K3: =COLUMN() -> 11 | L3: =COLUMN() -> 12 | M3: =COLUMN() -> 13
A4: =OFFSET(F3,B4,0) -> Real GDP growth | B4: 1 | F4: =ICT_1144 -> Real GDP growth | G4: FALSE | J4: =FEA_1660 -> Forecasts | K4: =YearOfAnalysis -> 2022 | L4: =+K4+1 -> 2023 | M4: =+L4+1 -> 2024
F5: =RO_1655 -> Nominal GDP growth | G5: FALSE | J5: =ICT_1133 -> Nominal GDP | Q5: Year | R5: =D24 -> 2010 | CA5: 810.8 | CB5: 864.1 | CC5: 922.6
A6: YearAnalysisOld | F6: =RO_1656 -> Inflation | G6: FALSE | Q6: Offset | R6: =R5-G205 -> 0
A7: 2022 | F7: =RO_1657 -> Interest rates | G7: FALSE | H7: =ICT_1156 -> When constructing fan charts around current forecasts, do you want to correct for historical biases in forecasts? | K7: TRUE | L7: =IF(K7=TRUE,RRO_526,PO_149) -> YES | N7: =IF(ROUNDDOWN(MIN(G258:U259)+MAX(S260:U268),0)<0,ROUNDDOWN(-9.4081639743553-2.17451837323248-1,0),ROUNDDOWN(MIN(G258:U259)-MAX(S260:U268)-1,0)) -> -1 | CA7: 2021
A8: YearOfAnalysisNew | F8: =ICT_1150 -> Revenues | G8: FALSE
A9: =YearOfAnalysis -> 2022 | F9: =ICT_1102 -> Expenditures | G9: FALSE | J9: FE_TIT_1 | K9: =COUNTIF(G4:G7,TRUE) -> 0 | CA9: =YearOfAnalysis -> 2022
F10: =ICT_1109 -> Fiscal balance | G10: FALSE | J10: FE_TIT_2 | K10: =COUNTIF(G8:G11,TRUE) -> 0
F11: =ICT_1096 -> Debt | G11: FALSE | K11: =FEA_1668 &" " & A4 & " " & FEA_1669 & " " & FEA_1670 & " " & C25 & ", " & FEA_1670& " " & D24 & ", " & E24 & " " & FEA_1671 & " " & FEA_1670& " " &F24 & FEA_1672 & A4 & " " & FEA_1670 & " " & C26 & " " & FEA_1670 & " " & E24 & ", "& F24 & " " &FEA_1671 & " " & FEA_1670& " "& G24 & " " &FEA_1673 -> Please provide historical and current forecasts at various vintages. For example, in the first row, please provide forecasts for Real GDP growth provided in the budget statement for year 2010, for year 2010, 2011 and for year 2012; in the second row, please provide forecasts for Real GDP growth for year 2011 for year 2011, 2012 and for year 2013 ; and so forth.
K12: =IF(FE_SELECTION<5,FEA_1675,FEA_1676) -> All numbers should be expressed in percent.
J13: =+FEA_1678 -> Outturns | K13: =+FEA_1677 -> Calculated based on macro-fiscal data under general inputs.
K15: =FEA_1679&IF(L7="YES"," "," " & FEA_1680 & " ")&FEA_1681 -> Note, the illustrated uncertainty around current forecasts is adjusted for historical forecast biases.
A18: =UPPER(ICT_1131) -> MACROECONOMIC VARIABLES
A20: =ICT_1144 -> Real GDP growth
A21: =S_983 -> (in percent)
B23: =FEA_1659 -> Forecast as of budget year Y and for year X | P23: =PO_85 -> Budget year | Q23: =FEA_1674 -> Two years into the future
B24: =FEA_1660 -> Forecasts | D24: =E24-1 -> 2010 | E24: 2011 | F24: 2012 | G24: 2013 | H24: 2014 | I24: 2015 | J24: 2016 | K24: 2017 | L24: 2018 | M24: 2019 | N24: 2020 | O24: 2021 | P24: =YearOfAnalysis -> 2022 | Q24: =P24+1 -> 2023 | R24: =Q24+1 -> 2024
B25: =FEA_1658 -> Budget statement | C25: =+C26-1 -> 2010 | CA25: 7 | CB25: 7.2 | CC25: 7.5
C26: 2011 | CB26: 5 | CC26: 5.8 | CD26: 6
C27: 2012 | CC27: 5 | CD27: 5.5 | CE27: 6
C28: 2013 | CD28: 6 | CE28: 6 | CF28: 6
C29: 2014 | CE29: 6 | CF29: 6.5 | CG29: 6.5
C30: 2015 | CF30: 5.8 | CG30: 5.8 | CH30: 5.8
C31: 2016 | CG31: 6 | CH31: 6.2 | CI31: 6.2
C32: 2017 | CH32: 4.3 | CI32: 5.3 | CJ32: 4.5
C33: 2018 | CI33: 4.8 | CJ33: 4.3 | CK33: 4.1
C34: 2019 | CJ34: 4 | CK34: 4 | CL34: 4
C35: 2020 | CK35: 4.2 | CL35: 4.5 | CM35: 5
C36: 2021 | CL36: 4 | CM36: 4.2 | CN36: 4.5
C37: =YearOfAnalysis -> 2022 | CM37: 10 | CN37: 4.8 | CO37: 4.5
B39: =PO_158 -> Outturns | D39: =IF(HLOOKUP(D$24,'Main Menu'!$E$92:$BC$93,2,FALSE)/HLOOKUP(D$24-1,'Main Menu'!$E$92:$BC$93,2,FALSE)-1="...",0,HLOOKUP(D$24,'Main Menu'!$E$92:$BC$93,2,FALSE)/HLOOKUP(D$24-1,'Main Menu'!$E$92:$BC$93,2,FALSE)-1)*100 -> 8.438423361 | E39: =IF(HLOOKUP(E$24,'Main Menu'!$E$92:$BC$93,2,FALSE)/HLOOKUP(E$24-1,'Main Menu'!$E$92:$BC$93,2,FALSE)-1="...",0,HLOOKUP(E$24,'Main Menu'!$E$92:$BC$93,2,FALSE)/HLOOKUP(E$24-1,'Main Menu'!$E$92:$BC$93,2,FALSE)-1)*100 -> 6.47917226 | F39: =IF(HLOOKUP(F$24,'Main Menu'!$E$92:$BC$93,2,FALSE)/HLOOKUP(F$24-1,'Main Menu'!$E$92:$BC$93,2,FALSE)-1="...",0,HLOOKUP(F$24,'Main Menu'!$E$92:$BC$93,2,FALSE)/HLOOKUP(F$24-1,'Main Menu'!$E$92:$BC$93,2,FALSE)-1)*100 -> 13.9681372 | G39: =IF(HLOOKUP(G$24,'Main Menu'!$E$92:$BC$93,2,FALSE)/HLOOKUP(G$24-1,'Main Menu'!$E$92:$BC$93,2,FALSE)-1="...",0,HLOOKUP(G$24,'Main Menu'!$E$92:$BC$93,2,FALSE)/HLOOKUP(G$24-1,'Main Menu'!$E$92:$BC$93,2,FALSE)-1)*100 -> 5.682524894 | H39: =IF(HLOOKUP(H$24,'Main Menu'!$E$92:$BC$93,2,FALSE)/HLOOKUP(H$24-1,'Main Menu'!$E$92:$BC$93,2,FALSE)-1="...",0,HLOOKUP(H$24,'Main Menu'!$E$92:$BC$93,2,FALSE)/HLOOKUP(H$24-1,'Main Menu'!$E$92:$BC$93,2,FALSE)-1)*100 -> 2.697022467 | I39: =IF(HLOOKUP(I$24,'Main Menu'!$E$92:$BC$93,2,FALSE)/HLOOKUP(I$24-1,'Main Menu'!$E$92:$BC$93,2,FALSE)-1="...",0,HLOOKUP(I$24,'Main Menu'!$E$92:$BC$93,2,FALSE)/HLOOKUP(I$24-1,'Main Menu'!$E$92:$BC$93,2,FALSE)-1)*100 -> 0.9875881164 | J39: =IF(HLOOKUP(J$24,'Main Menu'!$E$92:$BC$93,2,FALSE)/HLOOKUP(J$24-1,'Main Menu'!$E$92:$BC$93,2,FALSE)-1="...",0,HLOOKUP(J$24,'Main Menu'!$E$92:$BC$93,2,FALSE)/HLOOKUP(J$24-1,'Main Menu'!$E$92:$BC$93,2,FALSE)-1)*100 -> 2.164095664 | K39: =IF(HLOOKUP(K$24,'Main Menu'!$E$92:$BC$93,2,FALSE)/HLOOKUP(K$24-1,'Main Menu'!$E$92:$BC$93,2,FALSE)-1="...",0,HLOOKUP(K$24,'Main Menu'!$E$92:$BC$93,2,FALSE)/HLOOKUP(K$24-1,'Main Menu'!$E$92:$BC$93,2,FALSE)-1)*100 -> 2.647003202 | L39: =IF(HLOOKUP(L$24,'Main Menu'!$E$92:$BC$93,2,FALSE)/HLOOKUP(L$24-1,'Main Menu'!$E$92:$BC$93,2,FALSE)-1="...",0,HLOOKUP(L$24,'Main Menu'!$E$92:$BC$93,2,FALSE)/HLOOKUP(L$24-1,'Main Menu'!$E$92:$BC$93,2,FALSE)-1)*100 -> 1.189228129 | M39: =IF(HLOOKUP(M$24,'Main Menu'!$E$92:$BC$93,2,FALSE)/HLOOKUP(M$24-1,'Main Menu'!$E$92:$BC$93,2,FALSE)-1="...",0,HLOOKUP(M$24,'Main Menu'!$E$92:$BC$93,2,FALSE)/HLOOKUP(M$24-1,'Main Menu'!$E$92:$BC$93,2,FALSE)-1)*100 -> 3.911603419 | N39: =IF(HLOOKUP(N$24,'Main Menu'!$E$92:$BC$93,2,FALSE)/HLOOKUP(N$24-1,'Main Menu'!$E$92:$BC$93,2,FALSE)-1="...",0,HLOOKUP(N$24,'Main Menu'!$E$92:$BC$93,2,FALSE)/HLOOKUP(N$24-1,'Main Menu'!$E$92:$BC$93,2,FALSE)-1)*100 -> -5 | O39: =IF(HLOOKUP(O$24,'Main Menu'!$E$92:$BC$93,2,FALSE)/HLOOKUP(O$24-1,'Main Menu'!$E$92:$BC$93,2,FALSE)-1="...",0,HLOOKUP(O$24,'Main Menu'!$E$92:$BC$93,2,FALSE)/HLOOKUP(O$24-1,'Main Menu'!$E$92:$BC$93,2,FALSE)-1)*100 -> 4
A41: =RO_1655 -> Nominal GDP growth
A42: =S_983 -> (in percent)
B44: =FEA_1659 -> Forecast as of budget year Y and for year X | P44: =PO_85 -> Budget year | Q44: =FEA_1674 -> Two years into the future
B45: =FEA_1660 -> Forecasts | D45: =E45-1 -> 2010 | E45: 2011 | F45: 2012 | G45: 2013 | H45: 2014 | I45: 2015 | J45: 2016 | K45: 2017 | L45: 2018 | M45: 2019 | N45: 2020 | O45: 2021 | P45: =YearOfAnalysis -> 2022 | Q45: =P45+1 -> 2023 | R45: =Q45+1 -> 2024
B46: =FEA_1658 -> Budget statement | C46: =+C47-1 -> 2010 | CA46: 11.58677262 | CB46: 9.602572938 | CC46: 9.976944037
C47: 2011 | CB47: 7.483870968 | CC47: 7.899159664 | CD47: 8.144192256
C48: 2012 | CC48: 7.139457401 | CD48: 7.641048423 | CE48: 8.109781263
C49: 2013 | CD49: 8.350730689 | CE49: 8.285163776 | CF49: 8.362989324
C50: 2014 | CE50: 8.712121212 | CF50: 8.18815331 | CG50: 8.695652174
C51: 2015 | CF51: 7.664884135 | CG51: 7.947019868 | CH51: 8.128834356
C52: 2016 | CG52: 7.35042735 | CH52: 8.121019108 | CI52: 8.394698085
C53: 2017 | CH53: 5.921052632 | CI53: 7.919254658 | CJ53: 6.762589928
C54: 2018 | CI54: 7.53701318 | CJ54: 6.865678846 | CK54: 6.439797869
C55: 2019 | CJ55: 6.534265033 | CK55: 6.894933934 | CL55: 6.656242196
C56: 2020 | CK56: 7.733952358 | CL56: 7.405080943 | CM56: 7.85256576
C57: 2021 | CL57: 6.174962864 | CM57: 6.593021238 | CN57: 7.0906719
C58: =YearOfAnalysis -> 2022 | CM58: 11.26465604 | CN58: 6.862890032 | CO58: 6.452920883
B60: =PO_158 -> Outturns | D60: =IF(HLOOKUP(D$45,'Main Menu'!$E$86:$BC$87,2,FALSE)/HLOOKUP(D$45-1,'Main Menu'!$E$86:$BC$87,2,FALSE)-1="...",0,HLOOKUP(D$45,'Main Menu'!$E$86:$BC$87,2,FALSE)/HLOOKUP(D$45-1,'Main Menu'!$E$86:$BC$87,2,FALSE)-1)*100 -> 17.21469365 | E60: =IF(HLOOKUP(E$45,'Main Menu'!$E$86:$BC$87,2,FALSE)/HLOOKUP(E$45-1,'Main Menu'!$E$86:$BC$87,2,FALSE)-1="...",0,HLOOKUP(E$45,'Main Menu'!$E$86:$BC$87,2,FALSE)/HLOOKUP(E$45-1,'Main Menu'!$E$86:$BC$87,2,FALSE)-1)*100 -> 17.48669308 | F60: =IF(HLOOKUP(F$45,'Main Menu'!$E$86:$BC$87,2,FALSE)/HLOOKUP(F$45-1,'Main Menu'!$E$86:$BC$87,2,FALSE)-1="...",0,HLOOKUP(F$45,'Main Menu'!$E$86:$BC$87,2,FALSE)/HLOOKUP(F$45-1,'Main Menu'!$E$86:$BC$87,2,FALSE)-1)*100 -> 23.60244298 | G60: =IF(HLOOKUP(G$45,'Main Menu'!$E$86:$BC$87,2,FALSE)/HLOOKUP(G$45-1,'Main Menu'!$E$86:$BC$87,2,FALSE)-1="...",0,HLOOKUP(G$45,'Main Menu'!$E$86:$BC$87,2,FALSE)/HLOOKUP(G$45-1,'Main Menu'!$E$86:$BC$87,2,FALSE)-1)*100 -> 8.053054227 | H60: =IF(HLOOKUP(H$45,'Main Menu'!$E$86:$BC$87,2,FALSE)/HLOOKUP(H$45-1,'Main Menu'!$E$86:$BC$87,2,FALSE)-1="...",0,HLOOKUP(H$45,'Main Menu'!$E$86:$BC$87,2,FALSE)/HLOOKUP(H$45-1,'Main Menu'!$E$86:$BC$87,2,FALSE)-1)*100 -> 5.92858366 | I60: =IF(HLOOKUP(I$45,'Main Menu'!$E$86:$BC$87,2,FALSE)/HLOOKUP(I$45-1,'Main Menu'!$E$86:$BC$87,2,FALSE)-1="...",0,HLOOKUP(I$45,'Main Menu'!$E$86:$BC$87,2,FALSE)/HLOOKUP(I$45-1,'Main Menu'!$E$86:$BC$87,2,FALSE)-1)*100 -> 3.679564623 | J60: =IF(HLOOKUP(J$45,'Main Menu'!$E$86:$BC$87,2,FALSE)/HLOOKUP(J$45-1,'Main Menu'!$E$86:$BC$87,2,FALSE)-1="...",0,HLOOKUP(J$45,'Main Menu'!$E$86:$BC$87,2,FALSE)/HLOOKUP(J$45-1,'Main Menu'!$E$86:$BC$87,2,FALSE)-1)*100 -> -0.2978157119 | K60: =IF(HLOOKUP(K$45,'Main Menu'!$E$86:$BC$87,2,FALSE)/HLOOKUP(K$45-1,'Main Menu'!$E$86:$BC$87,2,FALSE)-1="...",0,HLOOKUP(K$45,'Main Menu'!$E$86:$BC$87,2,FALSE)/HLOOKUP(K$45-1,'Main Menu'!$E$86:$BC$87,2,FALSE)-1)*100 -> 5.114284243 | L60: =IF(HLOOKUP(L$45,'Main Menu'!$E$86:$BC$87,2,FALSE)/HLOOKUP(L$45-1,'Main Menu'!$E$86:$BC$87,2,FALSE)-1="...",0,HLOOKUP(L$45,'Main Menu'!$E$86:$BC$87,2,FALSE)/HLOOKUP(L$45-1,'Main Menu'!$E$86:$BC$87,2,FALSE)-1)*100 -> 3.285209772 | M60: =IF(HLOOKUP(M$45,'Main Menu'!$E$86:$BC$87,2,FALSE)/HLOOKUP(M$45-1,'Main Menu'!$E$86:$BC$87,2,FALSE)-1="...",0,HLOOKUP(M$45,'Main Menu'!$E$86:$BC$87,2,FALSE)/HLOOKUP(M$45-1,'Main Menu'!$E$86:$BC$87,2,FALSE)-1)*100 -> 10.68817769 | N60: =IF(HLOOKUP(N$45,'Main Menu'!$E$86:$BC$87,2,FALSE)/HLOOKUP(N$45-1,'Main Menu'!$E$86:$BC$87,2,FALSE)-1="...",0,HLOOKUP(N$45,'Main Menu'!$E$86:$BC$87,2,FALSE)/HLOOKUP(N$45-1,'Main Menu'!$E$86:$BC$87,2,FALSE)-1)*100 -> -0.25 | O60: =IF(HLOOKUP(O$45,'Main Menu'!$E$86:$BC$87,2,FALSE)/HLOOKUP(O$45-1,'Main Menu'!$E$86:$BC$87,2,FALSE)-1="...",0,HLOOKUP(O$45,'Main Menu'!$E$86:$BC$87,2,FALSE)/HLOOKUP(O$45-1,'Main Menu'!$E$86:$BC$87,2,FALSE)-1)*100 -> 8.992
A62: =RO_1656 -> Inflation
A63: =S_983 -> (in percent)
B65: =FEA_1659 -> Forecast as of budget year Y and for year X | P65: =PO_85 -> Budget year | Q65: =FEA_1674 -> Two years into the future
B66: =FEA_1660 -> Forecasts | D66: =E66-1 -> 2010 | E66: 2011 | F66: 2012 | G66: 2013 | H66: 2014 | I66: 2015 | J66: 2016 | K66: 2017 | L66: 2018 | M66: 2019 | N66: 2020 | O66: 2021 | P66: =YearOfAnalysis -> 2022 | Q66: =P66+1 -> 2023 | R66: =Q66+1 -> 2024
B67: =FEA_1658 -> Budget statement | C67: =+C68-1 -> 2010 | CA67: 3.5 | CB67: 3 | CC67: 2
C68: 2011 | CB68: 2 | CC68: 2 | CD68: 2
C69: 2012 | CC69: 2 | CD69: 2 | CE69: 2
C70: 2013 | CD70: 2 | CE70: 2 | CF70: 2
C71: 2014 | CE71: 2 | CF71: 2 | CG71: 2
C72: 2015 | CF72: 2 | CG72: 2 | CH72: 2
C73: 2016 | CG73: 2 | CH73: 2 | CI73: 2
C74: 2017 | CH74: 2.9 | CI74: 2.7 | CJ74: 2
C75: 2018 | CI75: 2.8 | CJ75: 2.6 | CK75: 2
C76: 2019 | CJ76: 2.8 | CK76: 2.5 | CL76: 2
C77: 2020 | CK77: 2.5 | CL77: 2.5 | CM77: 2.5
C78: 2021 | CL78: 2.4 | CM78: 2.5 | CN78: 2.5
C79: =YearOfAnalysis -> 2022 | CM79: 2 | CN79: 2 | CO79: 2
B81: =PO_158 -> Outturns | D81: =IF(HLOOKUP(D$66,'Main Menu'!$E$98:$BC$99,2,FALSE)="...",0,HLOOKUP(D$66,'Main Menu'!$E$98:$BC$99,2,FALSE)) -> 2.178537524 | E81: =IF(HLOOKUP(E$66,'Main Menu'!$E$98:$BC$99,2,FALSE)="...",0,HLOOKUP(E$66,'Main Menu'!$E$98:$BC$99,2,FALSE)) -> 11.80418581 | F81: =IF(HLOOKUP(F$66,'Main Menu'!$E$98:$BC$99,2,FALSE)="...",0,HLOOKUP(F$66,'Main Menu'!$E$98:$BC$99,2,FALSE)) -> 6.441212809 | G81: =IF(HLOOKUP(G$66,'Main Menu'!$E$98:$BC$99,2,FALSE)="...",0,HLOOKUP(G$66,'Main Menu'!$E$98:$BC$99,2,FALSE)) -> 7.385771784 | H81: =IF(HLOOKUP(H$66,'Main Menu'!$E$98:$BC$99,2,FALSE)="...",0,HLOOKUP(H$66,'Main Menu'!$E$98:$BC$99,2,FALSE)) -> 4.673996035 | I81: =IF(HLOOKUP(I$66,'Main Menu'!$E$98:$BC$99,2,FALSE)="...",0,HLOOKUP(I$66,'Main Menu'!$E$98:$BC$99,2,FALSE)) -> -0.6617091647 | J81: =IF(HLOOKUP(J$66,'Main Menu'!$E$98:$BC$99,2,FALSE)="...",0,HLOOKUP(J$66,'Main Menu'!$E$98:$BC$99,2,FALSE)) -> 4.383891955 | K81: =IF(HLOOKUP(K$66,'Main Menu'!$E$98:$BC$99,2,FALSE)="...",0,HLOOKUP(K$66,'Main Menu'!$E$98:$BC$99,2,FALSE)) -> 4.975951506 | L81: =IF(HLOOKUP(L$66,'Main Menu'!$E$98:$BC$99,2,FALSE)="...",0,HLOOKUP(L$66,'Main Menu'!$E$98:$BC$99,2,FALSE)) -> 0.6261491301 | M81: =IF(HLOOKUP(M$66,'Main Menu'!$E$98:$BC$99,2,FALSE)="...",0,HLOOKUP(M$66,'Main Menu'!$E$98:$BC$99,2,FALSE)) -> 2.302372535 | N81: =IF(HLOOKUP(N$66,'Main Menu'!$E$98:$BC$99,2,FALSE)="...",0,HLOOKUP(N$66,'Main Menu'!$E$98:$BC$99,2,FALSE)) -> 5.4427414 | O81: =IF(HLOOKUP(O$66,'Main Menu'!$E$98:$BC$99,2,FALSE)="...",0,HLOOKUP(O$66,'Main Menu'!$E$98:$BC$99,2,FALSE)) -> 4.792538119
A83: =RO_1657 -> Interest rates
A84: =S_983 -> (in percent)
B86: =FEA_1659 -> Forecast as of budget year Y and for year X | P86: =PO_85 -> Budget year | Q86: =FEA_1674 -> Two years into the future
B87: =FEA_1660 -> Forecasts | D87: =E87-1 -> 2010 | E87: 2011 | F87: 2012 | G87: 2013 | H87: 2014 | I87: 2015 | J87: 2016 | K87: 2017 | L87: 2018 | M87: 2019 | N87: 2020 | O87: 2021 | P87: =YearOfAnalysis -> 2022 | Q87: =P87+1 -> 2023 | R87: =Q87+1 -> 2024
B88: =FEA_1658 -> Budget statement | C88: =+C89-1 -> 2010 | CA88: 6.489851344 | CB88: 6.290434794 | CC88: 6.160184723
C89: 2011 | CB89: 16.70815464 | CC89: 16.92973523 | CD89: 16.99532314
C90: 2012 | CC90: 15.13706794 | CD90: 15.23494557 | CE90: 15.72594768
C91: 2013 | CD91: 15.80014405 | CE91: 15.50604935 | CF91: 15.81957919
C92: 2014 | CE92: 5.478723918 | CF92: 5.670992352 | CG92: 5.454528198
C93: 2015 | CF93: 5.49018124 | CG93: 5.58280797 | CH93: 5.651927136
C94: 2016 | CG94: 5.408218195 | CH94: 5.338075328 | CI94: 5.399220878
C95: 2017 | CH95: 5.840784229 | CI95: 5.606305527 | CJ95: 5.487822063
C96: 2018 | CI96: 5.402327485 | CJ96: 5.365318503 | CK96: 5.175170035
C97: 2019 | CJ97: 5.64071797 | CK97: 5.708010535 | CL97: 5.642644331
C98: 2020 | CK98: 5.84100099 | CL98: 5.717174895 | CM98: 5.861750606
C99: 2021 | CL99: 5.730719355 | CM99: 5.563712916 | CN99: 5.576602451
C100: =YearOfAnalysis -> 2022 | CM100: 5.986589648 | CN100: 6.000013646 | CO100: 6.000162268
B102: =PO_158 -> Outturns | D102: =HLOOKUP(D$87,'Main Menu'!$E$104:$BC$105,2,FALSE) -> 0 | E102: =HLOOKUP(E$87,'Main Menu'!$E$104:$BC$105,2,FALSE) -> 0 | F102: =HLOOKUP(F$87,'Main Menu'!$E$104:$BC$105,2,FALSE) -> 0 | G102: =HLOOKUP(G$87,'Main Menu'!$E$104:$BC$105,2,FALSE) -> 0 | H102: =HLOOKUP(H$87,'Main Menu'!$E$104:$BC$105,2,FALSE) -> 0 | I102: =HLOOKUP(I$87,'Main Menu'!$E$104:$BC$105,2,FALSE) -> 0 | J102: =HLOOKUP(J$87,'Main Menu'!$E$104:$BC$105,2,FALSE) -> 0 | K102: =HLOOKUP(K$87,'Main Menu'!$E$104:$BC$105,2,FALSE) -> 0 | L102: =HLOOKUP(L$87,'Main Menu'!$E$104:$BC$105,2,FALSE) -> 0 | M102: =HLOOKUP(M$87,'Main Menu'!$E$104:$BC$105,2,FALSE) -> 0 | N102: =HLOOKUP(N$87,'Main Menu'!$E$104:$BC$105,2,FALSE) -> 0 | O102: =HLOOKUP(O$87,'Main Menu'!$E$104:$BC$105,2,FALSE) -> 0
A105: =UPPER(ICT_1108) -> FISCAL AGGREGATES
A107: =ICT_1150 -> Revenues
A108: =S_982 & " " & BC_Input -> (in billions) AFG
B110: =FEA_1659 -> Forecast as of budget year Y and for year X | P110: =PO_85 -> Budget year | Q110: =FEA_1674 -> Two years into the future
B111: =FEA_1660 -> Forecasts | D111: =E111-1 -> 2010 | E111: 2011 | F111: 2012 | G111: 2013 | H111: 2014 | I111: 2015 | J111: 2016 | K111: 2017 | L111: 2018 | M111: 2019 | N111: 2020 | O111: 2021 | P111: =YearOfAnalysis -> 2022 | Q111: =P111+1 -> 2023 | R111: =Q111+1 -> 2024
B112: =FEA_1658 -> Budget statement | C112: =+C113-1 -> 2010 | CA112: 84.432 | CB112: 92.86 | CC112: 103.084
C113: 2011 | CB113: 78.748 | CC113: 87.06 | CD113: 96.508
C114: 2012 | CC114: 90.313 | CD114: 97.944 | CE114: 106.89
C115: 2013 | CD115: 107.797 | CE115: 118.149 | CF115: 129.193
C116: 2014 | CE116: 124.543 | CF116: 138.405 | CG116: 153.854
C117: 2015 | CF117: 128.785 | CG117: 140.817 | CH117: 140.817
C118: 2016 | CG118: 140.567 | CH118: 152.028 | CI118: 164.339
C119: 2017 | CH119: 130.82 | CI119: 139.27 | CJ119: 148.302
C120: 2018 | CI120: 137.216 | CJ120: 147.542 | CK120: 157.071
C121: 2019 | CJ121: 139.751 | CK121: 152.807 | CL121: 167.206
C122: 2020 | CK122: 156.414 | CL122: 174.014 | CM122: 193.069
C123: 2021 | CL123: 167.128 | CM123: 182.167 | CN123: 195.14
C124: =YearOfAnalysis -> 2022 | CM124: 149.365 | CN124: 176.488 | CO124: 188.015
B126: =PO_158 -> Outturns | D126: =HLOOKUP(D111,'Main Menu'!$E$112:$BC$113,2,FALSE) -> 154.6118332 | E126: =HLOOKUP(E111,'Main Menu'!$E$112:$BC$113,2,FALSE) -> 177.8212362 | F126: =HLOOKUP(F111,'Main Menu'!$E$112:$BC$113,2,FALSE) -> 260.5710979 | G126: =HLOOKUP(G111,'Main Menu'!$E$112:$BC$113,2,FALSE) -> 271.9030553 | H126: =HLOOKUP(H111,'Main Menu'!$E$112:$BC$113,2,FALSE) -> 280.1868715 | I126: =HLOOKUP(I111,'Main Menu'!$E$112:$BC$113,2,FALSE) -> 301.3564426 | J126: =HLOOKUP(J111,'Main Menu'!$E$112:$BC$113,2,FALSE) -> 344.3273277 | K126: =HLOOKUP(K111,'Main Menu'!$E$112:$BC$113,2,FALSE) -> 347.8291691 | L126: =HLOOKUP(L111,'Main Menu'!$E$112:$BC$113,2,FALSE) -> 405.872704 | M126: =HLOOKUP(M111,'Main Menu'!$E$112:$BC$113,2,FALSE) -> 395.9230365 | N126: =HLOOKUP(N111,'Main Menu'!$E$112:$BC$113,2,FALSE) -> 437.8484899 | O126: =HLOOKUP(O111,'Main Menu'!$E$112:$BC$113,2,FALSE) -> 411.942678
A128: =ICT_1102 -> Expenditures
A129: =S_982 & " " & BC_Input -> (in billions) AFG
B131: =FEA_1659 -> Forecast as of budget year Y and for year X | P131: =PO_85 -> Budget year | Q131: =FEA_1674 -> Two years into the future
B132: =FEA_1660 -> Forecasts | D132: =E132-1 -> 2010 | E132: 2011 | F132: 2012 | G132: 2013 | H132: 2014 | I132: 2015 | J132: 2016 | K132: 2017 | L132: 2018 | M132: 2019 | N132: 2020 | O132: 2021 | P132: =YearOfAnalysis -> 2022 | Q132: =P132+1 -> 2023 | R132: =Q132+1 -> 2024
B133: =FEA_1658 -> Budget statement | C133: =+C134-1 -> 2010 | CA133: 68.234 | CB133: 75.26 | CC133: 85.03
C134: 2011 | CB134: 79.613 | CC134: 84.918 | CD134: 90.462
C135: 2012 | CC135: 89.049 | CD135: 93.87 | CE135: 98.753
C136: 2013 | CD136: 96.259 | CE136: 103.494 | CF136: 111.558
C137: 2014 | CE137: 110.94 | CF137: 122.885 | CG137: 136.508
C138: 2015 | CF138: 121.685 | CG138: 133.122 | CH138: 145.695
C139: 2016 | CG139: 135.804 | CH139: 148.176 | CI139: 161.677
C140: 2017 | CH140: 142.25 | CI140: 147.998 | CJ140: 154.27
C141: 2018 | CI141: 145.215 | CJ141: 154.143 | CK141: 162.235
C142: 2019 | CJ142: 154.619 | CK142: 163.138 | CL142: 171.592
C143: 2020 | CK143: 165.314 | CL143: 177.045 | CM143: 189.932
C144: 2021 | CL144: 168.673 | CM144: 179.094 | CN144: 192.902
C145: =YearOfAnalysis -> 2022 | CM145: 180.815 | CN145: 186.589 | CO145: 192.762
B147: =PO_158 -> Outturns | D147: =HLOOKUP(D132,'Main Menu'!$E$118:$BC$119,2,FALSE) -> 148.0515831 | E147: =HLOOKUP(E132,'Main Menu'!$E$118:$BC$119,2,FALSE) -> 183.4391602 | F147: =HLOOKUP(F132,'Main Menu'!$E$118:$BC$119,2,FALSE) -> 258.6893719 | G147: =HLOOKUP(G132,'Main Menu'!$E$118:$BC$119,2,FALSE) -> 278.9496263 | H147: =HLOOKUP(H132,'Main Menu'!$E$118:$BC$119,2,FALSE) -> 300.52091 | I147: =HLOOKUP(I132,'Main Menu'!$E$118:$BC$119,2,FALSE) -> 318.2548988 | J147: =HLOOKUP(J132,'Main Menu'!$E$118:$BC$119,2,FALSE) -> 342.7710683 | K147: =HLOOKUP(K132,'Main Menu'!$E$118:$BC$119,2,FALSE) -> 356.4816785 | L147: =HLOOKUP(L132,'Main Menu'!$E$118:$BC$119,2,FALSE) -> 384.1756441 | M147: =HLOOKUP(M132,'Main Menu'!$E$118:$BC$119,2,FALSE) -> 411.4725575 | N147: =HLOOKUP(N132,'Main Menu'!$E$118:$BC$119,2,FALSE) -> 478.7845841 | O147: =HLOOKUP(O132,'Main Menu'!$E$118:$BC$119,2,FALSE) -> 446.6534743
A149: =ICT_1109 -> Fiscal balance
A150: =S_982 & " " & BC_Input -> (in billions) AFG
B152: =FEA_1659 -> Forecast as of budget year Y and for year X | P152: =PO_85 -> Budget year | Q152: =FEA_1674 -> Two years into the future
B153: =FEA_1660 -> Forecasts | D153: =E153-1 -> 2010 | E153: 2011 | F153: 2012 | G153: 2013 | H153: 2014 | I153: 2015 | J153: 2016 | K153: 2017 | L153: 2018 | M153: 2019 | N153: 2020 | O153: 2021 | P153: =YearOfAnalysis -> 2022 | Q153: =P153+1 -> 2023 | R153: =Q153+1 -> 2024
B154: =FEA_1658 -> Budget statement | C154: =+C155-1 -> 2010 | CA154: 10.682 | CB154: 12.254 | CC154: 12.776
C155: 2011 | CB155: -6.436 | CC155: -3.843 | CD155: 0.168
C156: 2012 | CC156: -4.07 | CD156: -1.453 | CE156: 2.3
C157: 2013 | CD157: 5.615 | CE157: 8.516 | CF157: 11.357
C158: 2014 | CE158: 7.98 | CF158: 9.603 | CG158: 11.599
C159: 2015 | CF159: 0.249 | CG159: 0 | CH159: 0
C160: 2016 | CG160: -2.29 | CH160: -3.954 | CI160: -5.716
C161: 2017 | CH161: -19.411 | CI161: -18.175 | CJ161: -16.231
C162: 2018 | CI162: -17.765 | CJ162: -17.046 | CK162: -16.256
C163: 2019 | CJ163: -26.266 | CK163: -23.111 | CL163: -17.843
C164: 2020 | CK164: -21.592 | CL164: -16.637 | CM164: -9.31
C165: 2021 | CL165: -16.249 | CM165: -9.217 | CN165: -9.873
C166: =YearOfAnalysis -> 2022 | CM166: -47.466 | CN166: -27.342 | CO166: -22.945
B168: =PO_158 -> Outturns | D168: =HLOOKUP(D153,'Main Menu'!$E$124:$BC$125,2,FALSE) -> 6.560250036 | E168: =HLOOKUP(E153,'Main Menu'!$E$124:$BC$125,2,FALSE) -> -5.617924016 | F168: =HLOOKUP(F153,'Main Menu'!$E$124:$BC$125,2,FALSE) -> 1.881726048 | G168: =HLOOKUP(G153,'Main Menu'!$E$124:$BC$125,2,FALSE) -> -7.046570995 | H168: =HLOOKUP(H153,'Main Menu'!$E$124:$BC$125,2,FALSE) -> -20.33403847 | I168: =HLOOKUP(I153,'Main Menu'!$E$124:$BC$125,2,FALSE) -> -16.89845615 | J168: =HLOOKUP(J153,'Main Menu'!$E$124:$BC$125,2,FALSE) -> 1.556259375 | K168: =HLOOKUP(K153,'Main Menu'!$E$124:$BC$125,2,FALSE) -> -8.652509379 | L168: =HLOOKUP(L153,'Main Menu'!$E$124:$BC$125,2,FALSE) -> 21.69705987 | M168: =HLOOKUP(M153,'Main Menu'!$E$124:$BC$125,2,FALSE) -> -15.54952099 | N168: =HLOOKUP(N153,'Main Menu'!$E$124:$BC$125,2,FALSE) -> -40.93609421 | O168: =HLOOKUP(O153,'Main Menu'!$E$124:$BC$125,2,FALSE) -> -34.71079631
A170: =ICT_1096 -> Debt
A171: =S_982 & " " & BC_Input -> (in billions) AFG
B173: =FEA_1659 -> Forecast as of budget year Y and for year X | P173: =PO_85 -> Budget year | Q173: =FEA_1674 -> Two years into the future
B174: =FEA_1660 -> Forecasts | D174: =E174-1 -> 2010 | E174: 2011 | F174: 2012 | G174: 2013 | H174: 2014 | I174: 2015 | J174: 2016 | K174: 2017 | L174: 2018 | M174: 2019 | N174: 2020 | O174: 2021 | P174: =YearOfAnalysis -> 2022 | Q174: =P174+1 -> 2023 | R174: =Q174+1 -> 2024
B175: =FEA_1658 -> Budget statement | C175: =+C176-1 -> 2010 | CA175: 91.32914 | CB175: 92.36736 | CC175: 90.96564
C176: 2011 | CB176: 104.2884 | CC176: 107.86085 | CD176: 107.0622
C177: 2012 | CC177: 101.598 | CD177: 103.9276 | CE177: 105.0112
C178: 2013 | CD178: 108.87525 | CE178: 108.7369 | CF178: 107.56512
C179: 2014 | CE179: 104.338 | CF179: 105.362 | CG179: 100.697
C180: 2015 | CF180: 108.655 | CG180: 112.758 | CH180: 119.06
C181: 2016 | CG181: 120.062 | CH181: 126.296 | CI181: 130.297
C182: 2017 | CH182: 159.606 | CI182: 177.411 | CJ182: 185.251
C183: 2018 | CI183: 184.127 | CJ183: 206.428 | CK183: 220.819
C184: 2019 | CJ184: 208.076 | CK184: 225.887 | CL184: 240.041
C185: 2020 | CK185: 222.505 | CL185: 236.124 | CM185: 249.983
C186: 2021 | CL186: 226.108 | CM186: 235.717 | CN186: 245.776
C187: =YearOfAnalysis -> 2022 | CM187: 293.116 | CN187: 320.458 | CO187: 343.402
B189: =PO_158 -> Outturns | D189: =HLOOKUP(D174,'Main Menu'!$E$130:$BC$131,2,FALSE) -> 54.85445449 | E189: =HLOOKUP(E174,'Main Menu'!$E$130:$BC$131,2,FALSE) -> 62.80252972 | F189: =HLOOKUP(F174,'Main Menu'!$E$130:$BC$131,2,FALSE) -> 69.94671716 | G189: =HLOOKUP(G174,'Main Menu'!$E$130:$BC$131,2,FALSE) -> 77.19955384 | H189: =HLOOKUP(H174,'Main Menu'!$E$130:$BC$131,2,FALSE) -> 102.9278458 | I189: =HLOOKUP(I174,'Main Menu'!$E$130:$BC$131,2,FALSE) -> 112.2812157 | J189: =HLOOKUP(J174,'Main Menu'!$E$130:$BC$131,2,FALSE) -> 103.1807514 | K189: =HLOOKUP(K174,'Main Menu'!$E$130:$BC$131,2,FALSE) -> 102.8067489 | L189: =HLOOKUP(L174,'Main Menu'!$E$130:$BC$131,2,FALSE) -> 98.04214134 | M189: =HLOOKUP(M174,'Main Menu'!$E$130:$BC$131,2,FALSE) -> 90.09227731 | N189: =HLOOKUP(N174,'Main Menu'!$E$130:$BC$131,2,FALSE) -> 115.0487851 | O189: =HLOOKUP(O174,'Main Menu'!$E$130:$BC$131,2,FALSE) -> 142.2948767
H197: =IF($E$201=1,ICT_1148,IF($E$201=2,ICT_1138,IF($E$201=3,ICT_1124,IF($E$201=4,ICT_1129,IF($E$201=5,ICT_1154,IF($E$201=6,ICT_1106,IF($E$201=7,ICT_1113,IF($E$201=8,ICT_1100)))))))) -> Interest rates: Historical Forecast Errors (in percent)
H198: =IF($E$201=1,ICT_1147,IF($E$201=2,ICT_1137,IF($E$201=3,ICT_1123,IF($E$201=4,ICT_1128,IF($E$201=5,ICT_1153,IF($E$201=6,ICT_1105,IF($E$201=7,ICT_1112,IF($E$201=8,ICT_1099)))))))) -> Interest rates: Distribution of Historical Forecast Errors (in percent)
H199: =IF($E$201=1,ICT_1146,IF($E$201=2,ICT_1136,IF($E$201=3,ICT_1122,IF($E$201=4,ICT_1127,IF($E$201=5,ICT_1152,IF($E$201=6,ICT_1104,IF($E$201=7,ICT_1111,IF($E$201=8,ICT_1098)))))))) & " " &G222 &"-"& R222 -> Interest rates: Average Historical Forecast Error (in percent) 2010-2021
H200: =IF($E$201=1,ICT_1145,IF($E$201=2,ICT_1135,IF($E$201=3,ICT_1121,IF($E$201=4,ICT_1126,IF($E$201=5,ICT_1151,IF($E$201=6,ICT_1103,IF($E$201=7,ICT_1110,IF($E$201=8,ICT_1097))))))))& " " &G222 &"-"& R222 -> Interest rates: Average Absolute Historical Forecast Error (in percent) 2010-2021
D201: Selection | E201: 4 | F201: =OFFSET(F3,E201,0,,) -> Interest rates | H201: =IF($E$201=1,ICT_1149,IF($E$201=2,ICT_1139,IF($E$201=3,ICT_1125,IF($E$201=4,ICT_1130,IF($E$201=5,ICT_1155,IF($E$201=6,ICT_1107,IF($E$201=7,ICT_1114,IF($E$201=8,ICT_1101)))))))) -> Interest rates: Historical Outturns and Uncertainty Around Current Forecasts (in percent) | I201: Note: Negative values denote overestimation | J201: =IF($E$201=1,RRO_342,IF($E$201=2,ICT_1120,IF($E$201=3,ICT_1118,IF($E$201=4,ICT_1119,IF($E$201=5,ICT_1150,IF($E$201=6,ICT_1102,IF($E$201=7,ICT_1109,IF($E$201=8,ICT_1096,)))))))) & " " &M201 -> INTEREST RATES (in percent) | K201: =FEA_1661 -> The forecast data for nominal GDP is incomplete | M201: =IF(E201>4,FEA_1803,S_983) -> (in percent)
X202: =IF($E$201=1,RRO_342,IF($E$201=2,ICT_1120,IF($E$201=3,ICT_1118,IF($E$201=4,ICT_1119,IF($E$201=5,ICT_1150,IF($E$201=6,ICT_1102,IF($E$201=7,ICT_1109,IF($E$201=8,ICT_1096,)))))))) & " " &M201 -> INTEREST RATES (in percent)
D203: =ICT_1133 -> Nominal GDP | G203: =HLOOKUP(D174,'Main Menu'!$E$86:$BC$87,2,FALSE) -> 711.7593077 | H203: =HLOOKUP(E174,'Main Menu'!$E$86:$BC$87,2,FALSE) -> 836.2224734 | I203: =HLOOKUP(F174,'Main Menu'!$E$86:$BC$87,2,FALSE) -> 1033.591406 | J203: =HLOOKUP(G174,'Main Menu'!$E$86:$BC$87,2,FALSE) -> 1116.827082 | K203: =HLOOKUP(H174,'Main Menu'!$E$86:$BC$87,2,FALSE) -> 1183.03911 | L203: =HLOOKUP(I174,'Main Menu'!$E$86:$BC$87,2,FALSE) -> 1226.569799 | M203: =HLOOKUP(J174,'Main Menu'!$E$86:$BC$87,2,FALSE) -> 1222.916881 | N203: =HLOOKUP(K174,'Main Menu'!$E$86:$BC$87,2,FALSE) -> 1285.460326 | O203: =HLOOKUP(L174,'Main Menu'!$E$86:$BC$87,2,FALSE) -> 1327.690395 | P203: =HLOOKUP(M174,'Main Menu'!$E$86:$BC$87,2,FALSE) -> 1469.596303 | Q203: =HLOOKUP(N174,'Main Menu'!$E$86:$BC$87,2,FALSE) -> 1465.922313 | R203: =HLOOKUP(O174,'Main Menu'!$E$86:$BC$87,2,FALSE) -> 1597.738047 | S203: =K5 -> 0 | T203: =L5 -> 0 | U203: =M5 -> 0
F205: =PO_112 -> Forecasts | G205: =$D$174 -> 2010 | H205: =$E$174 -> 2011 | I205: =$F$174 -> 2012 | J205: =$G$174 -> 2013 | K205: =$H$174 -> 2014 | L205: =$I$174 -> 2015 | M205: =$J$174 -> 2016 | N205: =$K$174 -> 2017 | O205: =$L$174 -> 2018 | P205: =$M$174 -> 2019 | Q205: =$N$174 -> 2020 | R205: =$O$174 -> 2021 | S205: =$P$174 -> 2022 | T205: =$Q$174 -> 2023 | U205: =$R$174 -> 2024
E206: =$D$174 -> 2010 | F206: =PO_84 -> Budget statement 2020 | G206: =IF($E206<$R$5,"",IF($E$201=1,D25,IF($E$201=2,D46,IF($E$201=3,D67,IF($E$201=4,D88,IF($E$201=5,D112/G$203*100,IF($E$201=6,D133/G$203*100,IF($E$201=7,D154/G$203*100,D175/G$203*100)))))))) -> 0 | H206: =IF($E206<$R$5,"",IF($E$201=1,E25,IF($E$201=2,E46,IF($E$201=3,E67,IF($E$201=4,E88,IF($E$201=5,E112/H$203*100,IF($E$201=6,E133/H$203*100,IF($E$201=7,E154/H$203*100,E175/H$203*100)))))))) -> 0 | I206: =IF($E206<$R$5,"",IF($E$201=1,F25,IF($E$201=2,F46,IF($E$201=3,F67,IF($E$201=4,F88,IF($E$201=5,F112/I$203*100,IF($E$201=6,F133/I$203*100,IF($E$201=7,F154/I$203*100,F175/I$203*100)))))))) -> 0
E207: =$E$174 -> 2011 | F207: Budget statement 2020 | H207: =IF($E207<$R$5,"",IF($E$201=1,E26,IF($E$201=2,E47,IF($E$201=3,E68,IF($E$201=4,E89,IF($E$201=5,E113/H$203*100,IF($E$201=6,E134/H$203*100,IF($E$201=7,E155/H$203*100,E176/H$203*100)))))))) -> 0 | I207: =IF($E207<$R$5,"",IF($E$201=1,F26,IF($E$201=2,F47,IF($E$201=3,F68,IF($E$201=4,F89,IF($E$201=5,F113/I$203*100,IF($E$201=6,F134/I$203*100,IF($E$201=7,F155/I$203*100,F176/I$203*100)))))))) -> 0 | J207: =IF($E207<$R$5,"",IF($E$201=1,G26,IF($E$201=2,G47,IF($E$201=3,G68,IF($E$201=4,G89,IF($E$201=5,G113/J$203*100,IF($E$201=6,G134/J$203*100,IF($E$201=7,G155/J$203*100,G176/J$203*100)))))))) -> 0
E208: =$F$174 -> 2012 | F208: Budget statement 2020 | I208: =IF($E208<$R$5,"",IF($E$201=1,F27,IF($E$201=2,F48,IF($E$201=3,F69,IF($E$201=4,F90,IF($E$201=5,F114/I$203*100,IF($E$201=6,F135/I$203*100,IF($E$201=7,F156/I$203*100,F177/I$203*100)))))))) -> 0 | J208: =IF($E208<$R$5,"",IF($E$201=1,G27,IF($E$201=2,G48,IF($E$201=3,G69,IF($E$201=4,G90,IF($E$201=5,G114/J$203*100,IF($E$201=6,G135/J$203*100,IF($E$201=7,G156/J$203*100,G177/J$203*100)))))))) -> 0 | K208: =IF($E208<$R$5,"",IF($E$201=1,H27,IF($E$201=2,H48,IF($E$201=3,H69,IF($E$201=4,H90,IF($E$201=5,H114/K$203*100,IF($E$201=6,H135/K$203*100,IF($E$201=7,H156/K$203*100,H177/K$203*100)))))))) -> 0
E209: =$G$174 -> 2013 | F209: Budget statement 2020 | J209: =IF($E209<$R$5,"",IF($E$201=1,G28,IF($E$201=2,G49,IF($E$201=3,G70,IF($E$201=4,G91,IF($E$201=5,G115/J$203*100,IF($E$201=6,G136/J$203*100,IF($E$201=7,G157/J$203*100,G178/J$203*100)))))))) -> 0 | K209: =IF($E209<$R$5,"",IF($E$201=1,H28,IF($E$201=2,H49,IF($E$201=3,H70,IF($E$201=4,H91,IF($E$201=5,H115/K$203*100,IF($E$201=6,H136/K$203*100,IF($E$201=7,H157/K$203*100,H178/K$203*100)))))))) -> 0 | L209: =IF($E209<$R$5,"",IF($E$201=1,I28,IF($E$201=2,I49,IF($E$201=3,I70,IF($E$201=4,I91,IF($E$201=5,I115/L$203*100,IF($E$201=6,I136/L$203*100,IF($E$201=7,I157/L$203*100,I178/L$203*100)))))))) -> 0
E210: =$H$174 -> 2014 | F210: Budget statement 2020 | K210: =IF($E210<$R$5,"",IF($E$201=1,H29,IF($E$201=2,H50,IF($E$201=3,H71,IF($E$201=4,H92,IF($E$201=5,H116/K$203*100,IF($E$201=6,H137/K$203*100,IF($E$201=7,H158/K$203*100,H179/K$203*100)))))))) -> 0 | L210: =IF($E210<$R$5,"",IF($E$201=1,I29,IF($E$201=2,I50,IF($E$201=3,I71,IF($E$201=4,I92,IF($E$201=5,I116/L$203*100,IF($E$201=6,I137/L$203*100,IF($E$201=7,I158/L$203*100,I179/L$203*100)))))))) -> 0 | M210: =IF($E210<$R$5,"",IF($E$201=1,J29,IF($E$201=2,J50,IF($E$201=3,J71,IF($E$201=4,J92,IF($E$201=5,J116/M$203*100,IF($E$201=6,J137/M$203*100,IF($E$201=7,J158/M$203*100,J179/M$203*100)))))))) -> 0
E211: =$I$174 -> 2015 | F211: Budget statement 2020 | L211: =IF($E211<$R$5,"",IF($E$201=1,I30,IF($E$201=2,I51,IF($E$201=3,I72,IF($E$201=4,I93,IF($E$201=5,I117/L$203*100,IF($E$201=6,I138/L$203*100,IF($E$201=7,I159/L$203*100,I180/L$203*100)))))))) -> 0 | M211: =IF($E211<$R$5,"",IF($E$201=1,J30,IF($E$201=2,J51,IF($E$201=3,J72,IF($E$201=4,J93,IF($E$201=5,J117/M$203*100,IF($E$201=6,J138/M$203*100,IF($E$201=7,J159/M$203*100,J180/M$203*100)))))))) -> 0 | N211: =IF($E211<$R$5,"",IF($E$201=1,K30,IF($E$201=2,K51,IF($E$201=3,K72,IF($E$201=4,K93,IF($E$201=5,K117/N$203*100,IF($E$201=6,K138/N$203*100,IF($E$201=7,K159/N$203*100,K180/N$203*100)))))))) -> 0
E212: =$J$174 -> 2016 | F212: Budget statement 2020 | M212: =IF($E212<$R$5,"",IF($E$201=1,J31,IF($E$201=2,J52,IF($E$201=3,J73,IF($E$201=4,J94,IF($E$201=5,J118/M$203*100,IF($E$201=6,J139/M$203*100,IF($E$201=7,J160/M$203*100,J181/M$203*100)))))))) -> 0 | N212: =IF($E212<$R$5,"",IF($E$201=1,K31,IF($E$201=2,K52,IF($E$201=3,K73,IF($E$201=4,K94,IF($E$201=5,K118/N$203*100,IF($E$201=6,K139/N$203*100,IF($E$201=7,K160/N$203*100,K181/N$203*100)))))))) -> 0 | O212: =IF($E212<$R$5,"",IF($E$201=1,L31,IF($E$201=2,L52,IF($E$201=3,L73,IF($E$201=4,L94,IF($E$201=5,L118/O$203*100,IF($E$201=6,L139/O$203*100,IF($E$201=7,L160/O$203*100,L181/O$203*100)))))))) -> 0
E213: =$K$174 -> 2017 | F213: Budget statement 2020 | N213: =IF($E213<$R$5,"",IF($E$201=1,K32,IF($E$201=2,K53,IF($E$201=3,K74,IF($E$201=4,K95,IF($E$201=5,K119/N$203*100,IF($E$201=6,K140/N$203*100,IF($E$201=7,K161/N$203*100,K182/N$203*100)))))))) -> 0 | O213: =IF($E213<$R$5,"",IF($E$201=1,L32,IF($E$201=2,L53,IF($E$201=3,L74,IF($E$201=4,L95,IF($E$201=5,L119/O$203*100,IF($E$201=6,L140/O$203*100,IF($E$201=7,L161/O$203*100,L182/O$203*100)))))))) -> 0 | P213: =IF($E213<$R$5,"",IF($E$201=1,M32,IF($E$201=2,M53,IF($E$201=3,M74,IF($E$201=4,M95,IF($E$201=5,M119/P$203*100,IF($E$201=6,M140/P$203*100,IF($E$201=7,M161/P$203*100,M182/P$203*100)))))))) -> 0
E214: =$L$174 -> 2018 | F214: Budget statement 2020 | O214: =IF($E214<$R$5,"",IF($E$201=1,L33,IF($E$201=2,L54,IF($E$201=3,L75,IF($E$201=4,L96,IF($E$201=5,L120/O$203*100,IF($E$201=6,L141/O$203*100,IF($E$201=7,L162/O$203*100,L183/O$203*100)))))))) -> 0 | P214: =IF($E214<$R$5,"",IF($E$201=1,M33,IF($E$201=2,M54,IF($E$201=3,M75,IF($E$201=4,M96,IF($E$201=5,M120/P$203*100,IF($E$201=6,M141/P$203*100,IF($E$201=7,M162/P$203*100,M183/P$203*100)))))))) -> 0 | Q214: =IF($E214<$R$5,"",IF($E$201=1,N33,IF($E$201=2,N54,IF($E$201=3,N75,IF($E$201=4,N96,IF($E$201=5,N120/Q$203*100,IF($E$201=6,N141/Q$203*100,IF($E$201=7,N162/Q$203*100,N183/Q$203*100)))))))) -> 0
E215: =$M$174 -> 2019 | F215: Budget statement 2020 | P215: =IF($E215<$R$5,"",IF($E$201=1,M34,IF($E$201=2,M55,IF($E$201=3,M76,IF($E$201=4,M97,IF($E$201=5,M121/P$203*100,IF($E$201=6,M142/P$203*100,IF($E$201=7,M163/P$203*100,M184/P$203*100)))))))) -> 0 | Q215: =IF($E215<$R$5,"",IF($E$201=1,N34,IF($E$201=2,N55,IF($E$201=3,N76,IF($E$201=4,N97,IF($E$201=5,N121/Q$203*100,IF($E$201=6,N142/Q$203*100,IF($E$201=7,N163/Q$203*100,N184/Q$203*100)))))))) -> 0 | R215: =IF($E215<$R$5,"",IF($E$201=1,O34,IF($E$201=2,O55,IF($E$201=3,O76,IF($E$201=4,O97,IF($E$201=5,O121/R$203*100,IF($E$201=6,O142/R$203*100,IF($E$201=7,O163/R$203*100,O184/R$203*100)))))))) -> 0
E216: =$N$174 -> 2020 | F216: Budget statement 2020 | Q216: =IF($E216<$R$5,"",IF($E$201=1,N35,IF($E$201=2,N56,IF($E$201=3,N77,IF($E$201=4,N98,IF($E$201=5,N122/Q$203*100,IF($E$201=6,N143/Q$203*100,IF($E$201=7,N164/Q$203*100,N185/Q$203*100)))))))) -> 0 | R216: =IF($E216<$R$5,"",IF($E$201=1,O35,IF($E$201=2,O56,IF($E$201=3,O77,IF($E$201=4,O98,IF($E$201=5,O122/R$203*100,IF($E$201=6,O143/R$203*100,IF($E$201=7,O164/R$203*100,O185/R$203*100)))))))) -> 0 | S216: =IF($E216<$R$5,"",IF($E$201=1,P35,IF($E$201=2,P56,IF($E$201=3,P77,IF($E$201=4,P98,IF($E$201=5,P122/S$203*100,IF($E$201=6,P143/S$203*100,IF($E$201=7,P164/S$203*100,P185/S$203*100)))))))) -> 0
E217: =$O$174 -> 2021 | F217: Budget statement 2020 | R217: =IF($E217<$R$5,"",IF($E$201=1,O36,IF($E$201=2,O57,IF($E$201=3,O78,IF($E$201=4,O99,IF($E$201=5,O123/R$203*100,IF($E$201=6,O144/R$203*100,IF($E$201=7,O165/R$203*100,O186/R$203*100)))))))) -> 0 | S217: =IF($E217<$R$5,"",IF($E$201=1,P36,IF($E$201=2,P57,IF($E$201=3,P78,IF($E$201=4,P99,IF($E$201=5,P123/S$203*100,IF($E$201=6,P144/S$203*100,IF($E$201=7,P165/S$203*100,P186/S$203*100)))))))) -> 0 | T217: =IF($E217<$R$5,"",IF($E$201=1,Q36,IF($E$201=2,Q57,IF($E$201=3,Q78,IF($E$201=4,Q99,IF($E$201=5,Q123/T$203*100,IF($E$201=6,Q144/T$203*100,IF($E$201=7,Q165/T$203*100,Q186/T$203*100)))))))) -> 0
E218: =$P$174 -> 2022 | F218: Budget statement 2020 | S218: =IF($E218<$R$5,"",IF($E$201=1,P37,IF($E$201=2,P58,IF($E$201=3,P79,IF($E$201=4,P100,IF($E$201=5,P124/S$203*100,IF($E$201=6,P145/S$203*100,IF($E$201=7,P166/S$203*100,P187/S$203*100)))))))) -> 0 | T218: =IF($E218<$R$5,"",IF($E$201=1,Q37,IF($E$201=2,Q58,IF($E$201=3,Q79,IF($E$201=4,Q100,IF($E$201=5,Q124/T$203*100,IF($E$201=6,Q145/T$203*100,IF($E$201=7,Q166/T$203*100,Q187/T$203*100)))))))) -> 0 | U218: =IF($E218<$R$5,"",IF($E$201=1,R37,IF($E$201=2,R58,IF($E$201=3,R79,IF($E$201=4,R100,IF($E$201=5,R124/U$203*100,IF($E$201=6,R145/U$203*100,IF($E$201=7,R166/U$203*100,R187/U$203*100)))))))) -> 0
F220: =PO_158 -> Outturns | G220: =IF(G205<$R$5,"",IF($E$201=1,D39,IF($E$201=2,D60,IF($E$201=3,D81,IF($E$201=4,D102,IF($E$201=5,D126/G$203*100,IF($E$201=6,D147/G$203*100,IF($E$201=7,D168/G$203*100,IF($E$201=8,D189/G$203*100))))))))) -> 0 | H220: 0 | I220: 0 | J220: 0 | K220: 0 | L220: 0 | M220: 0 | N220: 0 | O220: 0 | P220: 0 | Q220: 0 | R220: 0
F222: =PO_156 -> Outturn minus forecast | G222: =G205 -> 2010 | H222: 2011 | I222: 2012 | J222: 2013 | K222: 2014 | L222: 2015 | M222: 2016 | N222: 2017 | O222: 2018 | P222: 2019 | Q222: 2020 | R222: 2021
F223: =PO_85 & " " & M201 -> Budget year (in percent) | G223: =IFERROR($G$220-$G$206,0) -> 0 | H223: =IFERROR($H$220-$H$207,0) -> 0 | I223: =IFERROR($I$220-$I$208,0) -> 0 | J223: =IFERROR($J$220-$J$209,0) -> 0 | K223: =IFERROR($K$220-$K$210,0) -> 0 | L223: =IFERROR($L$220-$L$211,0) -> 0 | M223: =IFERROR($M$220-$M$212,0) -> 0 | N223: =IFERROR($N$220-$N$213,0) -> 0 | O223: =IFERROR($O$220-$O$214,0) -> 0 | P223: =IFERROR($P$220-$P$215,0) -> 0 | Q223: =IFERROR($Q$220-$Q$216,0) -> 0 | R223: =IFERROR($R$220-$R$217,0) -> 0
F224: =ICT_1085 & " " & M201 -> Budget year + 1 (in percent) | H224: =IFERROR($H$220-$H$206,0) -> 0 | I224: =IFERROR($I$220-$I$207,0) -> 0 | J224: =IFERROR($J$220-$J$208,0) -> 0 | K224: =IFERROR($K$220-$K$209,0) -> 0 | L224: =IFERROR($L$220-$L$210,0) -> 0 | M224: =IFERROR($M$220-$M$211,0) -> 0 | N224: =IFERROR($N$220-$N$212,0) -> 0 | O224: =IFERROR($O$220-$O$213,0) -> 0 | P224: =IFERROR($P$220-$P$214,0) -> 0 | Q224: =IFERROR($Q$220-$Q$215,0) -> 0 | R224: =IFERROR($R$220-$R$216,0) -> 0
F225: =ICT_1086 & " " & M201 -> Budget year + 2 (in percent) | I225: =IFERROR($I$220-$I$206,0) -> 0 | J225: =IFERROR($J$220-$J$207,0) -> 0 | K225: =IFERROR($K$220-$K$208,0) -> 0 | L225: =IFERROR($L$220-$L$209,0) -> 0 | M225: =IFERROR($M$220-$M$210,0) -> 0 | N225: =IFERROR($N$220-$N$211,0) -> 0 | O225: =IFERROR($O$220-$O$212,0) -> 0 | P225: =IFERROR($P$220-$P$213,0) -> 0 | Q225: =IFERROR($Q$220-$Q$214,0) -> 0 | R225: =IFERROR($R$220-$R$215,0) -> 0
F227: =PO_110 -> Forecast error statistics | G227: =PO_85 -> Budget year | H227: =PO_85 & " +1" -> Budget year +1 | I227: =PO_85 & "+ 2" -> Budget year+ 2
F228: =PO_83 & " " & M201 -> Average forecast error (in percent) | G228: =AVERAGE(OFFSET(G223,0,$R$6):R223) -> 0 | H228: =AVERAGE(OFFSET(H224,0,$R$6):R224) -> 0 | I228: =AVERAGE(OFFSET(I225,0,$R$6):R225) -> 0
F229: =PO_82 & " " & M201 -> Average absolute forecast error (in percent) | G229: =AVERAGE(ABS(OFFSET(G223,0,$R$6):R223)) -> 0 | H229: =AVERAGE(ABS(OFFSET(H224,0,$R$6):R224)) -> 0 | I229: =AVERAGE(ABS(OFFSET(I225,0,$R$6):R225)) -> 0
F230: =PO_201 & " " & M201 -> Standard deviation of forecast error (in percent) | G230: =_xlfn.STDEV.S(OFFSET(G223,0,$R$6):R223) -> 0 | H230: =_xlfn.STDEV.S(OFFSET(H224,0,$R$6):R224) -> 0 | I230: =_xlfn.STDEV.S(OFFSET(I225,0,$R$6):R225) -> 0
F232: =PO_206 -> T distribution
F233: =PO_91 -> Confidence interval | G233: =PO_207 -> T value
F234: 0.1 | G234: =_xlfn.T.INV.2T(1-F234,COUNT(G223:R223)-1) -> 0.128593911
F235: =F234+0.1 -> 0.2 | G235: =_xlfn.T.INV.2T(1-F235,COUNT(G223:R223)-1) -> 0.2595558605
F236: 0.3 | G236: =_xlfn.T.INV.2T(1-F236,COUNT(G223:R223)-1) -> 0.3955506242
F237: 0.4 | G237: =_xlfn.T.INV.2T(1-F237,COUNT(G223:R223)-1) -> 0.5399378785
F238: 0.5 | G238: =_xlfn.T.INV.2T(1-F238,COUNT(G223:R223)-1) -> 0.6974453276
F239: 0.6 | G239: =_xlfn.T.INV.2T(1-F239,COUNT(G223:R223)-1) -> 0.8755299781
F240: 0.7 | G240: =_xlfn.T.INV.2T(1-F240,COUNT(G223:R223)-1) -> 1.08766638
F241: 0.8 | G241: =_xlfn.T.INV.2T(1-F241,COUNT(G223:R223)-1) -> 1.363430318
F242: 0.9 | G242: =_xlfn.T.INV.2T(1-F242,COUNT(G223:R223)-1) -> 1.795884819
F244: =PO_210 -> Uncertainty around forecasts
... 23 more rows

Sheet RiskByRisk_Template
B1: =VLOOKUP(R1,R4:S18,2,FALSE) & " " & UPPER(Country_Input) -> RISK-BY-RISK REPORT - MACROECONOMIC RISKS SPECIFIC TO AFGHANISTAN | R1: 1
A4: =RRO_315 -> FISCAL RISK IDENTIFICATION | R4: 1 | S4: =RRO_482 -> RISK-BY-RISK REPORT - MACROECONOMIC RISKS SPECIFIC TO | T4: =RRO_453 -> Probable channels for the realization of the fiscal risks
R5: =+R4+2 -> 3 | S5: =RRO_488 -> RISK-BY-RISK REPORT - SPECIFIC REVENUES SPECIFIC TO | T5: =RRO_453 -> Probable channels for the realization of the fiscal risks
B6: =RRO_278 -> Description | P6: =IF(OFFSET(Questionnaire!$A$1,3,$R$1),VBAC_1335,"") ->  | R6: 5 | S6: =RRO_478 -> RISK-BY-RISK REPORT - GOVERNMENT ASSETS AND LIABILITIES SPECIFIC TO | T6: =RRO_1795 -> Probable areas exposed to realization of fiscal risks
R7: 7 | S7: =RRO_485 -> RISK-BY-RISK REPORT - PUBLIC CORPORATIONS SPECIFIC TO | T7: =RRO_453 -> Probable channels for the realization of the fiscal risks
B8: =OFFSET(Questionnaire!$A$1,4,R1) -> 0 | R8: 9 | S8: =RRO_479 -> RISK-BY-RISK REPORT - GOVERNMENT GUARANTEES SPECIFIC TO | T8: =RRO_453 -> Probable channels for the realization of the fiscal risks
R9: 11 | S9: =RRO_486 -> RISK-BY-RISK REPORT - PUBLIC INVESTMENT SPECIFIC TO | T9: =RRO_1796 -> Issues in public investment activities that realize fiscal risks
B10: =VLOOKUP(ActiveRisk,R4:T18,3,FALSE) -> Probable channels for the realization of the fiscal risks | P10: =IF(OFFSET(Questionnaire!$A$1,105,$R$1),VBAC_1335,"") ->  | Q10: 106 | R10: 13 | S10: =RRO_487 -> RISK-BY-RISK REPORT - PUBLIC PRIVATE PARTNERSHIPS SPECIFIC TO | T10: =RRO_453 -> Probable channels for the realization of the fiscal risks
R11: 15 | S11: =RRO_476 -> RISK-BY-RISK REPORT - FINANCIAL SECTOR SPECIFIC TO | T11: =RRO_1797 -> Institutions that pose fiscal risks
C12: =OFFSET(Questionnaire!$A$1,$Q$10+ROW()-ROW($D$12),R$1) -> 0 | D12: =IF(TRIM(OFFSET(Questionnaire!$A$1,$Q$10+ROW()-ROW($D$12),R$1-1))="TextBox","",TRIM(OFFSET(Questionnaire!$A$1,$Q$10+ROW()-ROW($D$12),R$1-1))) -> Growth | I12: =OFFSET(Questionnaire!$A$1,Q10+ROW()-ROW(D12)+COUNTA($D$12:$D$15),R$1) -> 0 | J12: =IF(TRIM(OFFSET(Questionnaire!$A$1,$Q$10+COUNTA($D$12:$D$15)+ROW()-ROW($D$12),R$1-1))="TextBox","",TRIM(OFFSET(Questionnaire!$A$1,$Q$10+COUNTA($D$12:$D$15)+ROW()-ROW($D$12),R$1-1))) -> Exchange rate | R12: 17 | S12: =RRO_475 -> RISK-BY-RISK REPORT - ENVIRONMENTAL SPECIFIC TO | T12: =RRO_1798 -> Environmental risks your government is expose
C13: =OFFSET(Questionnaire!$A$1,$Q$10+ROW()-ROW($D$12),R$1) -> 0 | D13: =IF(TRIM(OFFSET(Questionnaire!$A$1,$Q$10+ROW()-ROW($D$12),R$1-1))="TextBox","",TRIM(OFFSET(Questionnaire!$A$1,$Q$10+ROW()-ROW($D$12),R$1-1))) -> Inflation | I13: =OFFSET(Questionnaire!$A$1,Q10+ROW()-ROW(D12)+COUNTA($D$12:$D$15),R$1) -> 0 | J13: =IF(TRIM(OFFSET(Questionnaire!$A$1,$Q$10+COUNTA($D$12:$D$15)+ROW()-ROW($D$12),R$1-1))="TextBox","",TRIM(OFFSET(Questionnaire!$A$1,$Q$10+COUNTA($D$12:$D$15)+ROW()-ROW($D$12),R$1-1))) -> Terms of trade (incl. commodity prices) | R13: 19 | S13: =RRO_480 -> RISK-BY-RISK REPORT - LEGAL CLAIMS AGAINST THE STATE SPECIFIC TO | T13: =RRO_1799 -> Areas giving rise to fiscal risks
C14: =OFFSET(Questionnaire!$A$1,$Q$10+ROW()-ROW($D$12),R$1) -> 0 | D14: =IF(TRIM(OFFSET(Questionnaire!$A$1,$Q$10+ROW()-ROW($D$12),R$1-1))="TextBox","",TRIM(OFFSET(Questionnaire!$A$1,$Q$10+ROW()-ROW($D$12),R$1-1))) -> Global interest rates | I14: =OFFSET(Questionnaire!$A$1,Q10+ROW()-ROW(D12)+COUNTA($D$12:$D$15),R$1) -> 0 | J14: =IF(TRIM(OFFSET(Questionnaire!$A$1,$Q$10+COUNTA($D$12:$D$15)+ROW()-ROW($D$12),R$1-1))="TextBox","",TRIM(OFFSET(Questionnaire!$A$1,$Q$10+COUNTA($D$12:$D$15)+ROW()-ROW($D$12),R$1-1))) -> Remittances | R14: 21 | S14: =RRO_481 -> RISK-BY-RISK REPORT - LOWER-LEVEL GOVERNMENTS SPECIFIC TO | T14: =RRO_453 -> Probable channels for the realization of the fiscal risks
C15: =OFFSET(Questionnaire!$A$1,$Q$10+ROW()-ROW($D$12),R$1) -> 0 | D15: =IF(TRIM(OFFSET(Questionnaire!$A$1,$Q$10+ROW()-ROW($D$12),R$1-1))="TextBox","",TRIM(OFFSET(Questionnaire!$A$1,$Q$10+ROW()-ROW($D$12),R$1-1))) -> Domestic interest rates | I15: =OFFSET(Questionnaire!$A$1,Q10+ROW()-ROW(D12)+COUNTA($D$12:$D$15),R$1) -> 0 | J15: =IF(TRIM(OFFSET(Questionnaire!$A$1,$Q$10+COUNTA($D$12:$D$15)+ROW()-ROW($D$12),R$1-1))="TextBox","",TRIM(OFFSET(Questionnaire!$A$1,$Q$10+COUNTA($D$12:$D$15)+ROW()-ROW($D$12),R$1-1))) -> Others (please specify) | R15: 23 | S15: =RRO_483 -> RISK-BY-RISK REPORT - NATURAL RESOURCES SPECIFIC TO | T15: =RRO_1800 -> Revenues that directly impacts fiscal results
C16: =OFFSET(Questionnaire!$A$1,$Q$10+5+ROW()-ROW($D$12),R$1) -> 0 | D16: =IF(TRIM(OFFSET(Questionnaire!$A$1,$Q$10+5+ROW()-ROW($D$12),R$1-1))="TextBox","",TRIM(OFFSET(Questionnaire!$A$1,$Q$10+5+ROW()-ROW($D$12),R$1-1))) ->  | I16: =OFFSET(Questionnaire!$A$1,Q10+ROW()-ROW(D12)+COUNTA($D$12:$D$15),R$1) -> 0 | J16: =IF(TRIM(OFFSET(Questionnaire!$A$1,$Q$10+COUNTA($D$12:$D$15)+ROW()-ROW($D$12),R$1-1))="TextBox","",TRIM(OFFSET(Questionnaire!$A$1,$Q$10+COUNTA($D$12:$D$15)+ROW()-ROW($D$12),R$1-1))) ->  | R16: 25 | S16: =PO_95 -> Customized fiscal risk
B17: =RRO_519 -> Underlying risk drivers | P17: =IF(OFFSET(Questionnaire!$A$1,11,$R$1),VBAC_1335,"") ->  | Q17: 12 | R17: 27 | S17: =RRO_484 -> RISK-BY-RISK REPORT - POLICY IMPLEMENTATION SPECIFIC TO | T17: =RRO_1801 -> Fiscal risks arise from aspects of policy implementation
R18: 29 | S18: =RRO_477 -> RISK-BY-RISK REPORT - GOVERNANCE ARRANGEMENTS AND CAPACITY SPECIFIC TO | T18: =RRO_1802 -> Stages of the fiscal cycle in which fiscal risks arise
C19: =OFFSET(Questionnaire!$A$1,$Q$17+ROW()-ROW($D$19),R$1) -> 0 | D19: =OFFSET(Questionnaire!$A$1,$Q$17+ROW()-ROW($D$19),R$1-1) -> Domestic economic conditions | I19: =OFFSET(Questionnaire!$A$1,$Q$17+COUNTA($D$19:$D$21)+ROW()-ROW($D$19),R$1) -> 0 | J19: =OFFSET(Questionnaire!$A$1,$Q$17+COUNTA($D$19:$D$21)+ROW()-ROW($D$19),R$1-1) -> Environmental conditions
C20: =OFFSET(Questionnaire!$A$1,$Q$17+ROW()-ROW($D$19),R$1) -> 0 | D20: =OFFSET(Questionnaire!$A$1,$Q$17+ROW()-ROW($D$19),R$1-1) -> International macroeconomic and political conditions | I20: =OFFSET(Questionnaire!$A$1,$Q$17+COUNTA($D$19:$D$21)+ROW()-ROW($D$19),R$1) -> 0 | J20: =OFFSET(Questionnaire!$A$1,$Q$17+COUNTA($D$19:$D$21)+ROW()-ROW($D$19),R$1-1) -> Operational risks
C21: =OFFSET(Questionnaire!$A$1,$Q$17+ROW()-ROW($D$19),R$1) -> 0 | D21: =OFFSET(Questionnaire!$A$1,$Q$17+ROW()-ROW($D$19),R$1-1) -> Financial market conditions | I21: =OFFSET(Questionnaire!$A$1,$Q$17+COUNTA($D$19:$D$21)+ROW()-ROW($D$19),R$1) -> 0 | J21: =OFFSET(Questionnaire!$A$1,$Q$17+COUNTA($D$19:$D$21)+ROW()-ROW($D$19),R$1-1) -> Others (please specify)
J22: =OFFSET(Questionnaire!$A$1,$Q$17+ROW()-ROW($D$19)+COUNTA($D$12:$D$15),R$1+1) -> 0
B23: =RRO_343 -> Historical fiscal risk realizations | P23: =IF(OFFSET(Questionnaire!$A$1,25,$R$1),VBAC_1335,"") -> 
Q24: 29 | R24: =RRO_236 -> Auxiliar table
B25: =RRO_343 -> Historical fiscal risk realizations | R25: =RRO_435 -> Numerical | S25: =RRO_473 -> Risk realization
B26: =RRO_525 -> Year | D26: =PO_106 -> Fiscal impact | G26: =RRO_259 -> Comments on realized fiscal risk impact | R26: =_xlfn.IFS(S26=PO_134,1,S26=PO_138,2,S26=PO_119,3,S26="",0) -> 0 | S26: =D27 -> 
B27: =YearOfAnalysis -1 -> 2021 | D27: =PROPER(OFFSET(Questionnaire!$A$1,Q24+ROW()-ROW(B27),R1-1)) ->  | G27: =OFFSET(Questionnaire!$A$1,Q24+ROW()-ROW(B27),R1) -> 0 | R27: =_xlfn.IFS(S27=PO_134,1,S27=PO_138,2,S27=PO_119,3,S27="",0) -> 0
B28: =+B27-1 -> 2020 | D28: =PROPER(OFFSET(Questionnaire!$A$1,Q24+ROW()-ROW(B27),R1-1)) ->  | G28: =OFFSET(Questionnaire!$A$1,Q24+ROW()-ROW(B27),R1) -> 0 | R28: =_xlfn.IFS(S28=PO_134,1,S28=PO_138,2,S28=PO_119,3,S28="",0) -> 0
B29: 2019 | D29: =PROPER(OFFSET(Questionnaire!$A$1,Q24+ROW()-ROW(B27),R1-1)) ->  | G29: =OFFSET(Questionnaire!$A$1,Q24+ROW()-ROW(B27),R1) -> 0 | R29: =_xlfn.IFS(S29=PO_134,1,S29=PO_138,2,S29=PO_119,3,S29="",0) -> 0
B30: 2018 | D30: =PROPER(OFFSET(Questionnaire!$A$1,Q24+ROW()-ROW(B27),R1-1)) ->  | G30: =OFFSET(Questionnaire!$A$1,Q24+ROW()-ROW(B27),R1) -> 0 | R30: =_xlfn.IFS(S30=PO_134,1,S30=PO_138,2,S30=PO_119,3,S30="",0) -> 0
B31: 2017 | D31: =PROPER(OFFSET(Questionnaire!$A$1,Q24+ROW()-ROW(B27),R1-1)) ->  | G31: =OFFSET(Questionnaire!$A$1,Q24+ROW()-ROW(B27),R1) -> 0 | R31: =_xlfn.IFS(S31=PO_134,1,S31=PO_138,2,S31=PO_119,3,S31="",0) -> 0
B32: 2016 | D32: =PROPER(OFFSET(Questionnaire!$A$1,Q24+ROW()-ROW(B27),R1-1)) ->  | G32: =OFFSET(Questionnaire!$A$1,Q24+ROW()-ROW(B27),R1) -> 0 | R32: =_xlfn.IFS(S32=PO_134,1,S32=PO_138,2,S32=PO_119,3,S32="",0) -> 0
B33: 2015 | D33: =PROPER(OFFSET(Questionnaire!$A$1,Q24+ROW()-ROW(B27),R1-1)) ->  | G33: =OFFSET(Questionnaire!$A$1,Q24+ROW()-ROW(B27),R1) -> 0 | R33: =_xlfn.IFS(S33=PO_134,1,S33=PO_138,2,S33=PO_119,3,S33="",0) -> 0
B34: 2014 | D34: =PROPER(OFFSET(Questionnaire!$A$1,Q24+ROW()-ROW(B27),R1-1)) ->  | G34: =OFFSET(Questionnaire!$A$1,Q24+ROW()-ROW(B27),R1) -> 0 | R34: =_xlfn.IFS(S34=PO_134,1,S34=PO_138,2,S34=PO_119,3,S34="",0) -> 0
B35: 2013 | D35: =PROPER(OFFSET(Questionnaire!$A$1,Q24+ROW()-ROW(B27),R1-1)) ->  | G35: =OFFSET(Questionnaire!$A$1,Q24+ROW()-ROW(B27),R1) -> 0 | R35: =_xlfn.IFS(S35=PO_134,1,S35=PO_138,2,S35=PO_119,3,S35="",0) -> 0
B36: 2012 | D36: =PROPER(OFFSET(Questionnaire!$A$1,Q24+ROW()-ROW(B27),R1-1)) ->  | G36: =OFFSET(Questionnaire!$A$1,Q24+ROW()-ROW(B27),R1) -> 0
R37: Magnitude | S37: =RRO_319 -> Historical frequency of annual risk realization
M38: =R38 -> None | N38: 1 | R38: =RRO_426 -> None | S38: =COUNTIF(R$26:R$35,0)/10 -> 1
M39: Low | N39: 0 | R39: =PO_134 -> Low | S39: =COUNTIF(R$26:R$35,1)/10 -> 0
M40: Medium | N40: 0 | R40: =PO_138 -> Medium | S40: =COUNTIF(R$26:R$35,2)/10 -> 0
M41: High | N41: 0 | R41: =PROPER(PO_119) -> High | S41: =COUNTIF(R$26:R$35,3)/10 -> 0
M42: =R42 -> 0
B51: =RRO_312 -> Fiscal aggregates affected when fiscal risks are realized | P51: =IF(OFFSET(Questionnaire!$A$1,45,$R$1),VBAC_1335,"") -> 
C52: =PO_109 -> Flow measures | I52: =PO_203 -> Stock measures | Q52: 46
C53: =OFFSET(Questionnaire!$A$1,Q52+ROW()-ROW(D53),R$1) -> 0 | D53: =PO_208 -> Tax Revenues | I53: =OFFSET(Questionnaire!$A$1,Q52+ROW()-ROW(D53)+COUNTA($D$12:$D$15),R$1) -> 0 | J53: =PO_103 -> Financial assets
C54: =OFFSET(Questionnaire!$A$1,Q52+ROW()-ROW(D53),R$1) -> 0 | D54: =PO_152 -> Non-tax revenues | I54: =OFFSET(Questionnaire!$A$1,Q52+ROW()-ROW(D53)+COUNTA($D$12:$D$15),R$1) -> 0 | J54: =PO_151 -> Non-financial assets
C55: =OFFSET(Questionnaire!$A$1,Q52+ROW()-ROW(D53),R$1) -> 0 | D55: =PO_88 -> Capital expenditures | I55: =OFFSET(Questionnaire!$A$1,Q52+ROW()-ROW(D53)+COUNTA($D$12:$D$15),R$1) -> 0 | J55: =PO_96 -> Debt liabilities
C56: =OFFSET(Questionnaire!$A$1,Q52+ROW()-ROW(D53),R$1) -> 0 | D56: =PO_174 -> Recurrent expenditures | I56: =OFFSET(Questionnaire!$A$1,Q52+ROW()-ROW(D53)+COUNTA($D$12:$D$15),R$1) -> 0 | J56: =PO_154 -> Other liabilities
B58: =RRO_382 -> Institution responsible for managing the risks | P58: =IF(OFFSET(Questionnaire!$A$1,60,$R$1),VBAC_1335,"") -> 
Q59: 61
C60: =OFFSET(Questionnaire!$A$1,Q59+ROW()-ROW(D60),R$1) -> 0 | D60: =RRO_413 -> Ministry of finance | I60: =OFFSET(Questionnaire!$A$1,Q59+ROW()-ROW(D60)+6+1,R$1) -> 0 | J60: =RRO_255 -> Central bank
C61: =OFFSET(Questionnaire!$A$1,Q59+ROW()-ROW(D60),R$1) -> 0 | D61: ="∟" & RRO_404 -> ∟Macro-fiscal unit | I61: =OFFSET(Questionnaire!$A$1,Q59+ROW()-ROW(D60)+6+1,R$1) -> 0 | J61: =RRO_441 -> Other independent body
C62: =OFFSET(Questionnaire!$A$1,Q59+ROW()-ROW(D60),R$1) -> 0 | D62: ="∟" & RRO_317 -> ∟Fiscal risk unit | I62: =OFFSET(Questionnaire!$A$1,Q59+ROW()-ROW(D60)+6+3,R$1) -> 0 | J62: =RRO_444 -> Other ministry/government agency (please specify)
C63: =OFFSET(Questionnaire!$A$1,Q59+ROW()-ROW(D60),R$1) -> 0 | D63: ="∟" & RRO_248 -> ∟Budget office | I63: =OFFSET(Questionnaire!$A$1,Q59+ROW()-ROW(D60)+6+3,R$1) -> 0 | J63: ="∟" & OFFSET(Questionnaire!$A$1,Q59+ROW()-ROW(D60)+6+3,R$1-1) -> ∟
C64: =OFFSET(Questionnaire!$A$1,Q59+ROW()-ROW(D60),R$1) -> 0 | D64: ="∟" & RRO_275 -> ∟Debt management office | I64: =OFFSET(Questionnaire!$A$1,Q59+ROW()-ROW(D60)+6+3,R$1) -> 0 | J64: ="∟" & OFFSET(Questionnaire!$A$1,Q59+ROW()-ROW(D60)+6+3,R$1-1) -> ∟
C65: =OFFSET(Questionnaire!$A$1,Q59+ROW()-ROW(D60),R$1) -> 0 | D65: ="∟" & OFFSET(Questionnaire!$A$1,Q59+ROW()-ROW(D60),R$1-1) -> ∟Others (please specify) | I65: =OFFSET(Questionnaire!$A$1,Q59+ROW()-ROW(D60)+6+3,R$1) -> 0 | J65: ="∟" & OFFSET(Questionnaire!$A$1,Q59+ROW()-ROW(D60)+6+3,R$1-1) -> ∟
B67: =RRO_385 -> Interactions with other sources of risks | P67: =IF(OFFSET(Questionnaire!$A$1,82,$R$1),VBAC_1335,"") -> 
C69: =OFFSET(Questionnaire!$A$1,201,R$1) -> FALSE | D69: =MM_30 -> Macroeconomic risks | I69: =OFFSET(Questionnaire!$A$1,227,R$1) -> FALSE | J69: =PO_164 -> Policy implementation
I70: =OFFSET(Questionnaire!$A$1,229,R$1) -> FALSE | J70: =PO_115 -> Governance and capacity
C71: =OFFSET(Questionnaire!$A$1,203,R$1) -> FALSE | D71: =PO_198 -> Specific revenues
C72: =OFFSET(Questionnaire!$A$1,205,R$1) -> FALSE | D72: =PO_117 -> Government assets and liabilities
C73: =OFFSET(Questionnaire!$A$1,207,R$1) -> FALSE | D73: =PO_171 -> Public corporations
C74: =OFFSET(Questionnaire!$A$1,209,R$1) -> FALSE | D74: =PO_118 -> Government guarantees
C75: =OFFSET(Questionnaire!$A$1,211,R$1) -> FALSE | D75: =PO_172 -> Public investment
C76: =OFFSET(Questionnaire!$A$1,213,R$1) -> FALSE | D76: =PO_173 -> Public private partnerships
C77: =OFFSET(Questionnaire!$A$1,215,R$1) -> FALSE | D77: =PO_104 -> Financial sector
C78: =OFFSET(Questionnaire!$A$1,217,R$1) -> FALSE | D78: =PO_100 -> Environmental risks
C79: =OFFSET(Questionnaire!$A$1,219,R$1) -> FALSE | D79: =PO_130 -> Legal claims against the state
C80: =OFFSET(Questionnaire!$A$1,221,R$1) -> FALSE | D80: =PO_137 -> Lower-level governments
C81: =OFFSET(Questionnaire!$A$1,223,R$1) -> FALSE | D81: =PO_147 -> Natural resources
A83: =RRO_316 -> FISCAL RISK QUANTIFICATION
B85: =PO_81 -> Availability of information and data to support risk quantification | P85: =IF(OFFSET(Questionnaire!$A$1,449,$R$1),VBAC_1335,"") ->  | Q85: 450
C87: =OFFSET(Questionnaire!$A$1,Q85+ROW()-ROW(D87),R$1) -> 0 | D87: =OFFSET(Questionnaire!$A$1,Q85+ROW()-ROW(D87),R$1-1) -> Historical series (10 years or more) of major macroeconomic aggregates (real/nominal GDP growth, inflation, interest rates, exchange rate, commodity prices) | J87: =OFFSET(Questionnaire!$A$1,$Q$85+ROW()+9-ROW($D$87),R$1) -> 0 | P87: =IF(W87>X87,D87,J87) -> Historical series (10 years or more) of major macroeconomic aggregates (real/nominal GDP growth, inflation, interest rates, exchange rate, commodity prices) | W87: =LEN(D87) -> 156 | X87: =LEN(J87) -> 1
B88: =IF(ActiveRisk=5,OFFSET(Questionnaire!$A$1,Q85+ROW()-ROW(D87),R$1),"") ->  | C88: =IF(ActiveRisk=5,"",OFFSET(Questionnaire!$A$1,Q85+ROW()-ROW(D87),R$1)) -> 0 | D88: =OFFSET(Questionnaire!$A$1,Q85+ROW()-ROW(D87),R$1-1) -> Historical series (10 years or more) of major fiscal aggregates (revenue, expenditure, fiscal balance, debt) | J88: =OFFSET(Questionnaire!$A$1,$Q$85+ROW()+9-ROW($D$87),R$1) -> 0 | P88: Historical series (10 years or more) of major fiscal aggregates (revenue, expenditure, fiscal balance, debt) | W88: 108 | X88: 1
C89: =OFFSET(Questionnaire!$A$1,Q85+ROW()-ROW(D87),R$1) -> 0 | D89: =OFFSET(Questionnaire!$A$1,Q85+ROW()-ROW(D87),R$1-1) -> Historical series (10 years or more) of estimates of the impact of large fiscal policy changes | J89: =OFFSET(Questionnaire!$A$1,$Q$85+ROW()+9-ROW($D$87),R$1) -> 0 | P89: Historical series (10 years or more) of estimates of the impact of large fiscal policy changes | W89: 94 | X89: 1
C90: =OFFSET(Questionnaire!$A$1,Q85+ROW()-ROW(D87),R$1) -> 0 | D90: =OFFSET(Questionnaire!$A$1,Q85+ROW()-ROW(D87),R$1-1) -> Historical series of macroeconomic forecast vintages (over at least five budget years) | J90: =OFFSET(Questionnaire!$A$1,$Q$85+ROW()+9-ROW($D$87),R$1) -> 0 | P90: Historical series of macroeconomic forecast vintages (over at least five budget years) | W90: 86 | X90: 1
C91: =OFFSET(Questionnaire!$A$1,Q85+ROW()-ROW(D87),R$1) -> 0 | D91: =OFFSET(Questionnaire!$A$1,Q85+ROW()-ROW(D87),R$1-1) -> Historical series of fiscal forecast vintages (over at least five budget years) | J91: =OFFSET(Questionnaire!$A$1,$Q$85+ROW()+9-ROW($D$87),R$1) -> 0 | P91: Historical series of fiscal forecast vintages (over at least five budget years) | W91: 79 | X91: 1
C92: =OFFSET(Questionnaire!$A$1,Q85+ROW()-ROW(D87),R$1) -> 0 | D92: =OFFSET(Questionnaire!$A$1,Q85+ROW()-ROW(D87),R$1-1) -> Multiyear forecasts of major macroeconomic aggregates (real/nominal GDP growth, inflation, interest rates, exchange rate, oil prices) | J92: =OFFSET(Questionnaire!$A$1,$Q$85+ROW()+9-ROW($D$87),R$1) -> 0 | P92: Multiyear forecasts of major macroeconomic aggregates (real/nominal GDP growth, inflation, interest rates, exchange rate, oil prices) | W92: 133 | X92: 1
C93: =OFFSET(Questionnaire!$A$1,Q85+ROW()-ROW(D87),R$1) -> 0 | D93: =OFFSET(Questionnaire!$A$1,Q85+ROW()-ROW(D87),R$1-1) -> Multiyear forecasts of major fiscal aggregates (revenue, expenditure, fiscal balance, debt) | J93: =OFFSET(Questionnaire!$A$1,$Q$85+ROW()+9-ROW($D$87),R$1) -> 0 | P93: Multiyear forecasts of major fiscal aggregates (revenue, expenditure, fiscal balance, debt) | W93: 91 | X93: 1
C94: =OFFSET(Questionnaire!$A$1,Q85+ROW()-ROW(D87),R$1) -> 0 | D94: =OFFSET(Questionnaire!$A$1,Q85+ROW()-ROW(D87),R$1-1) -> Long-term trends (10 to 50 years ahead) of real/nominal GDP growth and identification of key drivers (demographics, productivity, etc.) | J94: =OFFSET(Questionnaire!$A$1,$Q$85+ROW()+9-ROW($D$87),R$1) -> 0 | P94: Long-term trends (10 to 50 years ahead) of real/nominal GDP growth and identification of key drivers (demographics, productivity, etc.) | W94: 135 | X94: 1
C96: =RRO_434 -> Note:
E97: =RRO_526 -> YES | G97: =PO_160 -> PARTIAL | I97: =PO_149 -> NO
B99: =RRO_224 -> Analyses conducted | P99: =IF(OFFSET(Questionnaire!$A$1,469,$R$1),VBAC_1335,"") ->  | Q99: 470
C101: =OFFSET(Questionnaire!$A$1,Q99+ROW()-ROW(D101),R$1) -> 0 | D101: =OFFSET(Questionnaire!$A$1,Q99+ROW()-ROW(D101),R$1-1) -> Historical volatility of macroeconomic indicators | J101: =OFFSET(Questionnaire!$A$1,$Q$99+ROW()+9-ROW($D$101),R$1) -> 0 | P101: =IF(W101>X101,D101,J101) -> Historical volatility of macroeconomic indicators | W101: =LEN(D101) -> 49 | X101: =LEN(J101) -> 1
C102: =OFFSET(Questionnaire!$A$1,Q99+ROW()-ROW(D101),R$1) -> 0 | D102: =OFFSET(Questionnaire!$A$1,Q99+ROW()-ROW(D101),R$1-1) -> Estimates for elasticities of revenue/expenditure to GDP | J102: =OFFSET(Questionnaire!$A$1,$Q$99+ROW()+9-ROW($D$101),R$1) -> 0 | P102: Estimates for elasticities of revenue/expenditure to GDP | W102: 56 | X102: 1
C103: =OFFSET(Questionnaire!$A$1,Q99+ROW()-ROW(D101),R$1) -> 0 | D103: =OFFSET(Questionnaire!$A$1,Q99+ROW()-ROW(D101),R$1-1) -> Sensitivity analyses | J103: =OFFSET(Questionnaire!$A$1,$Q$99+ROW()+9-ROW($D$101),R$1) -> 0 | P103: Sensitivity analyses | W103: 20 | X103: 1
C104: =OFFSET(Questionnaire!$A$1,Q99+ROW()-ROW(D101),R$1) -> 0 | D104: =OFFSET(Questionnaire!$A$1,Q99+ROW()-ROW(D101),R$1-1) -> Alternative scenario analyses | J104: =OFFSET(Questionnaire!$A$1,$Q$99+ROW()+9-ROW($D$101),R$1) -> 0 | P104: Alternative scenario analyses | W104: 29 | X104: 1
C105: =OFFSET(Questionnaire!$A$1,Q99+ROW()-ROW(D101),R$1) -> 0 | D105: =OFFSET(Questionnaire!$A$1,Q99+ROW()-ROW(D101),R$1-1) -> Probabilistic analyses (fan charts, etc.) | J105: =OFFSET(Questionnaire!$A$1,$Q$99+ROW()+9-ROW($D$101),R$1) -> 0 | P105: Probabilistic analyses (fan charts, etc.) | W105: 41 | X105: 1
C106: =OFFSET(Questionnaire!$A$1,Q99+ROW()-ROW(D101),R$1) -> 0 | D106: =OFFSET(Questionnaire!$A$1,Q99+ROW()-ROW(D101),R$1-1) -> Fiscal forecast error analysis | J106: =OFFSET(Questionnaire!$A$1,$Q$99+ROW()+9-ROW($D$101),R$1) -> 0 | P106: Fiscal forecast error analysis | W106: 30 | X106: 1
C107: =OFFSET(Questionnaire!$A$1,Q99+ROW()-ROW(D101),R$1) -> 0 | D107: =OFFSET(Questionnaire!$A$1,Q99+ROW()-ROW(D101),R$1-1) -> Long-term fiscal sustainability analyses (e.g. using the IMF debt sustainability framework, or IMF demographics tool) | J107: =OFFSET(Questionnaire!$A$1,$Q$99+ROW()+9-ROW($D$101),R$1) -> 0 | P107: Long-term fiscal sustainability analyses (e.g. using the IMF debt sustainability framework, or IMF demographics tool) | W107: 117 | X107: 1
J108: =OFFSET(Questionnaire!$A$1,$Q$99+ROW()+10-ROW($D$101),R$1) -> 0
C109: =RRO_434 -> Note:
E110: =RRO_526 -> YES | G110: =PO_160 -> PARTIAL | I110: =PO_149 -> NO
B112: =RRO_383 -> Institutions retaining information and data, and conducting analyses | P112: =IF(OFFSET(Questionnaire!$A$1,489,$R$1),VBAC_1335,"") ->  | Q112: 490
D114: =RRO_377 -> Information and data | F114: =RRO_223 -> Analyses
D115: =OFFSET(Questionnaire!$A$1,Q112+ROW()-ROW(J115),R$1) -> 0 | F115: =OFFSET(Questionnaire!$A$1,Q112+ROW()-ROW(D115)+9,R$1) -> 0 | H115: =RRO_413 -> Ministry of finance
D116: =OFFSET(Questionnaire!$A$1,Q112+ROW()-ROW(H115),R$1) -> 0 | F116: =OFFSET(Questionnaire!$A$1,Q112+ROW()-ROW(D115)+9,R$1) -> 0 | H116: =RRO_395 -> Line ministry(ies)
D117: =OFFSET(Questionnaire!$A$1,Q112+ROW()-ROW(H115),R$1) -> 0 | F117: =OFFSET(Questionnaire!$A$1,Q112+ROW()-ROW(D115)+9,R$1) -> 0 | H117: =RRO_493 -> Statistical agency
D118: =OFFSET(Questionnaire!$A$1,Q112+ROW()-ROW(H115),R$1) -> 0 | F118: =OFFSET(Questionnaire!$A$1,Q112+ROW()-ROW(D115)+9,R$1) -> 0 | H118: =RRO_255 -> Central bank
D119: =OFFSET(Questionnaire!$A$1,Q112+ROW()-ROW(H115),R$1) -> 0 | F119: =OFFSET(Questionnaire!$A$1,Q112+ROW()-ROW(D115)+9,R$1) -> 0 | H119: =RRO_451 -> Private sector organizations
D120: =OFFSET(Questionnaire!$A$1,Q112+ROW()-ROW(H115),R$1) -> 0 | F120: =OFFSET(Questionnaire!$A$1,Q112+ROW()-ROW(D115)+9,R$1) -> 0 | H120: =RRO_389 -> International organizations
D121: =OFFSET(Questionnaire!$A$1,Q112+ROW()-ROW(H115),R$1) -> 0 | F121: =OFFSET(Questionnaire!$A$1,Q112+ROW()-ROW(D115)+9,R$1) -> 0 | H121: =OFFSET(Questionnaire!$A$1,496,R$1-1) -> Others (please specify)
A123: =UPPER(PO_179) -> RISK ASSESSMENT AND PRIORITIZATION
B125: =RRO_370 -> Impact-likelihood matrix | P125: =IF(OFFSET(Questionnaire!$A$1,118,$R$1),VBAC_1335,"") ->  | Q125: 119
C127: =PO_166 -> Potential fiscal impact | D127: =PROPER(PO_119) -> High | E127: =IF(AND(S127=D127,S128=E136),S129,"") ->  | G127: =IF(AND(S127=D127,S128=G136),S129,"") ->  | I127: =IF(AND(S127=D127,S128=I136),S129,"") ->  | R127: =RRO_321 -> Fiscal impact | S127: =OFFSET(Questionnaire!$A$1,119,R1) -> 0
R128: =RRO_394 -> Likelihood | S128: =OFFSET(Questionnaire!$A$1,129,R1) -> 0
S129: =OFFSET('Main Menu'!CA6,IF(ActiveRisk>23,IF(ActiveRisk>1,(ActiveRisk+1)/2)-1,(ActiveRisk+1)/2),0) -> Macroeconomic risks
D130: =PO_138 -> Medium | E130: =IF(AND(S127=D130,S128=E136),S129,"") ->  | G130: =IF(AND(S127=D130,S128=G136),S129,"") ->  | I130: =IF(AND(S127=D130,S128=I136),S129,"") -> 
D133: =PO_134 -> Low | E133: =IF(AND(S127=D133,S128=E136),S129,"") ->  | G133: =IF(AND(S127=D133,S128=G136),S129,"") ->  | I133: =IF(AND(S127=D133,S128=I136),S129,"") -> 
E136: =PO_175 -> Remote | G136: =PO_165 -> Possible | I136: =PO_169 -> Probable
E137: =PO_132 -> Likelihood of realization
C139: =RRO_460 -> Rationale for assessment
C140: =PO_166 -> Potential fiscal impact | H140: =OFFSET(Questionnaire!$A$1,120,R$1) -> 0
C141: =PO_132 -> Likelihood of realization | H141: =OFFSET(Questionnaire!$A$1,130,R$1) -> 0
B143: =RRO_472 -> Risk prioritization | P143: =IF(OFFSET(Questionnaire!$A$1,118,$R$1),VBAC_1335,"") -> 
C145: =UPPER(LEFT(LOWER(PO_192),1))&RIGHT(LOWER(PO_192),LEN(LOWER(PO_192))-1) -> Source of risk | H145: =PO_106 -> Fiscal impact | J145: =UPPER(LEFT(LOWER(PO_131),1))&RIGHT(LOWER(PO_131),LEN(LOWER(PO_131))-1) -> Likelihood | K145: =UPPER(LEFT(LOWER(PO_185),1))&RIGHT(LOWER(PO_185),LEN(LOWER(PO_185))-1) -> Risk rating | L145: =UPPER(LEFT(LOWER(PO_144),1))&RIGHT(LOWER(PO_144),LEN(LOWER(PO_144))-1) -> Mitigation strategy | M145: =UPPER(LEFT(LOWER(PO_168),1))&RIGHT(LOWER(PO_168),LEN(LOWER(PO_168))-1) -> Priority actions | R145: =PROPER(IF(AND(K146=PO_129,OR(L146=PO_149,L146=RRO_526)),PO_150,IF(AND(K146=PO_134,L146=RRO_526),PO_136,IF(AND(K146=PO_134,L146=PO_149),PO_140,IF(AND(K146=PO_138,L146=RRO_526),PO_140,IF(AND(K146=PO_138,L146=PO_149),PO_121,IF(AND(K146=PROPER(PO_119),L146=RRO_526),PO_140,IF(AND(K146=PROPER(PO_119),L146=PO_149),PO_121,IF(AND(K146=PO_94,L146=RRO_526),PO_121,IF(AND(K146=PO_94,L146=PO_149),PO_94,)))))))))) -> 
C146: =OFFSET(Questionnaire!$A$1,1,R$1) -> Macroeconomic | H146: =PROPER(S127) -> 0 | J146: =S128 -> 0 | K146: =PROPER(IF(AND(H146=PO_134,J146=PO_175),PO_129,IF(OR(AND(H146=PO_134,J146=PO_165),AND(H146=PO_138,J146=PO_175)),PO_134,IF(OR(AND(H146=PO_134,J146=PO_169),AND(H146=PO_138,J146=PO_165),AND(H146=PROPER(PO_119),J146=PO_175)),PO_138,IF(OR(AND(H146=PROPER(PO_119),J146=PO_165),AND(H146=PO_138,J146=PO_169)),PROPER(PO_119),IF(AND(H146=PROPER(PO_119),J146=PO_169),PO_94,"")))))) ->  | L146: =PROPER(OFFSET(Questionnaire!$A$1,139,R1)) ->  | M146: =UPPER(LEFT(LOWER(R145),1))&RIGHT(LOWER(R145),LEN(LOWER(R145))-1) -> 
B148: =RRO_471 -> Risk mitigation and provisioning | P148: =IF(OFFSET(Questionnaire!$A$1,118,$R$1),VBAC_1335,"") -> 
C150: =RRO_414 -> Mitigation strategies | I150: =RRO_278 -> Description
C151: =OFFSET(Questionnaire!$A$1,140,R1-1) -> 0 | D151: =PO_204 -> Structural reforms | I151: =OFFSET(Questionnaire!$A$1,140,R1) -> 0
C152: =OFFSET(Questionnaire!$A$1,141,R1-1) -> 0 | D152: =PO_99 -> Direct controls | I152: =OFFSET(Questionnaire!$A$1,141,R1) -> 0
C153: =OFFSET(Questionnaire!$A$1,142,R1-1) -> 0 | D153: =PO_125 -> Indirect tools (regulations and charges) | I153: =OFFSET(Questionnaire!$A$1,142,R1) -> 0
C154: =OFFSET(Questionnaire!$A$1,143,R1-1) -> 0 | D154: =RRO_474 -> Risk transfer instruments | I154: =OFFSET(Questionnaire!$A$1,143,R1) -> 0
C156: =RRO_454 -> Provisioning | I156: =RRO_278 -> Description
C157: =OFFSET(Questionnaire!$A$1,144,R1-1) -> 0 | D157: =PO_101 -> Expense | I157: =OFFSET(Questionnaire!$A$1,144,R1) -> 0
C158: =OFFSET(Questionnaire!$A$1,145,R1-1) -> 0 | D158: =RRO_263 -> Contingencies | I158: =OFFSET(Questionnaire!$A$1,145,R1) -> 0
C159: =OFFSET(Questionnaire!$A$1,146,R1-1) -> 0 | D159: =PO_86 -> Buffer funds | I159: =OFFSET(Questionnaire!$A$1,146,R1) -> 0
A161: =MM_25 -> INTERNATIONAL COMPARISONS

Sheet Portfolio Output
A1: =PO_189 -> SCOPE OF ANALYSIS | Q1: =PO_113 -> GAPS IN ANALYSIS | AG1: =PO_123 -> HISTORICAL RISK REALIZATIONS MATRIX | BA1: =PO_187 -> RISK RATING AND PRIORITY MATRICES | BV1: =PO_127 -> INTERACTIONS AMONG RISKS | CT1: =PO_124 -> IMPACT OF FISCAL RISKS ON FISCAL AGGREGATES
AG3: =PO_108 -> Fiscal Risks
A4: =PO_180 -> RISK COVERAGE | AG4: =PO_90 -> Category of Fiscal Risk | AJ4: =PO_195 -> Sources of Fiscal Risk | AN4: =AO4-1 -> 2012 | AO4: 2013 | AP4: 2014 | AQ4: 2015 | AR4: 2016 | AS4: 2017 | AT4: 2018 | AU4: 2019 | AV4: 2020 | AW4: ='Main Menu'!$J$53-1 -> 2021 | BA4: =PO_107 -> FISCAL RISK | BE4: =PO_192 -> SOURCE OF RISK | BI4: =PO_106 -> Fiscal impact | BK4: =PO_131 -> LIKELIHOOD | BM4: =PO_185 -> RISK RATING | BO4: =PO_144 -> MITIGATION STRATEGY | BQ4: =PO_168 -> PRIORITY ACTIONS | CC4: =MM_30 -> Macroeconomic risks | CD4: =PO_198 -> Specific revenues | CE4: =PO_117 -> Government assets and liabilities | CF4: =PO_171 -> Public corporations | CG4: =PO_118 -> Government guarantees | CH4: =PO_172 -> Public investment | CI4: =PO_173 -> Public private partnerships | CJ4: =PO_104 -> Financial sector | CK4: =PO_100 -> Environmental risks | CL4: =PO_130 -> Legal claims against the state | CM4: =PO_137 -> Lower-level governments | CN4: =PO_147 -> Natural resources | CO4: =PO_164 -> Policy implementation | CP4: =PO_116 -> Governance arrangements and capacity | DA4: =PO_109 -> Flow measures | DF4: =PO_203 -> Stock measures
AG5: =MM_30 -> Macroeconomic risks | AJ5: =MM_30 -> Macroeconomic risks | AN5: =IF(Questionnaire!A39=0,"",Questionnaire!A39) ->  | AO5: =IF(Questionnaire!A38=0,"",Questionnaire!A38) ->  | AP5: =IF(Questionnaire!A37=0,"",Questionnaire!A37) ->  | AQ5: =IF(Questionnaire!A36=0,"",Questionnaire!A36) ->  | AR5: =IF(Questionnaire!A35=0,"",Questionnaire!A35) ->  | AS5: =IF(Questionnaire!A34=0,"",Questionnaire!A34) ->  | AT5: =IF(Questionnaire!A33=0,"",Questionnaire!A33) ->  | AU5: =IF(Questionnaire!A32=0,"",Questionnaire!A32) ->  | AV5: =IF(Questionnaire!A31=0,"",Questionnaire!A31) ->  | AW5: =IF(Questionnaire!A30=0,"",Questionnaire!A30) ->  | BS5: 2021-01-01 | BT5: 2021-01-02 | BU5: 2021-01-03 | DA5: =PO_208 -> Tax Revenues | DB5: =PO_152 -> Non-tax revenues | DC5: =PO_174 -> Recurrent expenditures | DD5: =PO_88 -> Capital expenditures | DF5: =PO_103 -> Financial assets | DG5: =PO_151 -> Non-financial assets | DH5: =PO_96 -> Debt liabilities | DI5: =PO_154 -> Other liabilities
B6: =PO_209 -> Type of fiscal risk | E6: =PO_196 -> Sources of risks covered in application of tool | I6: =PO_197 -> Sources of risks not covered in application of tool | AG6: =PO_199 -> Specific risks | AJ6: =PO_198 -> Specific revenues | AN6: =IF(Questionnaire!C39=0,"",Questionnaire!C39) ->  | AO6: =IF(Questionnaire!C38=0,"",Questionnaire!C38) ->  | AP6: =IF(Questionnaire!C37=0,"",Questionnaire!C37) ->  | AQ6: =IF(Questionnaire!C36=0,"",Questionnaire!C36) ->  | AR6: =IF(Questionnaire!C35=0,"",Questionnaire!C35) ->  | AS6: =IF(Questionnaire!C34=0,"",Questionnaire!C34) ->  | AT6: =IF(Questionnaire!C33=0,"",Questionnaire!C33) ->  | AU6: =IF(Questionnaire!C32=0,"",Questionnaire!C32) ->  | AV6: =IF(Questionnaire!C31=0,"",Questionnaire!C31) ->  | AW6: =IF(Questionnaire!C30=0,"",Questionnaire!C30) ->  | BA6: =MM_30 -> Macroeconomic risks | BE6: =MM_30 -> Macroeconomic risks | BI6: =IF(IF(Questionnaire!B$120=0,"",Questionnaire!B$120)="",PO_1689,IF(Questionnaire!B$120=0,"",Questionnaire!B$120)) -> Not rated | BK6: =IF(IF(Questionnaire!B$130=0,"",Questionnaire!B$130)="",PO_1689,IF(Questionnaire!B$130=0,"",Questionnaire!B$130)) -> Not rated | BM6: =PROPER(IF(AND(BI6=PO_134,BK6=PO_175),PO_129,IF(OR(AND(BI6=PO_134,BK6=PO_165),AND(BI6=PO_138,BK6=PO_175)),PO_134,IF(OR(AND(BI6=PO_134,BK6=PO_169),AND(BI6=PO_138,BK6=PO_165),AND(BI6=PROPER(PO_119),BK6=PO_175)),PO_138,IF(OR(AND(BI6=PROPER(PO_119),BK6=PO_165),AND(BI6=PO_138,BK6=PO_169)),PROPER(PO_119),IF(AND(BI6=PROPER(PO_119),BK6=PO_169),PO_94,"")))))) ->  | BO6: =IF(IF(Questionnaire!B$140=0,"",Questionnaire!B$140)="",PO_1689,IF(Questionnaire!B$140=0,"",Questionnaire!B$140)) -> Not rated | BQ6: =PROPER(IF(AND(BM6=PO_129,OR(BO6=PO_149,BO6=RRO_526)),PO_150,IF(AND(BM6=PO_134,BO6=RRO_526),PO_136,IF(AND(BM6=PO_134,BO6=PO_149),PO_140,IF(AND(BM6=PO_138,BO6=RRO_526),PO_140,IF(AND(BM6=PO_138,BO6=PO_149),PO_121,IF(AND(BM6=PROPER(PO_119),BO6=RRO_526),PO_140,IF(AND(BM6=PROPER(PO_119),BO6=PO_149),PO_121,IF(AND(BM6=PO_94,BO6=RRO_526),PO_121,IF(AND(BM6=PO_94,BO6=PO_149),PO_94,"")))))))))) ->  | BS6: =IF(AND(BI6=PO_134,BK6=PO_175),BE6,"") ->  | BT6: =IF(AND(BI6=PO_134,BK6=PO_165),BE6,"") ->  | BU6: =IF(AND(BI6=PO_134,BK6=PO_169),BE6,"") -> 
AJ7: =PO_117 -> Government assets and liabilities | AN7: =IF(Questionnaire!E39=0,"",Questionnaire!E39) ->  | AO7: =IF(Questionnaire!E38=0,"",Questionnaire!E38) ->  | AP7: =IF(Questionnaire!E37=0,"",Questionnaire!E37) ->  | AQ7: =IF(Questionnaire!E36=0,"",Questionnaire!E36) ->  | AR7: =IF(Questionnaire!E35=0,"",Questionnaire!E35) ->  | AS7: =IF(Questionnaire!E34=0,"",Questionnaire!E34) ->  | AT7: =IF(Questionnaire!E33=0,"",Questionnaire!E33) ->  | AU7: =IF(Questionnaire!E32=0,"",Questionnaire!E32) ->  | AV7: =IF(Questionnaire!E31=0,"",Questionnaire!E31) ->  | AW7: =IF(Questionnaire!E30=0,"",Questionnaire!E30) ->  | BS7: =IF(AND(BI8=PO_134,BK8=PO_175),BE8,"") ->  | BT7: =IF(AND(BI8=PO_134,BK8=PO_165),BE8,"") ->  | BU7: =IF(AND(BI8=PO_134,BK8=PO_169),BE8,"") -> 
B8: =MM_30 -> Macroeconomic risks | E8: =IF('Main Menu'!CE7=TRUE,'Main Menu'!CA7,"") ->  | I8: =IF(E8="",'Main Menu'!CA7,"") -> Macroeconomic risks | AJ8: =PO_171 -> Public corporations | AN8: =IF(Questionnaire!G39=0,"",Questionnaire!G39) ->  | AO8: =IF(Questionnaire!G38=0,"",Questionnaire!G38) ->  | AP8: =IF(Questionnaire!G37=0,"",Questionnaire!G37) ->  | AQ8: =IF(Questionnaire!G36=0,"",Questionnaire!G36) ->  | AR8: =IF(Questionnaire!G35=0,"",Questionnaire!G35) ->  | AS8: =IF(Questionnaire!G34=0,"",Questionnaire!G34) ->  | AT8: =IF(Questionnaire!G33=0,"",Questionnaire!G33) ->  | AU8: =IF(Questionnaire!G32=0,"",Questionnaire!G32) ->  | AV8: =IF(Questionnaire!G31=0,"",Questionnaire!G31) ->  | AW8: =IF(Questionnaire!G30=0,"",Questionnaire!G30) ->  | BA8: =PO_199 -> Specific risks | BE8: =PO_198 -> Specific revenues | BI8: =IF(IF(Questionnaire!D$120=0,"",Questionnaire!D$120)="",PO_1689,IF(Questionnaire!D$120=0,"",Questionnaire!D$120)) -> Not rated | BK8: =IF(IF(Questionnaire!D$130=0,"",Questionnaire!D$130)="",PO_1689,IF(Questionnaire!D$130=0,"",Questionnaire!D$130)) -> Not rated | BM8: =PROPER(IF(AND(BI8=PO_134,BK8=PO_175),PO_129,IF(OR(AND(BI8=PO_134,BK8=PO_165),AND(BI8=PO_138,BK8=PO_175)),PO_134,IF(OR(AND(BI8=PO_134,BK8=PO_169),AND(BI8=PO_138,BK8=PO_165),AND(BI8=PROPER(PO_119),BK8=PO_175)),PO_138,IF(OR(AND(BI8=PROPER(PO_119),BK8=PO_165),AND(BI8=PO_138,BK8=PO_169)),PROPER(PO_119),IF(AND(BI8=PROPER(PO_119),BK8=PO_169),PO_94,"")))))) ->  | BO8: =IF(IF(Questionnaire!D$140=0,"",Questionnaire!D$140)="",PO_1689,IF(Questionnaire!D$140=0,"",Questionnaire!D$140)) -> Not rated | BQ8: =PROPER(IF(AND(BM8=PO_129,OR(BO8=PO_149,BO8=RRO_526)),PO_150,IF(AND(BM8=PO_134,BO8=RRO_526),PO_136,IF(AND(BM8=PO_134,BO8=PO_149),PO_140,IF(AND(BM8=PO_138,BO8=RRO_526),PO_140,IF(AND(BM8=PO_138,BO8=PO_149),PO_121,IF(AND(BM8=PROPER(PO_119),BO8=RRO_526),PO_140,IF(AND(BM8=PROPER(PO_119),BO8=PO_149),PO_121,IF(AND(BM8=PO_94,BO8=RRO_526),PO_121,IF(AND(BM8=PO_94,BO8=PO_149),PO_94,"")))))))))) ->  | BS8: =IF(AND(BI10=PO_134,BK10=PO_175),BE10,"") ->  | BT8: =IF(AND(BI10=PO_134,BK10=PO_165),BE10,"") ->  | BU8: =IF(AND(BI10=PO_134,BK10=PO_169),BE10,"") -> 
B9: =PO_199 -> Specific risks | E9: =IF('Main Menu'!CE8=TRUE,'Main Menu'!CA8,"") ->  | I9: =IF(E9="",'Main Menu'!CA8,"") -> Specific revenues | AJ9: =PO_118 -> Government guarantees | AN9: =IF(Questionnaire!I39=0,"",Questionnaire!I39) ->  | AO9: =IF(Questionnaire!I38=0,"",Questionnaire!I38) ->  | AP9: =IF(Questionnaire!I37=0,"",Questionnaire!I37) ->  | AQ9: =IF(Questionnaire!I36=0,"",Questionnaire!I36) ->  | AR9: =IF(Questionnaire!I35=0,"",Questionnaire!I35) ->  | AS9: =IF(Questionnaire!I34=0,"",Questionnaire!I34) ->  | AT9: =IF(Questionnaire!I33=0,"",Questionnaire!I33) ->  | AU9: =IF(Questionnaire!I32=0,"",Questionnaire!I32) ->  | AV9: =IF(Questionnaire!I31=0,"",Questionnaire!I31) ->  | AW9: =IF(Questionnaire!I30=0,"",Questionnaire!I30) ->  | BS9: =IF(AND(BI12=PO_134,BK12=PO_175),BE12,"") ->  | BT9: =IF(AND(BI12=PO_134,BK12=PO_165),BE12,"") ->  | BU9: =IF(AND(BI12=PO_134,BK12=PO_169),BE12,"") ->  | CT9: =PO_90 -> Category of Fiscal Risk | CW9: =PO_195 -> Sources of Fiscal Risk
E10: =IF('Main Menu'!CE9=TRUE,'Main Menu'!CA9,"") ->  | I10: =IF(E10="",'Main Menu'!CA9,"") -> Government assets and liabilities | AJ10: =PO_172 -> Public investment | AN10: =IF(Questionnaire!K39=0,"",Questionnaire!K39) ->  | AO10: =IF(Questionnaire!K38=0,"",Questionnaire!K38) ->  | AP10: =IF(Questionnaire!K37=0,"",Questionnaire!K37) ->  | AQ10: =IF(Questionnaire!K36=0,"",Questionnaire!K36) ->  | AR10: =IF(Questionnaire!K35=0,"",Questionnaire!K35) ->  | AS10: =IF(Questionnaire!K34=0,"",Questionnaire!K34) ->  | AT10: =IF(Questionnaire!K33=0,"",Questionnaire!K33) ->  | AU10: =IF(Questionnaire!K32=0,"",Questionnaire!K32) ->  | AV10: =IF(Questionnaire!K31=0,"",Questionnaire!K31) ->  | AW10: =IF(Questionnaire!K30=0,"",Questionnaire!K30) ->  | BE10: =PO_117 -> Government assets and liabilities | BI10: =IF(IF(Questionnaire!F$120=0,"",Questionnaire!F$120)="",PO_1689,IF(Questionnaire!F$120=0,"",Questionnaire!F$120)) -> Not rated | BK10: =IF(IF(Questionnaire!F$130=0,"",Questionnaire!F$130)="",PO_1689,IF(Questionnaire!F$130=0,"",Questionnaire!F$130)) -> Not rated | BM10: =PROPER(IF(AND(BI10=PO_134,BK10=PO_175),PO_129,IF(OR(AND(BI10=PO_134,BK10=PO_165),AND(BI10=PO_138,BK10=PO_175)),PO_134,IF(OR(AND(BI10=PO_134,BK10=PO_169),AND(BI10=PO_138,BK10=PO_165),AND(BI10=PROPER(PO_119),BK10=PO_175)),PO_138,IF(OR(AND(BI10=PROPER(PO_119),BK10=PO_165),AND(BI10=PO_138,BK10=PO_169)),PROPER(PO_119),IF(AND(BI10=PROPER(PO_119),BK10=PO_169),PO_94,"")))))) ->  | BO10: =IF(IF(Questionnaire!F$140=0,"",Questionnaire!F$140)="",PO_1689,IF(Questionnaire!F$140=0,"",Questionnaire!F$140)) -> Not rated | BQ10: =PROPER(IF(AND(BM10=PO_129,OR(BO10=PO_149,BO10=RRO_526)),PO_150,IF(AND(BM10=PO_134,BO10=RRO_526),PO_136,IF(AND(BM10=PO_134,BO10=PO_149),PO_140,IF(AND(BM10=PO_138,BO10=RRO_526),PO_140,IF(AND(BM10=PO_138,BO10=PO_149),PO_121,IF(AND(BM10=PROPER(PO_119),BO10=RRO_526),PO_140,IF(AND(BM10=PROPER(PO_119),BO10=PO_149),PO_121,IF(AND(BM10=PO_94,BO10=RRO_526),PO_121,IF(AND(BM10=PO_94,BO10=PO_149),PO_94,"")))))))))) ->  | BS10: =IF(AND(BI14=PO_134,BK14=PO_175),BE14,"") ->  | BT10: =IF(AND(BI14=PO_134,BK14=PO_165),BE14,"") ->  | BU10: =IF(AND(BI14=PO_134,BK14=PO_169),BE14,"") -> 
E11: =IF('Main Menu'!CE10=TRUE,'Main Menu'!CA10,"") ->  | I11: =IF(E11="",'Main Menu'!CA10,"") -> Public corporations | AJ11: =PO_173 -> Public private partnerships | AN11: =IF(Questionnaire!M39=0,"",Questionnaire!M39) ->  | AO11: =IF(Questionnaire!M38=0,"",Questionnaire!M38) ->  | AP11: =IF(Questionnaire!M37=0,"",Questionnaire!M37) ->  | AQ11: =IF(Questionnaire!M36=0,"",Questionnaire!M36) ->  | AR11: =IF(Questionnaire!M35=0,"",Questionnaire!M35) ->  | AS11: =IF(Questionnaire!M34=0,"",Questionnaire!M34) ->  | AT11: =IF(Questionnaire!M33=0,"",Questionnaire!M33) ->  | AU11: =IF(Questionnaire!M32=0,"",Questionnaire!M32) ->  | AV11: =IF(Questionnaire!M31=0,"",Questionnaire!M31) ->  | AW11: =IF(Questionnaire!M30=0,"",Questionnaire!M30) ->  | BS11: =IF(AND(BI16=PO_134,BK16=PO_175),BE16,"") ->  | BT11: =IF(AND(BI16=PO_134,BK16=PO_165),BE16,"") ->  | BU11: =IF(AND(BI16=PO_134,BK16=PO_169),BE16,"") ->  | CT11: =MM_30 -> Macroeconomic risks | CW11: =MM_30 -> Macroeconomic risks | DA11: =Questionnaire!$B$47 -> 0 | DB11: =Questionnaire!$B$48 -> 0 | DC11: =Questionnaire!$B$50 -> 0 | DD11: =Questionnaire!$B$49 -> 0 | DF11: =Questionnaire!$B$51 -> 0 | DG11: =Questionnaire!$B$52 -> 0 | DH11: =Questionnaire!$B$53 -> 0 | DI11: =Questionnaire!$B$54 -> 0
E12: =IF('Main Menu'!CE11=TRUE,'Main Menu'!CA11,"") ->  | I12: =IF(E12="",'Main Menu'!CA11,"") -> Government guarantees | AJ12: =PO_104 -> Financial sector | AN12: =IF(Questionnaire!O39=0,"",Questionnaire!O39) ->  | AO12: =IF(Questionnaire!O38=0,"",Questionnaire!O38) ->  | AP12: =IF(Questionnaire!O37=0,"",Questionnaire!O37) ->  | AQ12: =IF(Questionnaire!O36=0,"",Questionnaire!O36) ->  | AR12: =IF(Questionnaire!O35=0,"",Questionnaire!O35) ->  | AS12: =IF(Questionnaire!O34=0,"",Questionnaire!O34) ->  | AT12: =IF(Questionnaire!O33=0,"",Questionnaire!O33) ->  | AU12: =IF(Questionnaire!O32=0,"",Questionnaire!O32) ->  | AV12: =IF(Questionnaire!O31=0,"",Questionnaire!O31) ->  | AW12: =IF(Questionnaire!O30=0,"",Questionnaire!O30) ->  | BE12: =PO_171 -> Public corporations | BI12: =IF(IF(Questionnaire!H$120=0,"",Questionnaire!H$120)="",PO_1689,IF(Questionnaire!H$120=0,"",Questionnaire!H$120)) -> Not rated | BK12: =IF(IF(Questionnaire!H$130=0,"",Questionnaire!H$130)="",PO_1689,IF(Questionnaire!H$130=0,"",Questionnaire!H$130)) -> Not rated | BM12: =PROPER(IF(AND(BI12=PO_134,BK12=PO_175),PO_129,IF(OR(AND(BI12=PO_134,BK12=PO_165),AND(BI12=PO_138,BK12=PO_175)),PO_134,IF(OR(AND(BI12=PO_134,BK12=PO_169),AND(BI12=PO_138,BK12=PO_165),AND(BI12=PROPER(PO_119),BK12=PO_175)),PO_138,IF(OR(AND(BI12=PROPER(PO_119),BK12=PO_165),AND(BI12=PO_138,BK12=PO_169)),PROPER(PO_119),IF(AND(BI12=PROPER(PO_119),BK12=PO_169),PO_94,"")))))) ->  | BO12: =IF(IF(Questionnaire!H$140=0,"",Questionnaire!H$140)="",PO_1689,IF(Questionnaire!H$140=0,"",Questionnaire!H$140)) -> Not rated | BQ12: =PROPER(IF(AND(BM12=PO_129,OR(BO12=PO_149,BO12=RRO_526)),PO_150,IF(AND(BM12=PO_134,BO12=RRO_526),PO_136,IF(AND(BM12=PO_134,BO12=PO_149),PO_140,IF(AND(BM12=PO_138,BO12=RRO_526),PO_140,IF(AND(BM12=PO_138,BO12=PO_149),PO_121,IF(AND(BM12=PROPER(PO_119),BO12=RRO_526),PO_140,IF(AND(BM12=PROPER(PO_119),BO12=PO_149),PO_121,IF(AND(BM12=PO_94,BO12=RRO_526),PO_121,IF(AND(BM12=PO_94,BO12=PO_149),PO_94,"")))))))))) ->  | BS12: =IF(AND(BI18=PO_134,BK18=PO_175),BE18,"") ->  | BT12: =IF(AND(BI18=PO_134,BK18=PO_165),BE18,"") ->  | BU12: =IF(AND(BI18=PO_134,BK18=PO_169),BE18,"") -> 
E13: =IF('Main Menu'!CE12=TRUE,'Main Menu'!CA12,"") ->  | I13: =IF(E13="",'Main Menu'!CA12,"") -> Public investment | AJ13: =PO_100 -> Environmental risks | AN13: =IF(Questionnaire!Q39=0,"",Questionnaire!Q39) ->  | AO13: =IF(Questionnaire!Q38=0,"",Questionnaire!Q38) ->  | AP13: =IF(Questionnaire!Q37=0,"",Questionnaire!Q37) ->  | AQ13: =IF(Questionnaire!Q36=0,"",Questionnaire!Q36) ->  | AR13: =IF(Questionnaire!Q35=0,"",Questionnaire!Q35) ->  | AS13: =IF(Questionnaire!Q34=0,"",Questionnaire!Q34) ->  | AT13: =IF(Questionnaire!Q33=0,"",Questionnaire!Q33) ->  | AU13: =IF(Questionnaire!Q32=0,"",Questionnaire!Q32) ->  | AV13: =IF(Questionnaire!Q31=0,"",Questionnaire!Q31) ->  | AW13: =IF(Questionnaire!Q30=0,"",Questionnaire!Q30) ->  | BS13: =IF(AND(BI20=PO_134,BK20=PO_175),BE20,"") ->  | BT13: =IF(AND(BI20=PO_134,BK20=PO_165),BE20,"") ->  | BU13: =IF(AND(BI20=PO_134,BK20=PO_169),BE20,"") ->  | BV13: =PO_90 -> Category of Fiscal Risk | BY13: =PO_195 -> Sources of Fiscal Risk | CT13: =PO_199 -> Specific risks | CW13: =PO_198 -> Specific revenues | DA13: =Questionnaire!$D$47 -> 0 | DB13: =Questionnaire!$D$48 -> 0 | DC13: =Questionnaire!$D$50 -> 0 | DD13: =Questionnaire!$D$49 -> 0 | DF13: =Questionnaire!$D$51 -> 0 | DG13: =Questionnaire!$D$52 -> 0 | DH13: =Questionnaire!$D$53 -> 0 | DI13: =Questionnaire!$D$54 -> 0
E14: =IF('Main Menu'!CE13=TRUE,'Main Menu'!CA13,"") ->  | I14: =IF(E14="",'Main Menu'!CA13,"") -> Public private partnerships | AJ14: =PO_130 -> Legal claims against the state | AN14: =IF(Questionnaire!S39=0,"",Questionnaire!S39) ->  | AO14: =IF(Questionnaire!S38=0,"",Questionnaire!S38) ->  | AP14: =IF(Questionnaire!S37=0,"",Questionnaire!S37) ->  | AQ14: =IF(Questionnaire!S36=0,"",Questionnaire!S36) ->  | AR14: =IF(Questionnaire!S35=0,"",Questionnaire!S35) ->  | AS14: =IF(Questionnaire!S34=0,"",Questionnaire!S34) ->  | AT14: =IF(Questionnaire!S33=0,"",Questionnaire!S33) ->  | AU14: =IF(Questionnaire!S32=0,"",Questionnaire!S32) ->  | AV14: =IF(Questionnaire!S31=0,"",Questionnaire!S31) ->  | AW14: =IF(Questionnaire!S30=0,"",Questionnaire!S30) ->  | BE14: =PO_118 -> Government guarantees | BI14: =IF(IF(Questionnaire!J$120=0,"",Questionnaire!J$120)="",PO_1689,IF(Questionnaire!J$120=0,"",Questionnaire!J$120)) -> Not rated | BK14: =IF(IF(Questionnaire!J$130=0,"",Questionnaire!J$130)="",PO_1689,IF(Questionnaire!J$130=0,"",Questionnaire!J$130)) -> Not rated | BM14: =PROPER(IF(AND(BI14=PO_134,BK14=PO_175),PO_129,IF(OR(AND(BI14=PO_134,BK14=PO_165),AND(BI14=PO_138,BK14=PO_175)),PO_134,IF(OR(AND(BI14=PO_134,BK14=PO_169),AND(BI14=PO_138,BK14=PO_165),AND(BI14=PROPER(PO_119),BK14=PO_175)),PO_138,IF(OR(AND(BI14=PROPER(PO_119),BK14=PO_165),AND(BI14=PO_138,BK14=PO_169)),PROPER(PO_119),IF(AND(BI14=PROPER(PO_119),BK14=PO_169),PO_94,"")))))) ->  | BO14: =IF(IF(Questionnaire!J$140=0,"",Questionnaire!J$140)="",PO_1689,IF(Questionnaire!J$140=0,"",Questionnaire!J$140)) -> Not rated | BQ14: =PROPER(IF(AND(BM14=PO_129,OR(BO14=PO_149,BO14=RRO_526)),PO_150,IF(AND(BM14=PO_134,BO14=RRO_526),PO_136,IF(AND(BM14=PO_134,BO14=PO_149),PO_140,IF(AND(BM14=PO_138,BO14=RRO_526),PO_140,IF(AND(BM14=PO_138,BO14=PO_149),PO_121,IF(AND(BM14=PROPER(PO_119),BO14=RRO_526),PO_140,IF(AND(BM14=PROPER(PO_119),BO14=PO_149),PO_121,IF(AND(BM14=PO_94,BO14=RRO_526),PO_121,IF(AND(BM14=PO_94,BO14=PO_149),PO_94,"")))))))))) ->  | BS14: =IF(AND(BI22=PO_134,BK22=PO_175),BE22,"") ->  | BT14: =IF(AND(BI22=PO_134,BK22=PO_165),BE22,"") ->  | BU14: =IF(AND(BI22=PO_134,BK22=PO_169),BE22,"") -> 
E15: =IF('Main Menu'!CE14=TRUE,'Main Menu'!CA14,"") ->  | I15: =IF(E15="",'Main Menu'!CA14,"") -> Financial sector | AJ15: =PO_137 -> Lower-level governments | AN15: =IF(Questionnaire!U39=0,"",Questionnaire!U39) ->  | AO15: =IF(Questionnaire!U38=0,"",Questionnaire!U38) ->  | AP15: =IF(Questionnaire!U37=0,"",Questionnaire!U37) ->  | AQ15: =IF(Questionnaire!U36=0,"",Questionnaire!U36) ->  | AR15: =IF(Questionnaire!U35=0,"",Questionnaire!U35) ->  | AS15: =IF(Questionnaire!U34=0,"",Questionnaire!U34) ->  | AT15: =IF(Questionnaire!U33=0,"",Questionnaire!U33) ->  | AU15: =IF(Questionnaire!U32=0,"",Questionnaire!U32) ->  | AV15: =IF(Questionnaire!U31=0,"",Questionnaire!U31) ->  | AW15: =IF(Questionnaire!U30=0,"",Questionnaire!U30) ->  | BS15: =IF(AND(BI24=PO_134,BK24=PO_175),BE24,"") ->  | BT15: =IF(AND(BI24=PO_134,BK24=PO_165),BE24,"") ->  | BU15: =IF(AND(BI24=PO_134,BK24=PO_169),BE24,"") ->  | BV15: =MM_30 -> Macroeconomic risks | BY15: =MM_30 -> Macroeconomic risks | CD15: =$CC$17 -> FALSE | CE15: =$CC$19 -> FALSE | CF15: =$CC$21 -> FALSE | CG15: =$CC$23 -> FALSE | CH15: =$CC$25 -> FALSE | CI15: =$CC$27 -> FALSE | CJ15: =$CC$29 -> FALSE | CK15: =$CC$31 -> FALSE | CL15: =$CC$33 -> FALSE | CM15: =$CC$35 -> FALSE | CN15: =$CC$37 -> FALSE | CO15: =$CC$39 -> FALSE | CP15: =$CC$41 -> FALSE | CW15: =PO_117 -> Government assets and liabilities | DA15: =Questionnaire!$F$47 -> 0 | DB15: =Questionnaire!$F$48 -> 0 | DC15: =Questionnaire!$F$50 -> 0 | DD15: =Questionnaire!$F$49 -> 0 | DF15: =Questionnaire!$F$51 -> 0 | DG15: =Questionnaire!$F$52 -> 0 | DH15: =Questionnaire!$F$53 -> 0 | DI15: =Questionnaire!$F$54 -> 0
E16: =IF('Main Menu'!CE15=TRUE,'Main Menu'!CA15,"") ->  | I16: =IF(E16="",'Main Menu'!CA15,"") -> Environmental risks | AJ16: =PO_147 -> Natural resources | AN16: =IF(Questionnaire!W39=0,"",Questionnaire!W39) ->  | AO16: =IF(Questionnaire!W38=0,"",Questionnaire!W38) ->  | AP16: =IF(Questionnaire!W37=0,"",Questionnaire!W37) ->  | AQ16: =IF(Questionnaire!W36=0,"",Questionnaire!W36) ->  | AR16: =IF(Questionnaire!W35=0,"",Questionnaire!W35) ->  | AS16: =IF(Questionnaire!W34=0,"",Questionnaire!W34) ->  | AT16: =IF(Questionnaire!W33=0,"",Questionnaire!W33) ->  | AU16: =IF(Questionnaire!W32=0,"",Questionnaire!W32) ->  | AV16: =IF(Questionnaire!W31=0,"",Questionnaire!W31) ->  | AW16: =IF(Questionnaire!W30=0,"",Questionnaire!W30) ->  | BE16: =PO_172 -> Public investment | BI16: =IF(IF(Questionnaire!L$120=0,"",Questionnaire!L$120)="",PO_1689,IF(Questionnaire!L$120=0,"",Questionnaire!L$120)) -> Not rated | BK16: =IF(IF(Questionnaire!L$130=0,"",Questionnaire!L$130)="",PO_1689,IF(Questionnaire!L$130=0,"",Questionnaire!L$130)) -> Not rated | BM16: =PROPER(IF(AND(BI16=PO_134,BK16=PO_175),PO_129,IF(OR(AND(BI16=PO_134,BK16=PO_165),AND(BI16=PO_138,BK16=PO_175)),PO_134,IF(OR(AND(BI16=PO_134,BK16=PO_169),AND(BI16=PO_138,BK16=PO_165),AND(BI16=PROPER(PO_119),BK16=PO_175)),PO_138,IF(OR(AND(BI16=PROPER(PO_119),BK16=PO_165),AND(BI16=PO_138,BK16=PO_169)),PROPER(PO_119),IF(AND(BI16=PROPER(PO_119),BK16=PO_169),PO_94,"")))))) ->  | BO16: =IF(IF(Questionnaire!L$140=0,"",Questionnaire!L$140)="",PO_1689,IF(Questionnaire!L$140=0,"",Questionnaire!L$140)) -> Not rated | BQ16: =PROPER(IF(AND(BM16=PO_129,OR(BO16=PO_149,BO16=RRO_526)),PO_150,IF(AND(BM16=PO_134,BO16=RRO_526),PO_136,IF(AND(BM16=PO_134,BO16=PO_149),PO_140,IF(AND(BM16=PO_138,BO16=RRO_526),PO_140,IF(AND(BM16=PO_138,BO16=PO_149),PO_121,IF(AND(BM16=PROPER(PO_119),BO16=RRO_526),PO_140,IF(AND(BM16=PROPER(PO_119),BO16=PO_149),PO_121,IF(AND(BM16=PO_94,BO16=RRO_526),PO_121,IF(AND(BM16=PO_94,BO16=PO_149),PO_94,"")))))))))) ->  | BS16: =IF(AND(BI26=PO_134,BK26=PO_175),BE26,"") ->  | BT16: =IF(AND(BI26=PO_134,BK26=PO_165),BE26,"") ->  | BU16: =IF(AND(BI26=PO_134,BK26=PO_169),BE26,"") -> 
E17: =IF('Main Menu'!CE16=TRUE,'Main Menu'!CA16,"") ->  | I17: =IF(E17="",'Main Menu'!CA16,"") -> Legal claims against the state | AG17: =MM_23 -> Institutional risks | AJ17: =PO_164 -> Policy implementation | AN17: =IF(Questionnaire!AA39=0,"",Questionnaire!AA39) ->  | AO17: =IF(Questionnaire!AA38=0,"",Questionnaire!AA38) ->  | AP17: =IF(Questionnaire!AA37=0,"",Questionnaire!AA37) ->  | AQ17: =IF(Questionnaire!AA36=0,"",Questionnaire!AA36) ->  | AR17: =IF(Questionnaire!AA35=0,"",Questionnaire!AA35) ->  | AS17: =IF(Questionnaire!AA34=0,"",Questionnaire!AA34) ->  | AT17: =IF(Questionnaire!AA33=0,"",Questionnaire!AA33) ->  | AU17: =IF(Questionnaire!AA32=0,"",Questionnaire!AA32) ->  | AV17: =IF(Questionnaire!AA31=0,"",Questionnaire!AA31) ->  | AW17: =IF(Questionnaire!AA30=0,"",Questionnaire!AA30) ->  | BS17: =IF(AND(BI28=PO_134,BK28=PO_175),BE28,"") ->  | BT17: =IF(AND(BI28=PO_134,BK28=PO_165),BE28,"") ->  | BU17: =IF(AND(BI28=PO_134,BK28=PO_169),BE28,"") ->  | BV17: =PO_199 -> Specific risks | BY17: =PO_198 -> Specific revenues | CC17: =Questionnaire!B204 -> FALSE | CE17: =$CD$19 -> FALSE | CF17: =$CD$21 -> FALSE | CG17: =$CD$23 -> FALSE | CH17: =$CD$25 -> FALSE | CI17: =$CD$27 -> FALSE | CJ17: =$CD$29 -> FALSE | CK17: =$CD$31 -> FALSE | CL17: =$CD$33 -> FALSE | CM17: =$CD$35 -> FALSE | CN17: =$CD$37 -> FALSE | CO17: =$CD$39 -> FALSE | CP17: =$CD$41 -> FALSE | CW17: =PO_171 -> Public corporations | DA17: =Questionnaire!$H$47 -> 0 | DB17: =Questionnaire!$H$48 -> 0 | DC17: =Questionnaire!$H$50 -> 0 | DD17: =Questionnaire!$H$49 -> 0 | DF17: =Questionnaire!$H$51 -> 0 | DG17: =Questionnaire!$H$52 -> 0 | DH17: =Questionnaire!$H$53 -> 0 | DI17: =Questionnaire!$H$54 -> 0
E18: =IF('Main Menu'!CE17=TRUE,'Main Menu'!CA17,"") ->  | I18: =IF(E18="",'Main Menu'!CA17,"") -> Lower-level governments | AJ18: =PO_115 -> Governance and capacity | AN18: =IF(Questionnaire!AC39=0,"",Questionnaire!AC39) ->  | AO18: =IF(Questionnaire!AC38=0,"",Questionnaire!AC38) ->  | AP18: =IF(Questionnaire!AC37=0,"",Questionnaire!AC37) ->  | AQ18: =IF(Questionnaire!AC36=0,"",Questionnaire!AC36) ->  | AR18: =IF(Questionnaire!AC35=0,"",Questionnaire!AC35) ->  | AS18: =IF(Questionnaire!AC34=0,"",Questionnaire!AC34) ->  | AT18: =IF(Questionnaire!AC33=0,"",Questionnaire!AC33) ->  | AU18: =IF(Questionnaire!AC32=0,"",Questionnaire!AC32) ->  | AV18: =IF(Questionnaire!AC31=0,"",Questionnaire!AC31) ->  | AW18: =IF(Questionnaire!AC30=0,"",Questionnaire!AC30) ->  | BE18: =PO_173 -> Public private partnerships | BI18: =IF(IF(Questionnaire!N$120=0,"",Questionnaire!N$120)="",PO_1689,IF(Questionnaire!N$120=0,"",Questionnaire!N$120)) -> Not rated | BK18: =IF(IF(Questionnaire!N$130=0,"",Questionnaire!N$130)="",PO_1689,IF(Questionnaire!N$130=0,"",Questionnaire!N$130)) -> Not rated | BM18: =PROPER(IF(AND(BI18=PO_134,BK18=PO_175),PO_129,IF(OR(AND(BI18=PO_134,BK18=PO_165),AND(BI18=PO_138,BK18=PO_175)),PO_134,IF(OR(AND(BI18=PO_134,BK18=PO_169),AND(BI18=PO_138,BK18=PO_165),AND(BI18=PROPER(PO_119),BK18=PO_175)),PO_138,IF(OR(AND(BI18=PROPER(PO_119),BK18=PO_165),AND(BI18=PO_138,BK18=PO_169)),PROPER(PO_119),IF(AND(BI18=PROPER(PO_119),BK18=PO_169),PO_94,"")))))) ->  | BO18: =IF(IF(Questionnaire!N$140=0,"",Questionnaire!N$140)="",PO_1689,IF(Questionnaire!N$140=0,"",Questionnaire!N$140)) -> Not rated | BQ18: =PROPER(IF(AND(BM18=PO_129,OR(BO18=PO_149,BO18=RRO_526)),PO_150,IF(AND(BM18=PO_134,BO18=RRO_526),PO_136,IF(AND(BM18=PO_134,BO18=PO_149),PO_140,IF(AND(BM18=PO_138,BO18=RRO_526),PO_140,IF(AND(BM18=PO_138,BO18=PO_149),PO_121,IF(AND(BM18=PROPER(PO_119),BO18=RRO_526),PO_140,IF(AND(BM18=PROPER(PO_119),BO18=PO_149),PO_121,IF(AND(BM18=PO_94,BO18=RRO_526),PO_121,IF(AND(BM18=PO_94,BO18=PO_149),PO_94,"")))))))))) ->  | BS18: =IF(AND(BI30=PO_134,BK30=PO_175),BE30,"") ->  | BT18: =IF(AND(BI30=PO_134,BK30=PO_165),BE30,"") ->  | BU18: =IF(AND(BI30=PO_134,BK30=PO_169),BE30,"") -> 
E19: =IF('Main Menu'!CE18=TRUE,'Main Menu'!CA18,"") ->  | I19: =IF(E19="",'Main Menu'!CA18,"") -> Natural resources | BS19: =IF(AND(BI32=PO_134,BK32=PO_175),BE32,"") ->  | BT19: =IF(AND(BI32=PO_134,BK32=PO_165),BE32,"") ->  | BU19: =IF(AND(BI32=PO_134,BK32=PO_169),BE32,"") ->  | BY19: =PO_117 -> Government assets and liabilities | CC19: =Questionnaire!B206 -> FALSE | CD19: =Questionnaire!D206 -> FALSE | CF19: =$CE$21 -> FALSE | CG19: =$CE$23 -> FALSE | CH19: =$CE$25 -> FALSE | CI19: =$CE$27 -> FALSE | CJ19: =$CE$29 -> FALSE | CK19: =$CE$31 -> FALSE | CL19: =$CE$33 -> FALSE | CM19: =$CE$35 -> FALSE | CN19: =$CE$37 -> FALSE | CO19: =$CE$39 -> FALSE | CP19: =$CE$41 -> FALSE | CW19: =PO_118 -> Government guarantees | DA19: =Questionnaire!$J$47 -> 0 | DB19: =Questionnaire!$J$48 -> 0 | DC19: =Questionnaire!$J$50 -> 0 | DD19: =Questionnaire!$J$49 -> 0 | DF19: =Questionnaire!$J$51 -> 0 | DG19: =Questionnaire!$J$52 -> 0 | DH19: =Questionnaire!$J$53 -> 0 | DI19: =Questionnaire!$J$54 -> 0
B20: =MM_23 -> Institutional risks | E20: =IF('Main Menu'!CE19=TRUE,'Main Menu'!CA19,"") ->  | I20: =IF(E20="",'Main Menu'!CA19,"") -> Policy implementation | AK20: Low | AN20: Medium | AQ20: High | BE20: =PO_104 -> Financial sector | BI20: =IF(IF(Questionnaire!P$120=0,"",Questionnaire!P$120)="",PO_1689,IF(Questionnaire!P$120=0,"",Questionnaire!P$120)) -> Not rated | BK20: =IF(IF(Questionnaire!P$130=0,"",Questionnaire!P$130)="",PO_1689,IF(Questionnaire!P$130=0,"",Questionnaire!P$130)) -> Not rated | BM20: =PROPER(IF(AND(BI20=PO_134,BK20=PO_175),PO_129,IF(OR(AND(BI20=PO_134,BK20=PO_165),AND(BI20=PO_138,BK20=PO_175)),PO_134,IF(OR(AND(BI20=PO_134,BK20=PO_169),AND(BI20=PO_138,BK20=PO_165),AND(BI20=PROPER(PO_119),BK20=PO_175)),PO_138,IF(OR(AND(BI20=PROPER(PO_119),BK20=PO_165),AND(BI20=PO_138,BK20=PO_169)),PROPER(PO_119),IF(AND(BI20=PROPER(PO_119),BK20=PO_169),PO_94,"")))))) ->  | BO20: =IF(IF(Questionnaire!P$140=0,"",Questionnaire!P$140)="",PO_1689,IF(Questionnaire!P$140=0,"",Questionnaire!P$140)) -> Not rated | BQ20: =PROPER(IF(AND(BM20=PO_129,OR(BO20=PO_149,BO20=RRO_526)),PO_150,IF(AND(BM20=PO_134,BO20=RRO_526),PO_136,IF(AND(BM20=PO_134,BO20=PO_149),PO_140,IF(AND(BM20=PO_138,BO20=RRO_526),PO_140,IF(AND(BM20=PO_138,BO20=PO_149),PO_121,IF(AND(BM20=PROPER(PO_119),BO20=RRO_526),PO_140,IF(AND(BM20=PROPER(PO_119),BO20=PO_149),PO_121,IF(AND(BM20=PO_94,BO20=RRO_526),PO_121,IF(AND(BM20=PO_94,BO20=PO_149),PO_94,"")))))))))) ->  | BS20: 2021-02-01 | BT20: 2021-02-02 | BU20: 2021-02-03
E21: =IF('Main Menu'!CE20=TRUE,'Main Menu'!CA20,"") ->  | I21: =IF(E21="",'Main Menu'!CA20,"") -> Governance and capacity | BS21: =IF(AND(BI6=PO_138,BK6=PO_175),BE6,"") ->  | BT21: =IF(AND(BI6=PO_138,BK6=PO_165),BE6,"") ->  | BU21: =IF(AND(BI6=PO_138,BK6=PO_169),BE6,"") ->  | BY21: =PO_171 -> Public corporations | CC21: =Questionnaire!B208 -> FALSE | CD21: =Questionnaire!D208 -> FALSE | CE21: =Questionnaire!F208 -> FALSE | CG21: =$CF$23 -> FALSE | CH21: =$CF$25 -> FALSE | CI21: =$CF$27 -> FALSE | CJ21: =$CF$29 -> FALSE | CK21: =$CF$31 -> FALSE | CL21: =$CF$33 -> FALSE | CM21: =$CF$35 -> FALSE | CN21: =$CF$37 -> FALSE | CO21: =$CF$39 -> FALSE | CP21: =$CF$41 -> FALSE | CW21: =PO_172 -> Public investment | DA21: =Questionnaire!$L$47 -> 0 | DB21: =Questionnaire!$L$48 -> 0 | DC21: =Questionnaire!$L$50 -> 0 | DD21: =Questionnaire!$L$49 -> 0 | DF21: =Questionnaire!$L$51 -> 0 | DG21: =Questionnaire!$L$52 -> 0 | DH21: =Questionnaire!$L$53 -> 0 | DI21: =Questionnaire!$L$54 -> 0
BE22: =PO_100 -> Environmental risks | BI22: =IF(IF(Questionnaire!R$120=0,"",Questionnaire!R$120)="",PO_1689,IF(Questionnaire!R$120=0,"",Questionnaire!R$120)) -> Not rated | BK22: =IF(IF(Questionnaire!R$130=0,"",Questionnaire!R$130)="",PO_1689,IF(Questionnaire!R$130=0,"",Questionnaire!R$130)) -> Not rated | BM22: =PROPER(IF(AND(BI22=PO_134,BK22=PO_175),PO_129,IF(OR(AND(BI22=PO_134,BK22=PO_165),AND(BI22=PO_138,BK22=PO_175)),PO_134,IF(OR(AND(BI22=PO_134,BK22=PO_169),AND(BI22=PO_138,BK22=PO_165),AND(BI22=PROPER(PO_119),BK22=PO_175)),PO_138,IF(OR(AND(BI22=PROPER(PO_119),BK22=PO_165),AND(BI22=PO_138,BK22=PO_169)),PROPER(PO_119),IF(AND(BI22=PROPER(PO_119),BK22=PO_169),PO_94,"")))))) ->  | BO22: =IF(IF(Questionnaire!R$140=0,"",Questionnaire!R$140)="",PO_1689,IF(Questionnaire!R$140=0,"",Questionnaire!R$140)) -> Not rated | BQ22: =PROPER(IF(AND(BM22=PO_129,OR(BO22=PO_149,BO22=RRO_526)),PO_150,IF(AND(BM22=PO_134,BO22=RRO_526),PO_136,IF(AND(BM22=PO_134,BO22=PO_149),PO_140,IF(AND(BM22=PO_138,BO22=RRO_526),PO_140,IF(AND(BM22=PO_138,BO22=PO_149),PO_121,IF(AND(BM22=PROPER(PO_119),BO22=RRO_526),PO_140,IF(AND(BM22=PROPER(PO_119),BO22=PO_149),PO_121,IF(AND(BM22=PO_94,BO22=RRO_526),PO_121,IF(AND(BM22=PO_94,BO22=PO_149),PO_94,"")))))))))) ->  | BS22: =IF(AND(BI8=PO_138,BK8=PO_175),BE8,"") ->  | BT22: =IF(AND(BI8=PO_138,BK8=PO_165),BE8,"") ->  | BU22: =IF(AND(BI8=PO_138,BK8=PO_169),BE8,"") -> 
A23: =PO_97 -> DEPTH OF ANALYSIS | BS23: =IF(AND(BI10=PO_138,BK10=PO_175),BE10,"") ->  | BT23: =IF(AND(BI10=PO_138,BK10=PO_165),BE10,"") ->  | BU23: =IF(AND(BI10=PO_138,BK10=PO_169),BE10,"") ->  | BY23: =PO_118 -> Government guarantees | CC23: =Questionnaire!B210 -> FALSE | CD23: =Questionnaire!D210 -> FALSE | CE23: =Questionnaire!F210 -> FALSE | CF23: =Questionnaire!H210 -> FALSE | CH23: =$CG$25 -> FALSE | CI23: =$CG$27 -> FALSE | CJ23: =$CG$29 -> FALSE | CK23: =$CG$31 -> FALSE | CL23: =$CG$33 -> FALSE | CM23: =$CG$35 -> FALSE | CN23: =$CG$37 -> FALSE | CO23: =$CG$39 -> FALSE | CP23: =$CG$41 -> FALSE | CW23: =PO_173 -> Public private partnerships | DA23: =Questionnaire!$N$47 -> 0 | DB23: =Questionnaire!$N$48 -> 0 | DC23: =Questionnaire!$N$50 -> 0 | DD23: =Questionnaire!$N$49 -> 0 | DF23: =Questionnaire!$N$51 -> 0 | DG23: =Questionnaire!$N$52 -> 0 | DH23: =Questionnaire!$N$53 -> 0 | DI23: =Questionnaire!$N$54 -> 0
BE24: =PO_130 -> Legal claims against the state | BI24: =IF(IF(Questionnaire!T$120=0,"",Questionnaire!T$120)="",PO_1689,IF(Questionnaire!T$120=0,"",Questionnaire!T$120)) -> Not rated | BK24: =IF(IF(Questionnaire!T$130=0,"",Questionnaire!T$130)="",PO_1689,IF(Questionnaire!T$130=0,"",Questionnaire!T$130)) -> Not rated | BM24: =PROPER(IF(AND(BI24=PO_134,BK24=PO_175),PO_129,IF(OR(AND(BI24=PO_134,BK24=PO_165),AND(BI24=PO_138,BK24=PO_175)),PO_134,IF(OR(AND(BI24=PO_134,BK24=PO_169),AND(BI24=PO_138,BK24=PO_165),AND(BI24=PROPER(PO_119),BK24=PO_175)),PO_138,IF(OR(AND(BI24=PROPER(PO_119),BK24=PO_165),AND(BI24=PO_138,BK24=PO_169)),PROPER(PO_119),IF(AND(BI24=PROPER(PO_119),BK24=PO_169),PO_94,"")))))) ->  | BO24: =IF(IF(Questionnaire!T$140=0,"",Questionnaire!T$140)="",PO_1689,IF(Questionnaire!T$140=0,"",Questionnaire!T$140)) -> Not rated | BQ24: =PROPER(IF(AND(BM24=PO_129,OR(BO24=PO_149,BO24=RRO_526)),PO_150,IF(AND(BM24=PO_134,BO24=RRO_526),PO_136,IF(AND(BM24=PO_134,BO24=PO_149),PO_140,IF(AND(BM24=PO_138,BO24=RRO_526),PO_140,IF(AND(BM24=PO_138,BO24=PO_149),PO_121,IF(AND(BM24=PROPER(PO_119),BO24=RRO_526),PO_140,IF(AND(BM24=PROPER(PO_119),BO24=PO_149),PO_121,IF(AND(BM24=PO_94,BO24=RRO_526),PO_121,IF(AND(BM24=PO_94,BO24=PO_149),PO_94,"")))))))))) ->  | BS24: =IF(AND(BI12=PO_138,BK12=PO_175),BE12,"") ->  | BT24: =IF(AND(BI12=PO_138,BK12=PO_165),BE12,"") ->  | BU24: =IF(AND(BI12=PO_138,BK12=PO_169),BE12,"") -> 
B25: =PO_209 -> Type of fiscal risk | E25: =PO_196 -> Sources of risks covered in application of tool | I25: =PO_181 -> Risk identification | J25: =PO_184 -> Risk quantification | K25: =PO_179 -> Risk assessment and prioritization | BS25: =IF(AND(BI14=PO_138,BK14=PO_175),BE14,"") ->  | BT25: =IF(AND(BI14=PO_138,BK14=PO_165),BE14,"") ->  | BU25: =IF(AND(BI14=PO_138,BK14=PO_169),BE14,"") ->  | BY25: =PO_172 -> Public investment | CC25: =Questionnaire!B212 -> FALSE | CD25: =Questionnaire!D212 -> FALSE | CE25: =Questionnaire!F212 -> FALSE | CF25: =Questionnaire!H212 -> FALSE | CG25: =Questionnaire!J212 -> FALSE | CI25: =$CH$27 -> FALSE | CJ25: =$CH$29 -> FALSE | CK25: =$CH$31 -> FALSE | CL25: =$CH$33 -> FALSE | CM25: =$CH$35 -> FALSE | CN25: =$CH$37 -> FALSE | CO25: =$CH$39 -> FALSE | CP25: =$CH$41 -> FALSE | CW25: =PO_104 -> Financial sector | DA25: =Questionnaire!$P$47 -> 0 | DB25: =Questionnaire!$P$48 -> 0 | DC25: =Questionnaire!$P$50 -> 0 | DD25: =Questionnaire!$P$49 -> 0 | DF25: =Questionnaire!$P$51 -> 0 | DG25: =Questionnaire!$P$52 -> 0 | DH25: =Questionnaire!$P$53 -> 0 | DI25: =Questionnaire!$P$54 -> 0
BE26: =PO_137 -> Lower-level governments | BI26: =IF(IF(Questionnaire!V$120=0,"",Questionnaire!V$120)="",PO_1689,IF(Questionnaire!V$120=0,"",Questionnaire!V$120)) -> Not rated | BK26: =IF(IF(Questionnaire!V$130=0,"",Questionnaire!V$130)="",PO_1689,IF(Questionnaire!V$130=0,"",Questionnaire!V$130)) -> Not rated | BM26: =PROPER(IF(AND(BI26=PO_134,BK26=PO_175),PO_129,IF(OR(AND(BI26=PO_134,BK26=PO_165),AND(BI26=PO_138,BK26=PO_175)),PO_134,IF(OR(AND(BI26=PO_134,BK26=PO_169),AND(BI26=PO_138,BK26=PO_165),AND(BI26=PROPER(PO_119),BK26=PO_175)),PO_138,IF(OR(AND(BI26=PROPER(PO_119),BK26=PO_165),AND(BI26=PO_138,BK26=PO_169)),PROPER(PO_119),IF(AND(BI26=PROPER(PO_119),BK26=PO_169),PO_94,"")))))) ->  | BO26: =IF(IF(Questionnaire!V$140=0,"",Questionnaire!V$140)="",PO_1689,IF(Questionnaire!V$140=0,"",Questionnaire!V$140)) -> Not rated | BQ26: =PROPER(IF(AND(BM26=PO_129,OR(BO26=PO_149,BO26=RRO_526)),PO_150,IF(AND(BM26=PO_134,BO26=RRO_526),PO_136,IF(AND(BM26=PO_134,BO26=PO_149),PO_140,IF(AND(BM26=PO_138,BO26=RRO_526),PO_140,IF(AND(BM26=PO_138,BO26=PO_149),PO_121,IF(AND(BM26=PROPER(PO_119),BO26=RRO_526),PO_140,IF(AND(BM26=PROPER(PO_119),BO26=PO_149),PO_121,IF(AND(BM26=PO_94,BO26=RRO_526),PO_121,IF(AND(BM26=PO_94,BO26=PO_149),PO_94,"")))))))))) ->  | BS26: =IF(AND(BI16=PO_138,BK16=PO_175),BE16,"") ->  | BT26: =IF(AND(BI16=PO_138,BK16=PO_165),BE16,"") ->  | BU26: =IF(AND(BI16=PO_138,BK16=PO_169),BE16,"") -> 
BS27: =IF(AND(BI18=PO_138,BK18=PO_175),BE18,"") ->  | BT27: =IF(AND(BI18=PO_138,BK18=PO_165),BE18,"") ->  | BU27: =IF(AND(BI18=PO_138,BK18=PO_169),BE18,"") ->  | BY27: =PO_173 -> Public private partnerships | CC27: =Questionnaire!B214 -> FALSE | CD27: =Questionnaire!D214 -> FALSE | CE27: =Questionnaire!F214 -> FALSE | CF27: =Questionnaire!H214 -> FALSE | CG27: =Questionnaire!J214 -> FALSE | CH27: =Questionnaire!L214 -> FALSE | CJ27: =$CI$29 -> FALSE | CK27: =$CI$31 -> FALSE | CL27: =$CI$33 -> FALSE | CM27: =$CI$35 -> FALSE | CN27: =$CI$37 -> FALSE | CO27: =$CI$39 -> FALSE | CP27: =$CI$41 -> FALSE | CW27: =PO_100 -> Environmental risks | DA27: =Questionnaire!$R$47 -> 0 | DB27: =Questionnaire!$R$48 -> 0 | DC27: =Questionnaire!$R$50 -> 0 | DD27: =Questionnaire!$R$49 -> 0 | DF27: =Questionnaire!$R$51 -> 0 | DG27: =Questionnaire!$R$52 -> 0 | DH27: =Questionnaire!$R$53 -> 0 | DI27: =Questionnaire!$R$54 -> 0
B28: =MM_30 -> Macroeconomic risks | E28: =E8 ->  | I28: =IF(E28="","",Questionnaire!B511) ->  | J28: =IF(E28="","",Questionnaire!B515) ->  | K28: =IF(E28="","",Questionnaire!B519) ->  | BE28: =PO_147 -> Natural resources | BI28: =IF(IF(Questionnaire!X$120=0,"",Questionnaire!X$120)="",PO_1689,IF(Questionnaire!X$120=0,"",Questionnaire!X$120)) -> Not rated | BK28: =IF(IF(Questionnaire!X$130=0,"",Questionnaire!X$130)="",PO_1689,IF(Questionnaire!X$130=0,"",Questionnaire!X$130)) -> Not rated | BM28: =PROPER(IF(AND(BI28=PO_134,BK28=PO_175),PO_129,IF(OR(AND(BI28=PO_134,BK28=PO_165),AND(BI28=PO_138,BK28=PO_175)),PO_134,IF(OR(AND(BI28=PO_134,BK28=PO_169),AND(BI28=PO_138,BK28=PO_165),AND(BI28=PROPER(PO_119),BK28=PO_175)),PO_138,IF(OR(AND(BI28=PROPER(PO_119),BK28=PO_165),AND(BI28=PO_138,BK28=PO_169)),PROPER(PO_119),IF(AND(BI28=PROPER(PO_119),BK28=PO_169),PO_94,"")))))) ->  | BO28: =IF(IF(Questionnaire!X$140=0,"",Questionnaire!X$140)="",PO_1689,IF(Questionnaire!X$140=0,"",Questionnaire!X$140)) -> Not rated | BQ28: =PROPER(IF(AND(BM28=PO_129,OR(BO28=PO_149,BO28=RRO_526)),PO_150,IF(AND(BM28=PO_134,BO28=RRO_526),PO_136,IF(AND(BM28=PO_134,BO28=PO_149),PO_140,IF(AND(BM28=PO_138,BO28=RRO_526),PO_140,IF(AND(BM28=PO_138,BO28=PO_149),PO_121,IF(AND(BM28=PROPER(PO_119),BO28=RRO_526),PO_140,IF(AND(BM28=PROPER(PO_119),BO28=PO_149),PO_121,IF(AND(BM28=PO_94,BO28=RRO_526),PO_121,IF(AND(BM28=PO_94,BO28=PO_149),PO_94,"")))))))))) ->  | BS28: =IF(AND(BI20=PO_138,BK20=PO_175),BE20,"") ->  | BT28: =IF(AND(BI20=PO_138,BK20=PO_165),BE20,"") ->  | BU28: =IF(AND(BI20=PO_138,BK20=PO_169),BE20,"") -> 
B29: =PO_199 -> Specific risks | I29: =IF(E29="","",Questionnaire!D511) ->  | J29: =IF(E29="","",Questionnaire!D515) ->  | K29: =IF(E29="","",Questionnaire!D519) ->  | BS29: =IF(AND(BI22=PO_138,BK22=PO_175),BE22,"") ->  | BT29: =IF(AND(BI22=PO_138,BK22=PO_165),BE22,"") ->  | BU29: =IF(AND(BI22=PO_138,BK22=PO_169),BE22,"") ->  | BY29: =PO_104 -> Financial sector | CC29: =Questionnaire!B216 -> FALSE | CD29: =Questionnaire!D216 -> FALSE | CE29: =Questionnaire!F216 -> FALSE | CF29: =Questionnaire!H216 -> FALSE | CG29: =Questionnaire!J216 -> FALSE | CH29: =Questionnaire!L216 -> FALSE | CI29: =Questionnaire!N216 -> FALSE | CK29: =$CJ$31 -> FALSE | CL29: =$CJ$33 -> FALSE | CM29: =$CJ$35 -> FALSE | CN29: =$CJ$37 -> FALSE | CO29: =$CJ$39 -> FALSE | CP29: =$CJ$41 -> FALSE | CW29: =PO_130 -> Legal claims against the state | DA29: =Questionnaire!$T$47 -> 0 | DB29: =Questionnaire!$T$48 -> 0 | DC29: =Questionnaire!$T$50 -> 0 | DD29: =Questionnaire!$T$49 -> 0 | DF29: =Questionnaire!$T$51 -> 0 | DG29: =Questionnaire!$T$52 -> 0 | DH29: =Questionnaire!$T$53 -> 0 | DI29: =Questionnaire!$T$54 -> 0
I30: =IF(E30="","",Questionnaire!F511) ->  | J30: =IF(E30="","",Questionnaire!F515) ->  | K30: =IF(E30="","",Questionnaire!F519) ->  | BA30: =MM_23 -> Institutional risks | BE30: =PO_164 -> Policy implementation | BI30: =IF(IF(Questionnaire!AB$120=0,"",Questionnaire!AB$120)="",PO_1689,IF(Questionnaire!AB$120=0,"",Questionnaire!AB$120)) -> Not rated | BK30: =IF(IF(Questionnaire!AB$130=0,"",Questionnaire!AB$130)="",PO_1689,IF(Questionnaire!AB$130=0,"",Questionnaire!AB$130)) -> Not rated | BM30: =PROPER(IF(AND(BI30=PO_134,BK30=PO_175),PO_129,IF(OR(AND(BI30=PO_134,BK30=PO_165),AND(BI30=PO_138,BK30=PO_175)),PO_134,IF(OR(AND(BI30=PO_134,BK30=PO_169),AND(BI30=PO_138,BK30=PO_165),AND(BI30=PROPER(PO_119),BK30=PO_175)),PO_138,IF(OR(AND(BI30=PROPER(PO_119),BK30=PO_165),AND(BI30=PO_138,BK30=PO_169)),PROPER(PO_119),IF(AND(BI30=PROPER(PO_119),BK30=PO_169),PO_94,"")))))) ->  | BO30: =IF(IF(Questionnaire!AB$140=0,"",Questionnaire!AB$140)="",PO_1689,IF(Questionnaire!AB$140=0,"",Questionnaire!AB$140)) -> Not rated | BQ30: =PROPER(IF(AND(BM30=PO_129,OR(BO30=PO_149,BO30=RRO_526)),PO_150,IF(AND(BM30=PO_134,BO30=RRO_526),PO_136,IF(AND(BM30=PO_134,BO30=PO_149),PO_140,IF(AND(BM30=PO_138,BO30=RRO_526),PO_140,IF(AND(BM30=PO_138,BO30=PO_149),PO_121,IF(AND(BM30=PROPER(PO_119),BO30=RRO_526),PO_140,IF(AND(BM30=PROPER(PO_119),BO30=PO_149),PO_121,IF(AND(BM30=PO_94,BO30=RRO_526),PO_121,IF(AND(BM30=PO_94,BO30=PO_149),PO_94,"")))))))))) ->  | BS30: =IF(AND(BI24=PO_138,BK24=PO_175),BE24,"") ->  | BT30: =IF(AND(BI24=PO_138,BK24=PO_165),BE24,"") ->  | BU30: =IF(AND(BI24=PO_138,BK24=PO_169),BE24,"") -> 
I31: =IF(E31="","",Questionnaire!H511) ->  | J31: =IF(E31="","",Questionnaire!H515) ->  | K31: =IF(E31="","",Questionnaire!H519) ->  | S31: =VBAC_1324 -> Could not be answered | T31: =PO_1740 -> Answered | U31: =PO_1741 -> Skipped | W31: =PO_1805 -> Degree to which questions related to risk identification, quantification, and assessment and prioritization have been responded to (in percent) | BS31: =IF(AND(BI26=PO_138,BK26=PO_175),BE26,"") ->  | BT31: =IF(AND(BI26=PO_138,BK26=PO_165),BE26,"") ->  | BU31: =IF(AND(BI26=PO_138,BK26=PO_169),BE26,"") ->  | BY31: =PO_100 -> Environmental risks | CC31: =Questionnaire!B218 -> FALSE | CD31: =Questionnaire!D218 -> FALSE | CE31: =Questionnaire!F218 -> FALSE | CF31: =Questionnaire!H218 -> FALSE | CG31: =Questionnaire!J218 -> FALSE | CH31: =Questionnaire!L218 -> FALSE | CI31: =Questionnaire!N218 -> FALSE | CJ31: =Questionnaire!P218 -> FALSE | CL31: =$CK$33 -> FALSE | CM31: =$CK$35 -> FALSE | CN31: =$CK$37 -> FALSE | CO31: =$CK$39 -> FALSE | CP31: =$CK$41 -> FALSE | CW31: =PO_137 -> Lower-level governments | DA31: =Questionnaire!$V$47 -> 0 | DB31: =Questionnaire!$V$48 -> 0 | DC31: =Questionnaire!$V$50 -> 0 | DD31: =Questionnaire!$V$49 -> 0 | DF31: =Questionnaire!$V$51 -> 0 | DG31: =Questionnaire!$V$52 -> 0 | DH31: =Questionnaire!$V$53 -> 0 | DI31: =Questionnaire!$V$54 -> 0
I32: =IF(E32="","",Questionnaire!J511) ->  | J32: =IF(E32="","",Questionnaire!J515) ->  | K32: =IF(E32="","",Questionnaire!J519) ->  | R32: =E8 ->  | S32: =Questionnaire!B522 -> 0 | T32: =Questionnaire!B523 -> 0 | U32: =Questionnaire!B524 -> 0 | BE32: =PO_115 -> Governance and capacity | BI32: =IF(IF(Questionnaire!AD$120=0,"",Questionnaire!AD$120)="",PO_1689,IF(Questionnaire!AD$120=0,"",Questionnaire!AD$120)) -> Not rated | BK32: =IF(IF(Questionnaire!AD$130=0,"",Questionnaire!AD$130)="",PO_1689,IF(Questionnaire!AD$130=0,"",Questionnaire!AD$130)) -> Not rated | BM32: =PROPER(IF(AND(BI32=PO_134,BK32=PO_175),PO_129,IF(OR(AND(BI32=PO_134,BK32=PO_165),AND(BI32=PO_138,BK32=PO_175)),PO_134,IF(OR(AND(BI32=PO_134,BK32=PO_169),AND(BI32=PO_138,BK32=PO_165),AND(BI32=PROPER(PO_119),BK32=PO_175)),PO_138,IF(OR(AND(BI32=PROPER(PO_119),BK32=PO_165),AND(BI32=PO_138,BK32=PO_169)),PROPER(PO_119),IF(AND(BI32=PROPER(PO_119),BK32=PO_169),PO_94,"")))))) ->  | BO32: =IF(IF(Questionnaire!AD$140=0,"",Questionnaire!AD$140)="",PO_1689,IF(Questionnaire!AD$140=0,"",Questionnaire!AD$140)) -> Not rated | BQ32: =PROPER(IF(AND(BM32=PO_129,OR(BO32=PO_149,BO32=RRO_526)),PO_150,IF(AND(BM32=PO_134,BO32=RRO_526),PO_136,IF(AND(BM32=PO_134,BO32=PO_149),PO_140,IF(AND(BM32=PO_138,BO32=RRO_526),PO_140,IF(AND(BM32=PO_138,BO32=PO_149),PO_121,IF(AND(BM32=PROPER(PO_119),BO32=RRO_526),PO_140,IF(AND(BM32=PROPER(PO_119),BO32=PO_149),PO_121,IF(AND(BM32=PO_94,BO32=RRO_526),PO_121,IF(AND(BM32=PO_94,BO32=PO_149),PO_94,"")))))))))) ->  | BS32: =IF(AND(BI28=PO_138,BK28=PO_175),BE28,"") ->  | BT32: =IF(AND(BI28=PO_138,BK28=PO_165),BE28,"") ->  | BU32: =IF(AND(BI28=PO_138,BK28=PO_169),BE28,"") -> 
I33: =IF(E33="","",Questionnaire!L511) ->  | J33: =IF(E33="","",Questionnaire!L515) ->  | K33: =IF(E33="","",Questionnaire!L519) ->  | S33: =Questionnaire!D522 -> 0 | T33: =Questionnaire!D523 -> 0 | U33: =Questionnaire!D524 -> 0 | BS33: =IF(AND(BI30=PO_138,BK30=PO_175),BE30,"") ->  | BT33: =IF(AND(BI30=PO_138,BK30=PO_165),BE30,"") ->  | BU33: =IF(AND(BI30=PO_138,BK30=PO_169),BE30,"") ->  | BY33: =PO_130 -> Legal claims against the state | CC33: =Questionnaire!B220 -> FALSE | CD33: =Questionnaire!D220 -> FALSE | CE33: =Questionnaire!F220 -> FALSE | CF33: =Questionnaire!H220 -> FALSE | CG33: =Questionnaire!J220 -> FALSE | CH33: =Questionnaire!L220 -> FALSE | CI33: =Questionnaire!N220 -> FALSE | CJ33: =Questionnaire!P220 -> FALSE | CK33: =Questionnaire!R220 -> FALSE | CM33: =$CL$35 -> FALSE | CN33: =$CL$37 -> FALSE | CO33: =$CL$39 -> FALSE | CP33: =$CL$41 -> FALSE | CW33: =PO_147 -> Natural resources | DA33: =Questionnaire!$X$47 -> 0 | DB33: =Questionnaire!$X$48 -> 0 | DC33: =Questionnaire!$X$50 -> 0 | DD33: =Questionnaire!$X$49 -> 0 | DF33: =Questionnaire!$X$51 -> 0 | DG33: =Questionnaire!$X$52 -> 0 | DH33: =Questionnaire!$X$53 -> 0 | DI33: =Questionnaire!$X$54 -> 0
I34: =IF(E34="","",Questionnaire!N511) ->  | J34: =IF(E34="","",Questionnaire!N515) ->  | K34: =IF(E34="","",Questionnaire!N519) ->  | S34: =Questionnaire!F522 -> 0 | T34: =Questionnaire!F523 -> 0 | U34: =Questionnaire!F524 -> 0 | BS34: =IF(AND(BI32=PO_138,BK32=PO_175),BE32,"") ->  | BT34: =IF(AND(BI32=PO_138,BK32=PO_165),BE32,"") ->  | BU34: =IF(AND(BI32=PO_138,BK32=PO_169),BE32,"") -> 
I35: =IF(E35="","",Questionnaire!P511) ->  | J35: =IF(E35="","",Questionnaire!P515) ->  | K35: =IF(E35="","",Questionnaire!P519) ->  | S35: =Questionnaire!H522 -> 0 | T35: =Questionnaire!H523 -> 0 | U35: =Questionnaire!H524 -> 0 | BB35: =PO_166 -> Potential fiscal impact | BD35: =PROPER(PO_119) -> High | BE35: =CONCATEWITHAND(BS36:BS49) ->  | BI35: =CONCATEWITHAND(BT36:BT49) ->  | BM35: =CONCATEWITHAND(BU36:BU49) ->  | BS35: 2021-03-01 | BT35: 2021-03-02 | BU35: 2021-03-03 | BY35: =PO_137 -> Lower-level governments | CC35: =Questionnaire!B222 -> FALSE | CD35: =Questionnaire!D222 -> FALSE | CE35: =Questionnaire!F222 -> FALSE | CF35: =Questionnaire!H222 -> FALSE | CG35: =Questionnaire!J222 -> FALSE | CH35: =Questionnaire!L222 -> FALSE | CI35: =Questionnaire!N222 -> FALSE | CJ35: =Questionnaire!P222 -> FALSE | CK35: =Questionnaire!R222 -> FALSE | CL35: =Questionnaire!T222 -> FALSE | CN35: =$CM$37 -> FALSE | CO35: =$CM$39 -> FALSE | CP35: =$CM$41 -> FALSE | CT35: =MM_23 -> Institutional risks | CW35: =PO_164 -> Policy implementation | DA35: =Questionnaire!$AB$47 -> 0 | DB35: =Questionnaire!$AB$48 -> 0 | DC35: =Questionnaire!$AB$50 -> 0 | DD35: =Questionnaire!$AB$49 -> 0 | DF35: =Questionnaire!$AB$51 -> 0 | DG35: =Questionnaire!$AB$52 -> 0 | DH35: =Questionnaire!$AB$53 -> 0 | DI35: =Questionnaire!$AB$54 -> 0
I36: =IF(E36="","",Questionnaire!R511) ->  | J36: =IF(E36="","",Questionnaire!R515) ->  | K36: =IF(E36="","",Questionnaire!R519) ->  | S36: =Questionnaire!J522 -> 0 | T36: =Questionnaire!J523 -> 0 | U36: =Questionnaire!J524 -> 0 | BS36: =IF(AND(BI6=PROPER(PO_119),BK6=PO_175),BE6,"") ->  | BT36: =IF(AND(BI6=PROPER(PO_119),BK6=PO_165),BE6,"") ->  | BU36: =IF(AND(BI6=PROPER(PO_119),BK6=PO_169),BE6,"") -> 
I37: =IF(E37="","",Questionnaire!T511) ->  | J37: =IF(E37="","",Questionnaire!T515) ->  | K37: =IF(E37="","",Questionnaire!T519) ->  | S37: =Questionnaire!L522 -> 0 | T37: =Questionnaire!L523 -> 0 | U37: =Questionnaire!L524 -> 0 | BS37: =IF(AND(BI8=PROPER(PO_119),BK8=PO_175),BE8,"") ->  | BT37: =IF(AND(BI8=PROPER(PO_119),BK8=PO_165),BE8,"") ->  | BU37: =IF(AND(BI8=PROPER(PO_119),BK8=PO_169),BE8,"") ->  | BY37: =PO_147 -> Natural resources | CC37: =Questionnaire!B224 -> FALSE | CD37: =Questionnaire!D224 -> FALSE | CE37: =Questionnaire!F224 -> FALSE | CF37: =Questionnaire!H224 -> FALSE | CG37: =Questionnaire!J224 -> FALSE | CH37: =Questionnaire!L224 -> FALSE | CI37: =Questionnaire!N224 -> FALSE | CJ37: =Questionnaire!P224 -> FALSE | CK37: =Questionnaire!R224 -> FALSE | CL37: =Questionnaire!T224 -> FALSE | CM37: =Questionnaire!V224 -> FALSE | CO37: =$CN$39 -> FALSE | CP37: =$CN$41 -> FALSE | CW37: =PO_115 -> Governance and capacity | DA37: =Questionnaire!$AD$47 -> 0 | DB37: =Questionnaire!$AD$48 -> 0 | DC37: =Questionnaire!$AD$50 -> 0 | DD37: =Questionnaire!$AD$49 -> 0 | DF37: =Questionnaire!$AD$51 -> 0 | DG37: =Questionnaire!$AD$52 -> 0 | DH37: =Questionnaire!$AD$53 -> 0 | DI37: =Questionnaire!$AD$54 -> 0
I38: =IF(E38="","",Questionnaire!V511) ->  | J38: =IF(E38="","",Questionnaire!V515) ->  | K38: =IF(E38="","",Questionnaire!V519) ->  | S38: =Questionnaire!N522 -> 0 | T38: =Questionnaire!N523 -> 0 | U38: =Questionnaire!N524 -> 0 | BS38: =IF(AND(BI10=PROPER(PO_119),BK10=PO_175),BE10,"") ->  | BT38: =IF(AND(BI10=PROPER(PO_119),BK10=PO_165),BE10,"") ->  | BU38: =IF(AND(BI10=PROPER(PO_119),BK10=PO_169),BE10,"") -> 
I39: =IF(E39="","",Questionnaire!X511) ->  | J39: =IF(E39="","",Questionnaire!X515) ->  | K39: =IF(E39="","",Questionnaire!X519) ->  | S39: =Questionnaire!P522 -> 0 | T39: =Questionnaire!P523 -> 0 | U39: =Questionnaire!P524 -> 0 | BS39: =IF(AND(BI12=PROPER(PO_119),BK12=PO_175),BE12,"") ->  | BT39: =IF(AND(BI12=PROPER(PO_119),BK12=PO_165),BE12,"") ->  | BU39: =IF(AND(BI12=PROPER(PO_119),BK12=PO_169),BE12,"") ->  | BV39: =MM_23 -> Institutional risks | BY39: =PO_164 -> Policy implementation | CC39: =Questionnaire!B228 -> FALSE | CD39: =Questionnaire!D228 -> FALSE | CE39: =Questionnaire!F228 -> FALSE | CF39: =Questionnaire!H228 -> FALSE | CG39: =Questionnaire!J228 -> FALSE | CH39: =Questionnaire!L228 -> FALSE | CI39: =Questionnaire!N228 -> FALSE | CJ39: =Questionnaire!P228 -> FALSE | CK39: =Questionnaire!R228 -> FALSE | CL39: =Questionnaire!T228 -> FALSE | CM39: =Questionnaire!V228 -> FALSE | CN39: =Questionnaire!X228 -> FALSE | CP39: =$CO$41 -> FALSE
B40: =MM_23 -> Institutional risks | I40: =IF(E40="","",Questionnaire!AB511) ->  | J40: =IF(E40="","",Questionnaire!AB515) ->  | K40: =IF(E40="","",Questionnaire!AB519) ->  | S40: =Questionnaire!R522 -> 0 | T40: =Questionnaire!R523 -> 0 | U40: =Questionnaire!R524 -> 0 | BD40: =PO_138 -> Medium | BE40: =CONCATEWITHAND(BS21:BS34) ->  | BI40: =CONCATEWITHAND(BT21:BT34) ->  | BM40: =CONCATEWITHAND(BU21:BU34) ->  | BS40: =IF(AND(BI14=PROPER(PO_119),BK14=PO_175),BE14,"") ->  | BT40: =IF(AND(BI14=PROPER(PO_119),BK14=PO_165),BE14,"") ->  | BU40: =IF(AND(BI14=PROPER(PO_119),BK14=PO_169),BE14,"") -> 
I41: =IF(E41="","",Questionnaire!AD511) ->  | J41: =IF(E41="","",Questionnaire!AD515) ->  | K41: =IF(E41="","",Questionnaire!AD519) ->  | S41: =Questionnaire!T522 -> 0 | T41: =Questionnaire!T523 -> 0 | U41: =Questionnaire!T524 -> 0 | BS41: =IF(AND(BI16=PROPER(PO_119),BK16=PO_175),BE16,"") ->  | BT41: =IF(AND(BI16=PROPER(PO_119),BK16=PO_165),BE16,"") ->  | BU41: =IF(AND(BI16=PROPER(PO_119),BK16=PO_169),BE16,"") ->  | BY41: =PO_115 -> Governance and capacity | CC41: =Questionnaire!B230 -> FALSE | CD41: =Questionnaire!D230 -> FALSE | CE41: =Questionnaire!F230 -> FALSE | CF41: =Questionnaire!H230 -> FALSE | CG41: =Questionnaire!J230 -> FALSE | CH41: =Questionnaire!L230 -> FALSE | CI41: =Questionnaire!N230 -> FALSE | CJ41: =Questionnaire!P230 -> FALSE | CK41: =Questionnaire!R230 -> FALSE | CL41: =Questionnaire!T230 -> FALSE | CM41: =Questionnaire!V230 -> FALSE | CN41: =Questionnaire!X230 -> FALSE | CO41: =Questionnaire!AB230 -> FALSE | CT41: =PO_155 -> Other material fiscal risks | CW41: =PO_95 -> Customized fiscal risk | DA41: =Questionnaire!$Z$47 -> 0 | DB41: =Questionnaire!$Z$48 -> 0 | DC41: =Questionnaire!$Z$50 -> 0 | DD41: =Questionnaire!$Z$49 -> 0 | DF41: =Questionnaire!$Z$51 -> 0 | DG41: =Questionnaire!$Z$52 -> 0 | DH41: =Questionnaire!$Z$53 -> 0 | DI41: =Questionnaire!$Z$54 -> 0
S42: =Questionnaire!V522 -> 0 | T42: =Questionnaire!V523 -> 0 | U42: =Questionnaire!V524 -> 0 | BS42: =IF(AND(BI18=PROPER(PO_119),BK18=PO_175),BE18,"") ->  | BT42: =IF(AND(BI18=PROPER(PO_119),BK18=PO_165),BE18,"") ->  | BU42: =IF(AND(BI18=PROPER(PO_119),BK18=PO_169),BE18,"") -> 
B43: =PO_75 -> +80% answered | E43: =PO_77 -> 30% - 79% answered | H43: =PO_76 -> 0% - 29% answered | S43: =Questionnaire!X522 -> 0 | T43: =Questionnaire!X523 -> 0 | U43: =Questionnaire!X524 -> 0 | BS43: =IF(AND(BI20=PROPER(PO_119),BK20=PO_175),BE20,"") ->  | BT43: =IF(AND(BI20=PROPER(PO_119),BK20=PO_165),BE20,"") ->  | BU43: =IF(AND(BI20=PROPER(PO_119),BK20=PO_169),BE20,"") -> 
S44: =Questionnaire!AB522 -> 0 | T44: =Questionnaire!AB523 -> 0 | U44: =Questionnaire!AB524 -> 0 | BS44: =IF(AND(BI22=PROPER(PO_119),BK22=PO_175),BE22,"") ->  | BT44: =IF(AND(BI22=PROPER(PO_119),BK22=PO_165),BE22,"") ->  | BU44: =IF(AND(BI22=PROPER(PO_119),BK22=PO_169),BE22,"") -> 
S45: =Questionnaire!AD522 -> 0 | T45: =Questionnaire!AD523 -> 0 | U45: =Questionnaire!AD524 -> 0 | BD45: =PO_134 -> Low | BE45: =CONCATEWITHAND(BS6:BS19) ->  | BI45: =CONCATEWITHAND(BT6:BT19) ->  | BM45: =CONCATEWITHAND(BU6:BU19) ->  | BS45: =IF(AND(BI24=PROPER(PO_119),BK24=PO_175),BE24,"") ->  | BT45: =IF(AND(BI24=PROPER(PO_119),BK24=PO_165),BE24,"") ->  | BU45: =IF(AND(BI24=PROPER(PO_119),BK24=PO_169),BE24,"") ->  | BV45: =PO_155 -> Other material fiscal risks | BY45: =PO_95 -> Customized fiscal risk
BS46: =IF(AND(BI26=PROPER(PO_119),BK26=PO_175),BE26,"") ->  | BT46: =IF(AND(BI26=PROPER(PO_119),BK26=PO_165),BE26,"") ->  | BU46: =IF(AND(BI26=PROPER(PO_119),BK26=PO_169),BE26,"") -> 
A47: =PO_126 -> INFORMATION AND DATA | BS47: =IF(AND(BI28=PROPER(PO_119),BK28=PO_175),BE28,"") ->  | BT47: =IF(AND(BI28=PROPER(PO_119),BK28=PO_165),BE28,"") ->  | BU47: =IF(AND(BI28=PROPER(PO_119),BK28=PO_169),BE28,"") -> 
BS48: =IF(AND(BI30=PROPER(PO_119),BK30=PO_175),BE30,"") ->  | BT48: =IF(AND(BI30=PROPER(PO_119),BK30=PO_165),BE30,"") ->  | BU48: =IF(AND(BI30=PROPER(PO_119),BK30=PO_169),BE30,"") -> 
BS49: =IF(AND(BI32=PROPER(PO_119),BK32=PO_175),BE32,"") ->  | BT49: =IF(AND(BI32=PROPER(PO_119),BK32=PO_165),BE32,"") ->  | BU49: =IF(AND(BI32=PROPER(PO_119),BK32=PO_169),BE32,"") -> 
A50: =PO_81 -> Availability of information and data to support risk quantification | BE50: =PO_175 -> Remote | BI50: =PO_165 -> Possible | BM50: =PO_169 -> Probable
B52: =PO_209 -> Type of fiscal risk | E52: =PO_196 -> Sources of risks covered in application of tool | I52: =RRO_526 -> YES | J52: =PO_160 -> PARTIAL | K52: =PO_149 -> NO | L52: =UPPER(PO_1806) -> NO RESPONSE | BE52: =PO_132 -> Likelihood of realization
B55: =MM_30 -> Macroeconomic risks | E55: =E8 ->  | I55: =ROUND(IF($E55=0,"",N55),2) -> 0 | J55: =ROUND(IF($E55=0,"",O55),2) -> 0 | K55: =ROUND(IF($E55=0,"",P55),2) -> 0 | L55: =ROUND(1-(SUM(I55:K55)),2) -> 1 | N55: =COUNTIFS(Questionnaire!B451:B458,RRO_526)/8 -> 0 | O55: =COUNTIFS(Questionnaire!B451:B458,PO_160)/8 -> 0 | P55: =COUNTIFS(Questionnaire!B451:B458,PO_149)/8 -> 0
B56: =PO_199 -> Specific risks | I56: =ROUND(IF($E56=0,"",N56),2) -> 0 | J56: =ROUND(IF($E56=0,"",O56),2) -> 0 | K56: =ROUND(IF($E56=0,"",P56),2) -> 0 | L56: =ROUND(1-(SUM(I56:K56)),2) -> 1 | N56: =COUNTIFS(Questionnaire!D451:D458,RRO_526)/5 -> 0 | O56: =COUNTIFS(Questionnaire!D451:D458,PO_160)/5 -> 0 | P56: =COUNTIFS(Questionnaire!D451:D458,PO_149)/5 -> 0
I57: 0 | J57: 0 | K57: 0 | L57: 1 | N57: =COUNTIFS(Questionnaire!F451:F458,RRO_526)/6 -> 0 | O57: =COUNTIFS(Questionnaire!F451:F458,PO_160)/6 -> 0 | P57: =COUNTIFS(Questionnaire!F451:F458,PO_149)/6 -> 0 | BA57: =PO_87 -> CALCULATION OF RISK RATING
I58: 0 | J58: 0 | K58: 0 | L58: 1 | N58: =COUNTIFS(Questionnaire!H451:H458,RRO_526)/7 -> 0 | O58: =COUNTIFS(Questionnaire!H451:H458,PO_160)/7 -> 0 | P58: =COUNTIFS(Questionnaire!H451:H458,PO_149)/7 -> 0
I59: 0 | J59: 0 | K59: 0 | L59: 1 | N59: =COUNTIFS(Questionnaire!J451:J458,RRO_526)/4 -> 0 | O59: =COUNTIFS(Questionnaire!J451:J458,PO_160)/4 -> 0 | P59: =COUNTIFS(Questionnaire!J451:J458,PO_149)/4 -> 0 | BC59: =PO_186 -> Risk Rating = Likelihood x Fiscal Impact
I60: 0 | J60: 0 | K60: 0 | L60: 1 | N60: =COUNTIFS(Questionnaire!L451:L458,RRO_526)/5 -> 0 | O60: =COUNTIFS(Questionnaire!L451:L458,PO_160)/5 -> 0 | P60: =COUNTIFS(Questionnaire!L451:L458,PO_149)/5 -> 0
I61: 0 | J61: 0 | K61: 0 | L61: 1 | N61: =COUNTIFS(Questionnaire!N451:N458,RRO_526)/4 -> 0 | O61: =COUNTIFS(Questionnaire!N451:N458,PO_160)/4 -> 0 | P61: =COUNTIFS(Questionnaire!N451:N458,PO_149)/4 -> 0 | BC61: =PO_106 -> Fiscal impact | BE61: =PO_119 -> HIGH | BG61: =PO_138 -> Medium | BJ61: =PROPER(PO_119) -> High | BM61: =PO_94 -> Critical
I62: 0 | J62: 0 | K62: 0 | L62: 1 | N62: =COUNTIFS(Questionnaire!P451:P458,RRO_526)/4 -> 0 | O62: =COUNTIFS(Questionnaire!P451:P458,PO_160)/4 -> 0 | P62: =COUNTIFS(Questionnaire!P451:P458,PO_149)/4 -> 0
I63: 0 | J63: 0 | K63: 0 | L63: 1 | N63: =COUNTIFS(Questionnaire!R451:R458,RRO_526)/2 -> 0 | O63: =COUNTIFS(Questionnaire!R451:R458,PO_160)/2 -> 0 | P63: =COUNTIFS(Questionnaire!R451:R458,PO_149)/2 -> 0 | BE63: =UPPER(PO_138) -> MEDIUM | BG63: =PO_134 -> Low | BJ63: =PO_138 -> Medium | BM63: =PROPER(PO_119) -> High
I64: 0 | J64: 0 | K64: 0 | L64: 1 | N64: =COUNTIFS(Questionnaire!T451:T458,RRO_526)/2 -> 0 | O64: =COUNTIFS(Questionnaire!T451:T458,PO_160)/2 -> 0 | P64: =COUNTIFS(Questionnaire!T451:T458,PO_149)/2 -> 0
I65: 0 | J65: 0 | K65: 0 | L65: 1 | N65: =COUNTIFS(Questionnaire!V451:V458,RRO_526)/6 -> 0 | O65: =COUNTIFS(Questionnaire!V451:V458,PO_160)/6 -> 0 | P65: =COUNTIFS(Questionnaire!V451:V458,PO_149)/6 -> 0 | BE65: =UPPER(PO_134) -> LOW | BG65: =PO_129 -> Irrelevant | BJ65: =PO_134 -> Low | BM65: =PO_138 -> Medium
I66: 0 | J66: 0 | K66: 0 | L66: 1 | N66: =COUNTIFS(Questionnaire!X451:X458,RRO_526)/4 -> 0 | O66: =COUNTIFS(Questionnaire!X451:X458,PO_160)/4 -> 0 | P66: =COUNTIFS(Questionnaire!X451:X458,PO_149)/4 -> 0
B67: =MM_23 -> Institutional risks | I67: 0 | J67: 0 | K67: 0 | L67: 1 | N67: =COUNTIFS(Questionnaire!AB451:AB458,RRO_526)/4 -> 0 | O67: =COUNTIFS(Questionnaire!AB451:AB458,PO_160)/4 -> 0 | P67: =COUNTIFS(Questionnaire!AB451:AB458,PO_149)/4 -> 0 | BG67: =PO_175 -> Remote | BJ67: =PO_165 -> Possible | BM67: =PO_169 -> Probable
I68: 0 | J68: 0 | K68: 0 | L68: 1 | N68: =COUNTIFS(Questionnaire!AD451:AD458,RRO_526)/7 -> 0 | O68: =COUNTIFS(Questionnaire!AD451:AD458,PO_160)/7 -> 0 | P68: =COUNTIFS(Questionnaire!AD451:AD458,PO_149)/7 -> 0
BG69: =PO_132 -> Likelihood of realization
BA72: =PO_143 -> MITIGATION MEASURES AND PROVISIONING
BI75: =PO_182 -> Risk mitigation | BN75: =PO_170 -> Provisioning
BI76: =PO_204 -> Structural reforms | BJ76: =PO_99 -> Direct controls | BK76: =PO_125 -> Indirect tools (regulations and charges) | BL76: =PO_188 -> Risk transfer instrument | BN76: =PO_101 -> Expense | BO76: =PO_93 -> Contingencies | BP76: =PO_86 -> Buffer funds
BB80: =PO_90 -> Category of Fiscal Risk | BE80: =PO_195 -> Sources of Fiscal Risk
BB82: =MM_30 -> Macroeconomic risks | BE82: =MM_30 -> Macroeconomic risks | BI82: =IF(Questionnaire!$A$141=0,"",Questionnaire!$A$141) ->  | BJ82: =IF(Questionnaire!$A$142=0,"",Questionnaire!$A$142) ->  | BK82: =IF(Questionnaire!$A$143=0,"",Questionnaire!$A$143) ->  | BL82: =IF(Questionnaire!$A$144=0,"",Questionnaire!$A$144) ->  | BN82: =IF(Questionnaire!$A$145=0,"",Questionnaire!$A$145) ->  | BO82: =IF(Questionnaire!$A$146=0,"",Questionnaire!$A$146) ->  | BP82: =IF(Questionnaire!$A$147=0,"",Questionnaire!$A$147) -> 
BB84: =PO_199 -> Specific risks | BE84: =PO_198 -> Specific revenues | BI84: =IF(Questionnaire!$C$141=0,"",Questionnaire!$C$141) ->  | BJ84: =IF(Questionnaire!$C$142=0,"",Questionnaire!$C$142) ->  | BK84: =IF(Questionnaire!$C$143=0,"",Questionnaire!$C$143) ->  | BL84: =IF(Questionnaire!$C$144=0,"",Questionnaire!$C$144) ->  | BN84: =IF(Questionnaire!$C$145=0,"",Questionnaire!$C$145) ->  | BO84: =IF(Questionnaire!$C$146=0,"",Questionnaire!$C$146) ->  | BP84: =IF(Questionnaire!$C$147=0,"",Questionnaire!$C$147) -> 
BE86: =PO_117 -> Government assets and liabilities | BI86: =IF(Questionnaire!$E$141=0,"",Questionnaire!$E$141) ->  | BJ86: =IF(Questionnaire!$E$142=0,"",Questionnaire!$E$142) ->  | BK86: =IF(Questionnaire!$E$143=0,"",Questionnaire!$E$143) ->  | BL86: =IF(Questionnaire!$E$144=0,"",Questionnaire!$E$144) ->  | BN86: =IF(Questionnaire!$E$145=0,"",Questionnaire!$E$145) ->  | BO86: =IF(Questionnaire!$E$146=0,"",Questionnaire!$E$146) ->  | BP86: =IF(Questionnaire!$E$147=0,"",Questionnaire!$E$147) -> 
BE88: =PO_171 -> Public corporations | BI88: =IF(Questionnaire!$G$141=0,"",Questionnaire!$G$141) ->  | BJ88: =IF(Questionnaire!$G$142=0,"",Questionnaire!$G$142) ->  | BK88: =IF(Questionnaire!$G$143=0,"",Questionnaire!$G$143) ->  | BL88: =IF(Questionnaire!$G$144=0,"",Questionnaire!$G$144) ->  | BN88: =IF(Questionnaire!$G$145=0,"",Questionnaire!$G$145) ->  | BO88: =IF(Questionnaire!$G$146=0,"",Questionnaire!$G$146) ->  | BP88: =IF(Questionnaire!$G$147=0,"",Questionnaire!$G$147) -> 
BE90: =PO_118 -> Government guarantees | BI90: =IF(Questionnaire!$I$141=0,"",Questionnaire!$I$141) ->  | BJ90: =IF(Questionnaire!$I$142=0,"",Questionnaire!$I$142) ->  | BK90: =IF(Questionnaire!$I$143=0,"",Questionnaire!$I$143) ->  | BL90: =IF(Questionnaire!$I$144=0,"",Questionnaire!$I$144) ->  | BN90: =IF(Questionnaire!$I$145=0,"",Questionnaire!$I$145) ->  | BO90: =IF(Questionnaire!$I$146=0,"",Questionnaire!$I$146) ->  | BP90: =IF(Questionnaire!$I$147=0,"",Questionnaire!$I$147) -> 
BE92: =PO_172 -> Public investment | BI92: =IF(Questionnaire!$K$141=0,"",Questionnaire!$K$141) ->  | BJ92: =IF(Questionnaire!$K$142=0,"",Questionnaire!$K$142) ->  | BK92: =IF(Questionnaire!$K$143=0,"",Questionnaire!$K$143) ->  | BL92: =IF(Questionnaire!$K$144=0,"",Questionnaire!$K$144) ->  | BN92: =IF(Questionnaire!$K$145=0,"",Questionnaire!$K$145) ->  | BO92: =IF(Questionnaire!$K$146=0,"",Questionnaire!$K$146) ->  | BP92: =IF(Questionnaire!$K$147=0,"",Questionnaire!$K$147) -> 
BE94: =PO_173 -> Public private partnerships | BI94: =IF(Questionnaire!$M$141=0,"",Questionnaire!$M$141) ->  | BJ94: =IF(Questionnaire!$M$142=0,"",Questionnaire!$M$142) ->  | BK94: =IF(Questionnaire!$M$143=0,"",Questionnaire!$M$143) ->  | BL94: =IF(Questionnaire!$M$144=0,"",Questionnaire!$M$144) ->  | BN94: =IF(Questionnaire!$M$145=0,"",Questionnaire!$M$145) ->  | BO94: =IF(Questionnaire!$M$146=0,"",Questionnaire!$M$146) ->  | BP94: =IF(Questionnaire!$M$147=0,"",Questionnaire!$M$147) -> 
BE96: =PO_104 -> Financial sector | BI96: =IF(Questionnaire!$O$141=0,"",Questionnaire!$O$141) ->  | BJ96: =IF(Questionnaire!$O$142=0,"",Questionnaire!$O$142) ->  | BK96: =IF(Questionnaire!$O$143=0,"",Questionnaire!$O$143) ->  | BL96: =IF(Questionnaire!$O$144=0,"",Questionnaire!$O$144) ->  | BN96: =IF(Questionnaire!$O$145=0,"",Questionnaire!$O$145) ->  | BO96: =IF(Questionnaire!$O$146=0,"",Questionnaire!$O$146) ->  | BP96: =IF(Questionnaire!$O$147=0,"",Questionnaire!$O$147) -> 
BE98: =PO_100 -> Environmental risks | BI98: =IF(Questionnaire!$Q$141=0,"",Questionnaire!$Q$141) ->  | BJ98: =IF(Questionnaire!$Q$142=0,"",Questionnaire!$Q$142) ->  | BK98: =IF(Questionnaire!$Q$143=0,"",Questionnaire!$Q$143) ->  | BL98: =IF(Questionnaire!$Q$144=0,"",Questionnaire!$Q$144) ->  | BN98: =IF(Questionnaire!$Q$145=0,"",Questionnaire!$Q$145) ->  | BO98: =IF(Questionnaire!$Q$146=0,"",Questionnaire!$Q$146) ->  | BP98: =IF(Questionnaire!$Q$147=0,"",Questionnaire!$Q$147) -> 
BE100: =PO_130 -> Legal claims against the state | BI100: =IF(Questionnaire!$S$141=0,"",Questionnaire!$S$141) ->  | BJ100: =IF(Questionnaire!$S$142=0,"",Questionnaire!$S$142) ->  | BK100: =IF(Questionnaire!$S$143=0,"",Questionnaire!$S$143) ->  | BL100: =IF(Questionnaire!$S$144=0,"",Questionnaire!$S$144) ->  | BN100: =IF(Questionnaire!$S$145=0,"",Questionnaire!$S$145) ->  | BO100: =IF(Questionnaire!$S$146=0,"",Questionnaire!$S$146) ->  | BP100: =IF(Questionnaire!$S$147=0,"",Questionnaire!$S$147) -> 
BE102: =PO_137 -> Lower-level governments | BI102: =IF(Questionnaire!$U$141=0,"",Questionnaire!$U$141) ->  | BJ102: =IF(Questionnaire!$U$142=0,"",Questionnaire!$U$142) ->  | BK102: =IF(Questionnaire!$U$143=0,"",Questionnaire!$U$143) ->  | BL102: =IF(Questionnaire!$U$144=0,"",Questionnaire!$U$144) ->  | BN102: =IF(Questionnaire!$U$145=0,"",Questionnaire!$U$145) ->  | BO102: =IF(Questionnaire!$U$146=0,"",Questionnaire!$U$146) ->  | BP102: =IF(Questionnaire!$U$147=0,"",Questionnaire!$U$147) -> 
BE104: =PO_147 -> Natural resources | BI104: =IF(Questionnaire!$W$141=0,"",Questionnaire!$W$141) ->  | BJ104: =IF(Questionnaire!$W$142=0,"",Questionnaire!$W$142) ->  | BK104: =IF(Questionnaire!$W$143=0,"",Questionnaire!$W$143) ->  | BL104: =IF(Questionnaire!$W$144=0,"",Questionnaire!$W$144) ->  | BN104: =IF(Questionnaire!$W$145=0,"",Questionnaire!$W$145) ->  | BO104: =IF(Questionnaire!$W$146=0,"",Questionnaire!$W$146) ->  | BP104: =IF(Questionnaire!$W$147=0,"",Questionnaire!$W$147) -> 
BB106: =MM_23 -> Institutional risks | BE106: =PO_164 -> Policy implementation | BI106: =IF(Questionnaire!$AA$141=0,"",Questionnaire!$AA$141) ->  | BJ106: =IF(Questionnaire!$AA$142=0,"",Questionnaire!$AA$142) ->  | BK106: =IF(Questionnaire!$AA$143=0,"",Questionnaire!$AA$143) ->  | BL106: =IF(Questionnaire!$AA$144=0,"",Questionnaire!$AA$144) ->  | BN106: =IF(Questionnaire!$AA$145=0,"",Questionnaire!$AA$145) ->  | BO106: =IF(Questionnaire!$AA$146=0,"",Questionnaire!$AA$146) ->  | BP106: =IF(Questionnaire!$AA$147=0,"",Questionnaire!$AA$147) -> 
BE108: =PO_115 -> Governance and capacity | BI108: =IF(Questionnaire!$AC$141=0,"",Questionnaire!$AC$141) ->  | BJ108: =IF(Questionnaire!$AC$142=0,"",Questionnaire!$AC$142) ->  | BK108: =IF(Questionnaire!$AC$143=0,"",Questionnaire!$AC$143) ->  | BL108: =IF(Questionnaire!$AC$144=0,"",Questionnaire!$AC$144) ->  | BN108: =IF(Questionnaire!$AC$145=0,"",Questionnaire!$AC$145) ->  | BO108: =IF(Questionnaire!$AC$146=0,"",Questionnaire!$AC$146) ->  | BP108: =IF(Questionnaire!$AC$147=0,"",Questionnaire!$AC$147) -> 
BA112: =PO_142 -> MITIGATION MEASURES | BB112: =PO_149 -> NO | BC112: =CONCATEWITHAND(BS146:BS159) ->  | BF112: =CONCATEWITHAND(BT146:BT159) ->  | BI112: =CONCATEWITHAND(BU146:BU159) ->  | BL112: =CONCATEWITHAND(BS161:BS174) ->  | BO112: =CONCATEWITHAND(BT161:BT174) -> 
BS115: 2021-01-01 | BT115: 2021-01-02 | BU115: 44199
BS116: =IF(AND(BO6=RRO_526,BM6=PO_129),BE6,"") ->  | BT116: =IF(AND(BO6=RRO_526,BM6=PO_134),BE6,"") ->  | BU116: =IF(AND(BO6=RRO_526,BM6=PO_138),BE6,"") -> 
BS117: =IF(AND(BO8=RRO_526,BM8=PO_129),BE8,"") ->  | BT117: =IF(AND(BO8=RRO_526,BM8=PO_134),BE8,"") ->  | BU117: =IF(AND(BO8=RRO_526,BM8=PO_138),BE8,"") -> 
BS118: =IF(AND(BO10=RRO_526,BM10=PO_129),BE10,"") ->  | BT118: =IF(AND(BO10=RRO_526,BM10=PO_134),BE10,"") ->  | BU118: =IF(AND(BO10=RRO_526,BM10=PO_138),BE10,"") -> 
BS119: =IF(AND(BO12=RRO_526,BM12=PO_129),BE12,"") ->  | BT119: =IF(AND(BO12=RRO_526,BM12=PO_134),BE12,"") ->  | BU119: =IF(AND(BO12=RRO_526,BM12=PO_138),BE12,"") -> 
BS120: =IF(AND(BO14=RRO_526,BM14=PO_129),BE14,"") ->  | BT120: =IF(AND(BO14=RRO_526,BM14=PO_134),BE14,"") ->  | BU120: =IF(AND(BO14=RRO_526,BM14=PO_138),BE14,"") -> 
BS121: =IF(AND(BO16=RRO_526,BM16=PO_129),BE16,"") ->  | BT121: =IF(AND(BO16=RRO_526,BM16=PO_134),BE16,"") ->  | BU121: =IF(AND(BO16=RRO_526,BM16=PO_138),BE16,"") -> 
BB122: =RRO_526 -> YES | BC122: =CONCATEWITHAND(BS116:BS129) ->  | BF122: =CONCATEWITHAND(BT116:BT129) ->  | BI122: =CONCATEWITHAND(BU116:BU129) ->  | BL122: =CONCATEWITHAND(BS131:BS144) ->  | BO122: =CONCATEWITHAND(BT131:BT144) ->  | BS122: =IF(AND(BO18=RRO_526,BM18=PO_129),BE18,"") ->  | BT122: =IF(AND(BO18=RRO_526,BM18=PO_134),BE18,"") ->  | BU122: =IF(AND(BO18=RRO_526,BM18=PO_138),BE18,"") -> 
BS123: =IF(AND(BO20=RRO_526,BM20=PO_129),BE20,"") ->  | BT123: =IF(AND(BO20=RRO_526,BM20=PO_134),BE20,"") ->  | BU123: =IF(AND(BO20=RRO_526,BM20=PO_138),BE20,"") -> 
BS124: =IF(AND(BO22=RRO_526,BM22=PO_129),BE22,"") ->  | BT124: =IF(AND(BO22=RRO_526,BM22=PO_134),BE22,"") ->  | BU124: =IF(AND(BO22=RRO_526,BM22=PO_138),BE22,"") -> 
BS125: =IF(AND(BO24=RRO_526,BM24=PO_129),BE24,"") ->  | BT125: =IF(AND(BO24=RRO_526,BM24=PO_134),BE24,"") ->  | BU125: =IF(AND(BO24=RRO_526,BM24=PO_138),BE24,"") -> 
BS126: =IF(AND(BO26=RRO_526,BM26=PO_129),BE26,"") ->  | BT126: =IF(AND(BO26=RRO_526,BM26=PO_134),BE26,"") ->  | BU126: =IF(AND(BO26=RRO_526,BM26=PO_138),BE26,"") -> 
BS127: =IF(AND(BO28=RRO_526,BM28=PO_129),BE28,"") ->  | BT127: =IF(AND(BO28=RRO_526,BM28=PO_134),BE28,"") ->  | BU127: =IF(AND(BO28=RRO_526,BM28=PO_138),BE28,"") -> 
BS128: =IF(AND(BO30=RRO_526,BM30=PO_129),BE30,"") ->  | BT128: =IF(AND(BO30=RRO_526,BM30=PO_134),BE30,"") ->  | BU128: =IF(AND(BO30=RRO_526,BM30=PO_138),BE30,"") -> 
BS129: =IF(AND(BO32=RRO_526,BM32=PO_129),BE32,"") ->  | BT129: =IF(AND(BO32=RRO_526,BM32=PO_134),BE32,"") ->  | BU129: =IF(AND(BO32=RRO_526,BM32=PO_138),BE32,"") -> 
BS130: 2021-01-04 | BT130: 2021-01-05
BS131: =IF(AND(BO6=RRO_526,BM6=PROPER(PO_119)),BE6,"") ->  | BT131: =IF(AND(BO6=RRO_526,BM6=PO_94),BE6,"") -> 
BC132: =PO_129 -> Irrelevant | BF132: =PO_134 -> Low | BI132: =PO_138 -> Medium | BL132: =PO_119 -> HIGH | BO132: =PO_94 -> Critical | BS132: =IF(AND(BO8=RRO_526,BM8=PROPER(PO_119)),BE8,"") ->  | BT132: =IF(AND(BO8=RRO_526,BM8=PO_94),BE8,"") -> 
BS133: =IF(AND(BO10=RRO_526,BM10=PROPER(PO_119)),BE10,"") ->  | BT133: =IF(AND(BO10=RRO_526,BM10=PO_94),BE10,"") -> 
BC134: =PO_185 -> RISK RATING | BS134: =IF(AND(BO12=RRO_526,BM12=PROPER(PO_119)),BE12,"") ->  | BT134: =IF(AND(BO12=RRO_526,BM12=PO_94),BE12,"") -> 
BS135: =IF(AND(BO14=RRO_526,BM14=PROPER(PO_119)),BE14,"") ->  | BT135: =IF(AND(BO14=RRO_526,BM14=PO_94),BE14,"") -> 
BS136: =IF(AND(BO16=RRO_526,BM16=PROPER(PO_119)),BE16,"") ->  | BT136: =IF(AND(BO16=RRO_526,BM16=PO_94),BE16,"") -> 
BS137: =IF(AND(BO18=RRO_526,BM18=PROPER(PO_119)),BE18,"") ->  | BT137: =IF(AND(BO18=RRO_526,BM18=PO_94),BE18,"") -> 
BA138: =PO_98 -> DETERMINING AREAS FOR PRIORITY ACTIONS | BS138: =IF(AND(BO20=RRO_526,BM20=PROPER(PO_119)),BE20,"") ->  | BT138: =IF(AND(BO20=RRO_526,BM20=PO_94),BE20,"") -> 
BS139: =IF(AND(BO22=RRO_526,BM22=PROPER(PO_119)),BE22,"") ->  | BT139: =IF(AND(BO22=RRO_526,BM22=PO_94),BE22,"") -> 
BD140: =PO_167 -> Priority action = Risk rating x Mitigation measure | BS140: =IF(AND(BO24=RRO_526,BM24=PROPER(PO_119)),BE24,"") ->  | BT140: =IF(AND(BO24=RRO_526,BM24=PO_94),BE24,"") -> 
BS141: =IF(AND(BO26=RRO_526,BM26=PROPER(PO_119)),BE26,"") ->  | BT141: =IF(AND(BO26=RRO_526,BM26=PO_94),BE26,"") -> 
BD142: =PO_142 -> MITIGATION MEASURES | BF142: =PO_149 -> NO | BG142: =PO_150 -> No action required | BI142: =PO_140 -> Medium priority | BK142: =PO_121 -> High priority | BM142: =PO_121 -> High priority | BO142: =PO_94 -> Critical | BS142: =IF(AND(BO28=RRO_526,BM28=PROPER(PO_119)),BE28,"") ->  | BT142: =IF(AND(BO28=RRO_526,BM28=PO_94),BE28,"") -> 
BS143: =IF(AND(BO30=RRO_526,BM30=PROPER(PO_119)),BE30,"") ->  | BT143: =IF(AND(BO30=RRO_526,BM30=PO_94),BE30,"") -> 
BF144: =RRO_526 -> YES | BG144: =PO_150 -> No action required | BI144: =PO_136 -> Low priority | BK144: =PO_140 -> Medium priority | BM144: =PO_140 -> Medium priority | BO144: =PO_121 -> High priority | BS144: =IF(AND(BO32=RRO_526,BM32=PROPER(PO_119)),BE32,"") ->  | BT144: =IF(AND(BO32=RRO_526,BM32=PO_94),BE32,"") -> 
BS145: 2021-02-01 | BT145: 2021-02-02 | BU145: 44230
BG146: =PO_129 -> Irrelevant | BI146: =PO_134 -> Low | BK146: =PO_138 -> Medium | BM146: =PROPER(PO_119) -> High | BO146: =PO_94 -> Critical | BS146: =IF(AND(BO6=PO_149,BM6=PO_129),BE6,"") ->  | BT146: =IF(AND(BO6=PO_149,BM6=PO_134),BE6,"") ->  | BU146: =IF(AND(BO6=PO_149,BM6=PO_138),BE6,"") -> 
BS147: =IF(AND(BO8=PO_149,BM8=PO_129),BE8,"") ->  | BT147: =IF(AND(BO8=PO_149,BM8=PO_134),BE8,"") ->  | BU147: =IF(AND(BO8=PO_149,BM8=PO_138),BE8,"") -> 
BG148: =PO_185 -> RISK RATING | BS148: =IF(AND(BO10=PO_149,BM10=PO_129),BE10,"") ->  | BT148: =IF(AND(BO10=PO_149,BM10=PO_134),BE10,"") ->  | BU148: =IF(AND(BO10=PO_149,BM10=PO_138),BE10,"") -> 
BS149: =IF(AND(BO12=PO_149,BM12=PO_129),BE12,"") ->  | BT149: =IF(AND(BO12=PO_149,BM12=PO_134),BE12,"") ->  | BU149: =IF(AND(BO12=PO_149,BM12=PO_138),BE12,"") -> 
BS150: =IF(AND(BO14=PO_149,BM14=PO_129),BE14,"") ->  | BT150: =IF(AND(BO14=PO_149,BM14=PO_134),BE14,"") ->  | BU150: =IF(AND(BO14=PO_149,BM14=PO_138),BE14,"") -> 
BS151: =IF(AND(BO16=PO_149,BM16=PO_129),BE16,"") ->  | BT151: =IF(AND(BO16=PO_149,BM16=PO_134),BE16,"") ->  | BU151: =IF(AND(BO16=PO_149,BM16=PO_138),BE16,"") -> 
BS152: =IF(AND(BO18=PO_149,BM18=PO_129),BE18,"") ->  | BT152: =IF(AND(BO18=PO_149,BM18=PO_134),BE18,"") ->  | BU152: =IF(AND(BO18=PO_149,BM18=PO_138),BE18,"") -> 
BS153: =IF(AND(BO20=PO_149,BM20=PO_129),BE20,"") ->  | BT153: =IF(AND(BO20=PO_149,BM20=PO_134),BE20,"") ->  | BU153: =IF(AND(BO20=PO_149,BM20=PO_138),BE20,"") -> 
BS154: =IF(AND(BO22=PO_149,BM22=PO_129),BE22,"") ->  | BT154: =IF(AND(BO22=PO_149,BM22=PO_134),BE22,"") ->  | BU154: =IF(AND(BO22=PO_149,BM22=PO_138),BE22,"") -> 
BS155: =IF(AND(BO24=PO_149,BM24=PO_129),BE24,"") ->  | BT155: =IF(AND(BO24=PO_149,BM24=PO_134),BE24,"") ->  | BU155: =IF(AND(BO24=PO_149,BM24=PO_138),BE24,"") -> 
BS156: =IF(AND(BO26=PO_149,BM26=PO_129),BE26,"") ->  | BT156: =IF(AND(BO26=PO_149,BM26=PO_134),BE26,"") ->  | BU156: =IF(AND(BO26=PO_149,BM26=PO_138),BE26,"") -> 
BS157: =IF(AND(BO28=PO_149,BM28=PO_129),BE28,"") ->  | BT157: =IF(AND(BO28=PO_149,BM28=PO_134),BE28,"") ->  | BU157: =IF(AND(BO28=PO_149,BM28=PO_138),BE28,"") -> 
BS158: =IF(AND(BO30=PO_149,BM30=PO_129),BE30,"") ->  | BT158: =IF(AND(BO30=PO_149,BM30=PO_134),BE30,"") ->  | BU158: =IF(AND(BO30=PO_149,BM30=PO_138),BE30,"") -> 
BS159: =IF(AND(BO32=PO_149,BM32=PO_129),BE32,"") ->  | BT159: =IF(AND(BO32=PO_149,BM32=PO_134),BE32,"") ->  | BU159: =IF(AND(BO32=PO_149,BM32=PO_138),BE32,"") -> 
BS160: 2021-02-04 | BT160: 2021-02-05
BS161: =IF(AND(BO6=PO_149,BM6=PROPER(PO_119)),BE6,"") ->  | BT161: =IF(AND(BO6=PO_149,BM6=PO_94),BE6,"") -> 
BS162: =IF(AND(BO8=PO_149,BM8=PROPER(PO_119)),BE8,"") ->  | BT162: =IF(AND(BO8=PO_149,BM8=PO_94),BE8,"") -> 
BS163: =IF(AND(BO10=PO_149,BM10=PROPER(PO_119)),BE10,"") ->  | BT163: =IF(AND(BO10=PO_149,BM10=PO_94),BE10,"") -> 
BS164: =IF(AND(BO12=PO_149,BM12=PROPER(PO_119)),BE12,"") ->  | BT164: =IF(AND(BO12=PO_149,BM12=PO_94),BE12,"") -> 
BS165: =IF(AND(BO14=PO_149,BM14=PROPER(PO_119)),BE14,"") ->  | BT165: =IF(AND(BO14=PO_149,BM14=PO_94),BE14,"") -> 
BS166: =IF(AND(BO16=PO_149,BM16=PROPER(PO_119)),BE16,"") ->  | BT166: =IF(AND(BO16=PO_149,BM16=PO_94),BE16,"") -> 
BS167: =IF(AND(BO18=PO_149,BM18=PROPER(PO_119)),BE18,"") ->  | BT167: =IF(AND(BO18=PO_149,BM18=PO_94),BE18,"") -> 
BS168: =IF(AND(BO20=PO_149,BM20=PROPER(PO_119)),BE20,"") ->  | BT168: =IF(AND(BO20=PO_149,BM20=PO_94),BE20,"") -> 
BS169: =IF(AND(BO22=PO_149,BM22=PROPER(PO_119)),BE22,"") ->  | BT169: =IF(AND(BO22=PO_149,BM22=PO_94),BE22,"") -> 
BS170: =IF(AND(BO24=PO_149,BM24=PROPER(PO_119)),BE24,"") ->  | BT170: =IF(AND(BO24=PO_149,BM24=PO_94),BE24,"") -> 
BS171: =IF(AND(BO26=PO_149,BM26=PROPER(PO_119)),BE26,"") ->  | BT171: =IF(AND(BO26=PO_149,BM26=PO_94),BE26,"") -> 
BS172: =IF(AND(BO28=PO_149,BM28=PROPER(PO_119)),BE28,"") ->  | BT172: =IF(AND(BO28=PO_149,BM28=PO_94),BE28,"") -> 
BS173: =IF(AND(BO30=PO_149,BM30=PROPER(PO_119)),BE30,"") ->  | BT173: =IF(AND(BO30=PO_149,BM30=PO_94),BE30,"") -> 
BS174: =IF(AND(BO32=PO_149,BM32=PROPER(PO_119)),BE32,"") ->  | BT174: =IF(AND(BO32=PO_149,BM32=PO_94),BE32,"") -> 

Sheet IC Charts
A1: Chart Code | B1: Title | C1: Years covered | D1: Last yr with data | E1: Series Y values | F1: Series X values | G1: Series values Y Name | H1: Series values X Name | I1: Series values X Name2 | J1: Source of data | K1: Yaxis Title | L1: Xaxis title | M1: Type of chart | N1: Short name | O1: Group name
A2: RGDP | B2: =OIC_538 -> Volatility of Nominal GDP Growth vs Revenue Growth | C2: 2000-2019 | D2: =OFFSET(PanelData!A$1,5187,(MATCH(E2,Table2[#Headers],0)-1)) -> 2020 | E2: General government revenue growth volatility (2000-19) | F2: Gross domestic product, current prices in national currency, percent change volatility (2000-19) exc. outliers with growth rate above 50% | G2: =RRO_329 -> General government revenue growth volatility | H2: =ICT_1626 -> Nominal GDP Growth Volatility | J2: =S_1064 -> Source: IMF, World Economic Outlook | K2: =ICT_1620 -> Revenue Growth Volatility | L2: =ICT_1626 -> Nominal GDP Growth Volatility | M2: Scattter | N2: NGDP_PCH_VLTY | O2: =MM_30 -> Macroeconomic risks
A3: R | B3: =OIC_537 -> Volatility of General Government Revenue Growth | C3: 2000-2019 | D3: =OFFSET(PanelData!A$1,5187,(MATCH(E3,Table2[#Headers],0)-1)) -> 2020 | E3: General government revenue growth volatility (2000-19) | G3: =RRO_329 -> General government revenue growth volatility | J3: =S_1064 -> Source: IMF, World Economic Outlook | K3: =ICT_1621 -> Standard Deviation of Annual Change | M3: ClusteredColumn | N3: GGR_VLTY
A4: NGDPGV | B4: =OIC_539 -> Volatility of Nominal Gross Domestic Product Growth | C4: 2000-2019 | D4: =OFFSET(PanelData!A$1,5187,(MATCH(E4,Table2[#Headers],0)-1)) -> 2020 | E4: Gross domestic product, current prices in national currency, percent change volatility (2000-19) exc. outliers with growth rate above 50% | G4: =RRO_339 -> Gross domestic product, current prices in national currency, percent change volatility (2000-19) | J4: =S_1064 -> Source: IMF, World Economic Outlook | K4: =ICT_1621 -> Standard Deviation of Annual Change | M4: ClusteredColumn | N4: NGDP_PCH_VLTY50
A5: ADR | B5: =RRO_218 -> Age dependency ratio (percent of working-age population) | C5: 2018 | D5: =OFFSET(PanelData!A$1,5187,(MATCH(E5,Table2[#Headers],0)-1)) -> 2019 | E5: Age dependency ratio (% of working-age population) | F5: General government gross debt | G5: =RRO_218 -> Age dependency ratio (percent of working-age population) | J5: =S_1068 -> Source: World Bank and IMF Staff Calculation | K5: =ICO_1227 -> Percent of Working-Age Population | M5: ClusteredColumn | N5: AGEDEP_POP
A6: NPVH | B6: =OIC_534 & " " & ICT_1682 -> Net Present Value of Health Care Spending Change (percent of Gross Domestic Product) | C6: 2018 | D6: =OFFSET(PanelData!A$1,5187,(MATCH(E6,Table2[#Headers],0)-1)) -> 2019 | E6: Net Present Value of Health Care Spending Change, current year-2050 | G6: =RRO_422 -> Net Present Value of Health Care Spending Change | J6: =ICT_1603 & " " &ICT_1605 -> Source: IMF Fiscal Monitor; and IMF staff calculations. | K6: =ICO_1225 -> Percent of GDP | M6: ClusteredColumn | N6: NPVHEALTH
A7: GGD | B7: =ICO_1186& " " &ICT_1682 -> General government gross debt (percent of Gross Domestic Product) | C7: 2019 | D7: =OFFSET(PanelData!A$1,5187,(MATCH(E7,Table2[#Headers],0)-1)) -> 2020 | E7: General government gross debt, percent of Fiscal year GDP | G7: =RRO_327 -> General government gross debt, percent of fiscal year GDP | J7: =S_1064 -> Source: IMF, World Economic Outlook | K7: =ICT_1630 -> percent of Gross Domestic Product | M7: ClusteredColumn | N7: GGXWDG | O7: =PO_117 -> Government assets and liabilities
A8: NWNFW | B8: =RRO_328 -> General Government Net Worth and Net Financial Worth (percent of Gross Domestic Product) | C8: 2016 | D8: =OFFSET(PanelData!A$1,5187,(MATCH(E8,Table2[#Headers],0)-1)) -> 2016 | E8: General Government Balance Sheet, Net worth (Percent of GDP) | F8: General Government Balance Sheet, Net financial worth (Percent of GDP) | G8: =ICO_1185 -> General government Balance Sheet, Net worth | H8: =ICO_1184 -> General government Balance Sheet, Net financial worth | J8: =ICT_1647 -> Sources: IMF Public Sector Balance Sheet Database; and IMF staff calculations. | K8: =ICO_1225 -> Percent of GDP | M8: Customed Combination | N8: GGBSNFW_GDP
A9: TNRD | B9: =RRO_240 -> Average Term to Maturity vs Non-Resident Holding of General Government Debt, in years | C9: 2019 | D9: =OFFSET(PanelData!A$1,5187,(MATCH(E9,Table2[#Headers],0)-1)) -> 2019 | E9: Nonresident Holding of General Government Debt, (percent of total) | F9: Average Term to Maturity (years) | G9: =RRO_433 -> Nonresident Holding of General Government Debt, (percent of total) | H9: =ICO_1164 -> Average Term to Maturity | J9: =ICT_1647 -> Sources: IMF Public Sector Balance Sheet Database; and IMF staff calculations. | K9: =ICT_1622 -> Non-Resident Holding of GG Debt (Percent of Total) | M9: Scattter | N9: AVMATY
A10: NPVP | B10: =RRO_423 -> Net Present Value of Pension Spending Change (percent of Gross Domestic Product) | C10: 2019-2050 | D10: =OFFSET(PanelData!A$1,5187,(MATCH(E10,Table2[#Headers],0)-1)) -> 2019 | E10: Net Present Value of Pension Spending Change, current year-2050 | G10: =RRO_423 -> Net Present Value of Pension Spending Change (percent of Gross Domestic Product) | J10: =ICT_1603 & " " &ICT_1605 -> Source: IMF Fiscal Monitor; and IMF staff calculations. | K10: =ICO_1225 -> Percent of GDP | M10: ClusteredColumn | N10: NPVPENSION
A11: PC | B11: =RRO_304 -> Financial and Non-Financial Public Corporations Balance Sheet Liabilities (percent of Gross Domestic Product) | C11: 2016 | D11: =OFFSET(PanelData!A$1,5187,(MATCH(E11,Table2[#Headers],0)-1)) -> 2016 | E11: Financial Public Corporations Balance Sheet Liabilities (Percent of GDP) | F11: Non-Financial Public Corporations Balance Sheet Liabilities (Percent of GDP) | G11: =PD_961 -> Financial Public Corporations Balance Sheet Liabilities | H11: =PD_969 -> Non-Financial Public Corporations Balance Sheet Liabilities | J11: =ICT_1647 -> Sources: IMF Public Sector Balance Sheet Database; and IMF staff calculations. | K11: =ICO_1225 -> Percent of GDP | M11: StackedColumn | N11: NFPCBS_GDP | O11: =PO_171 -> Public corporations
A12: GG | B12: =PO_118& " " &ICT_1682 -> Government guarantees (percent of Gross Domestic Product) | C12: 2012-2018 | D12: =OFFSET(PanelData!A$1,5187,(MATCH(E12,Table2[#Headers],0)-1)) -> 2018 | E12: Govt Guarantees, Percentage of GDP | G12: =PO_118 -> Government guarantees | J12: =ICT_1603 & " " & ICT_1609 -> Source: Eurostat; IMF Fiscal Transparency Evaluation Reports; and IMF staff calculations. | K12: =ICO_1225 -> Percent of GDP | M12: ClusteredColumn | N12: GGUAR_GDP | O12: =PO_118 -> Government guarantees
A13: PIMA | B13: =RRO_456 -> Public Investment Management Assessment, (Range 1 to 3, the higher score, the stronger the institution) | C13: 2016-2020 | D13: =OFFSET(PanelData!A$1,5187,(MATCH(E13,Table2[#Headers],0)-1)) -> 2020 | E13: PIMA Effectiveness Score (range 1 to 3, the higher score, the stronger the institution) | G13: PIMA Effectiveness Score | J13: =ICT_1603&" "&ICT_1610 -> Source: IMF staff reports; and IMF staff calculations. | K13: =ICT_1623 -> PIMA Score (1-3) | M13: ClusteredColumn | N13: PIMAEFFSCORE | O13: =PO_172 -> Public investment
A14: NLTGL | B14: =RRO_431 & ", " & D158 -> Non-performing Loans to Total Gross Loans (Percent), | C14: 2019 | D14: =OFFSET(PanelData!A$1,5187,(MATCH(E14,Table2[#Headers],0)-1)) -> 2019 | E14: Non-performing Loans to Total Gross Loans, Percent | G14: =ICO_1219 -> Non-performing Loans to Total Gross Loans | J14: =ICT_1603&" "&ICT_1611 -> Source: IMF and IMF staff calculations. | K14: =ICO_1225 -> Percent of GDP | M14: ClusteredColumn | N14: FSANL_PT | O14: =PO_104 -> Financial sector
A15: CRWA | B15: =RRO_464 -> Regulatory Tier 1 Capital to Risk-Weighted Assets (Percent) | C15: 2019 | D15: =OFFSET(PanelData!A$1,5187,(MATCH(E15,Table2[#Headers],0)-1)) -> 2019 | E15: Regulatory Tier 1 Capital to Risk-Weighted Assets, Percent | G15: =ICO_1237 -> Regulatory Tier 1 Capital to Risk-Weighted Assets | J15: =ICT_1603 & " " & ICT_1611 -> Source: IMF and IMF staff calculations. | K15: =ICO_1223 -> Percent | M15: ClusteredColumn | N15: FSKRTC_PT
A16: CA | B16: =RRO_253 -> Capital to Assets (Percent) | C16: 2019 | D16: =OFFSET(PanelData!A$1,5187,(MATCH(E16,Table2[#Headers],0)-1)) -> 2019 | E16: Capital to Assets, Percent | G16: =ICO_1166 -> Capital to Assets | J16: =ICT_1603 & " " & ICT_1611 -> Source: IMF and IMF staff calculations. | K16: =ICO_1223 -> Percent | M16: ClusteredColumn | N16: FSKA_PT
A17: RA | B17: =RRO_469 -> Return on Assets (Percent) | C17: 2019 | D17: =OFFSET(PanelData!A$1,5187,(MATCH(E17,Table2[#Headers],0)-1)) -> 2019 | E17: Return on Assets, Percent | G17: =PO_176 -> FINANCIAL SECTOR, RETURN ON ASSETS | J17: =ICT_1603 & " " & ICT_1611 -> Source: IMF and IMF staff calculations. | K17: =ICO_1223 -> Percent | M17: ClusteredColumn | N17: FSERA_PT
A18: AGDP | B18: =RRO_233 -> Assets to Gross Domestic Product (Percent) | C18: 2019 | D18: =OFFSET(PanelData!A$1,5187,(MATCH(E18,Table2[#Headers],0)-1)) -> 2019 | E18: Assets to Gross Domestic Product (GDP), Percent | G18: =PO_79 -> Assets to Gross Domestic Product | J18: =ICT_1603 & " " & ICT_1611 -> Source: IMF and IMF staff calculations. | K18: =ICO_1223 -> Percent | M18: ClusteredColumn | N18: FSFAG_PT
A19: Z | B19: =RRO_513 -> Total Damages and Insured Damages, 2010-2019 (percent of Gross Domestic Product) | C19: 2010 -2019 | D19: =OFFSET(PanelData!A$1,5187,(MATCH(E19,Table2[#Headers],0)-1)) ->  | E19: ** Run by a macro ** | G19: ** Run by a macro ** | J19: =ICT_1603 &" " & ICT_1612 -> Source: EM-DAT The International Disaster Database; and IMF staff calculations. | K19: =ICT_1624 -> Average (Percent of GDP) | L19: =ICT_1645 -> Maximum (Percent of GDP) | M19: Customed Combination | N19: TOTDAM_GDP | O19: =PO_100 -> Environmental risks
A20: RV | B20: =ICT_1627 & ", " & D236 -> Readiness vs Vulnerability to Climate Hazards, | C20: 2018 | D20: =OFFSET(PanelData!A$1,5187,(MATCH(E20,Table2[#Headers],0)-1)) -> 2018 | E20: Vulnerability Ratio | F20: Readiness Ratio | G20: =PD_978 -> Vulnerability | H20: =PD_972 -> Readiness | J20: =ICT_1646 -> Source: The Notre Dame Global Adaptation Initiative (ND-GAIN); and IMF staff calculations. | K20: =PD_978 -> Vulnerability | L20: =PD_972 -> Readiness | M20: Scattter | N20: READRATIO
A21: SNGL | B21: =RRO_499 & ", " & D262 -> Subnational Government Liabilities (Stock Position of Liabilities - percent of Gross Domestic Product), | C21: 2018 | D21: =OFFSET(PanelData!A$1,5187,(MATCH(E21,Table2[#Headers],0)-1)) -> 2019 | E21: Stock position of liabilities, Local Government, (Percent of GDP) | F21: Stock position of liabilities, State Government, (Percent of GDP) | G21: Stock position of liabilities, Local Government, (Percent of GDP) | H21: Stock position of liabilities, State Government, (Percent of GDP) | J21: =ICT_1615 -> Source: IMF Government Finance Statistics Database; and IMF staff calculations. | K21: =ICO_1225 -> Percent of GDP | M21: ClusteredColumn | N21: SUBGD_GDP | O21: =PO_137 -> Lower-level governments
A22: SSNG | B22: =RRO_491 & ", " & D275 -> Size and Self-Reliance of Subnational Governments (SNG), (Percent), | C22: 2019 | D22: =OFFSET(PanelData!A$1,5187,(MATCH(E22,Table2[#Headers],0)-1)) -> 2019 | E22: Subnational Gvt: Self Reliance (Percent of Expenditure) | F22: Local Government - Expenses (Percent of GDP) | G22: =RRO_501 -> Subnational Gvt: Self Reliance (Percent of Expenditure) | H22: =RRO_399 -> Subnational Gvt - Expenses (Percent of GDP) | J22: =ICT_1647 -> Sources: IMF Public Sector Balance Sheet Database; and IMF staff calculations. | K22: =ICO_1225 -> Percent of GDP | M22: StackedColumn | N22: SUBGX_GDP
A23: NRR | B23: =RRO_515 & ", " & D288 -> Total Natural Resources Rents, percent of Gross Domestic Product, | C23: 2018 | D23: =OFFSET(PanelData!A$1,5187,(MATCH(E23,Table2[#Headers],0)-1)) -> 2018 | E23: Total natural resources rents (% of GDP) | G23: =RRO_514 -> Total Natural Resources Rents, percent of Gross Domestic Product | J23: =ICT_1603 & " " &ICT_1617 -> Source: World Bank World Development Indicators; and IMF staff calculations. | K23: =ICO_1223 -> Percent | M23: ClusteredColumn | N23: TOTNATRES_GDP | O23: =PO_147 -> Natural resources
A24: NC | B24: Natural Capital Per Capita, | C24: 2014 | D24: =OFFSET(PanelData!A$1,5187,(MATCH(E24,Table2[#Headers],0)-1)) -> 2014 | E24: Natural capital per capita (constant 2014 US$) | F24: Natural capital per capita, subsoil assets (constant 2014 US$) | G24: =PD_968 -> Natural capital per capita, subsoil assets | H24: =PD_967 -> Other natural capital per capita | I24: Gross domestic product, current prices in billions national currency | J24: =ICT_1603 & " " & ICT_1618 -> Source: World Bank Wealth Accounting Database; and IMF staff calculations. | K24: =ICT_1625 -> Constant 2014 USD | M24: StackedColumnPlotNR | N24: NATCAPK_SUBASSETS_R_USD
A25: PPP | B25: =RRO_458 & ", " & D314 -> Public-Private Partnerships Capital Stock (percent of Gross Domestic Product), | C25: 2017 | D25: =OFFSET(PanelData!A$1,5187,(MATCH(E25,Table2[#Headers],0)-1)) -> 2017 | E25: Public-private partnership (PPP) capital stock (percent of GDP) | G25: =ICO_1231 -> Public-private partnership (PPP) capital stock | J25: =ICT_1603&" "&ICT_1619 -> Source: IMF Capital and Investment Dataset, 2019; and IMF staff calculations. | K25: =ICO_1225 -> Percent of GDP | N25: PPPSTOCK_GDP | O25: =PO_173 -> Public private partnerships
A50: Chart Code | B50: Title | C50: Years covered | D50: Year of analysis | E50: Series Y values | F50: Series X values | G50: Series X2 values | H50: Series X3 values | I50: Series values Y Name | J50: Series values X Name | K50: Series values X2 Name | L50: Series values X3 Name | M50: Source of data | N50: Yaxis Title | O50: Xaxis title | P50: Xaxis secondary title | Q50: Type of chart | R50: Short name | S50: Year updated
A51: RvsGDPvol_1 | B51: =Country_Input & PO_74 -> Afghanistan: Real and Nominal Gross Domestic Product Growth | C51: 2000-2025 | D51: ** Run by a macro ** | E51: Gross domestic product, current prices in national currency, percent change | F51: Forecasts- Gross domestic product, current prices in national currency, percent change | G51: Gross domestic product, constant prices in national currency, percent change | H51: Forecasts- Gross domestic product, constant prices in national currency, percent change | I51: =S_1040 -> Gross domestic product, current prices in national currency, percent change | J51: =S_1031 -> Forecasts- Gross domestic product, current prices in national currency, percent change | K51: =S_1037 -> Gross domestic product, constant prices in national currency, percent change | L51: =S_1030 -> Forecasts- Gross domestic product, constant prices in national currency, percent change | M51: =S_1064 -> Source: IMF, World Economic Outlook | N51: =ICO_1223 -> Percent | Q51: xlLineMarkers | R51: NGDP_PCH_VLTY | S51: =IFERROR(YEAR(IF(VLOOKUP(Table6[[#This Row],[Short name]],Metadata!$B$1:$I$53,8,FALSE)=0,"",VLOOKUP(Table6[[#This Row],[Short name]],Metadata!$B$1:$I$53,8,FALSE))),0) -> 2020
A52: RvsGDPvol_2 | B52: =Country_Input & PO_74 -> Afghanistan: Real and Nominal Gross Domestic Product Growth | C52: 2000-2025 | D52: ** Run by a macro ** | E52: Gross domestic product, current prices in national currency, percent change | F52: Forecasts- Gross domestic product, current prices in national currency, percent change | G52: Gross domestic product, constant prices in national currency, percent change | H52: Forecasts- Gross domestic product, constant prices in national currency, percent change | I52: =S_1040 -> Gross domestic product, current prices in national currency, percent change | J52: =S_1031 -> Forecasts- Gross domestic product, current prices in national currency, percent change | K52: =S_1037 -> Gross domestic product, constant prices in national currency, percent change | L52: =S_1030 -> Forecasts- Gross domestic product, constant prices in national currency, percent change | M52: =S_1064 -> Source: IMF, World Economic Outlook | N52: =ICO_1223 -> Percent | Q52: xlBoxwhisker | R52: NGDP_PCH_VLTY | S52: =IFERROR(YEAR(IF(VLOOKUP(Table6[[#This Row],[Short name]],Metadata!$B$1:$I$53,8,FALSE)=0,"",VLOOKUP(Table6[[#This Row],[Short name]],Metadata!$B$1:$I$53,8,FALSE))),0) -> 2020
A53: GGD | B53: =Country_Input&S_1018 -> Afghanistan: General Government Gross Debt, percent of fiscal year Gross Domestic Product, 2000-2018 | C53: 2000-2019 | D53: ** Run by a macro ** | E53: General government gross debt, percent of fiscal year GDP | I53: =RRO_327 -> General government gross debt, percent of fiscal year GDP | M53: =S_1064 -> Source: IMF, World Economic Outlook | N53: =ICO_1225 -> Percent of GDP | Q53: ClusteredColumn | R53: GGXWDG | S53: =IFERROR(YEAR(IF(VLOOKUP(Table6[[#This Row],[Short name]],Metadata!$B$1:$I$53,8,FALSE)=0,"",VLOOKUP(Table6[[#This Row],[Short name]],Metadata!$B$1:$I$53,8,FALSE))),0) -> 2020
A54: ORDD | B54: =Country_Input &S_1020 -> Afghanistan: Overall Risk of Debt Distress | C54: 2018-2020 | D54: ** Run by a macro ** | E54: Overall risk of debt distress | I54: =PO_159 -> OVERALL RISK OF DEBT DISTRESS | M54: =S_1060 -> Source: IMF, Debt Sustainability Data | Q54: ClusteredColumn | R54: GGXWDG | S54: =IFERROR(YEAR(IF(VLOOKUP(Table6[[#This Row],[Short name]],Metadata!$B$1:$I$53,8,FALSE)=0,"",VLOOKUP(Table6[[#This Row],[Short name]],Metadata!$B$1:$I$53,8,FALSE))),0) -> 2020
A55: REDD | B55: =Country_Input &S_1021 -> Afghanistan: Overall Risk of External Debt Distress | C55: 2010-2020 | D55: ** Run by a macro ** | E55: Risk of external debt distress | I55: =PO_183 -> RISK OF EXTERNAL DEBT DISTRESS | M55: =S_1060 -> Source: IMF, Debt Sustainability Data | Q55: ClusteredColumn | R55: GGXWDG | S55: =IFERROR(YEAR(IF(VLOOKUP(Table6[[#This Row],[Short name]],Metadata!$B$1:$I$53,8,FALSE)=0,"",VLOOKUP(Table6[[#This Row],[Short name]],Metadata!$B$1:$I$53,8,FALSE))),0) -> 2020
A56: NWAFW | B56: =Country_Input & S_1019 -> Afghanistan: General Government Net Worth and Net Financial Worth, percent of Gross Domestic Product | C56: 2000-2016 | D56: ** Run by a macro ** | E56: General Government Balance Sheet, Net worth (Percent of GDP) | F56: General Government Balance Sheet, Net financial worth (Percent of GDP) | I56: =RRO_325 -> General Government Balance Sheet, Net worth (Percent of GDP) | J56: =RRO_324 -> General Government Balance Sheet, Net financial worth (Percent of GDP) | M56: =S_1062 -> Source: IMF, Public Sector Balance Sheet (PSBS) | N56: =ICT_1632 -> Net Worth (Percent of GDP) | Q56: xlLineMarkers | R56: GGBSNW_GDP | S56: 2020
A57: CTRWA | B57: =Country_Input &S_1017 -> Afghanistan: Capital to Risk Weighted Assets, percent | C57: 2000-2019 | D57: ** Run by a macro ** | E57: Regulatory Tier 1 Capital to Risk-Weighted Assets, Percent | I57: =S_1027 -> Regulatory Tier 1 Capital to Risk-Weighted Assets, percent | M57: =S_1055 -> Source: IMF | N57: =ICO_1223 -> Percent | Q57: ClusteredColumn | R57: FSKRTC_PT | S57: =IFERROR(YEAR(IF(VLOOKUP(Table6[[#This Row],[Short name]],Metadata!$B$1:$I$53,8,FALSE)=0,"",VLOOKUP(Table6[[#This Row],[Short name]],Metadata!$B$1:$I$53,8,FALSE))),0) -> 2020
A58: ROA | B58: =Country_Input & S_1022 -> Afghanistan: Return on Assets, percent | C58: 2000-2019 | D58: ** Run by a macro ** | E58: Return on Assets, Percent | I58: =S_1028 -> Deposit Takers, Earnings and Profitability, Return on Assets, percent | M58: =S_1055 -> Source: IMF | N58: =ICO_1223 -> Percent | Q58: ClusteredColumn | R58: FSERA_PT | S58: =IFERROR(YEAR(IF(VLOOKUP(Table6[[#This Row],[Short name]],Metadata!$B$1:$I$53,8,FALSE)=0,"",VLOOKUP(Table6[[#This Row],[Short name]],Metadata!$B$1:$I$53,8,FALSE))),0) -> 2020
A59: ATGDP | B59: =Country_Input & S_1016 -> Afghanistan: Assets to Gross Domestic Product, percent | C59: 2000-2019 | D59: ** Run by a macro ** | E59: Assets to Gross Domestic Product (GDP), Percent | I59: =S_1029 -> Assets to Gross Domestic Product (GDP), percent | M59: =S_1055 -> Source: IMF | N59: =ICO_1223 -> Percent | Q59: ClusteredColumn | R59: FSFAG_PT | S59: =IFERROR(YEAR(IF(VLOOKUP(Table6[[#This Row],[Short name]],Metadata!$B$1:$I$53,8,FALSE)=0,"",VLOOKUP(Table6[[#This Row],[Short name]],Metadata!$B$1:$I$53,8,FALSE))),0) -> 2020
A60: SNGL | B60: =Country_Input & S_1014 -> Afghanistan: Sub National Government- Liabilities Debt Securities, percent of Gross Domestic Product | C60: 2000-2018 | D60: ** Run by a macro ** | E60: Subnational Gvt: Local + State government -Liabilities debt securities, percent of GDP | I60: =RRO_500 -> Subnational Gvt: Local + State government -Liabilities debt securities, percent of Gross Domestic Product | M60: =S_1664 -> Source: IMF, GFS and Staff Calculation | N60: =ICO_1223 -> Percent | Q60: ClusteredColumn | R60: SUBGD_GDP | S60: =IFERROR(YEAR(IF(VLOOKUP(Table6[[#This Row],[Short name]],Metadata!$B$1:$I$53,8,FALSE)=0,"",VLOOKUP(Table6[[#This Row],[Short name]],Metadata!$B$1:$I$53,8,FALSE))),0) -> 2020
A61: TNRR | B61: =Country_Input & S_1015 -> Afghanistan: Total Natural Resources Rents, percent of Gross Domestic Product | C61: 2000-2019 | D61: ** Run by a macro ** | E61: Total natural resources rents (% of GDP) | I61: =RRO_514 -> Total Natural Resources Rents, percent of Gross Domestic Product | M61: =S_1066 -> Source: WDI, World Bank | N61: =ICO_1225 -> Percent of GDP | Q61: ClusteredColumn | R61: TOTNATRES_GDP | S61: =IFERROR(YEAR(IF(VLOOKUP(Table6[[#This Row],[Short name]],Metadata!$B$1:$I$53,8,FALSE)=0,"",VLOOKUP(Table6[[#This Row],[Short name]],Metadata!$B$1:$I$53,8,FALSE))),0) -> 2020
A62: SPPP | B62: =Country_Input & S_1013 -> Afghanistan: Public-Private Partnership- Capital Stock, percent of Gross Domestic Product, 2000-2017 | C62: 2000-2017 | D62: ** Run by a macro ** | E62: Public-private partnership (PPP) capital stock (percent of GDP) | I62: =RRO_457 -> Public-private partnership (PPP) capital stock (percent of GDP) | M62: =S_1058 -> Source: IMF,Investment and Capital Stock Dataset | N62: Percent of GDP | Q62: xlLineMarkers | R62: PPPSTOCK_GDP | S62: =IFERROR(YEAR(IF(VLOOKUP(Table6[[#This Row],[Short name]],Metadata!$B$1:$I$53,8,FALSE)=0,"",VLOOKUP(Table6[[#This Row],[Short name]],Metadata!$B$1:$I$53,8,FALSE))),0) -> 2020
A63: CPC_1 | B63: =Country_Input & PO_67 -> Afghanistan: Consumer Prices, period average, percent change | C63: 2000-2019 | D63: ** Run by a macro ** | E63: Consumer Prices, period average, percent change | I63: =S_1025 -> Consumer Prices, period average, percent change | M63: =S_1064 -> Source: IMF, World Economic Outlook | N63: Percentage change | Q63: ClusteredColumn | R63: NGDP_PCH_VLTY | S63: =IFERROR(YEAR(IF(VLOOKUP(Table6[[#This Row],[Short name]],Metadata!$B$1:$I$53,8,FALSE)=0,"",VLOOKUP(Table6[[#This Row],[Short name]],Metadata!$B$1:$I$53,8,FALSE))),0) -> 2020
A64: CPC_2 | B64: =Country_Input & PO_67 -> Afghanistan: Consumer Prices, period average, percent change | C64: 2000-2019 | D64: ** Run by a macro ** | E64: Consumer Prices, period average, percent change | I64: =S_1025 -> Consumer Prices, period average, percent change | M64: =S_1064 -> Source: IMF, World Economic Outlook | N64: Percent of GDP | Q64: xlBoxwhisker | R64: NGDP_PCH_VLTY | S64: =IFERROR(YEAR(IF(VLOOKUP(Table6[[#This Row],[Short name]],Metadata!$B$1:$I$53,8,FALSE)=0,"",VLOOKUP(Table6[[#This Row],[Short name]],Metadata!$B$1:$I$53,8,FALSE))),0) -> 2020
A65: MRI_1 | B65: =Country_Input & PO_72 -> Afghanistan: Migrant remittance inflows, percent of Gross Domestic Product | C65: 2000-2019 | D65: ** Run by a macro ** | E65: Migrant remittance inflows as a % of GDP | G65: Migrant remittance inflows (US$ million) | H65: Gross domestic product, current prices in millions U.S. dollars | I65: =S_1046 -> Migrant remittance inflows as a percent of GDP | M65: =S_1068 -> Source: World Bank and IMF Staff Calculation | N65: Percent of GDP | Q65: ClusteredColumn | R65: NGDP_PCH_VLTY | S65: =IFERROR(YEAR(IF(VLOOKUP(Table6[[#This Row],[Short name]],Metadata!$B$1:$I$53,8,FALSE)=0,"",VLOOKUP(Table6[[#This Row],[Short name]],Metadata!$B$1:$I$53,8,FALSE))),0) -> 2020
A66: MRI_2 | B66: =Country_Input & PO_72 -> Afghanistan: Migrant remittance inflows, percent of Gross Domestic Product | C66: 2000-2019 | D66: ** Run by a macro ** | E66: Migrant remittance inflows as a % of GDP | G66: Migrant remittance inflows (US$ million) | H66: Gross domestic product, current prices in billions U.S. dollars | I66: =S_1046 -> Migrant remittance inflows as a percent of GDP | M66: =S_1068 -> Source: World Bank and IMF Staff Calculation | N66: Percent of GDP | Q66: xlBoxwhisker | R66: NGDP_PCH_VLTY | S66: =IFERROR(YEAR(IF(VLOOKUP(Table6[[#This Row],[Short name]],Metadata!$B$1:$I$53,8,FALSE)=0,"",VLOOKUP(Table6[[#This Row],[Short name]],Metadata!$B$1:$I$53,8,FALSE))),0) -> 2020
A67: LTBY_1 | B67: =Country_Input & PO_71 -> Afghanistan: Long-term bond yield, percent of Gross Domestic Product | C67: 2000-2019 | D67: ** Run by a macro ** | E67: Long-term bond yield | I67: =S_1043 -> Long-term bond yield | M67: =S_1064 -> Source: IMF, World Economic Outlook | N67: =ICO_1223 -> Percent | Q67: ClusteredColumn | R67: NGDP_PCH_VLTY | S67: =IFERROR(YEAR(IF(VLOOKUP(Table6[[#This Row],[Short name]],Metadata!$B$1:$I$53,8,FALSE)=0,"",VLOOKUP(Table6[[#This Row],[Short name]],Metadata!$B$1:$I$53,8,FALSE))),0) -> 2020
A68: LTBY_2 | B68: =Country_Input & PO_71 -> Afghanistan: Long-term bond yield, percent of Gross Domestic Product | C68: 2000-2019 | D68: ** Run by a macro ** | E68: Long-term bond yield | I68: =S_1043 -> Long-term bond yield | M68: Source: IMF, World Economic Outlook | N68: =ICO_1223 -> Percent | Q68: xlBoxwhisker | R68: NGDP_PCH_VLTY | S68: =IFERROR(YEAR(IF(VLOOKUP(Table6[[#This Row],[Short name]],Metadata!$B$1:$I$53,8,FALSE)=0,"",VLOOKUP(Table6[[#This Row],[Short name]],Metadata!$B$1:$I$53,8,FALSE))),0) -> 2020
A69: NC_1 | B69: =Country_Input &S_1012 -> Afghanistan: National Currency units per U.S. Dollar (period average), percentage change | C69: 2001-2020 | D69: ** Run by a macro ** | E69: National currency units per U.S. dollar, period average, percent change | I69: =S_1048 -> National currency units per U.S. dollar, period average, percent change | M69: Source: IMF, World Economic Outlook | N69: =ICO_1223 -> Percent | Q69: ClusteredColumn | R69: NGDP_PCH_VLTY | S69: =IFERROR(YEAR(IF(VLOOKUP(Table6[[#This Row],[Short name]],Metadata!$B$1:$I$53,8,FALSE)=0,"",VLOOKUP(Table6[[#This Row],[Short name]],Metadata!$B$1:$I$53,8,FALSE))),0) -> 2020
A70: NC_2 | B70: =Country_Input &S_1012 -> Afghanistan: National Currency units per U.S. Dollar (period average), percentage change | C70: 2001-2020 | D70: ** Run by a macro ** | E70: National currency units per U.S. dollar, period average | I70: =S_1048 -> National currency units per U.S. dollar, period average, percent change | M70: Source: IMF, World Economic Outlook | N70: =ICO_1223 -> Percent | Q70: xlBoxwhisker | R70: NGDP_PCH_VLTY | S70: =IFERROR(YEAR(IF(VLOOKUP(Table6[[#This Row],[Short name]],Metadata!$B$1:$I$53,8,FALSE)=0,"",VLOOKUP(Table6[[#This Row],[Short name]],Metadata!$B$1:$I$53,8,FALSE))),0) -> 2020
A71: GGR_1 | B71: =Country_Input &S_1010 -> Afghanistan: General Government Revenue in billions national currency, percentage change | C71: 2001-2021 | D71: ** Run by a macro ** | E71: General government revenue in billions national currency | I71: =Table6[[#This Row],[Yaxis Title]] -> Revenue growth | M71: Source: IMF, World Economic Outlook | N71: =S_997 -> Revenue growth | Q71: ClusteredColumn | R71: GGR | S71: =IFERROR(YEAR(IF(VLOOKUP(Table6[[#This Row],[Short name]],Metadata!$B$1:$I$53,8,FALSE)=0,"",VLOOKUP(Table6[[#This Row],[Short name]],Metadata!$B$1:$I$53,8,FALSE))),0) -> 2020
A72: GGR_2 | B72: =Country_Input &S_1010 -> Afghanistan: General Government Revenue in billions national currency, percentage change | C72: 2001-2022 | D72: ** Run by a macro ** | E72: General government revenue in billions national currency | I72: =Table6[[#This Row],[Yaxis Title]] -> Revenue growth | M72: Source: IMF, World Economic Outlook | N72: =S_997 -> Revenue growth | Q72: xlBoxwhisker | R72: GGR | S72: =IFERROR(YEAR(IF(VLOOKUP(Table6[[#This Row],[Short name]],Metadata!$B$1:$I$53,8,FALSE)=0,"",VLOOKUP(Table6[[#This Row],[Short name]],Metadata!$B$1:$I$53,8,FALSE))),0) -> 2020
A73: GGTE_1 | B73: =Country_Input & S_1011 -> Afghanistan: General Government Total Expenditure in billions national currency, percentage change | C73: 2001-2021 | D73: ** Run by a macro ** | E73: General government total expenditure in billions national currency | I73: =Table6[[#This Row],[Yaxis Title]] -> Percentage change in Expenditure | M73: Source: IMF, World Economic Outlook | N73: =S_998 -> Percentage change in Expenditure | Q73: ClusteredColumn | R73: GGX | S73: =IFERROR(YEAR(IF(VLOOKUP(Table6[[#This Row],[Short name]],Metadata!$B$1:$I$53,8,FALSE)=0,"",VLOOKUP(Table6[[#This Row],[Short name]],Metadata!$B$1:$I$53,8,FALSE))),0) -> 2020
A74: GGTE_2 | B74: =Country_Input &S_1011 -> Afghanistan: General Government Total Expenditure in billions national currency, percentage change | C74: 2001-2022 | D74: ** Run by a macro ** | E74: General government total expenditure in billions national currency | I74: =Table6[[#This Row],[Yaxis Title]] -> Percentage change in Expenditure | M74: Source: IMF, World Economic Outlook | N74: =S_998 -> Percentage change in Expenditure | Q74: xlBoxwhisker | R74: GGX | S74: =IFERROR(YEAR(IF(VLOOKUP(Table6[[#This Row],[Short name]],Metadata!$B$1:$I$53,8,FALSE)=0,"",VLOOKUP(Table6[[#This Row],[Short name]],Metadata!$B$1:$I$53,8,FALSE))),0) -> 2020
A75: GGNL_1 | B75: =Country_Input &S_1009 -> Afghanistan: General Government Net Lending/Borrowing, percent of fiscal year of Gross Domestic Product | C75: 2001-2022 | D75: ** Run by a macro ** | E75: General government net lending/borrowing, national currency, percent of fiscal year GDP | I75: =S_1032 -> General government net lending/borrowing, national currency, percent of fiscal year GDP | M75: Source: IMF, World Economic Outlook | N75: =ICO_1225 -> Percent of GDP | Q75: ClusteredColumn | R75: GGXCNL | S75: =IFERROR(YEAR(IF(VLOOKUP(Table6[[#This Row],[Short name]],Metadata!$B$1:$I$53,8,FALSE)=0,"",VLOOKUP(Table6[[#This Row],[Short name]],Metadata!$B$1:$I$53,8,FALSE))),0) -> 2020
A76: GGNL_2 | B76: =Country_Input &S_1009 -> Afghanistan: General Government Net Lending/Borrowing, percent of fiscal year of Gross Domestic Product | C76: 2001-2022 | D76: ** Run by a macro ** | E76: General government net lending/borrowing, national currency, percent of fiscal year GDP | I76: =S_1032 -> General government net lending/borrowing, national currency, percent of fiscal year GDP | M76: Source: IMF, World Economic Outlook | N76: =ICO_1225 -> Percent of GDP | Q76: xlBoxwhisker | R76: GGXCNL | S76: =IFERROR(YEAR(IF(VLOOKUP(Table6[[#This Row],[Short name]],Metadata!$B$1:$I$53,8,FALSE)=0,"",VLOOKUP(Table6[[#This Row],[Short name]],Metadata!$B$1:$I$53,8,FALSE))),0) -> 2020
CA159: Identification
CA160: USER COULD NOT ANSWER QUESTION | CB160: =(COUNTIF($B$106,"=TRUE")+COUNTIF($B$61,"=TRUE")+COUNTIF($B$46,"=TRUE")+COUNTIF($B$26,"=TRUE")+COUNTIF($B$12,"=TRUE")+COUNTIF($B$4,"=TRUE"))/6 -> 0 | CC160: USER COULD NOT ANSWER QUESTION | CD160: =(COUNTIF($D$106,"=TRUE")+COUNTIF($D$61,"=TRUE")+COUNTIF($D$46,"=TRUE")+COUNTIF($D$26,"=TRUE")+COUNTIF($D$12,"=TRUE")+COUNTIF($D$4,"=TRUE"))/6 -> 0 | CE160: USER COULD NOT ANSWER QUESTION | CF160: =(COUNTIF($F$106,"=TRUE")+COUNTIF($F$61,"=TRUE")+COUNTIF($F$46,"=TRUE")+COUNTIF($F$26,"=TRUE")+COUNTIF($F$12,"=TRUE")+COUNTIF($F$4,"=TRUE"))/6 -> 0 | CG160: USER COULD NOT ANSWER QUESTION | CH160: =(COUNTIF($H$106,"=TRUE")+COUNTIF($H$61,"=TRUE")+COUNTIF($H$46,"=TRUE")+COUNTIF($H$26,"=TRUE")+COUNTIF($H$12,"=TRUE")+COUNTIF($H$4,"=TRUE"))/6 -> 0 | CI160: USER COULD NOT ANSWER QUESTION | CJ160: =(COUNTIF($J$106,"=TRUE")+COUNTIF($J$61,"=TRUE")+COUNTIF($J$46,"=TRUE")+COUNTIF($J$26,"=TRUE")+COUNTIF($J$12,"=TRUE")+COUNTIF($J$4,"=TRUE"))/6 -> 0 | CK160: USER COULD NOT ANSWER QUESTION | CL160: =(COUNTIF($L$106,"=TRUE")+COUNTIF($L$61,"=TRUE")+COUNTIF($L$46,"=TRUE")+COUNTIF($L$26,"=TRUE")+COUNTIF($L$12,"=TRUE")+COUNTIF($L$4,"=TRUE"))/6 -> 0 | CM160: USER COULD NOT ANSWER QUESTION | CN160: =(COUNTIF($N$106,"=TRUE")+COUNTIF($N$61,"=TRUE")+COUNTIF($N$46,"=TRUE")+COUNTIF($N$26,"=TRUE")+COUNTIF($N$12,"=TRUE")+COUNTIF($N$4,"=TRUE"))/6 -> 0 | CO160: USER COULD NOT ANSWER QUESTION | CP160: =(COUNTIF($P$106,"=TRUE")+COUNTIF($P$61,"=TRUE")+COUNTIF($P$46,"=TRUE")+COUNTIF($P$26,"=TRUE")+COUNTIF($P$12,"=TRUE")+COUNTIF($P$4,"=TRUE"))/6 -> 0 | CQ160: USER COULD NOT ANSWER QUESTION | CR160: =(COUNTIF($R$106,"=TRUE")+COUNTIF($R$61,"=TRUE")+COUNTIF($R$46,"=TRUE")+COUNTIF($R$26,"=TRUE")+COUNTIF($R$12,"=TRUE")+COUNTIF($R$4,"=TRUE"))/6 -> 0 | CS160: USER COULD NOT ANSWER QUESTION | CT160: =(COUNTIF($T$106,"=TRUE")+COUNTIF($T$61,"=TRUE")+COUNTIF($T$46,"=TRUE")+COUNTIF($T$26,"=TRUE")+COUNTIF($T$12,"=TRUE")+COUNTIF($T$4,"=TRUE"))/6 -> 0 | CU160: USER COULD NOT ANSWER QUESTION | CV160: =(COUNTIF($V$106,"=TRUE")+COUNTIF($V$61,"=TRUE")+COUNTIF($V$46,"=TRUE")+COUNTIF($V$26,"=TRUE")+COUNTIF($V$12,"=TRUE")+COUNTIF($V$4,"=TRUE"))/6 -> 0 | CW160: USER COULD NOT ANSWER QUESTION | CX160: =(COUNTIF($X$106,"=TRUE")+COUNTIF($X$61,"=TRUE")+COUNTIF($X$46,"=TRUE")+COUNTIF($X$26,"=TRUE")+COUNTIF($X$12,"=TRUE")+COUNTIF($X$4,"=TRUE"))/6 -> 0 | DA160: USER COULD NOT ANSWER QUESTION | DB160: =(COUNTIF($AB$106,"=TRUE")+COUNTIF($AB$61,"=TRUE")+COUNTIF($AB$46,"=TRUE")+COUNTIF($AB$26,"=TRUE")+COUNTIF($AB$12,"=TRUE")+COUNTIF($AB$4,"=TRUE"))/6 -> 0 | DC160: USER COULD NOT ANSWER QUESTION | DD160: =(COUNTIF($AD$106,"=TRUE")+COUNTIF($AD$61,"=TRUE")+COUNTIF($AD$46,"=TRUE")+COUNTIF($AD$26,"=TRUE")+COUNTIF($AD$12,"=TRUE")+COUNTIF($AD$4,"=TRUE"))/6 -> 0
CA161: QUESTIONS ANSWERED | CB161: =1-($B$160+$B$162) -> 1 | CC161: QUESTIONS ANSWERED | CD161: =1-($D$160+$D$162) -> 1 | CE161: QUESTIONS ANSWERED | CF161: =1-($F$160+$F$162) -> 1 | CG161: QUESTIONS ANSWERED | CH161: =1-($H$160+$H$162) -> 1 | CI161: QUESTIONS ANSWERED | CJ161: =1-($J$160+$J$162) -> 1 | CK161: QUESTIONS ANSWERED | CL161: =1-($L$160+$L$162) -> 1 | CM161: QUESTIONS ANSWERED | CN161: =1-($N$160+$N$162) -> 1 | CO161: QUESTIONS ANSWERED | CP161: =1-($P$160+$P$162) -> 1 | CQ161: QUESTIONS ANSWERED | CR161: =1-($R$160+$R$162) -> 1 | CS161: QUESTIONS ANSWERED | CT161: =1-($T$160+$T$162) -> 1 | CU161: QUESTIONS ANSWERED | CV161: =1-($V$160+$V$162) -> 1 | CW161: QUESTIONS ANSWERED | CX161: =1-($X$160+$X$162) -> 1 | DA161: QUESTIONS ANSWERED | DB161: =1-($AB$160+$AB$162) -> 1 | DC161: QUESTIONS ANSWERED | DD161: =1-($AD$160+$AD$162) -> 1
CA162: QUESTIONS SKIPPED | CB162: =IF(((IF(COUNTIF($B$46:$B$54,"=TRUE")>=1,0,1)+IF(COUNTIF($B$106:$B$114,"=TRUE")>=1,0,1)+(IF(OR($B$62=TRUE,$B$69=TRUE,$B$70=TRUE,$B$73=TRUE),0,1))+IF(COUNTIF($B$12:$B$18,"=TRUE")>=1,0,1)+IF(COUNTBLANK($B$5)=1,1,0)+IF(COUNTIF($B$26:$B$28,"=TRUE")>=1,0,1))/6)-$B$160<0,0,((IF(COUNTIF($B$46:$B$54,"=TRUE")>=1,0,1)+IF(COUNTIF($B$106:$B$114,"=TRUE")>=1,0,1)+(IF(OR($B$62=TRUE,$B$69=TRUE,$B$70=TRUE,$B$73=TRUE),0,1))+IF(COUNTIF($B$12:$B$18,"=TRUE")>=1,0,1)+IF(COUNTBLANK($B$5)=1,1,0)+IF(COUNTIF($B$26:$B$28,"=TRUE")>=1,0,1))/6)-$B$160) -> 0.8333333333 | CC162: QUESTIONS SKIPPED | CD162: =IF(((IF(COUNTIF($D$46:$D$54,"=TRUE")>=1,0,1)+IF(COUNTIF($D$106:$D$114,"=TRUE")>=1,0,1)+(IF(OR($D$62=TRUE,$D$69=TRUE,$D$70=TRUE,$D$73=TRUE),0,1))+IF(COUNTIF($D$12:$D$18,"=TRUE")>=1,0,1)+IF(COUNTBLANK($D$5)=1,1,0)+IF(COUNTIF($D$26:$D$28,"=TRUE")>=1,0,1))/6)-$D$160<0,0,((IF(COUNTIF($D$46:$D$54,"=TRUE")>=1,0,1)+IF(COUNTIF($D$106:$D$114,"=TRUE")>=1,0,1)+(IF(OR($D$62=TRUE,$D$69=TRUE,$D$70=TRUE,$D$73=TRUE),0,1))+IF(COUNTIF($D$12:$D$18,"=TRUE")>=1,0,1)+IF(COUNTBLANK($D$5)=1,1,0)+IF(COUNTIF($D$26:$D$28,"=TRUE")>=1,0,1))/6)-$D$160) -> 0.8333333333 | CE162: QUESTIONS SKIPPED | CF162: =IF(((IF(COUNTIF($F$46:$F$54,"=TRUE")>=1,0,1)+IF(COUNTIF($F$106:$F$114,"=TRUE")>=1,0,1)+(IF(OR($F$62=TRUE,$F$69=TRUE,$F$70=TRUE,$F$73=TRUE),0,1))+IF(COUNTIF($F$12:$F$18,"=TRUE")>=1,0,1)+IF(COUNTBLANK($F$5)=1,1,0)+IF(COUNTIF($F$26:$F$28,"=TRUE")>=1,0,1))/6)-$F$160<0,0,((IF(COUNTIF($F$46:$F$54,"=TRUE")>=1,0,1)+IF(COUNTIF($F$106:$F$114,"=TRUE")>=1,0,1)+(IF(OR($F$62=TRUE,$F$69=TRUE,$F$70=TRUE,$F$73=TRUE),0,1))+IF(COUNTIF($F$12:$F$18,"=TRUE")>=1,0,1)+IF(COUNTBLANK($F$5)=1,1,0)+IF(COUNTIF($F$26:$F$28,"=TRUE")>=1,0,1))/6)-$F$160) -> 0.8333333333 | CG162: QUESTIONS SKIPPED | CH162: =IF(((IF(COUNTIF($H$46:$H$54,"=TRUE")>=1,0,1)+IF(COUNTIF($H$106:$H$114,"=TRUE")>=1,0,1)+(IF(OR($H$62=TRUE,$H$69=TRUE,$H$70=TRUE,$H$73=TRUE),0,1))+IF(COUNTIF($H$12:$H$18,"=TRUE")>=1,0,1)+IF(COUNTBLANK($H$5)=1,1,0)+IF(COUNTIF($H$26:$H$28,"=TRUE")>=1,0,1))/6)-$H$160<0,0,((IF(COUNTIF($H$46:$H$54,"=TRUE")>=1,0,1)+IF(COUNTIF($H$106:$H$114,"=TRUE")>=1,0,1)+(IF(OR($H$62=TRUE,$H$69=TRUE,$H$70=TRUE,$H$73=TRUE),0,1))+IF(COUNTIF($H$12:$H$18,"=TRUE")>=1,0,1)+IF(COUNTBLANK($H$5)=1,1,0)+IF(COUNTIF($H$26:$H$28,"=TRUE")>=1,0,1))/6)-$H$160) -> 1 | CI162: QUESTIONS SKIPPED | CJ162: =IF(((IF(COUNTIF($J$46:$J$54,"=TRUE")>=1,0,1)+IF(COUNTIF($J$106:$J$114,"=TRUE")>=1,0,1)+(IF(OR($J$62=TRUE,$J$69=TRUE,$J$70=TRUE,$J$73=TRUE),0,1))+IF(COUNTIF($J$12:$J$18,"=TRUE")>=1,0,1)+IF(COUNTBLANK($J$5)=1,1,0)+IF(COUNTIF($J$26:$J$28,"=TRUE")>=1,0,1))/6)-$J$160<0,0,((IF(COUNTIF($J$46:$J$54,"=TRUE")>=1,0,1)+IF(COUNTIF($J$106:$J$114,"=TRUE")>=1,0,1)+(IF(OR($J$62=TRUE,$J$69=TRUE,$J$70=TRUE,$J$73=TRUE),0,1))+IF(COUNTIF($J$12:$J$18,"=TRUE")>=1,0,1)+IF(COUNTBLANK($J$5)=1,1,0)+IF(COUNTIF($J$26:$J$28,"=TRUE")>=1,0,1))/6)-$J$160) -> 0.8333333333 | CK162: QUESTIONS SKIPPED | CL162: =IF(((IF(COUNTIF($L$46:$L$54,"=TRUE")>=1,0,1)+IF(COUNTIF($L$106:$L$114,"=TRUE")>=1,0,1)+(IF(OR($L$62=TRUE,$L$69=TRUE,$L$70=TRUE,$L$73=TRUE),0,1))+IF(COUNTIF($L$12:$L$18,"=TRUE")>=1,0,1)+IF(COUNTBLANK($L$5)=1,1,0)+IF(COUNTIF($L$26:$L$28,"=TRUE")>=1,0,1))/6)-$L$160<0,0,((IF(COUNTIF($L$46:$L$54,"=TRUE")>=1,0,1)+IF(COUNTIF($L$106:$L$114,"=TRUE")>=1,0,1)+(IF(OR($L$62=TRUE,$L$69=TRUE,$L$70=TRUE,$L$73=TRUE),0,1))+IF(COUNTIF($L$12:$L$18,"=TRUE")>=1,0,1)+IF(COUNTBLANK($L$5)=1,1,0)+IF(COUNTIF($L$26:$L$28,"=TRUE")>=1,0,1))/6)-$L$160) -> 1 | CM162: QUESTIONS SKIPPED | CN162: =IF(((IF(COUNTIF($N$46:$N$54,"=TRUE")>=1,0,1)+IF(COUNTIF($N$106:$N$114,"=TRUE")>=1,0,1)+(IF(OR($N$62=TRUE,$N$69=TRUE,$N$70=TRUE,$N$73=TRUE),0,1))+IF(COUNTIF($N$12:$N$18,"=TRUE")>=1,0,1)+IF(COUNTBLANK($N$5)=1,1,0)+IF(COUNTIF($N$26:$N$28,"=TRUE")>=1,0,1))/6)-$N$160<0,0,((IF(COUNTIF($N$46:$N$54,"=TRUE")>=1,0,1)+IF(COUNTIF($N$106:$N$114,"=TRUE")>=1,0,1)+(IF(OR($N$62=TRUE,$N$69=TRUE,$N$70=TRUE,$N$73=TRUE),0,1))+IF(COUNTIF($N$12:$N$18,"=TRUE")>=1,0,1)+IF(COUNTBLANK($N$5)=1,1,0)+IF(COUNTIF($N$26:$N$28,"=TRUE")>=1,0,1))/6)-$N$160) -> 0.8333333333 | CO162: QUESTIONS SKIPPED | CP162: =IF(((IF(COUNTIF($P$46:$P$54,"=TRUE")>=1,0,1)+IF(COUNTIF($P$106:$P$114,"=TRUE")>=1,0,1)+(IF(OR($P$62=TRUE,$P$69=TRUE,$P$70=TRUE,$P$73=TRUE),0,1))+IF(COUNTIF($P$12:$P$18,"=TRUE")>=1,0,1)+IF(COUNTBLANK($P$5)=1,1,0)+IF(COUNTIF($P$26:$P$28,"=TRUE")>=1,0,1))/6)-$P$160<0,0,((IF(COUNTIF($P$46:$P$54,"=TRUE")>=1,0,1)+IF(COUNTIF($P$106:$P$114,"=TRUE")>=1,0,1)+(IF(OR($P$62=TRUE,$P$69=TRUE,$P$70=TRUE,$P$73=TRUE),0,1))+IF(COUNTIF($P$12:$P$18,"=TRUE")>=1,0,1)+IF(COUNTBLANK($P$5)=1,1,0)+IF(COUNTIF($P$26:$P$28,"=TRUE")>=1,0,1))/6)-$P$160) -> 1 | CQ162: QUESTIONS SKIPPED | CR162: =IF(((IF(COUNTIF($R$46:$R$54,"=TRUE")>=1,0,1)+IF(COUNTIF($R$106:$R$114,"=TRUE")>=1,0,1)+(IF(OR($R$62=TRUE,$R$69=TRUE,$R$70=TRUE,$R$73=TRUE),0,1))+IF(COUNTIF($R$12:$R$18,"=TRUE")>=1,0,1)+IF(COUNTBLANK($R$5)=1,1,0)+IF(COUNTIF($R$26:$R$28,"=TRUE")>=1,0,1))/6)-$R$160<0,0,((IF(COUNTIF($R$46:$R$54,"=TRUE")>=1,0,1)+IF(COUNTIF($R$106:$R$114,"=TRUE")>=1,0,1)+(IF(OR($R$62=TRUE,$R$69=TRUE,$R$70=TRUE,$R$73=TRUE),0,1))+IF(COUNTIF($R$12:$R$18,"=TRUE")>=1,0,1)+IF(COUNTBLANK($R$5)=1,1,0)+IF(COUNTIF($R$26:$R$28,"=TRUE")>=1,0,1))/6)-$R$160) -> 1 | CS162: QUESTIONS SKIPPED | CT162: =IF(((IF(COUNTIF($T$46:$T$54,"=TRUE")>=1,0,1)+IF(COUNTIF($T$106:$T$114,"=TRUE")>=1,0,1)+(IF(OR($T$62=TRUE,$T$69=TRUE,$T$70=TRUE,$T$73=TRUE),0,1))+IF(COUNTIF($T$12:$T$18,"=TRUE")>=1,0,1)+IF(COUNTBLANK($T$5)=1,1,0)+IF(COUNTIF($T$26:$T$28,"=TRUE")>=1,0,1))/6)-$T$160<0,0,((IF(COUNTIF($T$46:$T$54,"=TRUE")>=1,0,1)+IF(COUNTIF($T$106:$T$114,"=TRUE")>=1,0,1)+(IF(OR($T$62=TRUE,$T$69=TRUE,$T$70=TRUE,$T$73=TRUE),0,1))+IF(COUNTIF($T$12:$T$18,"=TRUE")>=1,0,1)+IF(COUNTBLANK($T$5)=1,1,0)+IF(COUNTIF($T$26:$T$28,"=TRUE")>=1,0,1))/6)-$T$160) -> 1 | CU162: QUESTIONS SKIPPED | CV162: =IF(((IF(COUNTIF($V$46:$V$54,"=TRUE")>=1,0,1)+IF(COUNTIF($V$106:$V$114,"=TRUE")>=1,0,1)+(IF(OR($V$62=TRUE,$V$69=TRUE,$V$70=TRUE,$V$73=TRUE),0,1))+IF(COUNTIF($V$12:$V$18,"=TRUE")>=1,0,1)+IF(COUNTBLANK($V$5)=1,1,0)+IF(COUNTIF($V$26:$V$28,"=TRUE")>=1,0,1))/6)-$V$160<0,0,((IF(COUNTIF($V$46:$V$54,"=TRUE")>=1,0,1)+IF(COUNTIF($V$106:$V$114,"=TRUE")>=1,0,1)+(IF(OR($V$62=TRUE,$V$69=TRUE,$V$70=TRUE,$V$73=TRUE),0,1))+IF(COUNTIF($V$12:$V$18,"=TRUE")>=1,0,1)+IF(COUNTBLANK($V$5)=1,1,0)+IF(COUNTIF($V$26:$V$28,"=TRUE")>=1,0,1))/6)-$V$160) -> 1 | CW162: QUESTIONS SKIPPED | CX162: =IF(((IF(COUNTIF($X$46:$X$54,"=TRUE")>=1,0,1)+IF(COUNTIF($X$106:$X$114,"=TRUE")>=1,0,1)+(IF(OR($X$62=TRUE,$X$69=TRUE,$X$70=TRUE,$X$73=TRUE),0,1))+IF(COUNTIF($X$12:$X$18,"=TRUE")>=1,0,1)+IF(COUNTBLANK($X$5)=1,1,0)+IF(COUNTIF($X$26:$X$28,"=TRUE")>=1,0,1))/6)-$X$160<0,0,((IF(COUNTIF($X$46:$X$54,"=TRUE")>=1,0,1)+IF(COUNTIF($X$106:$X$114,"=TRUE")>=1,0,1)+(IF(OR($X$62=TRUE,$X$69=TRUE,$X$70=TRUE,$X$73=TRUE),0,1))+IF(COUNTIF($X$12:$X$18,"=TRUE")>=1,0,1)+IF(COUNTBLANK($X$5)=1,1,0)+IF(COUNTIF($X$26:$X$28,"=TRUE")>=1,0,1))/6)-$X$160) -> 1 | DA162: QUESTIONS SKIPPED | DB162: =IF(((IF(COUNTIF($AB$46:$AB$54,"=TRUE")>=1,0,1)+IF(COUNTIF($AB$106:$AB$114,"=TRUE")>=1,0,1)+(IF(OR($AB$62=TRUE,$AB$69=TRUE,$AB$70=TRUE,$AB$73=TRUE),0,1))+IF(COUNTIF($AB$12:$AB$18,"=TRUE")>=1,0,1)+IF(COUNTBLANK($AB$5)=1,1,0)+IF(COUNTIF($AB$26:$AB$28,"=TRUE")>=1,0,1))/6)-$AB$160<0,0,((IF(COUNTIF($AB$46:$AB$54,"=TRUE")>=1,0,1)+IF(COUNTIF($AB$106:$AB$114,"=TRUE")>=1,0,1)+(IF(OR($AB$62=TRUE,$AB$69=TRUE,$AB$70=TRUE,$AB$73=TRUE),0,1))+IF(COUNTIF($AB$12:$AB$18,"=TRUE")>=1,0,1)+IF(COUNTBLANK($AB$5)=1,1,0)+IF(COUNTIF($AB$26:$AB$28,"=TRUE")>=1,0,1))/6)-$AB$160) -> 1 | DC162: QUESTIONS SKIPPED | DD162: =IF(((IF(COUNTIF($AD$46:$AD$54,"=TRUE")>=1,0,1)+IF(COUNTIF($AD$106:$AD$114,"=TRUE")>=1,0,1)+(IF(OR($AD$62=TRUE,$AD$69=TRUE,$AD$70=TRUE,$AD$73=TRUE),0,1))+IF(COUNTIF($AD$12:$AD$18,"=TRUE")>=1,0,1)+IF(COUNTBLANK($AD$5)=1,1,0)+IF(COUNTIF($AD$26:$AD$28,"=TRUE")>=1,0,1))/6)-$AD$160<0,0,((IF(COUNTIF($AD$46:$AD$54,"=TRUE")>=1,0,1)+IF(COUNTIF($AD$106:$AD$114,"=TRUE")>=1,0,1)+(IF(OR($AD$62=TRUE,$AD$69=TRUE,$AD$70=TRUE,$AD$73=TRUE),0,1))+IF(COUNTIF($AD$12:$AD$18,"=TRUE")>=1,0,1)+IF(COUNTBLANK($AD$5)=1,1,0)+IF(COUNTIF($AD$26:$AD$28,"=TRUE")>=1,0,1))/6)-$AD$160) -> 1
CA164: Quantification
CA165: QUESTIONS ANSWERED | CB165: =1-$B$166 -> 1 | CC165: QUESTIONS ANSWERED | CD165: =1-$D$166 -> 1 | CE165: QUESTIONS ANSWERED | CF165: =1-$F$166 -> 1 | CG165: QUESTIONS ANSWERED | CH165: =1-$H$166 -> 1 | CI165: QUESTIONS ANSWERED | CJ165: =1-$J$166 -> 1 | CK165: QUESTIONS ANSWERED | CL165: =1-$L$166 -> 1 | CM165: QUESTIONS ANSWERED | CN165: =1-$N$166 -> 1 | CO165: QUESTIONS ANSWERED | CP165: =1-$P$166 -> 1 | CQ165: QUESTIONS ANSWERED | CR165: =1-$R$166 -> 1 | CS165: QUESTIONS ANSWERED | CT165: =1-$T$166 -> 1 | CU165: QUESTIONS ANSWERED | CV165: =1-$V$166 -> 1 | CW165: QUESTIONS ANSWERED | CX165: =1-$X$166 -> 1 | DA165: QUESTIONS ANSWERED | DB165: =1-$AB$166 -> 1 | DC165: QUESTIONS ANSWERED | DD165: =1-$AD$166 -> 1
CA166: QUESTIONS SKIPPED | CB166: =$B$508 -> 0 | CC166: QUESTIONS SKIPPED | CD166: =$D$508 -> 0 | CE166: QUESTIONS SKIPPED | CF166: =$F$508 -> 0 | CG166: QUESTIONS SKIPPED | CH166: =$H$508 -> 0 | CI166: QUESTIONS SKIPPED | CJ166: =$J$508 -> 0 | CK166: QUESTIONS SKIPPED | CL166: =$L$508 -> 0 | CM166: QUESTIONS SKIPPED | CN166: =$N$508 -> 0 | CO166: QUESTIONS SKIPPED | CP166: =$P$508 -> 0 | CQ166: QUESTIONS SKIPPED | CR166: =$R$508 -> 0 | CS166: QUESTIONS SKIPPED | CT166: =$T$508 -> 0 | CU166: QUESTIONS SKIPPED | CV166: =$V$508 -> 0 | CW166: QUESTIONS SKIPPED | CX166: =$X$508 -> 0 | DA166: QUESTIONS SKIPPED | DB166: =$AB$508 -> 0 | DC166: QUESTIONS SKIPPED | DD166: =$AD$508 -> 0
CA168: Assessment and prioritization
CA169: QUESTIONS ANSWERED | CB169: =1-$B$170 -> 0 | CC169: QUESTIONS ANSWERED | CD169: =1-$D$170 -> 0 | CE169: QUESTIONS ANSWERED | CF169: =1-$F$170 -> 0 | CG169: QUESTIONS ANSWERED | CH169: =1-$H$170 -> 0 | CI169: QUESTIONS ANSWERED | CJ169: =1-$J$170 -> 0 | CK169: QUESTIONS ANSWERED | CL169: =1-$L$170 -> 0 | CM169: QUESTIONS ANSWERED | CN169: =1-$N$170 -> 0 | CO169: QUESTIONS ANSWERED | CP169: =1-$P$170 -> 0 | CQ169: QUESTIONS ANSWERED | CR169: =1-$R$170 -> 0 | CS169: QUESTIONS ANSWERED | CT169: =1-$T$170 -> 0 | CU169: QUESTIONS ANSWERED | CV169: =1-$V$170 -> 0 | CW169: QUESTIONS ANSWERED | CX169: =1-$X$170 -> 0 | DA169: QUESTIONS ANSWERED | DB169: =1-$AB$170 -> 0 | DC169: QUESTIONS ANSWERED | DD169: =1-$AD$170 -> 0
B170: =IF(OR(COUNTBLANK(B130)+COUNTBLANK(B120)=2,B119=TRUE),1,(COUNTBLANK($B$130)+COUNTBLANK(B120))/2) -> 1 | D170: =IF(OR(COUNTBLANK(D130)+COUNTBLANK(D120)=2,D119=TRUE),1,(COUNTBLANK($B$130)+COUNTBLANK(D120))/2) -> 1 | F170: =IF(OR(COUNTBLANK(F130)+COUNTBLANK(F120)=2,F119=TRUE),1,(COUNTBLANK($B$130)+COUNTBLANK(F120))/2) -> 1 | H170: =IF(OR(COUNTBLANK(H130)+COUNTBLANK(H120)=2,H119=TRUE),1,(COUNTBLANK($B$130)+COUNTBLANK(H120))/2) -> 1 | J170: =IF(OR(COUNTBLANK(J130)+COUNTBLANK(J120)=2,J119=TRUE),1,(COUNTBLANK($B$130)+COUNTBLANK(J120))/2) -> 1 | L170: =IF(OR(COUNTBLANK(L130)+COUNTBLANK(L120)=2,L119=TRUE),1,(COUNTBLANK($B$130)+COUNTBLANK(L120))/2) -> 1 | N170: =IF(OR(COUNTBLANK(N130)+COUNTBLANK(N120)=2,N119=TRUE),1,(COUNTBLANK($B$130)+COUNTBLANK(N120))/2) -> 1 | P170: =IF(OR(COUNTBLANK(P130)+COUNTBLANK(P120)=2,P119=TRUE),1,(COUNTBLANK($B$130)+COUNTBLANK(P120))/2) -> 1 | R170: =IF(OR(COUNTBLANK(R130)+COUNTBLANK(R120)=2,R119=TRUE),1,(COUNTBLANK($B$130)+COUNTBLANK(R120))/2) -> 1 | T170: =IF(OR(COUNTBLANK(T130)+COUNTBLANK(T120)=2,T119=TRUE),1,(COUNTBLANK($B$130)+COUNTBLANK(T120))/2) -> 1 | V170: =IF(OR(COUNTBLANK(V130)+COUNTBLANK(V120)=2,V119=TRUE),1,(COUNTBLANK($B$130)+COUNTBLANK(V120))/2) -> 1 | X170: =IF(OR(COUNTBLANK(X130)+COUNTBLANK(X120)=2,X119=TRUE),1,(COUNTBLANK($B$130)+COUNTBLANK(X120))/2) -> 1 | AB170: =IF(OR(COUNTBLANK(AB130)+COUNTBLANK(AB120)=2,AB119=TRUE),1,(COUNTBLANK($B$130)+COUNTBLANK(AB120))/2) -> 1 | AD170: =IF(OR(COUNTBLANK(AD130)+COUNTBLANK(AD120)=2,AD119=TRUE),1,(COUNTBLANK($B$130)+COUNTBLANK(AD120))/2) -> 1 | CA170: QUESTIONS SKIPPED | CB170: =IF(OR(COUNTBLANK($B$130)+COUNTBLANK($B$120)=2,$B$119=TRUE),1,(COUNTBLANK($B$130)+COUNTBLANK($B$120))/2) -> 1 | CC170: QUESTIONS SKIPPED | CD170: =IF(OR(COUNTBLANK($D$130)+COUNTBLANK($D$120)=2,$D$119=TRUE),1,(COUNTBLANK($B$130)+COUNTBLANK($D$120))/2) -> 1 | CE170: QUESTIONS SKIPPED | CF170: =IF(OR(COUNTBLANK($F$130)+COUNTBLANK($F$120)=2,$F$119=TRUE),1,(COUNTBLANK($B$130)+COUNTBLANK($F$120))/2) -> 1 | CG170: QUESTIONS SKIPPED | CH170: =IF(OR(COUNTBLANK($H$130)+COUNTBLANK($H$120)=2,$H$119=TRUE),1,(COUNTBLANK($B$130)+COUNTBLANK($H$120))/2) -> 1 | CI170: QUESTIONS SKIPPED | CJ170: =IF(OR(COUNTBLANK($J$130)+COUNTBLANK($J$120)=2,$J$119=TRUE),1,(COUNTBLANK($B$130)+COUNTBLANK($J$120))/2) -> 1 | CK170: QUESTIONS SKIPPED | CL170: =IF(OR(COUNTBLANK($L$130)+COUNTBLANK($L$120)=2,$L$119=TRUE),1,(COUNTBLANK($B$130)+COUNTBLANK($L$120))/2) -> 1 | CM170: QUESTIONS SKIPPED | CN170: =IF(OR(COUNTBLANK($N$130)+COUNTBLANK($N$120)=2,$N$119=TRUE),1,(COUNTBLANK($B$130)+COUNTBLANK($N$120))/2) -> 1 | CO170: QUESTIONS SKIPPED | CP170: =IF(OR(COUNTBLANK($P$130)+COUNTBLANK($P$120)=2,$P$119=TRUE),1,(COUNTBLANK($B$130)+COUNTBLANK($P$120))/2) -> 1 | CQ170: QUESTIONS SKIPPED | CR170: =IF(OR(COUNTBLANK($R$130)+COUNTBLANK($R$120)=2,$R$119=TRUE),1,(COUNTBLANK($B$130)+COUNTBLANK($R$120))/2) -> 1 | CS170: QUESTIONS SKIPPED | CT170: =IF(OR(COUNTBLANK($T$130)+COUNTBLANK($T$120)=2,$T$119=TRUE),1,(COUNTBLANK($B$130)+COUNTBLANK($T$120))/2) -> 1 | CU170: QUESTIONS SKIPPED | CV170: =IF(OR(COUNTBLANK($V$130)+COUNTBLANK($V$120)=2,$V$119=TRUE),1,(COUNTBLANK($B$130)+COUNTBLANK($V$120))/2) -> 1 | CW170: QUESTIONS SKIPPED | CX170: =IF(OR(COUNTBLANK($X$130)+COUNTBLANK($X$120)=2,$X$119=TRUE),1,(COUNTBLANK($B$130)+COUNTBLANK($X$120))/2) -> 1 | DA170: QUESTIONS SKIPPED | DB170: =IF(OR(COUNTBLANK($AB$130)+COUNTBLANK($AB$120)=2,$AB$119=TRUE),1,(COUNTBLANK($B$130)+COUNTBLANK($AB$120))/2) -> 1 | DC170: QUESTIONS SKIPPED | DD170: =IF(OR(COUNTBLANK($AD$130)+COUNTBLANK($AD$120)=2,$AD$119=TRUE),1,(COUNTBLANK($B$130)+COUNTBLANK($AD$120))/2) -> 1
CA172: USER COULD NOT ANSWER QUESTION | CB172: =IF($B$180=TRUE,($B$160+$B$164+$B$168)/3,0) -> 0 | CD172: =IF($D$180=TRUE,($D$160+$D$164+$D$168)/3,0) -> 0 | CF172: =IF($F$180=TRUE,($F$160+$F$164+$F$168)/3,0) -> 0 | CH172: =IF($H$180=TRUE,($H$160+$H$164+$H$168)/3,0) -> 0 | CJ172: =IF($J$180=TRUE,($J$160+$J$164+$J$168)/3,0) -> 0 | CL172: =IF($L$180=TRUE,($L$160+$L$164+$L$168)/3,0) -> 0 | CN172: =IF($N$180=TRUE,($N$160+$N$164+$N$168)/3,0) -> 0 | CP172: =IF($P$180=TRUE,($P$160+$P$164+$P$168)/3,0) -> 0 | CR172: =IF($R$180=TRUE,($R$160+$R$164+$R$168)/3,0) -> 0 | CT172: =IF($T$180=TRUE,($T$160+$T$164+$T$168)/3,0) -> 0 | CV172: =IF($V$180=TRUE,($V$160+$V$164+$V$168)/3,0) -> 0 | CX172: =IF($X$180=TRUE,($X$160+$X$164+$X$168)/3,0) -> 0 | DB172: =IF($AB$180=TRUE,($AB$160+$AB$164+$AB$168)/3,0) -> 0 | DD172: =IF($AD$180=TRUE,($AD$160+$AD$164+$AD$168)/3,0) -> 0
CA173: QUESTIONS ANSWERED | CB173: =IF($B$180=TRUE,($B$161+$B$165+$B$169)/3,0) -> 0 | CD173: =IF($D$180=TRUE,($D$161+$D$165+$D$169)/3,0) -> 0 | CF173: =IF($F$180=TRUE,($F$161+$F$165+$F$169)/3,0) -> 0 | CH173: =IF($H$180=TRUE,($H$161+$H$165+$H$169)/3,0) -> 0 | CJ173: =IF($J$180=TRUE,($J$161+$J$165+$J$169)/3,0) -> 0 | CL173: =IF($L$180=TRUE,($L$161+$L$165+$L$169)/3,0) -> 0 | CN173: =IF($N$180=TRUE,($N$161+$N$165+$N$169)/3,0) -> 0 | CP173: =IF($P$180=TRUE,($P$161+$P$165+$P$169)/3,0) -> 0 | CR173: =IF($R$180=TRUE,($R$161+$R$165+$R$169)/3,0) -> 0 | CT173: =IF($T$180=TRUE,($T$161+$T$165+$T$169)/3,0) -> 0 | CV173: =IF($V$180=TRUE,($V$161+$V$165+$V$169)/3,0) -> 0 | CX173: =IF($X$180=TRUE,($X$161+$X$165+$X$169)/3,0) -> 0 | DB173: =IF($AB$180=TRUE,($AB$161+$AB$165+$AB$169)/3,0) -> 0 | DD173: =IF($AD$180=TRUE,($AD$161+$AD$165+$AD$169)/3,0) -> 0
CA174: QUESTIONS SKIPPED | CB174: =IF($B$180=TRUE,($B$162+$B$166+$B$170)/3,0) -> 0 | CD174: =IF($D$180=TRUE,($D$162+$D$166+$D$170)/3,0) -> 0 | CF174: =IF($F$180=TRUE,($F$162+$F$166+$F$170)/3,0) -> 0 | CH174: =IF($H$180=TRUE,($H$162+$H$166+$H$170)/3,0) -> 0 | CJ174: =IF($J$180=TRUE,($J$162+$J$166+$J$170)/3,0) -> 0 | CL174: =IF($L$180=TRUE,($L$162+$L$166+$L$170)/3,0) -> 0 | CN174: =IF($N$180=TRUE,($N$162+$N$166+$N$170)/3,0) -> 0 | CP174: =IF($P$180=TRUE,($P$162+$P$166+$P$170)/3,0) -> 0 | CR174: =IF($R$180=TRUE,($R$162+$R$166+$R$170)/3,0) -> 0 | CT174: =IF($T$180=TRUE,($T$162+$T$166+$T$170)/3,0) -> 0 | CV174: =IF($V$180=TRUE,($V$162+$V$166+$V$170)/3,0) -> 0 | CX174: =IF($X$180=TRUE,($X$162+$X$166+$X$170)/3,0) -> 0 | DB174: =IF($AB$180=TRUE,($AB$162+$AB$166+$AB$170)/3,0) -> 0 | DD174: =IF($AD$180=TRUE,($AD$162+$AD$166+$AD$170)/3,0) -> 0

Sheet Questionnaire (BackUp) (hidden)
B1: 2 | D1: 4 | F1: 6 | H1: 8 | J1: 10 | L1: 12 | N1: 14 | P1: 16 | R1: 18 | T1: 20 | V1: 22 | X1: 24 | AB1: 28 | AD1: 30 | BZ1: DEVELOPIA QUESTIONNAIRE | CB1: 2 | CD1: 4 | CF1: 6 | CH1: 8 | CJ1: 10 | CL1: 12 | CN1: 14 | CP1: 16 | CR1: 18 | CT1: 20 | CV1: 22 | CX1: 24 | DB1: 28 | DD1: 30
B2: ^RRO_403 | D2: ^PO_198 | F2: ^PO_117 | H2: ^PO_171 | J2: ^PO_118 | L2: ^PO_172 | N2: ^PO_173 | P2: ^PO_104 | R2: ^RRO_290 | T2: ^PO_130 | V2: ^PO_137 | X2: ^PO_147 | AB2: ^PO_164 | AD2: ^PO_116 | CB2: ^RRO_403 | CD2: ^PO_198 | CF2: ^PO_117 | CH2: ^PO_171 | CJ2: ^PO_118 | CL2: ^PO_172 | CN2: ^PO_173 | CP2: ^PO_104 | CR2: ^RRO_290 | CT2: ^PO_130 | CV2: ^PO_137 | CX2: ^PO_147 | DB2: ^PO_164 | DD2: ^PO_116
A3: ^Q_542 | C3: ^Q_550 | E3: ^Q_543 | G3: ^Q_548 | I3: ^Q_544 | K3: ^Q_554 | M3: ^Q_549 | O3: ^Q_551 | Q3: ^Q_541 | S3: ^Q_545 | U3: ^Q_546 | W3: ^Q_547 | AA3: ^Q_553 | AC3: ^Q_552 | CA3: ^Q_542 | CC3: ^Q_550 | CE3: ^Q_543 | CG3: ^Q_548 | CI3: ^Q_544 | CK3: ^Q_554 | CM3: ^Q_549 | CO3: ^Q_551 | CQ3: ^Q_541 | CS3: ^Q_545 | CU3: ^Q_546 | CW3: ^Q_547 | DA3: ^Q_553 | DC3: ^Q_552
A4: ^Q_677 | C4: ^Q_677 | D4: FALSE | E4: ^Q_677 | F4: TRUE | G4: ^Q_677 | H4: FALSE | I4: ^Q_677 | J4: FALSE | K4: ^Q_677 | L4: FALSE | M4: ^Q_677 | N4: FALSE | O4: ^Q_677 | P4: FALSE | Q4: ^Q_677 | R4: FALSE | S4: ^Q_677 | T4: FALSE | U4: ^Q_677 | V4: FALSE | W4: ^Q_677 | X4: FALSE | AA4: ^Q_677 | AB4: TRUE | AC4: ^Q_677 | AD4: FALSE | CA4: ^Q_677 | CC4: ^Q_677 | CD4: FALSE | CE4: ^Q_677 | CF4: TRUE | CG4: ^Q_677 | CH4: FALSE | CI4: ^Q_677 | CJ4: FALSE | CK4: ^Q_677 | CL4: FALSE | CM4: ^Q_677 | CN4: FALSE | CO4: ^Q_677 | CP4: FALSE | CQ4: ^Q_677 | CR4: FALSE | CS4: ^Q_677 | CT4: FALSE | CU4: ^Q_677 | CV4: FALSE | CW4: ^Q_677 | CX4: FALSE | DA4: ^Q_677 | DB4: TRUE | DC4: ^Q_677 | DD4: FALSE
A5: TextBox | B5: Macroeconomic volatility tends to make it difficult to work with fiscal projections, especially in small and open economies like ours, where the dynamics of most macroeconomic variables, including the prices of the raw materials we export, are determined by external factors. | C5: TextBox | D5: Even though specific revenues like transfers to relevant entitities have been impacted by the pandemic, fiscal adjustments or issuing of sovereign of sub-sovereign debt is a viable tool to mitigate such effects. | E5: TextBox | G5: TextBox | H5: The government has a strong interest in supporting public corporations because they account for a large share of public investment and employ many people. Hence, the implicit support provided by government is significant and the government's willingness to bail out public corporations not performing well is high. | I5: TextBox | J5: Triggered guarantees are limited given the caps on guarantees to 5% of capex for infrastructure projects. These are the types of guarantees that the government mostly holds. | K5: TextBox | L5: An ambitious public investment plan has been put in place which requires much in fiscal resources. | M5: TextBox | N5: PPPs are a small part of PIM and therefore its effects are limited. | O5: TextBox | P5: Our country's macroeconomic stability is reliant on acces to international and locl markets. In the case of a financial crisis that soure of support dries up. | Q5: TextBox | R5: The country is berated by weather phenomena that have impact and require fiscal intervention to balance the effects. | S5: TextBox | T5: Legal claims have been made on a couple of major projects and the arbitration process is ongoing | U5: TextBox | V5: Financial management of many cities is weak and therefore own source revenues suffer. At the same time their need to provide services to the majority of the population (urban) makes it more likely for them to rely on intergovernmental transfers to subsist | W5: TextBox | X5: Illegal mining is phenomenon that as a country we are trying to attack as it lowers the value of our mining licenses and permission and leads to illegal traffic of some commodities such as gold. | AA5: TextBox | AC5: TextBox | AD5: Government capacity remains low in line ministries and subnational governments to face the complex challenges in the recovery post-pandemic | CA5: TextBox | CB5: Macroeconomic volatility tends to make it difficult to work with fiscal projections, especially in small and open economies like ours, where the dynamics of most macroeconomic variables, including the prices of the raw materials we export, are determined by external factors. | CC5: TextBox | CD5: Even though specific revenues like transfers to relevant entitities have been impacted by the pandemic, fiscal adjustments or issuing of sovereign of sub-sovereign debt is a viable tool to mitigate such effects. | CE5: TextBox | CG5: TextBox | CH5: The government has a strong interest in supporting public corporations because they account for a large share of public investment and employ many people. Hence, the implicit support provided by government is significant and the government's willingness to bail out public corporations not performing well is high. | CI5: TextBox | CJ5: Triggered guarantees are limited given the caps on guarantees to 5% of capex for infrastructure projects. These are the types of guarantees that the government mostly holds. | CK5: TextBox | CL5: An ambitious public investment plan has been put in place which requires much in fiscal resources. | CM5: TextBox | CN5: PPPs are a small part of PIM and therefore its effects are limited. | CO5: TextBox | CP5: Our country's macroeconomic stability is reliant on acces to international and locl markets. In the case of a financial crisis that soure of support dries up. | CQ5: TextBox | CR5: The country is berated by weather phenomena that have impact and require fiscal intervention to balance the effects. | CS5: TextBox | CT5: Legal claims have been made on a couple of major projects and the arbitration process is ongoing | CU5: TextBox | CV5: Financial management of many cities is weak and therefore own source revenues suffer. At the same time their need to provide services to the majority of the population (urban) makes it more likely for them to rely on intergovernmental transfers to subsist | CW5: TextBox | CX5: Illegal mining is phenomenon that as a country we are trying to attack as it lowers the value of our mining licenses and permission and leads to illegal traffic of some commodities such as gold. | DA5: TextBox | DC5: TextBox | DD5: Government capacity remains low in line ministries and subnational governments to face the complex challenges in the recovery post-pandemic
A11: ^Q_572 | C11: ^Q_580 | E11: ^Q_573 | G11: ^Q_578 | I11: ^Q_574 | K11: ^Q_584 | M11: ^Q_579 | O11: ^Q_581 | Q11: ^Q_571 | S11: ^Q_575 | U11: ^Q_576 | W11: ^Q_577 | AA11: ^Q_583 | AC11: ^Q_582 | CA11: ^Q_572 | CC11: ^Q_580 | CE11: ^Q_573 | CG11: ^Q_578 | CI11: ^Q_574 | CK11: ^Q_584 | CM11: ^Q_579 | CO11: ^Q_581 | CQ11: ^Q_571 | CS11: ^Q_575 | CU11: ^Q_576 | CW11: ^Q_577 | DA11: ^Q_583 | DC11: ^Q_582
A12: ^Q_677 | B12: FALSE | C12: ^Q_677 | D12: FALSE | E12: ^Q_677 | F12: FALSE | G12: ^Q_677 | H12: FALSE | I12: ^Q_677 | J12: FALSE | K12: ^Q_677 | L12: FALSE | M12: ^Q_677 | N12: FALSE | O12: ^Q_677 | P12: FALSE | Q12: ^Q_677 | R12: FALSE | S12: ^Q_677 | T12: FALSE | U12: ^Q_677 | V12: FALSE | W12: ^Q_677 | X12: FALSE | AA12: ^Q_677 | AB12: FALSE | AC12: ^Q_677 | AD12: FALSE | CA12: ^Q_677 | CB12: FALSE | CC12: ^Q_677 | CD12: FALSE | CE12: ^Q_677 | CF12: FALSE | CG12: ^Q_677 | CH12: FALSE | CI12: ^Q_677 | CJ12: FALSE | CK12: ^Q_677 | CL12: FALSE | CM12: ^Q_677 | CN12: FALSE | CO12: ^Q_677 | CP12: FALSE | CQ12: ^Q_677 | CR12: FALSE | CS12: ^Q_677 | CT12: FALSE | CU12: ^Q_677 | CV12: FALSE | CW12: ^Q_677 | CX12: FALSE | DA12: ^Q_677 | DB12: FALSE | DC12: ^Q_677 | DD12: FALSE
A13: ^RRO_286 | B13: TRUE | C13: ^RRO_286 | D13: FALSE | E13: ^RRO_286 | F13: FALSE | G13: ^RRO_286 | H13: TRUE | I13: ^RRO_286 | J13: TRUE | K13: ^RRO_286 | L13: TRUE | M13: ^RRO_286 | N13: TRUE | O13: ^RRO_286 | P13: FALSE | Q13: ^RRO_286 | R13: FALSE | S13: ^RRO_286 | T13: FALSE | U13: ^RRO_286 | V13: TRUE | W13: ^RRO_286 | X13: FALSE | AA13: ^RRO_286 | AB13: TRUE | AC13: ^RRO_286 | AD13: FALSE | CA13: ^RRO_286 | CB13: TRUE | CC13: ^RRO_286 | CD13: FALSE | CE13: ^RRO_286 | CF13: FALSE | CG13: ^RRO_286 | CH13: TRUE | CI13: ^RRO_286 | CJ13: TRUE | CK13: ^RRO_286 | CL13: TRUE | CM13: ^RRO_286 | CN13: TRUE | CO13: ^RRO_286 | CP13: FALSE | CQ13: ^RRO_286 | CR13: FALSE | CS13: ^RRO_286 | CT13: FALSE | CU13: ^RRO_286 | CV13: TRUE | CW13: ^RRO_286 | CX13: FALSE | DA13: ^RRO_286 | DB13: TRUE | DC13: ^RRO_286 | DD13: FALSE
A14: ^RRO_388 | B14: TRUE | C14: ^RRO_388 | D14: FALSE | E14: ^RRO_388 | F14: TRUE | G14: ^RRO_388 | H14: FALSE | I14: ^RRO_388 | J14: FALSE | K14: ^RRO_388 | M14: ^RRO_388 | N14: FALSE | O14: ^RRO_388 | P14: TRUE | Q14: ^RRO_388 | R14: FALSE | S14: ^RRO_388 | T14: FALSE | U14: ^RRO_388 | V14: FALSE | W14: ^RRO_388 | X14: FALSE | AA14: ^RRO_388 | AB14: TRUE | AC14: ^RRO_388 | AD14: FALSE | CA14: ^RRO_388 | CB14: TRUE | CC14: ^RRO_388 | CD14: FALSE | CE14: ^RRO_388 | CF14: TRUE | CG14: ^RRO_388 | CH14: FALSE | CI14: ^RRO_388 | CJ14: FALSE | CK14: ^RRO_388 | CM14: ^RRO_388 | CN14: FALSE | CO14: ^RRO_388 | CP14: TRUE | CQ14: ^RRO_388 | CR14: FALSE | CS14: ^RRO_388 | CT14: FALSE | CU14: ^RRO_388 | CV14: FALSE | CW14: ^RRO_388 | CX14: FALSE | DA14: ^RRO_388 | DB14: TRUE | DC14: ^RRO_388 | DD14: FALSE
A15: ^RRO_306 | B15: TRUE | C15: ^RRO_306 | D15: TRUE | E15: ^RRO_306 | F15: TRUE | G15: ^RRO_306 | H15: TRUE | I15: ^RRO_306 | J15: TRUE | K15: ^RRO_306 | L15: TRUE | M15: ^RRO_306 | N15: FALSE | O15: ^RRO_306 | P15: TRUE | Q15: ^RRO_306 | R15: FALSE | S15: ^RRO_306 | T15: FALSE | U15: ^RRO_306 | V15: TRUE | W15: ^RRO_306 | X15: FALSE | AA15: ^RRO_306 | AB15: FALSE | AC15: ^RRO_306 | AD15: FALSE | CA15: ^RRO_306 | CB15: TRUE | CC15: ^RRO_306 | CD15: TRUE | CE15: ^RRO_306 | CF15: TRUE | CG15: ^RRO_306 | CH15: TRUE | CI15: ^RRO_306 | CJ15: TRUE | CK15: ^RRO_306 | CL15: TRUE | CM15: ^RRO_306 | CN15: FALSE | CO15: ^RRO_306 | CP15: TRUE | CQ15: ^RRO_306 | CR15: FALSE | CS15: ^RRO_306 | CT15: FALSE | CU15: ^RRO_306 | CV15: TRUE | CW15: ^RRO_306 | CX15: FALSE | DA15: ^RRO_306 | DB15: FALSE | DC15: ^RRO_306 | DD15: FALSE
A16: ^Q_655 | B16: TRUE | C16: ^Q_655 | D16: FALSE | E16: ^Q_655 | F16: FALSE | G16: ^Q_655 | H16: FALSE | I16: ^Q_655 | J16: TRUE | K16: ^Q_655 | L16: TRUE | M16: ^Q_655 | N16: TRUE | O16: ^Q_655 | P16: FALSE | Q16: ^Q_655 | R16: TRUE | S16: ^Q_655 | T16: FALSE | U16: ^Q_655 | V16: FALSE | W16: ^Q_655 | X16: TRUE | AA16: ^Q_655 | AB16: FALSE | AC16: ^Q_655 | AD16: FALSE | CA16: ^Q_655 | CB16: TRUE | CC16: ^Q_655 | CD16: FALSE | CE16: ^Q_655 | CF16: FALSE | CG16: ^Q_655 | CH16: FALSE | CI16: ^Q_655 | CJ16: TRUE | CK16: ^Q_655 | CL16: TRUE | CM16: ^Q_655 | CN16: TRUE | CO16: ^Q_655 | CP16: FALSE | CQ16: ^Q_655 | CR16: TRUE | CS16: ^Q_655 | CT16: FALSE | CU16: ^Q_655 | CV16: FALSE | CW16: ^Q_655 | CX16: TRUE | DA16: ^Q_655 | DB16: FALSE | DC16: ^Q_655 | DD16: FALSE
A17: ^RRO_440 | B17: FALSE | C17: ^RRO_440 | D17: TRUE | E17: ^RRO_440 | F17: TRUE | G17: ^RRO_440 | H17: TRUE | I17: ^RRO_440 | J17: TRUE | K17: ^RRO_440 | L17: TRUE | M17: ^RRO_440 | N17: TRUE | O17: ^RRO_440 | P17: FALSE | Q17: ^RRO_440 | R17: FALSE | S17: ^RRO_440 | T17: TRUE | U17: ^RRO_440 | V17: TRUE | W17: ^RRO_440 | X17: TRUE | AA17: ^RRO_440 | AB17: TRUE | AC17: ^RRO_440 | AD17: TRUE | CA17: ^RRO_440 | CB17: FALSE | CC17: ^RRO_440 | CD17: TRUE | CE17: ^RRO_440 | CF17: TRUE | CG17: ^RRO_440 | CH17: TRUE | CI17: ^RRO_440 | CJ17: TRUE | CK17: ^RRO_440 | CL17: TRUE | CM17: ^RRO_440 | CN17: TRUE | CO17: ^RRO_440 | CP17: FALSE | CQ17: ^RRO_440 | CR17: FALSE | CS17: ^RRO_440 | CT17: TRUE | CU17: ^RRO_440 | CV17: TRUE | CW17: ^RRO_440 | CX17: TRUE | DA17: ^RRO_440 | DB17: TRUE | DC17: ^RRO_440 | DD17: TRUE
A18: ^RRO_445 | B18: FALSE | C18: ^RRO_445 | D18: FALSE | E18: ^RRO_445 | F18: FALSE | G18: ^RRO_445 | H18: FALSE | I18: ^RRO_445 | J18: TRUE | K18: ^RRO_445 | M18: ^RRO_445 | N18: FALSE | O18: ^RRO_445 | P18: FALSE | Q18: ^RRO_445 | R18: FALSE | S18: ^RRO_445 | T18: TRUE | U18: ^RRO_445 | V18: FALSE | W18: ^RRO_445 | X18: TRUE | AA18: ^RRO_445 | AB18: FALSE | AC18: ^RRO_445 | AD18: FALSE | CA18: ^RRO_445 | CB18: FALSE | CC18: ^RRO_445 | CD18: FALSE | CE18: ^RRO_445 | CF18: FALSE | CG18: ^RRO_445 | CH18: FALSE | CI18: ^RRO_445 | CJ18: TRUE | CK18: ^RRO_445 | CM18: ^RRO_445 | CN18: FALSE | CO18: ^RRO_445 | CP18: FALSE | CQ18: ^RRO_445 | CR18: FALSE | CS18: ^RRO_445 | CT18: TRUE | CU18: ^RRO_445 | CV18: FALSE | CW18: ^RRO_445 | CX18: TRUE | DA18: ^RRO_445 | DB18: FALSE | DC18: ^RRO_445 | DD18: FALSE
A19: ^RRO_509 | C19: ^RRO_509 | E19: ^RRO_509 | G19: ^RRO_509 | I19: ^RRO_509 | K19: ^RRO_509 | M19: ^RRO_509 | O19: ^RRO_509 | Q19: ^RRO_509 | S19: ^RRO_509 | U19: ^RRO_509 | W19: ^RRO_509 | AA19: ^RRO_509 | AC19: ^RRO_509 | CA19: ^RRO_509 | CC19: ^RRO_509 | CE19: ^RRO_509 | CG19: ^RRO_509 | CI19: ^RRO_509 | CK19: ^RRO_509 | CM19: ^RRO_509 | CO19: ^RRO_509 | CQ19: ^RRO_509 | CS19: ^RRO_509 | CU19: ^RRO_509 | CW19: ^RRO_509 | DA19: ^RRO_509 | DC19: ^RRO_509
CA24: 1
A25: ^Q_586 | C25: ^Q_594 | E25: ^Q_587 | G25: ^Q_592 | I25: ^Q_588 | K25: ^Q_598 | M25: ^Q_593 | O25: ^Q_595 | Q25: ^Q_585 | S25: ^Q_589 | U25: ^Q_590 | W25: ^Q_591 | AA25: ^Q_597 | AC25: ^Q_596 | CA25: ^Q_586 | CC25: ^Q_594 | CE25: ^Q_587 | CG25: ^Q_592 | CI25: ^Q_588 | CK25: ^Q_598 | CM25: ^Q_593 | CO25: ^Q_595 | CQ25: ^Q_585 | CS25: ^Q_589 | CU25: ^Q_590 | CW25: ^Q_591 | DA25: ^Q_597 | DC25: ^Q_596
A26: ^Q_677 | B26: FALSE | C26: ^Q_677 | D26: FALSE | E26: ^Q_677 | F26: FALSE | G26: ^Q_677 | H26: FALSE | I26: ^Q_677 | J26: FALSE | K26: ^Q_677 | L26: FALSE | M26: ^Q_677 | N26: FALSE | O26: ^Q_677 | P26: FALSE | Q26: ^Q_677 | R26: FALSE | S26: ^Q_677 | T26: FALSE | U26: ^Q_677 | V26: FALSE | W26: ^Q_677 | X26: FALSE | AA26: ^Q_677 | AB26: FALSE | AC26: ^Q_677 | AD26: FALSE | CA26: ^Q_677 | CB26: FALSE | CC26: ^Q_677 | CD26: FALSE | CE26: ^Q_677 | CF26: FALSE | CG26: ^Q_677 | CH26: FALSE | CI26: ^Q_677 | CJ26: FALSE | CK26: ^Q_677 | CL26: FALSE | CM26: ^Q_677 | CN26: FALSE | CO26: ^Q_677 | CP26: FALSE | CQ26: ^Q_677 | CR26: FALSE | CS26: ^Q_677 | CT26: FALSE | CU26: ^Q_677 | CV26: FALSE | CW26: ^Q_677 | CX26: FALSE | DA26: ^Q_677 | DB26: FALSE | DC26: ^Q_677 | DD26: FALSE
A27: ^RRO_526 | B27: TRUE | C27: ^RRO_526 | D27: FALSE | E27: ^RRO_526 | F27: TRUE | G27: ^RRO_526 | H27: TRUE | I27: ^RRO_526 | J27: TRUE | K27: ^RRO_526 | L27: TRUE | M27: ^RRO_526 | N27: TRUE | O27: ^RRO_526 | P27: FALSE | Q27: ^RRO_526 | R27: TRUE | S27: ^RRO_526 | T27: TRUE | U27: ^RRO_526 | V27: FALSE | W27: ^RRO_526 | X27: FALSE | AA27: ^RRO_526 | AB27: TRUE | AC27: ^RRO_526 | AD27: FALSE | CA27: Yes | CB27: TRUE | CC27: Yes | CD27: FALSE | CE27: Yes | CF27: TRUE | CG27: Yes | CH27: TRUE | CI27: Yes | CJ27: TRUE | CK27: Yes | CL27: TRUE | CM27: Yes | CN27: TRUE | CO27: Yes | CP27: FALSE | CQ27: Yes | CR27: TRUE | CS27: Yes | CT27: TRUE | CU27: Yes | CV27: FALSE | CW27: Yes | CX27: FALSE | DA27: Yes | DB27: TRUE | DC27: Yes | DD27: FALSE
A28: ^PO_149 | B28: FALSE | C28: ^PO_149 | D28: TRUE | E28: ^PO_149 | F28: FALSE | G28: ^PO_149 | H28: FALSE | I28: ^PO_149 | J28: FALSE | K28: ^PO_149 | L28: FALSE | M28: ^PO_149 | N28: FALSE | O28: ^PO_149 | P28: TRUE | Q28: ^PO_149 | R28: FALSE | S28: ^PO_149 | T28: FALSE | U28: ^PO_149 | V28: TRUE | W28: ^PO_149 | X28: TRUE | AA28: ^PO_149 | AB28: FALSE | AC28: ^PO_149 | AD28: TRUE | CA28: No | CB28: FALSE | CC28: No | CD28: TRUE | CE28: No | CF28: FALSE | CG28: No | CH28: FALSE | CI28: No | CJ28: FALSE | CK28: No | CL28: FALSE | CM28: No | CN28: FALSE | CO28: No | CP28: TRUE | CQ28: No | CR28: FALSE | CS28: No | CT28: FALSE | CU28: No | CV28: TRUE | CW28: No | CX28: TRUE | DA28: No | DB28: FALSE | DC28: No | DD28: TRUE
A29: ^Q_651 | C29: ^Q_651 | E29: ^Q_651 | G29: ^Q_651 | I29: ^Q_651 | K29: ^Q_651 | M29: ^Q_651 | O29: ^Q_651 | Q29: ^Q_651 | S29: ^Q_651 | U29: ^Q_651 | W29: ^Q_651 | AA29: ^Q_651 | AC29: ^Q_651 | CA29: ^Q_651 | CC29: ^Q_651 | CE29: ^Q_651 | CG29: ^Q_651 | CI29: ^Q_651 | CK29: ^Q_651 | CM29: ^Q_651 | CO29: ^Q_651 | CQ29: ^Q_651 | CS29: ^Q_651 | CU29: ^Q_651 | CW29: ^Q_651 | DA29: ^Q_651 | DC29: ^Q_651
CA30: Low | CG30: High | CH30: Bailouts of several SOEs to keep them afloat in economic crisis. | CI30: Low | CQ30: Medium | CR30: Severe drought has led to municipalities and SOEs needing assistance to bring additional resources to compensate for weather phenomena
CA31: Low | CG31: Medium | CH31: Bailouts of several SOEs to keep them afloat in economic crisis. | CI31: Medium | CJ31: Economic downturn led to some drawdown on guarantee facilities due to PPPs. | CM31: Medium | CN31: Contract termination clauses as well as arbitration of several projects have led to fiscal impacts effects that have been limited given the size of the PPPs. | CS31: Low | CT31: PPP Metro Line Contract termination resulted in a major payout after arbitration ruled in the favor of the private party
CU32: Low
CA33: Medium | CK33: High | DA33: Medium | DB33: Changing in public investment policy led to more fiscal resources going towards large digital communications projects
CA35: Low
DA36: Low
CA37: High | CE37: Low | CF37: Economic downturn affected government ability to issue debt and a realization of some liabilities. | CG37: Low | CH37: Increase in subisidies to 3 public corporations. | CK37: Medium | CU37: High
CA38: High | CG38: Low | CH38: Increase in subisidies to 3 public corporations. | CK38: Low | CU38: Low | DA38: Low
CQ39: Medium | CR39: Earthquake impacted certain regions that required rebuilding assistance
A45: ^Q_608 | B45: ^Q_608 | C45: ^Q_608 | E45: ^Q_601 | G45: ^Q_606 | I45: ^Q_602 | K45: ^Q_612 | M45: ^Q_607 | O45: ^Q_609 | Q45: ^Q_599 | S45: ^Q_603 | U45: ^Q_604 | W45: ^Q_605 | AA45: ^Q_611 | AC45: ^Q_610 | CA45: ^Q_600 | CC45: ^Q_608 | CE45: ^Q_601 | CG45: ^Q_606 | CI45: ^Q_602 | CK45: ^Q_612 | CM45: ^Q_607 | CO45: ^Q_609 | CQ45: ^Q_599 | CS45: ^Q_603 | CU45: ^Q_604 | CW45: ^Q_605 | DA45: ^Q_611 | DC45: ^Q_610
B46: FALSE | C46: ^Q_677 | D46: FALSE | E46: ^Q_677 | F46: FALSE | G46: ^Q_677 | H46: FALSE | I46: ^Q_677 | J46: FALSE | K46: ^Q_677 | L46: FALSE | M46: ^Q_677 | N46: FALSE | O46: ^Q_677 | P46: FALSE | Q46: ^Q_677 | R46: FALSE | S46: ^Q_677 | T46: FALSE | U46: ^Q_677 | V46: FALSE | W46: ^Q_677 | X46: FALSE | AA46: ^Q_677 | AB46: FALSE | AC46: ^Q_677 | AD46: FALSE | CA46: ^Q_677 | CB46: FALSE | CC46: ^Q_677 | CD46: FALSE | CE46: ^Q_677 | CF46: FALSE | CG46: ^Q_677 | CH46: FALSE | CI46: ^Q_677 | CJ46: FALSE | CK46: ^Q_677 | CL46: FALSE | CM46: ^Q_677 | CN46: FALSE | CO46: ^Q_677 | CP46: FALSE | CQ46: ^Q_677 | CR46: FALSE | CS46: ^Q_677 | CT46: FALSE | CU46: ^Q_677 | CV46: FALSE | CW46: ^Q_677 | CX46: FALSE | DA46: ^Q_677 | DB46: FALSE | DC46: ^Q_677 | DD46: FALSE
A47: ^PO_208 | B47: TRUE | C47: ^PO_208 | D47: FALSE | E47: ^PO_208 | F47: FALSE | G47: ^PO_208 | H47: FALSE | I47: ^PO_208 | J47: FALSE | K47: ^PO_208 | L47: TRUE | M47: ^PO_208 | O47: ^PO_208 | P47: FALSE | Q47: ^PO_208 | R47: TRUE | S47: ^PO_208 | T47: FALSE | U47: ^PO_208 | V47: TRUE | W47: ^PO_208 | X47: TRUE | AA47: ^PO_208 | AB47: TRUE | AC47: ^PO_208 | AD47: TRUE | CA47: ^PO_208 | CB47: TRUE | CC47: ^PO_208 | CD47: FALSE | CE47: ^PO_208 | CF47: FALSE | CG47: ^PO_208 | CH47: FALSE | CI47: ^PO_208 | CJ47: FALSE | CK47: ^PO_208 | CL47: TRUE | CM47: ^PO_208 | CO47: ^PO_208 | CP47: FALSE | CQ47: ^PO_208 | CR47: TRUE | CS47: ^PO_208 | CT47: FALSE | CU47: ^PO_208 | CV47: TRUE | CW47: ^PO_208 | CX47: TRUE | DA47: ^PO_208 | DB47: TRUE | DC47: ^PO_208 | DD47: TRUE
A48: ^PO_152 | B48: FALSE | C48: ^PO_152 | D48: FALSE | E48: ^PO_152 | F48: FALSE | G48: ^PO_152 | H48: FALSE | I48: ^PO_152 | J48: FALSE | K48: ^PO_152 | L48: FALSE | M48: ^PO_152 | N48: TRUE | O48: ^PO_152 | P48: FALSE | Q48: ^PO_152 | R48: FALSE | S48: ^PO_152 | T48: FALSE | U48: ^PO_152 | V48: FALSE | W48: ^PO_152 | X48: TRUE | AA48: ^PO_152 | AB48: TRUE | AC48: ^PO_152 | AD48: TRUE | CA48: ^PO_152 | CB48: FALSE | CC48: ^PO_152 | CD48: FALSE | CE48: ^PO_152 | CF48: FALSE | CG48: ^PO_152 | CH48: FALSE | CI48: ^PO_152 | CJ48: FALSE | CK48: ^PO_152 | CL48: FALSE | CM48: ^PO_152 | CN48: TRUE | CO48: ^PO_152 | CP48: FALSE | CQ48: ^PO_152 | CR48: FALSE | CS48: ^PO_152 | CT48: FALSE | CU48: ^PO_152 | CV48: FALSE | CW48: ^PO_152 | CX48: TRUE | DA48: ^PO_152 | DB48: TRUE | DC48: ^PO_152 | DD48: TRUE
A49: ^PO_88 | B49: FALSE | C49: ^PO_88 | D49: TRUE | E49: ^PO_88 | F49: FALSE | G49: ^PO_88 | H49: TRUE | I49: ^PO_88 | J49: FALSE | K49: ^PO_88 | L49: TRUE | M49: ^PO_88 | N49: TRUE | O49: ^PO_88 | P49: TRUE | Q49: ^PO_88 | R49: TRUE | S49: ^PO_88 | T49: FALSE | U49: ^PO_88 | V49: FALSE | W49: ^PO_88 | X49: FALSE | AA49: ^PO_88 | AB49: FALSE | AC49: ^PO_88 | AD49: TRUE | CA49: ^PO_88 | CB49: FALSE | CC49: ^PO_88 | CD49: TRUE | CE49: ^PO_88 | CF49: FALSE | CG49: ^PO_88 | CH49: TRUE | CI49: ^PO_88 | CJ49: FALSE | CK49: ^PO_88 | CL49: TRUE | CM49: ^PO_88 | CN49: TRUE | CO49: ^PO_88 | CP49: TRUE | CQ49: ^PO_88 | CR49: TRUE | CS49: ^PO_88 | CT49: FALSE | CU49: ^PO_88 | CV49: FALSE | CW49: ^PO_88 | CX49: FALSE | DA49: ^PO_88 | DB49: FALSE | DC49: ^PO_88 | DD49: TRUE
A50: ^PO_174 | B50: TRUE | C50: ^PO_174 | D50: FALSE | E50: ^PO_174 | F50: FALSE | G50: ^PO_174 | H50: TRUE | I50: ^PO_174 | J50: TRUE | K50: ^PO_174 | L50: FALSE | M50: ^PO_174 | O50: ^PO_174 | P50: FALSE | Q50: ^PO_174 | R50: FALSE | S50: ^PO_174 | T50: FALSE | U50: ^PO_174 | V50: TRUE | W50: ^PO_174 | X50: FALSE | AA50: ^PO_174 | AB50: TRUE | AC50: ^PO_174 | AD50: FALSE | CA50: ^PO_174 | CB50: TRUE | CC50: ^PO_174 | CD50: FALSE | CE50: ^PO_174 | CF50: FALSE | CG50: ^PO_174 | CH50: TRUE | CI50: ^PO_174 | CJ50: TRUE | CK50: ^PO_174 | CL50: FALSE | CM50: ^PO_174 | CO50: ^PO_174 | CP50: FALSE | CQ50: ^PO_174 | CR50: FALSE | CS50: ^PO_174 | CT50: FALSE | CU50: ^PO_174 | CV50: TRUE | CW50: ^PO_174 | CX50: FALSE | DA50: ^PO_174 | DB50: TRUE | DC50: ^PO_174 | DD50: FALSE
A51: ^PO_103 | B51: TRUE | C51: ^PO_103 | D51: FALSE | E51: ^PO_103 | F51: TRUE | G51: ^PO_103 | H51: FALSE | I51: ^PO_103 | J51: FALSE | K51: ^PO_103 | L51: FALSE | M51: ^PO_103 | N51: TRUE | O51: ^PO_103 | P51: TRUE | Q51: ^PO_103 | R51: TRUE | S51: ^PO_103 | T51: FALSE | U51: ^PO_103 | V51: FALSE | W51: ^PO_103 | X51: FALSE | AA51: ^PO_103 | AB51: FALSE | AC51: ^PO_103 | AD51: TRUE | CA51: ^PO_103 | CB51: TRUE | CC51: ^PO_103 | CD51: FALSE | CE51: ^PO_103 | CF51: TRUE | CG51: ^PO_103 | CH51: FALSE | CI51: ^PO_103 | CJ51: FALSE | CK51: ^PO_103 | CL51: FALSE | CM51: ^PO_103 | CN51: TRUE | CO51: ^PO_103 | CP51: TRUE | CQ51: ^PO_103 | CR51: TRUE | CS51: ^PO_103 | CT51: FALSE | CU51: ^PO_103 | CV51: FALSE | CW51: ^PO_103 | CX51: FALSE | DA51: ^PO_103 | DB51: FALSE | DC51: ^PO_103 | DD51: TRUE
A52: ^PO_151 | B52: FALSE | C52: ^PO_151 | D52: TRUE | E52: ^PO_151 | F52: FALSE | G52: ^PO_151 | H52: FALSE | I52: ^PO_151 | J52: FALSE | K52: ^PO_151 | L52: TRUE | M52: ^PO_151 | N52: TRUE | O52: ^PO_151 | P52: FALSE | Q52: ^PO_151 | R52: TRUE | S52: ^PO_151 | T52: FALSE | U52: ^PO_151 | V52: FALSE | W52: ^PO_151 | X52: FALSE | AA52: ^PO_151 | AB52: FALSE | AC52: ^PO_151 | AD52: TRUE | CA52: ^PO_151 | CB52: FALSE | CC52: ^PO_151 | CD52: TRUE | CE52: ^PO_151 | CF52: FALSE | CG52: ^PO_151 | CH52: FALSE | CI52: ^PO_151 | CJ52: FALSE | CK52: ^PO_151 | CL52: TRUE | CM52: ^PO_151 | CN52: TRUE | CO52: ^PO_151 | CP52: FALSE | CQ52: ^PO_151 | CR52: TRUE | CS52: ^PO_151 | CT52: FALSE | CU52: ^PO_151 | CV52: FALSE | CW52: ^PO_151 | CX52: FALSE | DA52: ^PO_151 | DB52: FALSE | DC52: ^PO_151 | DD52: TRUE
A53: ^PO_96 | B53: TRUE | C53: ^PO_96 | D53: FALSE | E53: ^PO_96 | F53: TRUE | G53: ^PO_96 | H53: TRUE | I53: ^PO_96 | J53: TRUE | K53: ^PO_96 | L53: TRUE | M53: ^PO_96 | N53: TRUE | O53: ^PO_96 | P53: TRUE | Q53: ^PO_96 | R53: FALSE | S53: ^PO_96 | T53: FALSE | U53: ^PO_96 | V53: TRUE | W53: ^PO_96 | X53: FALSE | AA53: ^PO_96 | AB53: TRUE | AC53: ^PO_96 | AD53: TRUE | CA53: ^PO_96 | CB53: TRUE | CC53: ^PO_96 | CD53: FALSE | CE53: ^PO_96 | CF53: TRUE | CG53: ^PO_96 | CH53: TRUE | CI53: ^PO_96 | CJ53: TRUE | CK53: ^PO_96 | CL53: TRUE | CM53: ^PO_96 | CN53: TRUE | CO53: ^PO_96 | CP53: TRUE | CQ53: ^PO_96 | CR53: FALSE | CS53: ^PO_96 | CT53: FALSE | CU53: ^PO_96 | CV53: TRUE | CW53: ^PO_96 | CX53: FALSE | DA53: ^PO_96 | DB53: TRUE | DC53: ^PO_96 | DD53: TRUE
A54: ^PO_154 | B54: FALSE | C54: ^PO_154 | D54: TRUE | E54: ^PO_154 | F54: TRUE | G54: ^PO_154 | H54: FALSE | I54: ^PO_154 | J54: FALSE | K54: ^PO_154 | L54: FALSE | M54: ^PO_154 | N54: TRUE | O54: ^PO_154 | P54: TRUE | Q54: ^PO_154 | R54: FALSE | S54: ^PO_154 | T54: TRUE | U54: ^PO_154 | V54: TRUE | W54: ^PO_154 | X54: FALSE | AA54: ^PO_154 | AB54: FALSE | AC54: ^PO_154 | AD54: TRUE | CA54: ^PO_154 | CB54: FALSE | CC54: ^PO_154 | CD54: TRUE | CE54: ^PO_154 | CF54: TRUE | CG54: ^PO_154 | CH54: FALSE | CI54: ^PO_154 | CJ54: FALSE | CK54: ^PO_154 | CL54: FALSE | CM54: ^PO_154 | CN54: TRUE | CO54: ^PO_154 | CP54: TRUE | CQ54: ^PO_154 | CR54: FALSE | CS54: ^PO_154 | CT54: TRUE | CU54: ^PO_154 | CV54: TRUE | CW54: ^PO_154 | CX54: FALSE | DA54: ^PO_154 | DB54: FALSE | DC54: ^PO_154 | DD54: TRUE
A60: ^Q_614 | C60: ^Q_622 | E60: ^Q_615 | G60: ^Q_620 | I60: ^Q_616 | K60: ^Q_626 | M60: ^Q_621 | O60: ^Q_623 | Q60: ^Q_613 | S60: ^Q_617 | U60: ^Q_618 | W60: ^Q_619 | AA60: ^Q_625 | AC60: ^Q_624 | CA60: ^Q_614 | CC60: ^Q_622 | CE60: ^Q_615 | CG60: ^Q_620 | CI60: ^Q_616 | CK60: ^Q_626 | CM60: ^Q_621 | CO60: ^Q_623 | CQ60: ^Q_613 | CS60: ^Q_617 | CU60: ^Q_618 | CW60: ^Q_619 | DA60: ^Q_625 | DC60: ^Q_624
A61: ^Q_677 | B61: FALSE | C61: ^Q_677 | D61: FALSE | E61: ^Q_677 | F61: FALSE | G61: ^Q_677 | H61: FALSE | I61: ^Q_677 | J61: FALSE | K61: ^Q_677 | L61: FALSE | M61: ^Q_677 | N61: FALSE | O61: ^Q_677 | P61: FALSE | Q61: ^Q_677 | R61: FALSE | S61: ^Q_677 | T61: FALSE | U61: ^Q_677 | V61: FALSE | W61: ^Q_677 | X61: FALSE | AA61: ^Q_677 | AB61: FALSE | AC61: ^Q_677 | AD61: FALSE | CA61: ^Q_677 | CB61: FALSE | CC61: ^Q_677 | CD61: FALSE | CE61: ^Q_677 | CF61: FALSE | CG61: ^Q_677 | CH61: FALSE | CI61: ^Q_677 | CJ61: FALSE | CK61: ^Q_677 | CL61: FALSE | CM61: ^Q_677 | CN61: FALSE | CO61: ^Q_677 | CP61: FALSE | CQ61: ^Q_677 | CR61: FALSE | CS61: ^Q_677 | CT61: FALSE | CU61: ^Q_677 | CV61: FALSE | CW61: ^Q_677 | CX61: FALSE | DA61: ^Q_677 | DB61: FALSE | DC61: ^Q_677 | DD61: FALSE
A62: ^RRO_413 | B62: TRUE | C62: ^RRO_413 | D62: TRUE | E62: ^RRO_413 | F62: TRUE | G62: ^RRO_413 | H62: TRUE | I62: ^RRO_413 | J62: TRUE | K62: ^RRO_413 | L62: TRUE | M62: ^RRO_413 | N62: TRUE | O62: ^RRO_413 | P62: TRUE | Q62: ^RRO_413 | R62: FALSE | S62: ^RRO_413 | T62: TRUE | U62: ^RRO_413 | V62: TRUE | W62: ^RRO_413 | X62: FALSE | AA62: ^RRO_413 | AB62: TRUE | AC62: ^RRO_413 | AD62: TRUE | CA62: ^RRO_413 | CB62: TRUE | CC62: ^RRO_413 | CD62: TRUE | CE62: ^RRO_413 | CF62: TRUE | CG62: ^RRO_413 | CH62: TRUE | CI62: ^RRO_413 | CJ62: TRUE | CK62: ^RRO_413 | CL62: TRUE | CM62: ^RRO_413 | CN62: TRUE | CO62: ^RRO_413 | CP62: TRUE | CQ62: ^RRO_413 | CR62: FALSE | CS62: ^RRO_413 | CT62: TRUE | CU62: ^RRO_413 | CV62: TRUE | CW62: ^RRO_413 | CX62: FALSE | DA62: ^RRO_413 | DB62: TRUE | DC62: ^RRO_413 | DD62: TRUE
A63: ^RRO_404 | B63: TRUE | C63: ^RRO_404 | D63: FALSE | E63: ^RRO_404 | F63: FALSE | G63: ^RRO_404 | H63: FALSE | I63: ^RRO_404 | J63: FALSE | K63: ^RRO_404 | L63: FALSE | M63: ^RRO_404 | N63: FALSE | O63: ^RRO_404 | P63: FALSE | Q63: ^RRO_404 | R63: FALSE | S63: ^RRO_404 | T63: FALSE | U63: ^RRO_404 | V63: FALSE | W63: ^RRO_404 | X63: FALSE | AA63: ^RRO_404 | AB63: TRUE | AC63: ^RRO_404 | AD63: TRUE | CA63: ^RRO_404 | CB63: TRUE | CC63: ^RRO_404 | CD63: FALSE | CE63: ^RRO_404 | CF63: FALSE | CG63: ^RRO_404 | CH63: FALSE | CI63: ^RRO_404 | CJ63: FALSE | CK63: ^RRO_404 | CL63: FALSE | CM63: ^RRO_404 | CN63: FALSE | CO63: ^RRO_404 | CP63: FALSE | CQ63: ^RRO_404 | CR63: FALSE | CS63: ^RRO_404 | CT63: FALSE | CU63: ^RRO_404 | CV63: FALSE | CW63: ^RRO_404 | CX63: FALSE | DA63: ^RRO_404 | DB63: TRUE | DC63: ^RRO_404 | DD63: TRUE
A64: ^RRO_317 | B64: FALSE | C64: ^RRO_317 | D64: FALSE | E64: ^RRO_317 | F64: FALSE | G64: ^RRO_317 | H64: FALSE | I64: ^RRO_317 | J64: FALSE | K64: ^RRO_317 | L64: FALSE | M64: ^RRO_317 | N64: FALSE | O64: ^RRO_317 | P64: FALSE | Q64: ^RRO_317 | R64: FALSE | S64: ^RRO_317 | T64: FALSE | U64: ^RRO_317 | V64: FALSE | W64: ^RRO_317 | X64: FALSE | AA64: ^RRO_317 | AB64: FALSE | AC64: ^RRO_317 | AD64: TRUE | CA64: ^RRO_317 | CB64: FALSE | CC64: ^RRO_317 | CD64: FALSE | CE64: ^RRO_317 | CF64: FALSE | CG64: ^RRO_317 | CH64: FALSE | CI64: ^RRO_317 | CJ64: FALSE | CK64: ^RRO_317 | CL64: FALSE | CM64: ^RRO_317 | CN64: FALSE | CO64: ^RRO_317 | CP64: FALSE | CQ64: ^RRO_317 | CR64: FALSE | CS64: ^RRO_317 | CT64: FALSE | CU64: ^RRO_317 | CV64: FALSE | CW64: ^RRO_317 | CX64: FALSE | DA64: ^RRO_317 | DB64: FALSE | DC64: ^RRO_317 | DD64: TRUE
A65: ^RRO_248 | B65: TRUE | C65: ^RRO_248 | D65: FALSE | E65: ^RRO_248 | F65: FALSE | G65: ^RRO_248 | H65: FALSE | I65: ^RRO_248 | J65: FALSE | K65: ^RRO_248 | L65: FALSE | M65: ^RRO_248 | N65: FALSE | O65: ^RRO_248 | P65: FALSE | Q65: ^RRO_248 | R65: FALSE | S65: ^RRO_248 | T65: FALSE | U65: ^RRO_248 | V65: FALSE | W65: ^RRO_248 | X65: FALSE | AA65: ^RRO_248 | AB65: FALSE | AC65: ^RRO_248 | AD65: TRUE | CA65: ^RRO_248 | CB65: TRUE | CC65: ^RRO_248 | CD65: FALSE | CE65: ^RRO_248 | CF65: FALSE | CG65: ^RRO_248 | CH65: FALSE | CI65: ^RRO_248 | CJ65: FALSE | CK65: ^RRO_248 | CL65: FALSE | CM65: ^RRO_248 | CN65: FALSE | CO65: ^RRO_248 | CP65: FALSE | CQ65: ^RRO_248 | CR65: FALSE | CS65: ^RRO_248 | CT65: FALSE | CU65: ^RRO_248 | CV65: FALSE | CW65: ^RRO_248 | CX65: FALSE | DA65: ^RRO_248 | DB65: FALSE | DC65: ^RRO_248 | DD65: TRUE
A66: ^RRO_275 | B66: FALSE | C66: ^RRO_275 | D66: FALSE | E66: ^RRO_275 | F66: FALSE | G66: ^RRO_275 | H66: FALSE | I66: ^RRO_275 | J66: FALSE | K66: ^RRO_275 | L66: FALSE | M66: ^RRO_275 | N66: FALSE | O66: ^RRO_275 | P66: FALSE | Q66: ^RRO_275 | R66: FALSE | S66: ^RRO_275 | T66: FALSE | U66: ^RRO_275 | V66: FALSE | W66: ^RRO_275 | X66: FALSE | AA66: ^RRO_275 | AB66: FALSE | AC66: ^RRO_275 | AD66: TRUE | CA66: ^RRO_275 | CB66: FALSE | CC66: ^RRO_275 | CD66: FALSE | CE66: ^RRO_275 | CF66: FALSE | CG66: ^RRO_275 | CH66: FALSE | CI66: ^RRO_275 | CJ66: FALSE | CK66: ^RRO_275 | CL66: FALSE | CM66: ^RRO_275 | CN66: FALSE | CO66: ^RRO_275 | CP66: FALSE | CQ66: ^RRO_275 | CR66: FALSE | CS66: ^RRO_275 | CT66: FALSE | CU66: ^RRO_275 | CV66: FALSE | CW66: ^RRO_275 | CX66: FALSE | DA66: ^RRO_275 | DB66: FALSE | DC66: ^RRO_275 | DD66: TRUE
A67: ^RRO_445 | B67: FALSE | C67: ^RRO_445 | D67: FALSE | E67: ^RRO_445 | F67: FALSE | G67: ^RRO_445 | H67: TRUE | I67: ^RRO_445 | J67: FALSE | K67: ^RRO_445 | L67: TRUE | M67: ^RRO_445 | N67: FALSE | O67: ^RRO_445 | P67: FALSE | Q67: ^RRO_445 | R67: FALSE | S67: ^RRO_445 | T67: FALSE | U67: ^RRO_445 | V67: TRUE | W67: ^RRO_445 | X67: FALSE | AA67: ^RRO_445 | AB67: FALSE | AC67: ^RRO_445 | AD67: FALSE | CA67: ^RRO_445 | CB67: FALSE | CC67: ^RRO_445 | CD67: FALSE | CE67: ^RRO_445 | CF67: FALSE | CG67: ^RRO_445 | CH67: TRUE | CI67: ^RRO_445 | CJ67: FALSE | CK67: ^RRO_445 | CL67: TRUE | CM67: ^RRO_445 | CN67: FALSE | CO67: ^RRO_445 | CP67: FALSE | CQ67: ^RRO_445 | CR67: FALSE | CS67: ^RRO_445 | CT67: FALSE | CU67: ^RRO_445 | CV67: TRUE | CW67: ^RRO_445 | CX67: FALSE | DA67: ^RRO_445 | DB67: FALSE | DC67: ^RRO_445 | DD67: FALSE
